Workbook

Sheet Examples (hidden)
B1: Teal | C1: Red | D1: Light grey | E1: Mid-grey | F1: Grey | G1: Light teal | H1: Mid-red | I1: Light red | L1: Teal solid | M1: Red solid | N1: Mid-grey | O1: Teal dashes | P1: Red dashes | Q1: Grey dashes | S1: X value | T1: 1st Y value | U1: 2nd Y value | X1: Teal | Y1: Red | Z1: Mid-red | AA1: Mid-grey
A2: 2003-04 | B2: 36.19 | C2: 36.88 | D2: 21.56 | E2: 5.36 | F2: 3.01 | G2: 10 | H2: 3.01 | I2: 10 | K2: 2003-04 | L2: 33.19 | M2: 36.88 | N2: 21.56 | O2: 5.36 | P2: 3.01 | Q2: 10 | S2: 1.8 | T2: 10 | U2: 17 | W2: 2003-04 | X2: 33.19 | Y2: 36.88 | Z2: 21.56 | AA2: 5.36
A3: 2004-05 | B3: 39.39 | C3: 32.02 | D3: 21.6 | E3: 7.01 | F3: 3.36 | G3: 12 | H3: 3.36 | I3: 12 | K3: 2004-05 | L3: 39.39 | M3: 32.02 | N3: 21.6 | O3: 7.01 | P3: 3.36 | Q3: 12 | S3: 2.3 | T3: 12 | U3: 9 | W3: 2004-05 | X3: 39.39 | Y3: 32.02 | Z3: 21.6 | AA3: 7.01
A4: 2005-06 | B4: 42.78 | C4: 29.91 | D4: 18.35 | E4: 6.33 | F4: 2.63 | G4: 14 | H4: 2.63 | I4: 14 | K4: 2005-06 | L4: 42.78 | M4: 29.91 | N4: 18.35 | O4: 6.33 | P4: 2.63 | Q4: 14 | S4: 3.7 | T4: 16 | U4: 14 | W4: 2005-06 | X4: 42.78 | Y4: 29.91 | Z4: 18.35 | AA4: 6.33
A5: 2006-07 | B5: 42.13 | C5: 26.53 | D5: 21.6 | E5: 7.01 | F5: 2.72 | G5: 16 | H5: 2.72 | I5: 16 | K5: 2006-07 | L5: 42.13 | M5: 26.53 | N5: 21.6 | O5: 7.01 | P5: 2.72 | Q5: 16 | S5: 4.1 | T5: 8 | U5: 23 | W5: 2006-07 | X5: 42.13 | Y5: 26.53 | Z5: 21.6 | AA5: 7.01
A6: 2007-08 | B6: 41.69 | C6: 24.76 | D6: 23.98 | E6: 7 | F6: 2.57 | G6: 18 | H6: 2.57 | I6: 18 | K6: 2007-08 | L6: 41.69 | M6: 24.76 | N6: 23.98 | O6: 7 | P6: 2.57 | Q6: 18 | S6: 5.5 | T6: 14 | U6: 27 | W6: 2007-08 | X6: 41.69 | Y6: 24.76 | Z6: 23.98 | AA6: 7
A7: 2008-09 | B7: 39.39 | C7: 32.02 | D7: 21.6 | E7: 7.01 | F7: 3.36 | G7: 12 | H7: 3.36 | I7: 12 | K7: 2008-09 | L7: 39.39 | M7: 32.02 | N7: 21.6 | O7: 7.01 | P7: 3.36 | Q7: 12 | W7: 2008-09 | X7: 39.39 | Y7: 32.02 | Z7: 21.6 | AA7: 7.01
A8: 2009-10 | B8: 42.13 | C8: 26.53 | D8: 21.6 | E8: 7.01 | F8: 2.72 | G8: 16 | H8: 2.72 | I8: 16 | K8: 2009-10 | L8: 42.13 | M8: 26.53 | N8: 21.6 | O8: 7.01 | P8: 2.72 | Q8: 16 | W8: 2009-10 | X8: 42.13 | Y8: 26.53 | Z8: 21.6 | AA8: 7.01
A9: 2010-11 | B9: 45 | C9: 22 | D9: 26 | E9: 8 | F9: 2 | G9: 20 | H9: 2 | I9: 20 | K9: 2010-11 | L9: 45 | M9: 22 | N9: 26 | O9: 8 | P9: 2 | Q9: 20 | W9: 2010-11 | X9: 45 | Y9: 22 | Z9: 26 | AA9: 8
A11: – en rule for when needed

Sheet Contents
B3: Colour-coding
C4: Main output sheet
C5: Calculation sheets
C6: Input sheets
C7: Raw data sheets
C8: Documentation sheets
C9: Updated inputs (2017)
B13: Contents - outputs
B14: Outputs - tariff volumes
B15: Outputs - customer numbers
B16: Outputs - CNs by postcode
B17: Outputs - sensitivity

Sheet Outputs - PM-adjusted
A1: Res | B1: Cla | C1: Blo | D1: Reg | E1: New | F1: Outputs | H1: 2003 | I1: 2004 | J1: 2005 | K1: 2006 | L1: 2007 | M1: 2008 | N1: 2009 | O1: 2010 | P1: 2011 | Q1: 2012 | R1: 2013 | S1: 2014 | T1: 2015 | U1: 2016 | V1: 2017 | W1: 2018 | X1: 2019 | Y1: 2020 | Z1: 2021 | AA1: 2022
F2: Tariff V - SP AusNet Central - Domestic
A3: 1 | B3: 1 | C3: 1 | D3: 1 | E3: 1 | G3: Fixed Charge | H3: ='Outputs - tariff volumes'!H3 -> 353373.5437 | I3: ='Outputs - tariff volumes'!I3 -> 365636.0314 | J3: ='Outputs - tariff volumes'!J3 -> 373611.675 | K3: ='Outputs - tariff volumes'!K3 -> 386985.6497 | L3: ='Outputs - tariff volumes'!L3 -> 396521.319 | M3: ='Outputs - tariff volumes'!M3 -> 406821.3391 | N3: ='Outputs - tariff volumes'!N3 -> 418854.5304 | O3: ='Outputs - tariff volumes'!O3 -> 432109.9274 | P3: ='Outputs - tariff volumes'!P3 -> 445574.4831 | Q3: ='Outputs - tariff volumes'!Q3 -> 454589.639 | R3: ='Outputs - tariff volumes'!R3 -> 464774.296 | S3: ='Outputs - tariff volumes'!S3 -> 476981.0067 | T3: ='Outputs - tariff volumes'!T3 -> 486958.2294 | U3: ='Outputs - tariff volumes'!U3 -> 499484.9671 | V3: ='Outputs - tariff volumes'!V3 -> 511863.096 | W3: ='Outputs - tariff volumes'!W3 -> 524669.584 | X3: ='Outputs - tariff volumes'!X3 -> 537860.6802 | Y3: ='Outputs - tariff volumes'!Y3 -> 551449.5799 | Z3: ='Outputs - tariff volumes'!Z3 -> 565449.9676 | AA3: ='Outputs - tariff volumes'!AA3 -> 578906.4286
A4: 1 | B4: 1 | C4: 2 | D4: 1 | E4: 1 | G4: Peak 0 - 0.1 | H4: ='Outputs - tariff volumes'!H4 -> 4462340.277 | I4: ='Outputs - tariff volumes'!I4 -> 3854588.089 | J4: ='Outputs - tariff volumes'!J4 -> 4053715.373 | K4: ='Outputs - tariff volumes'!K4 -> 4126124.511 | L4: ='Outputs - tariff volumes'!L4 -> 4215842.562 | M4: ='Outputs - tariff volumes'!M4 -> 4402250.471 | N4: ='Outputs - tariff volumes'!N4 -> 4477347.324 | O4: ='Outputs - tariff volumes'!O4 -> 4661161.351 | P4: ='Outputs - tariff volumes'!P4 -> 4709657.202 | Q4: ='Outputs - tariff volumes'!Q4 -> 4844779.056 | R4: ='Outputs - tariff volumes'!R4 -> 4860631.995 | S4: ='Outputs - tariff volumes'!S4 -> 4730745.03 | T4: ='Outputs - tariff volumes'!T4 -> 5102535.273 | U4: ='Outputs - tariff volumes'!U4 -> 5175140.239 | V4: ='Outputs - tariff volumes'!V4*(1+'Inputs - drivers'!V$26) -> 5281911.028 | W4: ='Outputs - tariff volumes'!W4*(1+'Inputs - drivers'!W$26) -> 5338265.638 | X4: ='Outputs - tariff volumes'!X4*(1+'Inputs - drivers'!X$26) -> 5401897.458 | Y4: ='Outputs - tariff volumes'!Y4*(1+'Inputs - drivers'!Y$26) -> 5437976.929 | Z4: ='Outputs - tariff volumes'!Z4*(1+'Inputs - drivers'!Z$26) -> 5479412.099 | AA4: ='Outputs - tariff volumes'!AA4*(1+'Inputs - drivers'!AA$26) -> 5446442.51
A5: 1 | B5: 1 | C5: 3 | D5: 1 | E5: 1 | G5: Peak 0.1 - 0.2 | H5: ='Outputs - tariff volumes'!H5 -> 2874672.511 | I5: ='Outputs - tariff volumes'!I5 -> 2920055.241 | J5: ='Outputs - tariff volumes'!J5 -> 2984479.526 | K5: ='Outputs - tariff volumes'!K5 -> 3266036.908 | L5: ='Outputs - tariff volumes'!L5 -> 3426888.594 | M5: ='Outputs - tariff volumes'!M5 -> 3461840.289 | N5: ='Outputs - tariff volumes'!N5 -> 3248582.248 | O5: ='Outputs - tariff volumes'!O5 -> 3716457.97 | P5: ='Outputs - tariff volumes'!P5 -> 3423257.37 | Q5: ='Outputs - tariff volumes'!Q5 -> 3719596.662 | R5: ='Outputs - tariff volumes'!R5 -> 3410488.724 | S5: ='Outputs - tariff volumes'!S5 -> 3491961.272 | T5: ='Outputs - tariff volumes'!T5 -> 3833486.066 | U5: ='Outputs - tariff volumes'!U5 -> 3878355.813 | V5: ='Outputs - tariff volumes'!V5*(1+'Inputs - drivers'!V$26) -> 3913530.935 | W5: ='Outputs - tariff volumes'!W5*(1+'Inputs - drivers'!W$26) -> 3947862.427 | X5: ='Outputs - tariff volumes'!X5*(1+'Inputs - drivers'!X$26) -> 3987401.784 | Y5: ='Outputs - tariff volumes'!Y5*(1+'Inputs - drivers'!Y$26) -> 4006054.077 | Z5: ='Outputs - tariff volumes'!Z5*(1+'Inputs - drivers'!Z$26) -> 4028592.042 | AA5: ='Outputs - tariff volumes'!AA5*(1+'Inputs - drivers'!AA$26) -> 3995904.137
A6: 1 | B6: 1 | C6: 4 | D6: 1 | E6: 1 | G6: Peak 0.2 - 1.4 | H6: ='Outputs - tariff volumes'!H6 -> 2793338.635 | I6: ='Outputs - tariff volumes'!I6 -> 4532439.758 | J6: ='Outputs - tariff volumes'!J6 -> 3549862.8 | K6: ='Outputs - tariff volumes'!K6 -> 4540824.979 | L6: ='Outputs - tariff volumes'!L6 -> 4806237.696 | M6: ='Outputs - tariff volumes'!M6 -> 5429111.796 | N6: ='Outputs - tariff volumes'!N6 -> 4376963.599 | O6: ='Outputs - tariff volumes'!O6 -> 6298252.626 | P6: ='Outputs - tariff volumes'!P6 -> 4647118.338 | Q6: ='Outputs - tariff volumes'!Q6 -> 5727415.344 | R6: ='Outputs - tariff volumes'!R6 -> 4484036.719 | S6: ='Outputs - tariff volumes'!S6 -> 5034413.009 | T6: ='Outputs - tariff volumes'!T6 -> 6451257.055 | U6: ='Outputs - tariff volumes'!U6 -> 5744575.603 | V6: ='Outputs - tariff volumes'!V6*(1+'Inputs - drivers'!V$26) -> 5672880.746 | W6: ='Outputs - tariff volumes'!W6*(1+'Inputs - drivers'!W$26) -> 5726844.465 | X6: ='Outputs - tariff volumes'!X6*(1+'Inputs - drivers'!X$26) -> 5789244.413 | Y6: ='Outputs - tariff volumes'!Y6*(1+'Inputs - drivers'!Y$26) -> 5821824.547 | Z6: ='Outputs - tariff volumes'!Z6*(1+'Inputs - drivers'!Z$26) -> 5861459.272 | AA6: ='Outputs - tariff volumes'!AA6*(1+'Inputs - drivers'!AA$26) -> 5829693.712
A7: 1 | B7: 1 | C7: 5 | D7: 1 | E7: 1 | G7: Peak > 1.4 | H7: ='Outputs - tariff volumes'!H7 -> 1166910.169 | I7: ='Outputs - tariff volumes'!I7 -> 104641.6756 | J7: ='Outputs - tariff volumes'!J7 -> 81257.64736 | K7: ='Outputs - tariff volumes'!K7 -> 200605.9009 | L7: ='Outputs - tariff volumes'!L7 -> 54634.1874 | M7: ='Outputs - tariff volumes'!M7 -> 88387.485 | N7: ='Outputs - tariff volumes'!N7 -> 75171.60253 | O7: ='Outputs - tariff volumes'!O7 -> 75468.17 | P7: ='Outputs - tariff volumes'!P7 -> 59060.624 | Q7: ='Outputs - tariff volumes'!Q7 -> 63687.439 | R7: ='Outputs - tariff volumes'!R7 -> 65162.246 | S7: ='Outputs - tariff volumes'!S7 -> 73846.68 | T7: ='Outputs - tariff volumes'!T7 -> 87376.163 | U7: ='Outputs - tariff volumes'!U7 -> 82963.073 | V7: ='Outputs - tariff volumes'!V7*(1+'Inputs - drivers'!V$26) -> 85097.1477 | W7: ='Outputs - tariff volumes'!W7*(1+'Inputs - drivers'!W$26) -> 87712.17636 | X7: ='Outputs - tariff volumes'!X7*(1+'Inputs - drivers'!X$26) -> 90508.65912 | Y7: ='Outputs - tariff volumes'!Y7*(1+'Inputs - drivers'!Y$26) -> 92911.14427 | Z7: ='Outputs - tariff volumes'!Z7*(1+'Inputs - drivers'!Z$26) -> 95429.79313 | AA7: ='Outputs - tariff volumes'!AA7*(1+'Inputs - drivers'!AA$26) -> 96401.29704
A8: 1 | B8: 1 | C8: 6 | D8: 1 | E8: 1 | G8: Off Peak 0 - 0.1 | H8: ='Outputs - tariff volumes'!H8 -> 6362094.487 | I8: ='Outputs - tariff volumes'!I8 -> 6337309.522 | J8: ='Outputs - tariff volumes'!J8 -> 6251075.702 | K8: ='Outputs - tariff volumes'!K8 -> 6565929.588 | L8: ='Outputs - tariff volumes'!L8 -> 5511712.342 | M8: ='Outputs - tariff volumes'!M8 -> 6280636.42 | N8: ='Outputs - tariff volumes'!N8 -> 6465953.215 | O8: ='Outputs - tariff volumes'!O8 -> 6320041.143 | P8: ='Outputs - tariff volumes'!P8 -> 6600657.587 | Q8: ='Outputs - tariff volumes'!Q8 -> 6739194.422 | R8: ='Outputs - tariff volumes'!R8 -> 6699930.623 | S8: ='Outputs - tariff volumes'!S8 -> 6576150.34 | T8: ='Outputs - tariff volumes'!T8 -> 6916612.37 | U8: ='Outputs - tariff volumes'!U8 -> 6895066.489 | V8: ='Outputs - tariff volumes'!V8*(1+'Inputs - drivers'!V$26) -> 6949507.905 | W8: ='Outputs - tariff volumes'!W8*(1+'Inputs - drivers'!W$26) -> 6961962.82 | X8: ='Outputs - tariff volumes'!X8*(1+'Inputs - drivers'!X$26) -> 6982690.161 | Y8: ='Outputs - tariff volumes'!Y8*(1+'Inputs - drivers'!Y$26) -> 6965971.713 | Z8: ='Outputs - tariff volumes'!Z8*(1+'Inputs - drivers'!Z$26) -> 6956333.47 | AA8: ='Outputs - tariff volumes'!AA8*(1+'Inputs - drivers'!AA$26) -> 6862045.65
A9: 1 | B9: 1 | C9: 7 | D9: 1 | E9: 1 | G9: Off Peak 0.1 - 0.2 | H9: ='Outputs - tariff volumes'!H9 -> 1567518.802 | I9: ='Outputs - tariff volumes'!I9 -> 1707624.123 | J9: ='Outputs - tariff volumes'!J9 -> 1303680.529 | K9: ='Outputs - tariff volumes'!K9 -> 1879008.77 | L9: ='Outputs - tariff volumes'!L9 -> 1196285.022 | M9: ='Outputs - tariff volumes'!M9 -> 1652359.123 | N9: ='Outputs - tariff volumes'!N9 -> 1918605.588 | O9: ='Outputs - tariff volumes'!O9 -> 1541953.417 | P9: ='Outputs - tariff volumes'!P9 -> 1720560.558 | Q9: ='Outputs - tariff volumes'!Q9 -> 1682480.197 | R9: ='Outputs - tariff volumes'!R9 -> 1689086.965 | S9: ='Outputs - tariff volumes'!S9 -> 1238864.364 | T9: ='Outputs - tariff volumes'!T9 -> 1619561.732 | U9: ='Outputs - tariff volumes'!U9 -> 1554095.251 | V9: ='Outputs - tariff volumes'!V9*(1+'Inputs - drivers'!V$26) -> 1471375.762 | W9: ='Outputs - tariff volumes'!W9*(1+'Inputs - drivers'!W$26) -> 1458922.647 | X9: ='Outputs - tariff volumes'!X9*(1+'Inputs - drivers'!X$26) -> 1448043.287 | Y9: ='Outputs - tariff volumes'!Y9*(1+'Inputs - drivers'!Y$26) -> 1428506.143 | Z9: ='Outputs - tariff volumes'!Z9*(1+'Inputs - drivers'!Z$26) -> 1410562.947 | AA9: ='Outputs - tariff volumes'!AA9*(1+'Inputs - drivers'!AA$26) -> 1375719.421
A10: 1 | B10: 1 | C10: 8 | D10: 1 | E10: 1 | G10: Off Peak 0.2 - 1.4 | H10: ='Outputs - tariff volumes'!H10 -> 696591.7455 | I10: ='Outputs - tariff volumes'!I10 -> 973980.2112 | J10: ='Outputs - tariff volumes'!J10 -> 606106.952 | K10: ='Outputs - tariff volumes'!K10 -> 1112884.986 | L10: ='Outputs - tariff volumes'!L10 -> 529355.3451 | M10: ='Outputs - tariff volumes'!M10 -> 872470.493 | N10: ='Outputs - tariff volumes'!N10 -> 1361786.188 | O10: ='Outputs - tariff volumes'!O10 -> 515641.429 | P10: ='Outputs - tariff volumes'!P10 -> 941142.716 | Q10: ='Outputs - tariff volumes'!Q10 -> 760489.322 | R10: ='Outputs - tariff volumes'!R10 -> 849195.188 | S10: ='Outputs - tariff volumes'!S10 -> 405634.108 | T10: ='Outputs - tariff volumes'!T10 -> 775505.552 | U10: ='Outputs - tariff volumes'!U10 -> 687249.238 | V10: ='Outputs - tariff volumes'!V10*(1+'Inputs - drivers'!V$26) -> 631805.1399 | W10: ='Outputs - tariff volumes'!W10*(1+'Inputs - drivers'!W$26) -> 626742.4938 | X10: ='Outputs - tariff volumes'!X10*(1+'Inputs - drivers'!X$26) -> 622428.1698 | Y10: ='Outputs - tariff volumes'!Y10*(1+'Inputs - drivers'!Y$26) -> 614341.9365 | Z10: ='Outputs - tariff volumes'!Z10*(1+'Inputs - drivers'!Z$26) -> 607032.9036 | AA10: ='Outputs - tariff volumes'!AA10*(1+'Inputs - drivers'!AA$26) -> 592563.7644
A11: 1 | B11: 1 | C11: 9 | D11: 1 | E11: 1 | G11: Off Peak > 1.4 | H11: ='Outputs - tariff volumes'!H11 -> 334096.7046 | I11: ='Outputs - tariff volumes'!I11 -> 116943.6345 | J11: ='Outputs - tariff volumes'!J11 -> 86706.47029 | K11: ='Outputs - tariff volumes'!K11 -> 183915.6105 | L11: ='Outputs - tariff volumes'!L11 -> 40971.35077 | M11: ='Outputs - tariff volumes'!M11 -> 108098.686 | N11: ='Outputs - tariff volumes'!N11 -> 103835.4805 | O11: ='Outputs - tariff volumes'!O11 -> 77079.19 | P11: ='Outputs - tariff volumes'!P11 -> 63483.865 | Q11: ='Outputs - tariff volumes'!Q11 -> 60349.004 | R11: ='Outputs - tariff volumes'!R11 -> 65437.359 | S11: ='Outputs - tariff volumes'!S11 -> 74309.514 | T11: ='Outputs - tariff volumes'!T11 -> 74527.061 | U11: ='Outputs - tariff volumes'!U11 -> 71679.269 | V11: ='Outputs - tariff volumes'!V11*(1+'Inputs - drivers'!V$26) -> 72249.32371 | W11: ='Outputs - tariff volumes'!W11*(1+'Inputs - drivers'!W$26) -> 74185.9532 | X11: ='Outputs - tariff volumes'!X11*(1+'Inputs - drivers'!X$26) -> 76259.96343 | Y11: ='Outputs - tariff volumes'!Y11*(1+'Inputs - drivers'!Y$26) -> 77969.66923 | Z11: ='Outputs - tariff volumes'!Z11*(1+'Inputs - drivers'!Z$26) -> 79759.54225 | AA11: ='Outputs - tariff volumes'!AA11*(1+'Inputs - drivers'!AA$26) -> 80131.23394
F12: Tariff V - SP AusNet Central - Commercial
A13: 2 | B13: 1 | C13: 1 | D13: 1 | E13: 1 | G13: Fixed Charge | H13: ='Outputs - tariff volumes'!H13 -> 8486.503291 | I13: ='Outputs - tariff volumes'!I13 -> 8809.799972 | J13: ='Outputs - tariff volumes'!J13 -> 8872.763337 | K13: ='Outputs - tariff volumes'!K13 -> 9020.412191 | L13: ='Outputs - tariff volumes'!L13 -> 9033.555016 | M13: ='Outputs - tariff volumes'!M13 -> 9111.223171 | N13: ='Outputs - tariff volumes'!N13 -> 9230.468411 | O13: ='Outputs - tariff volumes'!O13 -> 9325.082394 | P13: ='Outputs - tariff volumes'!P13 -> 9431.094328 | Q13: ='Outputs - tariff volumes'!Q13 -> 9619.854686 | R13: ='Outputs - tariff volumes'!R13 -> 9496.908636 | S13: ='Outputs - tariff volumes'!S13 -> 9811.062024 | T13: ='Outputs - tariff volumes'!T13 -> 9957.603619 | U13: ='Outputs - tariff volumes'!U13 -> 10053.97483 | V13: ='Outputs - tariff volumes'!V13 -> 10050.00999 | W13: ='Outputs - tariff volumes'!W13 -> 10197.40431 | X13: ='Outputs - tariff volumes'!X13 -> 10349.22637 | Y13: ='Outputs - tariff volumes'!Y13 -> 10505.62822 | Z13: ='Outputs - tariff volumes'!Z13 -> 10666.76756 | AA13: ='Outputs - tariff volumes'!AA13 -> 10821.56759
A14: 2 | B14: 1 | C14: 2 | D14: 1 | E14: 1 | G14: Peak 0 - 0.1 | H14: ='Outputs - tariff volumes'!H14 -> 79374.35533 | I14: ='Outputs - tariff volumes'!I14 -> 77093.25813 | J14: ='Outputs - tariff volumes'!J14 -> 79163.97441 | K14: ='Outputs - tariff volumes'!K14 -> 66909.9057 | L14: ='Outputs - tariff volumes'!L14 -> 94524.34856 | M14: ='Outputs - tariff volumes'!M14 -> 64006.447 | N14: ='Outputs - tariff volumes'!N14 -> 83457.5522 | O14: ='Outputs - tariff volumes'!O14 -> 85272.129 | P14: ='Outputs - tariff volumes'!P14 -> 85237.315 | Q14: ='Outputs - tariff volumes'!Q14 -> 86063.082 | R14: ='Outputs - tariff volumes'!R14 -> 85701.192 | S14: ='Outputs - tariff volumes'!S14 -> 84722.796 | T14: ='Outputs - tariff volumes'!T14 -> 89741.757 | U14: ='Outputs - tariff volumes'!U14 -> 92689.096 | V14: ='Outputs - tariff volumes'!V14*(1+'Inputs - drivers'!V$26) -> 91639.05728 | W14: ='Outputs - tariff volumes'!W14*(1+'Inputs - drivers'!W$26) -> 91498.50504 | X14: ='Outputs - tariff volumes'!X14*(1+'Inputs - drivers'!X$26) -> 92448.01257 | Y14: ='Outputs - tariff volumes'!Y14*(1+'Inputs - drivers'!Y$26) -> 91500.42251 | Z14: ='Outputs - tariff volumes'!Z14*(1+'Inputs - drivers'!Z$26) -> 91956.86421 | AA14: ='Outputs - tariff volumes'!AA14*(1+'Inputs - drivers'!AA$26) -> 91494.14924
A15: 2 | B15: 1 | C15: 3 | D15: 1 | E15: 1 | G15: Peak 0.1 - 0.2 | H15: ='Outputs - tariff volumes'!H15 -> 50301.4326 | I15: ='Outputs - tariff volumes'!I15 -> 65796.20901 | J15: ='Outputs - tariff volumes'!J15 -> 64849.36299 | K15: ='Outputs - tariff volumes'!K15 -> 72043.76438 | L15: ='Outputs - tariff volumes'!L15 -> 77884.49694 | M15: ='Outputs - tariff volumes'!M15 -> 70403.858 | N15: ='Outputs - tariff volumes'!N15 -> 67035.58881 | O15: ='Outputs - tariff volumes'!O15 -> 70596.51 | P15: ='Outputs - tariff volumes'!P15 -> 68891.241 | Q15: ='Outputs - tariff volumes'!Q15 -> 70824.317 | R15: ='Outputs - tariff volumes'!R15 -> 68992.662 | S15: ='Outputs - tariff volumes'!S15 -> 69457.199 | T15: ='Outputs - tariff volumes'!T15 -> 74440.955 | U15: ='Outputs - tariff volumes'!U15 -> 76805.767 | V15: ='Outputs - tariff volumes'!V15*(1+'Inputs - drivers'!V$26) -> 76348.44125 | W15: ='Outputs - tariff volumes'!W15*(1+'Inputs - drivers'!W$26) -> 76717.41131 | X15: ='Outputs - tariff volumes'!X15*(1+'Inputs - drivers'!X$26) -> 78000.4729 | Y15: ='Outputs - tariff volumes'!Y15*(1+'Inputs - drivers'!Y$26) -> 77719.23251 | Z15: ='Outputs - tariff volumes'!Z15*(1+'Inputs - drivers'!Z$26) -> 78606.65328 | AA15: ='Outputs - tariff volumes'!AA15*(1+'Inputs - drivers'!AA$26) -> 78701.71735
A16: 2 | B16: 1 | C16: 4 | D16: 1 | E16: 1 | G16: Peak 0.2 - 1.4 | H16: ='Outputs - tariff volumes'!H16 -> 366156.3404 | I16: ='Outputs - tariff volumes'!I16 -> 364572.2395 | J16: ='Outputs - tariff volumes'!J16 -> 371156.818 | K16: ='Outputs - tariff volumes'!K16 -> 428718.5014 | L16: ='Outputs - tariff volumes'!L16 -> 388936.3453 | M16: ='Outputs - tariff volumes'!M16 -> 415815.191 | N16: ='Outputs - tariff volumes'!N16 -> 387827.1823 | O16: ='Outputs - tariff volumes'!O16 -> 422896.237 | P16: ='Outputs - tariff volumes'!P16 -> 406087.8 | Q16: ='Outputs - tariff volumes'!Q16 -> 421067.194 | R16: ='Outputs - tariff volumes'!R16 -> 406054.743 | S16: ='Outputs - tariff volumes'!S16 -> 419630.752 | T16: ='Outputs - tariff volumes'!T16 -> 452164.844 | U16: ='Outputs - tariff volumes'!U16 -> 459675.893 | V16: ='Outputs - tariff volumes'!V16*(1+'Inputs - drivers'!V$26) -> 454547.9757 | W16: ='Outputs - tariff volumes'!W16*(1+'Inputs - drivers'!W$26) -> 456106.7368 | X16: ='Outputs - tariff volumes'!X16*(1+'Inputs - drivers'!X$26) -> 463129.2597 | Y16: ='Outputs - tariff volumes'!Y16*(1+'Inputs - drivers'!Y$26) -> 460749.9327 | Z16: ='Outputs - tariff volumes'!Z16*(1+'Inputs - drivers'!Z$26) -> 465366.0717 | AA16: ='Outputs - tariff volumes'!AA16*(1+'Inputs - drivers'!AA$26) -> 465047.3833
A17: 2 | B17: 1 | C17: 5 | D17: 1 | E17: 1 | G17: Peak > 1.4 | H17: ='Outputs - tariff volumes'!H17 -> 1131210.208 | I17: ='Outputs - tariff volumes'!I17 -> 1042012.423 | J17: ='Outputs - tariff volumes'!J17 -> 1004645.481 | K17: ='Outputs - tariff volumes'!K17 -> 1155318.091 | L17: ='Outputs - tariff volumes'!L17 -> 1249108.538 | M17: ='Outputs - tariff volumes'!M17 -> 1378068.437 | N17: ='Outputs - tariff volumes'!N17 -> 1070518.918 | O17: ='Outputs - tariff volumes'!O17 -> 1315124.928 | P17: ='Outputs - tariff volumes'!P17 -> 1340433.113 | Q17: ='Outputs - tariff volumes'!Q17 -> 1312871.735 | R17: ='Outputs - tariff volumes'!R17 -> 1294377.627 | S17: ='Outputs - tariff volumes'!S17 -> 1242927.84 | T17: ='Outputs - tariff volumes'!T17 -> 1340104.411 | U17: ='Outputs - tariff volumes'!U17 -> 1246511.864 | V17: ='Outputs - tariff volumes'!V17*(1+'Inputs - drivers'!V$26) -> 1225949.621 | W17: ='Outputs - tariff volumes'!W17*(1+'Inputs - drivers'!W$26) -> 1226398.734 | X17: ='Outputs - tariff volumes'!X17*(1+'Inputs - drivers'!X$26) -> 1241477.409 | Y17: ='Outputs - tariff volumes'!Y17*(1+'Inputs - drivers'!Y$26) -> 1231419.83 | Z17: ='Outputs - tariff volumes'!Z17*(1+'Inputs - drivers'!Z$26) -> 1240206.755 | AA17: ='Outputs - tariff volumes'!AA17*(1+'Inputs - drivers'!AA$26) -> 1239463.14
A18: 2 | B18: 1 | C18: 6 | D18: 1 | E18: 1 | G18: Off Peak 0 - 0.1 | H18: ='Outputs - tariff volumes'!H18 -> 128838.6047 | I18: ='Outputs - tariff volumes'!I18 -> 142514.0052 | J18: ='Outputs - tariff volumes'!J18 -> 140544.2638 | K18: ='Outputs - tariff volumes'!K18 -> 122622.4348 | L18: ='Outputs - tariff volumes'!L18 -> 121006.9712 | M18: ='Outputs - tariff volumes'!M18 -> 101518.522 | N18: ='Outputs - tariff volumes'!N18 -> 139555.4538 | O18: ='Outputs - tariff volumes'!O18 -> 137485.694 | P18: ='Outputs - tariff volumes'!P18 -> 140334.095 | Q18: ='Outputs - tariff volumes'!Q18 -> 141397.367 | R18: ='Outputs - tariff volumes'!R18 -> 143952.419 | S18: ='Outputs - tariff volumes'!S18 -> 144745.829 | T18: ='Outputs - tariff volumes'!T18 -> 151574.295 | U18: ='Outputs - tariff volumes'!U18 -> 154283.479 | V18: ='Outputs - tariff volumes'!V18*(1+'Inputs - drivers'!V$26) -> 152245.6638 | W18: ='Outputs - tariff volumes'!W18*(1+'Inputs - drivers'!W$26) -> 151917.8566 | X18: ='Outputs - tariff volumes'!X18*(1+'Inputs - drivers'!X$26) -> 153402.8163 | Y18: ='Outputs - tariff volumes'!Y18*(1+'Inputs - drivers'!Y$26) -> 151719.5768 | Z18: ='Outputs - tariff volumes'!Z18*(1+'Inputs - drivers'!Z$26) -> 152372.7653 | AA18: ='Outputs - tariff volumes'!AA18*(1+'Inputs - drivers'!AA$26) -> 151440.589
A19: 2 | B19: 1 | C19: 7 | D19: 1 | E19: 1 | G19: Off Peak 0.1 - 0.2 | H19: ='Outputs - tariff volumes'!H19 -> 110074.3373 | I19: ='Outputs - tariff volumes'!I19 -> 95953.03759 | J19: ='Outputs - tariff volumes'!J19 -> 95175.65334 | K19: ='Outputs - tariff volumes'!K19 -> 76439.2186 | L19: ='Outputs - tariff volumes'!L19 -> 96307.04125 | M19: ='Outputs - tariff volumes'!M19 -> 95892.239 | N19: ='Outputs - tariff volumes'!N19 -> 96102.23819 | O19: ='Outputs - tariff volumes'!O19 -> 92693.515 | P19: ='Outputs - tariff volumes'!P19 -> 96184.376 | Q19: ='Outputs - tariff volumes'!Q19 -> 97408.188 | R19: ='Outputs - tariff volumes'!R19 -> 99815.508 | S19: ='Outputs - tariff volumes'!S19 -> 100036.473 | T19: ='Outputs - tariff volumes'!T19 -> 106556.453 | U19: ='Outputs - tariff volumes'!U19 -> 107264.592 | V19: ='Outputs - tariff volumes'!V19*(1+'Inputs - drivers'!V$26) -> 106375.3583 | W19: ='Outputs - tariff volumes'!W19*(1+'Inputs - drivers'!W$26) -> 107109.8979 | X19: ='Outputs - tariff volumes'!X19*(1+'Inputs - drivers'!X$26) -> 109129.0023 | Y19: ='Outputs - tariff volumes'!Y19*(1+'Inputs - drivers'!Y$26) -> 108959.4386 | Z19: ='Outputs - tariff volumes'!Z19*(1+'Inputs - drivers'!Z$26) -> 110427.4944 | AA19: ='Outputs - tariff volumes'!AA19*(1+'Inputs - drivers'!AA$26) -> 110706.2843
A20: 2 | B20: 1 | C20: 8 | D20: 1 | E20: 1 | G20: Off Peak 0.2 - 1.4 | H20: ='Outputs - tariff volumes'!H20 -> 515605.3519 | I20: ='Outputs - tariff volumes'!I20 -> 499715.9902 | J20: ='Outputs - tariff volumes'!J20 -> 503979.5608 | K20: ='Outputs - tariff volumes'!K20 -> 603007.4143 | L20: ='Outputs - tariff volumes'!L20 -> 476827.4629 | M20: ='Outputs - tariff volumes'!M20 -> 554211.651 | N20: ='Outputs - tariff volumes'!N20 -> 563462.6397 | O20: ='Outputs - tariff volumes'!O20 -> 543000.288 | P20: ='Outputs - tariff volumes'!P20 -> 566337.888 | Q20: ='Outputs - tariff volumes'!Q20 -> 579781.364 | R20: ='Outputs - tariff volumes'!R20 -> 590331.899 | S20: ='Outputs - tariff volumes'!S20 -> 591038.049 | T20: ='Outputs - tariff volumes'!T20 -> 626136.963 | U20: ='Outputs - tariff volumes'!U20 -> 631139.819 | V20: ='Outputs - tariff volumes'!V20*(1+'Inputs - drivers'!V$26) -> 625235.1155 | W20: ='Outputs - tariff volumes'!W20*(1+'Inputs - drivers'!W$26) -> 627702.4716 | X20: ='Outputs - tariff volumes'!X20*(1+'Inputs - drivers'!X$26) -> 637669.3902 | Y20: ='Outputs - tariff volumes'!Y20*(1+'Inputs - drivers'!Y$26) -> 634780.9053 | Z20: ='Outputs - tariff volumes'!Z20*(1+'Inputs - drivers'!Z$26) -> 641492.1018 | AA20: ='Outputs - tariff volumes'!AA20*(1+'Inputs - drivers'!AA$26) -> 641794.3509
A21: 2 | B21: 1 | C21: 9 | D21: 1 | E21: 1 | G21: Off Peak > 1.4 | H21: ='Outputs - tariff volumes'!H21 -> 1119044.197 | I21: ='Outputs - tariff volumes'!I21 -> 1143649.267 | J21: ='Outputs - tariff volumes'!J21 -> 1081284.424 | K21: ='Outputs - tariff volumes'!K21 -> 1318468.406 | L21: ='Outputs - tariff volumes'!L21 -> 1354879.342 | M21: ='Outputs - tariff volumes'!M21 -> 1450033.214 | N21: ='Outputs - tariff volumes'!N21 -> 1384193.505 | O21: ='Outputs - tariff volumes'!O21 -> 1460453.893 | P21: ='Outputs - tariff volumes'!P21 -> 1686598.746 | Q21: ='Outputs - tariff volumes'!Q21 -> 1521974.463 | R21: ='Outputs - tariff volumes'!R21 -> 1485787.137 | S21: ='Outputs - tariff volumes'!S21 -> 1493335.52 | T21: ='Outputs - tariff volumes'!T21 -> 1660066.591 | U21: ='Outputs - tariff volumes'!U21 -> 1615595.806 | V21: ='Outputs - tariff volumes'!V21*(1+'Inputs - drivers'!V$26) -> 1599855.187 | W21: ='Outputs - tariff volumes'!W21*(1+'Inputs - drivers'!W$26) -> 1609281.995 | X21: ='Outputs - tariff volumes'!X21*(1+'Inputs - drivers'!X$26) -> 1637753.345 | Y21: ='Outputs - tariff volumes'!Y21*(1+'Inputs - drivers'!Y$26) -> 1633740.83 | Z21: ='Outputs - tariff volumes'!Z21*(1+'Inputs - drivers'!Z$26) -> 1654137.185 | AA21: ='Outputs - tariff volumes'!AA21*(1+'Inputs - drivers'!AA$26) -> 1662140.446
F22: Tariff V - SP AusNet West - Domestic
A23: 1 | B23: 1 | C23: 1 | D23: 2 | E23: 1 | G23: Fixed Charge | H23: ='Outputs - tariff volumes'!H23 -> 104279.3038 | I23: ='Outputs - tariff volumes'!I23 -> 107339.7567 | J23: ='Outputs - tariff volumes'!J23 -> 108896.1511 | K23: ='Outputs - tariff volumes'!K23 -> 112080.4028 | L23: ='Outputs - tariff volumes'!L23 -> 114296.9744 | M23: ='Outputs - tariff volumes'!M23 -> 116927.6868 | N23: ='Outputs - tariff volumes'!N23 -> 119402.2724 | O23: ='Outputs - tariff volumes'!O23 -> 122288.7946 | P23: ='Outputs - tariff volumes'!P23 -> 125432.5286 | Q23: ='Outputs - tariff volumes'!Q23 -> 127686.7412 | R23: ='Outputs - tariff volumes'!R23 -> 130822.7289 | S23: ='Outputs - tariff volumes'!S23 -> 133999.7934 | T23: ='Outputs - tariff volumes'!T23 -> 136294.8334 | U23: ='Outputs - tariff volumes'!U23 -> 138832.5177 | V23: ='Outputs - tariff volumes'!V23 -> 140934.7422 | W23: ='Outputs - tariff volumes'!W23 -> 142816.5962 | X23: ='Outputs - tariff volumes'!X23 -> 144731.9209 | Y23: ='Outputs - tariff volumes'!Y23 -> 146681.3962 | Z23: ='Outputs - tariff volumes'!Z23 -> 148665.7166 | AA23: ='Outputs - tariff volumes'!AA23 -> 150474.5511
A24: 1 | B24: 1 | C24: 2 | D24: 2 | E24: 1 | G24: Peak 0 - 0.1 | H24: ='Outputs - tariff volumes'!H24 -> 1293158.413 | I24: ='Outputs - tariff volumes'!I24 -> 1135908.079 | J24: ='Outputs - tariff volumes'!J24 -> 1193513.362 | K24: ='Outputs - tariff volumes'!K24 -> 1157815.2 | L24: ='Outputs - tariff volumes'!L24 -> 1248192.064 | M24: ='Outputs - tariff volumes'!M24 -> 1266002.687 | N24: ='Outputs - tariff volumes'!N24 -> 1282652.822 | O24: ='Outputs - tariff volumes'!O24 -> 1328921.749 | P24: ='Outputs - tariff volumes'!P24 -> 1331262.285 | Q24: ='Outputs - tariff volumes'!Q24 -> 1369070.942 | R24: ='Outputs - tariff volumes'!R24 -> 1377303.96 | S24: ='Outputs - tariff volumes'!S24 -> 1342174.081 | T24: ='Outputs - tariff volumes'!T24 -> 1437746.857 | U24: ='Outputs - tariff volumes'!U24 -> 1453142.596 | V24: ='Outputs - tariff volumes'!V24*(1+'Inputs - drivers'!V$26) -> 1463214.515 | W24: ='Outputs - tariff volumes'!W24*(1+'Inputs - drivers'!W$26) -> 1463699.381 | X24: ='Outputs - tariff volumes'!X24*(1+'Inputs - drivers'!X$26) -> 1465860.537 | Y24: ='Outputs - tariff volumes'!Y24*(1+'Inputs - drivers'!Y$26) -> 1460286.367 | Z24: ='Outputs - tariff volumes'!Z24*(1+'Inputs - drivers'!Z$26) -> 1456135.511 | AA24: ='Outputs - tariff volumes'!AA24*(1+'Inputs - drivers'!AA$26) -> 1439950.022
A25: 1 | B25: 1 | C25: 3 | D25: 2 | E25: 1 | G25: Peak 0.1 - 0.2 | H25: ='Outputs - tariff volumes'!H25 -> 858557.0034 | I25: ='Outputs - tariff volumes'!I25 -> 824451.8222 | J25: ='Outputs - tariff volumes'!J25 -> 844721.4059 | K25: ='Outputs - tariff volumes'!K25 -> 878460.4284 | L25: ='Outputs - tariff volumes'!L25 -> 891965.6591 | M25: ='Outputs - tariff volumes'!M25 -> 976404.478 | N25: ='Outputs - tariff volumes'!N25 -> 939854.6858 | O25: ='Outputs - tariff volumes'!O25 -> 1058897.672 | P25: ='Outputs - tariff volumes'!P25 -> 963222.928 | Q25: ='Outputs - tariff volumes'!Q25 -> 1051249.823 | R25: ='Outputs - tariff volumes'!R25 -> 974644.065 | S25: ='Outputs - tariff volumes'!S25 -> 1023237.93 | T25: ='Outputs - tariff volumes'!T25 -> 1099527.354 | U25: ='Outputs - tariff volumes'!U25 -> 1123117.129 | V25: ='Outputs - tariff volumes'!V25*(1+'Inputs - drivers'!V$26) -> 1118052.75 | W25: ='Outputs - tariff volumes'!W25*(1+'Inputs - drivers'!W$26) -> 1116284.804 | X25: ='Outputs - tariff volumes'!X25*(1+'Inputs - drivers'!X$26) -> 1115791.713 | Y25: ='Outputs - tariff volumes'!Y25*(1+'Inputs - drivers'!Y$26) -> 1109304.148 | Z25: ='Outputs - tariff volumes'!Z25*(1+'Inputs - drivers'!Z$26) -> 1103927.65 | AA25: ='Outputs - tariff volumes'!AA25*(1+'Inputs - drivers'!AA$26) -> 1089336.902
A26: 1 | B26: 1 | C26: 4 | D26: 2 | E26: 1 | G26: Peak 0.2 - 1.4 | H26: ='Outputs - tariff volumes'!H26 -> 786990.2223 | I26: ='Outputs - tariff volumes'!I26 -> 1224825.45 | J26: ='Outputs - tariff volumes'!J26 -> 958903.2916 | K26: ='Outputs - tariff volumes'!K26 -> 1246835.83 | L26: ='Outputs - tariff volumes'!L26 -> 1325172.24 | M26: ='Outputs - tariff volumes'!M26 -> 1432730.546 | N26: ='Outputs - tariff volumes'!N26 -> 1285222.583 | O26: ='Outputs - tariff volumes'!O26 -> 1704251.708 | P26: ='Outputs - tariff volumes'!P26 -> 1274933.983 | Q26: ='Outputs - tariff volumes'!Q26 -> 1561449.649 | R26: ='Outputs - tariff volumes'!R26 -> 1264270.016 | S26: ='Outputs - tariff volumes'!S26 -> 1529409.027 | T26: ='Outputs - tariff volumes'!T26 -> 1822140.826 | U26: ='Outputs - tariff volumes'!U26 -> 1710943.293 | V26: ='Outputs - tariff volumes'!V26*(1+'Inputs - drivers'!V$26) -> 1670501.034 | W26: ='Outputs - tariff volumes'!W26*(1+'Inputs - drivers'!W$26) -> 1671689.11 | X26: ='Outputs - tariff volumes'!X26*(1+'Inputs - drivers'!X$26) -> 1674967.279 | Y26: ='Outputs - tariff volumes'!Y26*(1+'Inputs - drivers'!Y$26) -> 1669302.493 | Z26: ='Outputs - tariff volumes'!Z26*(1+'Inputs - drivers'!Z$26) -> 1665570.339 | AA26: ='Outputs - tariff volumes'!AA26*(1+'Inputs - drivers'!AA$26) -> 1649166.881
A27: 1 | B27: 1 | C27: 5 | D27: 2 | E27: 1 | G27: Peak > 1.4 | H27: ='Outputs - tariff volumes'!H27 -> 298127.0398 | I27: ='Outputs - tariff volumes'!I27 -> 43961.51598 | J27: ='Outputs - tariff volumes'!J27 -> 27849.0719 | K27: ='Outputs - tariff volumes'!K27 -> 50256.11179 | L27: ='Outputs - tariff volumes'!L27 -> 65209.50974 | M27: ='Outputs - tariff volumes'!M27 -> 25081.969 | N27: ='Outputs - tariff volumes'!N27 -> 23748.68735 | O27: ='Outputs - tariff volumes'!O27 -> 15114.505 | P27: ='Outputs - tariff volumes'!P27 -> 13554.014 | Q27: ='Outputs - tariff volumes'!Q27 -> 13223.936 | R27: ='Outputs - tariff volumes'!R27 -> 13245.787 | S27: ='Outputs - tariff volumes'!S27 -> 22991.377 | T27: ='Outputs - tariff volumes'!T27 -> 18894.167 | U27: ='Outputs - tariff volumes'!U27 -> 26549.636 | V27: ='Outputs - tariff volumes'!V27*(1+'Inputs - drivers'!V$26) -> 26750.86126 | W27: ='Outputs - tariff volumes'!W27*(1+'Inputs - drivers'!W$26) -> 27207.24062 | X27: ='Outputs - tariff volumes'!X27*(1+'Inputs - drivers'!X$26) -> 27702.66531 | Y27: ='Outputs - tariff volumes'!Y27*(1+'Inputs - drivers'!Y$26) -> 28061.43469 | Z27: ='Outputs - tariff volumes'!Z27*(1+'Inputs - drivers'!Z$26) -> 28445.06239 | AA27: ='Outputs - tariff volumes'!AA27*(1+'Inputs - drivers'!AA$26) -> 28550.01769
A28: 1 | B28: 1 | C28: 6 | D28: 2 | E28: 1 | G28: Off Peak 0 - 0.1 | H28: ='Outputs - tariff volumes'!H28 -> 1833879.836 | I28: ='Outputs - tariff volumes'!I28 -> 1794322.802 | J28: ='Outputs - tariff volumes'!J28 -> 1778936.605 | K28: ='Outputs - tariff volumes'!K28 -> 1779110.13 | L28: ='Outputs - tariff volumes'!L28 -> 1580011.279 | M28: ='Outputs - tariff volumes'!M28 -> 1742034.187 | N28: ='Outputs - tariff volumes'!N28 -> 1769988.217 | O28: ='Outputs - tariff volumes'!O28 -> 1742183.452 | P28: ='Outputs - tariff volumes'!P28 -> 1831802.037 | Q28: ='Outputs - tariff volumes'!Q28 -> 1854874.649 | R28: ='Outputs - tariff volumes'!R28 -> 1817766.607 | S28: ='Outputs - tariff volumes'!S28 -> 1765758.865 | T28: ='Outputs - tariff volumes'!T28 -> 1854183.404 | U28: ='Outputs - tariff volumes'!U28 -> 1850320.099 | V28: ='Outputs - tariff volumes'!V28*(1+'Inputs - drivers'!V$26) -> 1843454.677 | W28: ='Outputs - tariff volumes'!W28*(1+'Inputs - drivers'!W$26) -> 1830447.219 | X28: ='Outputs - tariff volumes'!X28*(1+'Inputs - drivers'!X$26) -> 1819459.151 | Y28: ='Outputs - tariff volumes'!Y28*(1+'Inputs - drivers'!Y$26) -> 1798631.012 | Z28: ='Outputs - tariff volumes'!Z28*(1+'Inputs - drivers'!Z$26) -> 1779817.603 | AA28: ='Outputs - tariff volumes'!AA28*(1+'Inputs - drivers'!AA$26) -> 1747789.354
A29: 1 | B29: 1 | C29: 7 | D29: 2 | E29: 1 | G29: Off Peak 0.1 - 0.2 | H29: ='Outputs - tariff volumes'!H29 -> 446158.2415 | I29: ='Outputs - tariff volumes'!I29 -> 504137.8775 | J29: ='Outputs - tariff volumes'!J29 -> 408108.0454 | K29: ='Outputs - tariff volumes'!K29 -> 552240.2379 | L29: ='Outputs - tariff volumes'!L29 -> 269881.4477 | M29: ='Outputs - tariff volumes'!M29 -> 500088.769 | N29: ='Outputs - tariff volumes'!N29 -> 568172.3472 | O29: ='Outputs - tariff volumes'!O29 -> 472723.944 | P29: ='Outputs - tariff volumes'!P29 -> 541692.044 | Q29: ='Outputs - tariff volumes'!Q29 -> 528078.375 | R29: ='Outputs - tariff volumes'!R29 -> 532254.691 | S29: ='Outputs - tariff volumes'!S29 -> 389396.068 | T29: ='Outputs - tariff volumes'!T29 -> 488500.272 | U29: ='Outputs - tariff volumes'!U29 -> 515154.068 | V29: ='Outputs - tariff volumes'!V29*(1+'Inputs - drivers'!V$26) -> 482431.915 | W29: ='Outputs - tariff volumes'!W29*(1+'Inputs - drivers'!W$26) -> 474335.2984 | X29: ='Outputs - tariff volumes'!X29*(1+'Inputs - drivers'!X$26) -> 466788.5865 | Y29: ='Outputs - tariff volumes'!Y29*(1+'Inputs - drivers'!Y$26) -> 456510.6301 | Z29: ='Outputs - tariff volumes'!Z29*(1+'Inputs - drivers'!Z$26) -> 446866.9226 | AA29: ='Outputs - tariff volumes'!AA29*(1+'Inputs - drivers'!AA$26) -> 433953.5889
A30: 1 | B30: 1 | C30: 8 | D30: 2 | E30: 1 | G30: Off Peak 0.2 - 1.4 | H30: ='Outputs - tariff volumes'!H30 -> 169449.2292 | I30: ='Outputs - tariff volumes'!I30 -> 263890.7655 | J30: ='Outputs - tariff volumes'!J30 -> 193719.1069 | K30: ='Outputs - tariff volumes'!K30 -> 304962.6111 | L30: ='Outputs - tariff volumes'!L30 -> 181594.3382 | M30: ='Outputs - tariff volumes'!M30 -> 293878.807 | N30: ='Outputs - tariff volumes'!N30 -> 411594.0826 | O30: ='Outputs - tariff volumes'!O30 -> 201019.658 | P30: ='Outputs - tariff volumes'!P30 -> 333075.683 | Q30: ='Outputs - tariff volumes'!Q30 -> 290571.181 | R30: ='Outputs - tariff volumes'!R30 -> 322258.369 | S30: ='Outputs - tariff volumes'!S30 -> 151243.673 | T30: ='Outputs - tariff volumes'!T30 -> 249515.131 | U30: ='Outputs - tariff volumes'!U30 -> 324240.648 | V30: ='Outputs - tariff volumes'!V30*(1+'Inputs - drivers'!V$26) -> 294919.1083 | W30: ='Outputs - tariff volumes'!W30*(1+'Inputs - drivers'!W$26) -> 290155.3775 | X30: ='Outputs - tariff volumes'!X30*(1+'Inputs - drivers'!X$26) -> 285756.5795 | Y30: ='Outputs - tariff volumes'!Y30*(1+'Inputs - drivers'!Y$26) -> 279657.3747 | Z30: ='Outputs - tariff volumes'!Z30*(1+'Inputs - drivers'!Z$26) -> 273981.9328 | AA30: ='Outputs - tariff volumes'!AA30*(1+'Inputs - drivers'!AA$26) -> 266323.455
A31: 1 | B31: 1 | C31: 9 | D31: 2 | E31: 1 | G31: Off Peak > 1.4 | H31: ='Outputs - tariff volumes'!H31 -> 77801.18543 | I31: ='Outputs - tariff volumes'!I31 -> 44458.84278 | J31: ='Outputs - tariff volumes'!J31 -> 27309.16627 | K31: ='Outputs - tariff volumes'!K31 -> 23965.68951 | L31: ='Outputs - tariff volumes'!L31 -> 30871.73055 | M31: ='Outputs - tariff volumes'!M31 -> 27609.38 | N31: ='Outputs - tariff volumes'!N31 -> 29467.26465 | O31: ='Outputs - tariff volumes'!O31 -> 25113.512 | P31: ='Outputs - tariff volumes'!P31 -> 12222.116 | Q31: ='Outputs - tariff volumes'!Q31 -> 13207.113 | R31: ='Outputs - tariff volumes'!R31 -> 13389.912 | S31: ='Outputs - tariff volumes'!S31 -> 13339.949 | T31: ='Outputs - tariff volumes'!T31 -> 14518.501 | U31: ='Outputs - tariff volumes'!U31 -> 17672.631 | V31: ='Outputs - tariff volumes'!V31*(1+'Inputs - drivers'!V$26) -> 17467.96068 | W31: ='Outputs - tariff volumes'!W31*(1+'Inputs - drivers'!W$26) -> 17676.31718 | X31: ='Outputs - tariff volumes'!X31*(1+'Inputs - drivers'!X$26) -> 17908.64443 | Y31: ='Outputs - tariff volumes'!Y31*(1+'Inputs - drivers'!Y$26) -> 18047.61028 | Z31: ='Outputs - tariff volumes'!Z31*(1+'Inputs - drivers'!Z$26) -> 18201.28314 | AA31: ='Outputs - tariff volumes'!AA31*(1+'Inputs - drivers'!AA$26) -> 18159.57269
F32: Tariff V - SP AusNet West - Commercial
A33: 2 | B33: 1 | C33: 1 | D33: 2 | E33: 1 | G33: Fixed Charge | H33: ='Outputs - tariff volumes'!H33 -> 5960.393127 | I33: ='Outputs - tariff volumes'!I33 -> 6000.918606 | J33: ='Outputs - tariff volumes'!J33 -> 5962.054874 | K33: ='Outputs - tariff volumes'!K33 -> 6079.398298 | L33: ='Outputs - tariff volumes'!L33 -> 6042.428661 | M33: ='Outputs - tariff volumes'!M33 -> 6045.868555 | N33: ='Outputs - tariff volumes'!N33 -> 6062.366979 | O33: ='Outputs - tariff volumes'!O33 -> 6058.154372 | P33: ='Outputs - tariff volumes'!P33 -> 6062.196873 | Q33: ='Outputs - tariff volumes'!Q33 -> 6134.079397 | R33: ='Outputs - tariff volumes'!R33 -> 6015.849889 | S33: ='Outputs - tariff volumes'!S33 -> 6120.120991 | T33: ='Outputs - tariff volumes'!T33 -> 6101.902462 | U33: ='Outputs - tariff volumes'!U33 -> 6137.304201 | V33: ='Outputs - tariff volumes'!V33 -> 6112.529035 | W33: ='Outputs - tariff volumes'!W33 -> 6134.618338 | X33: ='Outputs - tariff volumes'!X33 -> 6157.097715 | Y33: ='Outputs - tariff volumes'!Y33 -> 6179.975013 | Z33: ='Outputs - tariff volumes'!Z33 -> 6203.258247 | AA33: ='Outputs - tariff volumes'!AA33 -> 6224.177081
A34: 2 | B34: 1 | C34: 2 | D34: 2 | E34: 1 | G34: Peak 0 - 0.1 | H34: ='Outputs - tariff volumes'!H34 -> 62212.26268 | I34: ='Outputs - tariff volumes'!I34 -> 64733.71006 | J34: ='Outputs - tariff volumes'!J34 -> 57398.71212 | K34: ='Outputs - tariff volumes'!K34 -> 55989.37537 | L34: ='Outputs - tariff volumes'!L34 -> 57214.88858 | M34: ='Outputs - tariff volumes'!M34 -> 54466.977 | N34: ='Outputs - tariff volumes'!N34 -> 54880.51624 | O34: ='Outputs - tariff volumes'!O34 -> 55361.607 | P34: ='Outputs - tariff volumes'!P34 -> 53687.641 | Q34: ='Outputs - tariff volumes'!Q34 -> 54517.836 | R34: ='Outputs - tariff volumes'!R34 -> 53055.012 | S34: ='Outputs - tariff volumes'!S34 -> 50982.605 | T34: ='Outputs - tariff volumes'!T34 -> 53287.824 | U34: ='Outputs - tariff volumes'!U34 -> 53302.161 | V34: ='Outputs - tariff volumes'!V34*(1+'Inputs - drivers'!V$26) -> 52202.59916 | W34: ='Outputs - tariff volumes'!W34*(1+'Inputs - drivers'!W$26) -> 51532.08824 | X34: ='Outputs - tariff volumes'!X34*(1+'Inputs - drivers'!X$26) -> 51468.40132 | Y34: ='Outputs - tariff volumes'!Y34*(1+'Inputs - drivers'!Y$26) -> 50346.84521 | Z34: ='Outputs - tariff volumes'!Z34*(1+'Inputs - drivers'!Z$26) -> 50014.91492 | AA34: ='Outputs - tariff volumes'!AA34*(1+'Inputs - drivers'!AA$26) -> 49482.33229
A35: 2 | B35: 1 | C35: 3 | D35: 2 | E35: 1 | G35: Peak 0.1 - 0.2 | H35: ='Outputs - tariff volumes'!H35 -> 42251.82814 | I35: ='Outputs - tariff volumes'!I35 -> 50841.35499 | J35: ='Outputs - tariff volumes'!J35 -> 41911.12434 | K35: ='Outputs - tariff volumes'!K35 -> 41736.34848 | L35: ='Outputs - tariff volumes'!L35 -> 44103.40985 | M35: ='Outputs - tariff volumes'!M35 -> 44083.852 | N35: ='Outputs - tariff volumes'!N35 -> 41473.06659 | O35: ='Outputs - tariff volumes'!O35 -> 43707.108 | P35: ='Outputs - tariff volumes'!P35 -> 39990.095 | Q35: ='Outputs - tariff volumes'!Q35 -> 42301.686 | R35: ='Outputs - tariff volumes'!R35 -> 39745.679 | S35: ='Outputs - tariff volumes'!S35 -> 39473.369 | T35: ='Outputs - tariff volumes'!T35 -> 41687.528 | U35: ='Outputs - tariff volumes'!U35 -> 41616.933 | V35: ='Outputs - tariff volumes'!V35*(1+'Inputs - drivers'!V$26) -> 40973.30738 | W35: ='Outputs - tariff volumes'!W35*(1+'Inputs - drivers'!W$26) -> 40697.0789 | X35: ='Outputs - tariff volumes'!X35*(1+'Inputs - drivers'!X$26) -> 40894.27528 | Y35: ='Outputs - tariff volumes'!Y35*(1+'Inputs - drivers'!Y$26) -> 40263.99968 | Z35: ='Outputs - tariff volumes'!Z35*(1+'Inputs - drivers'!Z$26) -> 40247.00255 | AA35: ='Outputs - tariff volumes'!AA35*(1+'Inputs - drivers'!AA$26) -> 40064.63365
A36: 2 | B36: 1 | C36: 4 | D36: 2 | E36: 1 | G36: Peak 0.2 - 1.4 | H36: ='Outputs - tariff volumes'!H36 -> 197333.257 | I36: ='Outputs - tariff volumes'!I36 -> 208812.5698 | J36: ='Outputs - tariff volumes'!J36 -> 199582.8106 | K36: ='Outputs - tariff volumes'!K36 -> 217747.3365 | L36: ='Outputs - tariff volumes'!L36 -> 217880.0759 | M36: ='Outputs - tariff volumes'!M36 -> 224618.436 | N36: ='Outputs - tariff volumes'!N36 -> 209579.5221 | O36: ='Outputs - tariff volumes'!O36 -> 227727.966 | P36: ='Outputs - tariff volumes'!P36 -> 205219.231 | Q36: ='Outputs - tariff volumes'!Q36 -> 221613.632 | R36: ='Outputs - tariff volumes'!R36 -> 205027.2 | S36: ='Outputs - tariff volumes'!S36 -> 207586.881 | T36: ='Outputs - tariff volumes'!T36 -> 223327.869 | U36: ='Outputs - tariff volumes'!U36 -> 221165.076 | V36: ='Outputs - tariff volumes'!V36*(1+'Inputs - drivers'!V$26) -> 216464.0755 | W36: ='Outputs - tariff volumes'!W36*(1+'Inputs - drivers'!W$26) -> 214538.8692 | X36: ='Outputs - tariff volumes'!X36*(1+'Inputs - drivers'!X$26) -> 215131.8963 | Y36: ='Outputs - tariff volumes'!Y36*(1+'Inputs - drivers'!Y$26) -> 211329.6325 | Z36: ='Outputs - tariff volumes'!Z36*(1+'Inputs - drivers'!Z$26) -> 210792.7551 | AA36: ='Outputs - tariff volumes'!AA36*(1+'Inputs - drivers'!AA$26) -> 209366.3783
A37: 2 | B37: 1 | C37: 5 | D37: 2 | E37: 1 | G37: Peak > 1.4 | H37: ='Outputs - tariff volumes'!H37 -> 528076.6528 | I37: ='Outputs - tariff volumes'!I37 -> 483002.3348 | J37: ='Outputs - tariff volumes'!J37 -> 433178.2762 | K37: ='Outputs - tariff volumes'!K37 -> 450829.6051 | L37: ='Outputs - tariff volumes'!L37 -> 464132.5891 | M37: ='Outputs - tariff volumes'!M37 -> 465456.005 | N37: ='Outputs - tariff volumes'!N37 -> 436522.0209 | O37: ='Outputs - tariff volumes'!O37 -> 505431.852 | P37: ='Outputs - tariff volumes'!P37 -> 231790.009 | Q37: ='Outputs - tariff volumes'!Q37 -> 485329.517 | R37: ='Outputs - tariff volumes'!R37 -> 416273.999 | S37: ='Outputs - tariff volumes'!S37 -> 430759.24 | T37: ='Outputs - tariff volumes'!T37 -> 474904.227 | U37: ='Outputs - tariff volumes'!U37 -> 483229.985 | V37: ='Outputs - tariff volumes'!V37*(1+'Inputs - drivers'!V$26) -> 472140.0328 | W37: ='Outputs - tariff volumes'!W37*(1+'Inputs - drivers'!W$26) -> 468560.099 | X37: ='Outputs - tariff volumes'!X37*(1+'Inputs - drivers'!X$26) -> 470475.2599 | Y37: ='Outputs - tariff volumes'!Y37*(1+'Inputs - drivers'!Y$26) -> 462803.2422 | Z37: ='Outputs - tariff volumes'!Z37*(1+'Inputs - drivers'!Z$26) -> 462274.3219 | AA37: ='Outputs - tariff volumes'!AA37*(1+'Inputs - drivers'!AA$26) -> 460131.2832
A38: 2 | B38: 1 | C38: 6 | D38: 2 | E38: 1 | G38: Off Peak 0 - 0.1 | H38: ='Outputs - tariff volumes'!H38 -> 85704.76116 | I38: ='Outputs - tariff volumes'!I38 -> 110326.3887 | J38: ='Outputs - tariff volumes'!J38 -> 87003.96825 | K38: ='Outputs - tariff volumes'!K38 -> 81549.84508 | L38: ='Outputs - tariff volumes'!L38 -> 72951.63323 | M38: ='Outputs - tariff volumes'!M38 -> 76702.11 | N38: ='Outputs - tariff volumes'!N38 -> 80422.61376 | O38: ='Outputs - tariff volumes'!O38 -> 77242.537 | P38: ='Outputs - tariff volumes'!P38 -> 78319.168 | Q38: ='Outputs - tariff volumes'!Q38 -> 78566.612 | R38: ='Outputs - tariff volumes'!R38 -> 78263.741 | S38: ='Outputs - tariff volumes'!S38 -> 75432.141 | T38: ='Outputs - tariff volumes'!T38 -> 77062.802 | U38: ='Outputs - tariff volumes'!U38 -> 77556.953 | V38: ='Outputs - tariff volumes'!V38*(1+'Inputs - drivers'!V$26) -> 75774.39241 | W38: ='Outputs - tariff volumes'!W38*(1+'Inputs - drivers'!W$26) -> 74710.08359 | X38: ='Outputs - tariff volumes'!X38*(1+'Inputs - drivers'!X$26) -> 74528.9756 | Y38: ='Outputs - tariff volumes'!Y38*(1+'Inputs - drivers'!Y$26) -> 72808.67179 | Z38: ='Outputs - tariff volumes'!Z38*(1+'Inputs - drivers'!Z$26) -> 72238.15889 | AA38: ='Outputs - tariff volumes'!AA38*(1+'Inputs - drivers'!AA$26) -> 71371.27868
A39: 2 | B39: 1 | C39: 7 | D39: 2 | E39: 1 | G39: Off Peak 0.1 - 0.2 | H39: ='Outputs - tariff volumes'!H39 -> 66314.94214 | I39: ='Outputs - tariff volumes'!I39 -> 71346.30686 | J39: ='Outputs - tariff volumes'!J39 -> 52501.072 | K39: ='Outputs - tariff volumes'!K39 -> 47796.89928 | L39: ='Outputs - tariff volumes'!L39 -> 43592.81243 | M39: ='Outputs - tariff volumes'!M39 -> 49354.646 | N39: ='Outputs - tariff volumes'!N39 -> 49282.04841 | O39: ='Outputs - tariff volumes'!O39 -> 46159.349 | P39: ='Outputs - tariff volumes'!P39 -> 47465.671 | Q39: ='Outputs - tariff volumes'!Q39 -> 48334.928 | R39: ='Outputs - tariff volumes'!R39 -> 48518.233 | S39: ='Outputs - tariff volumes'!S39 -> 45615.084 | T39: ='Outputs - tariff volumes'!T39 -> 47549.938 | U39: ='Outputs - tariff volumes'!U39 -> 47950.543 | V39: ='Outputs - tariff volumes'!V39*(1+'Inputs - drivers'!V$26) -> 47055.52993 | W39: ='Outputs - tariff volumes'!W39*(1+'Inputs - drivers'!W$26) -> 46784.73667 | X39: ='Outputs - tariff volumes'!X39*(1+'Inputs - drivers'!X$26) -> 47059.84198 | Y39: ='Outputs - tariff volumes'!Y39*(1+'Inputs - drivers'!Y$26) -> 46381.13648 | Z39: ='Outputs - tariff volumes'!Z39*(1+'Inputs - drivers'!Z$26) -> 46408.50494 | AA39: ='Outputs - tariff volumes'!AA39*(1+'Inputs - drivers'!AA$26) -> 46236.26778
A40: 2 | B40: 1 | C40: 8 | D40: 2 | E40: 1 | G40: Off Peak 0.2 - 1.4 | H40: ='Outputs - tariff volumes'!H40 -> 231685.87 | I40: ='Outputs - tariff volumes'!I40 -> 226489.3282 | J40: ='Outputs - tariff volumes'!J40 -> 229943.2831 | K40: ='Outputs - tariff volumes'!K40 -> 252063.301 | L40: ='Outputs - tariff volumes'!L40 -> 227684.9166 | M40: ='Outputs - tariff volumes'!M40 -> 252098.491 | N40: ='Outputs - tariff volumes'!N40 -> 254161.6929 | O40: ='Outputs - tariff volumes'!O40 -> 240879.639 | P40: ='Outputs - tariff volumes'!P40 -> 249784.126 | Q40: ='Outputs - tariff volumes'!Q40 -> 252277.447 | R40: ='Outputs - tariff volumes'!R40 -> 254007.034 | S40: ='Outputs - tariff volumes'!S40 -> 238940.624 | T40: ='Outputs - tariff volumes'!T40 -> 249948.928 | U40: ='Outputs - tariff volumes'!U40 -> 250659.613 | V40: ='Outputs - tariff volumes'!V40*(1+'Inputs - drivers'!V$26) -> 245968.5336 | W40: ='Outputs - tariff volumes'!W40*(1+'Inputs - drivers'!W$26) -> 244129.9204 | X40: ='Outputs - tariff volumes'!X40*(1+'Inputs - drivers'!X$26) -> 245143.8179 | Y40: ='Outputs - tariff volumes'!Y40*(1+'Inputs - drivers'!Y$26) -> 241176.0892 | Z40: ='Outputs - tariff volumes'!Z40*(1+'Inputs - drivers'!Z$26) -> 240905.9469 | AA40: ='Outputs - tariff volumes'!AA40*(1+'Inputs - drivers'!AA$26) -> 239653.4712
A41: 2 | B41: 1 | C41: 9 | D41: 2 | E41: 1 | G41: Off Peak > 1.4 | H41: ='Outputs - tariff volumes'!H41 -> 429473.6186 | I41: ='Outputs - tariff volumes'!I41 -> 434350.7851 | J41: ='Outputs - tariff volumes'!J41 -> 406314.5616 | K41: ='Outputs - tariff volumes'!K41 -> 456888.0302 | L41: ='Outputs - tariff volumes'!L41 -> 402027.7813 | M41: ='Outputs - tariff volumes'!M41 -> 470790.737 | N41: ='Outputs - tariff volumes'!N41 -> 476694.5491 | O41: ='Outputs - tariff volumes'!O41 -> 465876.649 | P41: ='Outputs - tariff volumes'!P41 -> 475304.646 | Q41: ='Outputs - tariff volumes'!Q41 -> 455966.568 | R41: ='Outputs - tariff volumes'!R41 -> 444929.307 | S41: ='Outputs - tariff volumes'!S41 -> 422991.621 | T41: ='Outputs - tariff volumes'!T41 -> 451721.278 | U41: ='Outputs - tariff volumes'!U41 -> 468987.087 | V41: ='Outputs - tariff volumes'!V41*(1+'Inputs - drivers'!V$26) -> 461480.9606 | W41: ='Outputs - tariff volumes'!W41*(1+'Inputs - drivers'!W$26) -> 460644.0623 | X41: ='Outputs - tariff volumes'!X41*(1+'Inputs - drivers'!X$26) -> 465127.391 | Y41: ='Outputs - tariff volumes'!Y41*(1+'Inputs - drivers'!Y$26) -> 460283.588 | Z41: ='Outputs - tariff volumes'!Z41*(1+'Inputs - drivers'!Z$26) -> 462331.5114 | AA41: ='Outputs - tariff volumes'!AA41*(1+'Inputs - drivers'!AA$26) -> 462756.469
F42: Tariff D - SP AusNet
A43: 0 | B43: 2 | C43: 1 | D43: 0 | E43: 1 | G43: 0 - 10 | H43: ='Outputs - tariff volumes'!H43 -> 2451.644167 | I43: ='Outputs - tariff volumes'!I43 -> 2459.331667 | J43: ='Outputs - tariff volumes'!J43 -> 2439.71 | K43: ='Outputs - tariff volumes'!K43 -> 2345.95 | L43: ='Outputs - tariff volumes'!L43 -> 2389.17 | M43: ='Outputs - tariff volumes'!M43 -> 2349.59 | N43: ='Outputs - tariff volumes'!N43 -> 2213.95 | O43: ='Outputs - tariff volumes'!O43 -> 2150.24 | P43: ='Outputs - tariff volumes'!P43 -> 1957.142928 | Q43: ='Outputs - tariff volumes'!Q43 -> 2003.92685 | R43: ='Outputs - tariff volumes'!R43 -> 1686.768262 | S43: ='Outputs - tariff volumes'!S43 -> 496.43 | T43: ='Outputs - tariff volumes'!T43 -> 1841.597869 | U43: ='Outputs - tariff volumes'!U43 -> 1743.255523 | V43: ='Outputs - tariff volumes'!V43 -> 1721.153246 | W43: ='Outputs - tariff volumes'!W43 -> 1698.086227 | X43: ='Outputs - tariff volumes'!X43 -> 1655.253858 | Y43: ='Outputs - tariff volumes'!Y43 -> 1622.431658 | Z43: ='Outputs - tariff volumes'!Z43 -> 1626.518874 | AA43: ='Outputs - tariff volumes'!AA43 -> 1612.402873
A44: 0 | B44: 2 | C44: 2 | D44: 0 | E44: 1 | G44: 10 - 50 | H44: ='Outputs - tariff volumes'!H44 -> 3299.9075 | I44: ='Outputs - tariff volumes'!I44 -> 3282.395 | J44: ='Outputs - tariff volumes'!J44 -> 3074.76 | K44: ='Outputs - tariff volumes'!K44 -> 2941.23 | L44: ='Outputs - tariff volumes'!L44 -> 2936.51 | M44: ='Outputs - tariff volumes'!M44 -> 2959.39 | N44: ='Outputs - tariff volumes'!N44 -> 2884.55 | O44: ='Outputs - tariff volumes'!O44 -> 2819.49 | P44: ='Outputs - tariff volumes'!P44 -> 2566.29256 | Q44: ='Outputs - tariff volumes'!Q44 -> 2419.446143 | R44: ='Outputs - tariff volumes'!R44 -> 2125.224184 | S44: ='Outputs - tariff volumes'!S44 -> 1809.64 | T44: ='Outputs - tariff volumes'!T44 -> 2224.075394 | U44: ='Outputs - tariff volumes'!U44 -> 2114.88789 | V44: ='Outputs - tariff volumes'!V44 -> 2078.615884 | W44: ='Outputs - tariff volumes'!W44 -> 2050.758126 | X44: ='Outputs - tariff volumes'!X44 -> 1999.029994 | Y44: ='Outputs - tariff volumes'!Y44 -> 1959.391021 | Z44: ='Outputs - tariff volumes'!Z44 -> 1964.327103 | AA44: ='Outputs - tariff volumes'!AA44 -> 1947.279379
A45: 0 | B45: 2 | C45: 3 | D45: 0 | E45: 1 | G45: > 50 | H45: ='Outputs - tariff volumes'!H45 -> 5099.033333 | I45: ='Outputs - tariff volumes'!I45 -> 5089.7875 | J45: ='Outputs - tariff volumes'!J45 -> 4666.477 | K45: ='Outputs - tariff volumes'!K45 -> 4707.86 | L45: ='Outputs - tariff volumes'!L45 -> 4732.91 | M45: ='Outputs - tariff volumes'!M45 -> 4873.65 | N45: ='Outputs - tariff volumes'!N45 -> 4972.46 | O45: ='Outputs - tariff volumes'!O45 -> 4933.21 | P45: ='Outputs - tariff volumes'!P45 -> 4490.195078 | Q45: ='Outputs - tariff volumes'!Q45 -> 5085.766123 | R45: ='Outputs - tariff volumes'!R45 -> 4272.35535 | S45: ='Outputs - tariff volumes'!S45 -> 5292.13 | T45: ='Outputs - tariff volumes'!T45 -> 3825.904824 | U45: ='Outputs - tariff volumes'!U45 -> 3914.657093 | V45: ='Outputs - tariff volumes'!V45 -> 3575.682083 | W45: ='Outputs - tariff volumes'!W45 -> 3527.760536 | X45: ='Outputs - tariff volumes'!X45 -> 3438.776633 | Y45: ='Outputs - tariff volumes'!Y45 -> 3370.588775 | Z45: ='Outputs - tariff volumes'!Z45 -> 3379.079934 | AA45: ='Outputs - tariff volumes'!AA45 -> 3349.754054
F46: Tariff M - SP AusNet Central
A47: 0 | B47: 3 | C47: 1 | D47: 1 | E47: 1 | G47: 0 - 10 | H47: ='Outputs - tariff volumes'!H47 -> 125.5781992 | I47: ='Outputs - tariff volumes'!I47 -> 10 | J47: ='Outputs - tariff volumes'!J47 -> 0.001 | K47: ='Outputs - tariff volumes'!K47 -> 0.0001 | L47: ='Outputs - tariff volumes'!L47 -> 1e-10 | M47: ='Outputs - tariff volumes'!M47 -> 1e-05 | N47: ='Outputs - tariff volumes'!N47 -> 1e-05 | O47: ='Outputs - tariff volumes'!O47 -> 48.2 | P47: ='Outputs - tariff volumes'!P47 -> 43.87151626 | Q47: ='Outputs - tariff volumes'!Q47 -> 66.54575957 | R47: ='Outputs - tariff volumes'!R47 -> 52.59431441 | S47: ='Outputs - tariff volumes'!S47 -> 70.77 | T47: ='Outputs - tariff volumes'!T47 -> 96.87264838 | U47: ='Outputs - tariff volumes'!U47 -> 109.470535 | V47: ='Outputs - tariff volumes'!V47 -> 90.53696029 | W47: ='Outputs - tariff volumes'!W47 -> 89.32357749 | X47: ='Outputs - tariff volumes'!X47 -> 87.07048788 | Y47: ='Outputs - tariff volumes'!Y47 -> 85.34395815 | Z47: ='Outputs - tariff volumes'!Z47 -> 85.55895595 | AA47: ='Outputs - tariff volumes'!AA47 -> 84.81641902
A48: 0 | B48: 3 | C48: 2 | D48: 1 | E48: 1 | G48: 10 - 50 | H48: ='Outputs - tariff volumes'!H48 -> 2.007978571 | I48: ='Outputs - tariff volumes'!I48 -> 1 | J48: ='Outputs - tariff volumes'!J48 -> 0.001 | K48: ='Outputs - tariff volumes'!K48 -> 0.0001 | L48: ='Outputs - tariff volumes'!L48 -> 1e-10 | M48: ='Outputs - tariff volumes'!M48 -> 1e-05 | N48: ='Outputs - tariff volumes'!N48 -> 1e-05 | O48: ='Outputs - tariff volumes'!O48 -> 47.19 | P48: ='Outputs - tariff volumes'!P48 -> 42.95221686 | Q48: ='Outputs - tariff volumes'!Q48 -> 54.47665715 | R48: ='Outputs - tariff volumes'!R48 -> 64.69540581 | S48: ='Outputs - tariff volumes'!S48 -> 34.84 | T48: ='Outputs - tariff volumes'!T48 -> 46.5645919 | U48: ='Outputs - tariff volumes'!U48 -> 41.34279466 | V48: ='Outputs - tariff volumes'!V48 -> 43.51916333 | W48: ='Outputs - tariff volumes'!W48 -> 42.9359164 | X48: ='Outputs - tariff volumes'!X48 -> 41.85290484 | Y48: ='Outputs - tariff volumes'!Y48 -> 41.02299926 | Z48: ='Outputs - tariff volumes'!Z48 -> 41.12634406 | AA48: ='Outputs - tariff volumes'!AA48 -> 40.76942257
A49: 0 | B49: 3 | C49: 3 | D49: 1 | E49: 1 | G49: > 50 | H49: ='Outputs - tariff volumes'!H49 -> 1 | I49: ='Outputs - tariff volumes'!I49 -> 1 | J49: ='Outputs - tariff volumes'!J49 -> 0.001 | K49: ='Outputs - tariff volumes'!K49 -> 0.0001 | L49: ='Outputs - tariff volumes'!L49 -> 1e-10 | M49: ='Outputs - tariff volumes'!M49 -> 1e-05 | N49: ='Outputs - tariff volumes'!N49 -> 1e-05 | O49: ='Outputs - tariff volumes'!O49 -> 47.44 | P49: ='Outputs - tariff volumes'!P49 -> 43.17976622 | Q49: ='Outputs - tariff volumes'!Q49 -> 54.39113649 | R49: ='Outputs - tariff volumes'!R49 -> 74.29406651 | S49: ='Outputs - tariff volumes'!S49 -> 0 | T49: ='Outputs - tariff volumes'!T49 -> 0 | U49: ='Outputs - tariff volumes'!U49 -> 0 | V49: ='Outputs - tariff volumes'!V49 -> 0 | W49: ='Outputs - tariff volumes'!W49 -> 0 | X49: ='Outputs - tariff volumes'!X49 -> 0 | Y49: ='Outputs - tariff volumes'!Y49 -> 0 | Z49: ='Outputs - tariff volumes'!Z49 -> 0 | AA49: ='Outputs - tariff volumes'!AA49 -> 0
F50: Tariff M - SP AusNet West
A51: 0 | B51: 3 | C51: 1 | D51: 2 | E51: 1 | G51: 0 - 10 | H51: ='Outputs - tariff volumes'!H51 -> 55.4226088 | I51: ='Outputs - tariff volumes'!I51 -> 8.3 | J51: ='Outputs - tariff volumes'!J51 -> 9.88 | K51: ='Outputs - tariff volumes'!K51 -> 10 | L51: ='Outputs - tariff volumes'!L51 -> 10 | M51: ='Outputs - tariff volumes'!M51 -> 10 | N51: ='Outputs - tariff volumes'!N51 -> 77.51 | O51: ='Outputs - tariff volumes'!O51 -> 20 | P51: ='Outputs - tariff volumes'!P51 -> 18.20394866 | Q51: ='Outputs - tariff volumes'!Q51 -> 21.38016372 | R51: ='Outputs - tariff volumes'!R51 -> 14.42323171 | S51: ='Outputs - tariff volumes'!S51 -> 7.67 | T51: ='Outputs - tariff volumes'!T51 -> 18.67064631 | U51: ='Outputs - tariff volumes'!U51 -> 17.4001661 | V51: ='Outputs - tariff volumes'!V51 -> 17.44954424 | W51: ='Outputs - tariff volumes'!W51 -> 17.2156842 | X51: ='Outputs - tariff volumes'!X51 -> 16.78143739 | Y51: ='Outputs - tariff volumes'!Y51 -> 16.44867653 | Z51: ='Outputs - tariff volumes'!Z51 -> 16.4901139 | AA51: ='Outputs - tariff volumes'!AA51 -> 16.34700183
A52: 0 | B52: 3 | C52: 2 | D52: 2 | E52: 1 | G52: 10 - 50 | H52: ='Outputs - tariff volumes'!H52 -> 0.26912 | I52: ='Outputs - tariff volumes'!I52 -> 1 | J52: ='Outputs - tariff volumes'!J52 -> 0.001 | K52: ='Outputs - tariff volumes'!K52 -> 0.27 | L52: ='Outputs - tariff volumes'!L52 -> 5.39 | M52: ='Outputs - tariff volumes'!M52 -> 4.6 | N52: ='Outputs - tariff volumes'!N52 -> 99.14 | O52: ='Outputs - tariff volumes'!O52 -> 18.84 | P52: ='Outputs - tariff volumes'!P52 -> 17.14811964 | Q52: ='Outputs - tariff volumes'!Q52 -> 27.82628308 | R52: ='Outputs - tariff volumes'!R52 -> 17.99298155 | S52: ='Outputs - tariff volumes'!S52 -> 45.25 | T52: ='Outputs - tariff volumes'!T52 -> 25.17736655 | U52: ='Outputs - tariff volumes'!U52 -> 21.39350422 | V52: ='Outputs - tariff volumes'!V52 -> 23.53071041 | W52: ='Outputs - tariff volumes'!W52 -> 23.21535015 | X52: ='Outputs - tariff volumes'!X52 -> 22.62976832 | Y52: ='Outputs - tariff volumes'!Y52 -> 22.18104029 | Z52: ='Outputs - tariff volumes'!Z52 -> 22.23691859 | AA52: ='Outputs - tariff volumes'!AA52 -> 22.04393197
A53: 0 | B53: 3 | C53: 3 | D53: 2 | E53: 1 | G53: > 50 | H53: ='Outputs - tariff volumes'!H53 -> 1 | I53: ='Outputs - tariff volumes'!I53 -> 1 | J53: ='Outputs - tariff volumes'!J53 -> 0.001 | K53: ='Outputs - tariff volumes'!K53 -> 0.0001 | L53: ='Outputs - tariff volumes'!L53 -> 1e-10 | M53: ='Outputs - tariff volumes'!M53 -> 1e-05 | N53: ='Outputs - tariff volumes'!N53 -> 124.17 | O53: ='Outputs - tariff volumes'!O53 -> 1e-05 | P53: ='Outputs - tariff volumes'!P53 -> 9.101974329e-06 | Q53: ='Outputs - tariff volumes'!Q53 -> 0 | R53: ='Outputs - tariff volumes'!R53 -> 0 | S53: ='Outputs - tariff volumes'!S53 -> 0 | T53: ='Outputs - tariff volumes'!T53 -> 0 | U53: ='Outputs - tariff volumes'!U53 -> 0 | V53: ='Outputs - tariff volumes'!V53 -> 0 | W53: ='Outputs - tariff volumes'!W53 -> 0 | X53: ='Outputs - tariff volumes'!X53 -> 0 | Y53: ='Outputs - tariff volumes'!Y53 -> 0 | Z53: ='Outputs - tariff volumes'!Z53 -> 0 | AA53: ='Outputs - tariff volumes'!AA53 -> 0
F54: Tariff V - SP AusNet Central - New Town Domestic
A55: 1 | B55: 1 | C55: 1 | D55: 1 | E55: 2 | G55: Fixed Charge | K55: ='Outputs - tariff volumes'!K55 -> 97.44565301 | L55: ='Outputs - tariff volumes'!L55 -> 98.74900082 | M55: ='Outputs - tariff volumes'!M55 -> 276.1907918 | N55: ='Outputs - tariff volumes'!N55 -> 658.3492411 | O55: ='Outputs - tariff volumes'!O55 -> 816.3015164 | P55: ='Outputs - tariff volumes'!P55 -> 1009.03183 | Q55: ='Outputs - tariff volumes'!Q55 -> 1138.656905 | R55: ='Outputs - tariff volumes'!R55 -> 1256.687582 | S55: ='Outputs - tariff volumes'!S55 -> 1369.283354 | T55: ='Outputs - tariff volumes'!T55 -> 1457.484569 | U55: ='Outputs - tariff volumes'!U55 -> 1552.064919 | V55: ='Outputs - tariff volumes'!V55 -> 1649.064919 | W55: ='Outputs - tariff volumes'!W55 -> 2059.413075 | X55: ='Outputs - tariff volumes'!X55 -> 2378.438456 | Y55: ='Outputs - tariff volumes'!Y55 -> 2629.16662 | Z55: ='Outputs - tariff volumes'!Z55 -> 2828.870116 | AA55: ='Outputs - tariff volumes'!AA55 -> 2988.954057
A56: 1 | B56: 1 | C56: 2 | D56: 1 | E56: 2 | G56: Peak 0 - 0.1 | K56: ='Outputs - tariff volumes'!K56 -> 638.2725834 | L56: ='Outputs - tariff volumes'!L56 -> 952.5062574 | M56: ='Outputs - tariff volumes'!M56 -> 2921.021 | N56: ='Outputs - tariff volumes'!N56 -> 5307.430794 | O56: ='Outputs - tariff volumes'!O56 -> 7109.2 | P56: ='Outputs - tariff volumes'!P56 -> 8190.148 | Q56: ='Outputs - tariff volumes'!Q56 -> 9762.5 | R56: ='Outputs - tariff volumes'!R56 -> 10453.88 | S56: ='Outputs - tariff volumes'!S56 -> 10406.509 | T56: ='Outputs - tariff volumes'!T56 -> 12478.412 | U56: ='Outputs - tariff volumes'!U56 -> 13587.329 | V56: ='Outputs - tariff volumes'!V56*(1+'Inputs - drivers'!V$26) -> 15782.4274 | W56: ='Outputs - tariff volumes'!W56*(1+'Inputs - drivers'!W$26) -> 18423.97361 | X56: ='Outputs - tariff volumes'!X56*(1+'Inputs - drivers'!X$26) -> 20410.3291 | Y56: ='Outputs - tariff volumes'!Y56*(1+'Inputs - drivers'!Y$26) -> 21781.53907 | Z56: ='Outputs - tariff volumes'!Z56*(1+'Inputs - drivers'!Z$26) -> 22801.84897 | AA56: ='Outputs - tariff volumes'!AA56*(1+'Inputs - drivers'!AA$26) -> 23007.865
A57: 1 | B57: 1 | C57: 3 | D57: 1 | E57: 2 | G57: Peak 0.1 - 0.2 | K57: ='Outputs - tariff volumes'!K57 -> 422.1784369 | L57: ='Outputs - tariff volumes'!L57 -> 574.3390899 | M57: ='Outputs - tariff volumes'!M57 -> 1411.765 | N57: ='Outputs - tariff volumes'!N57 -> 3031.322621 | O57: ='Outputs - tariff volumes'!O57 -> 4397.618 | P57: ='Outputs - tariff volumes'!P57 -> 4902.017 | Q57: ='Outputs - tariff volumes'!Q57 -> 6075.409 | R57: ='Outputs - tariff volumes'!R57 -> 6061.792 | S57: ='Outputs - tariff volumes'!S57 -> 6604.38 | T57: ='Outputs - tariff volumes'!T57 -> 7954.022 | U57: ='Outputs - tariff volumes'!U57 -> 8910.377 | V57: ='Outputs - tariff volumes'!V57*(1+'Inputs - drivers'!V$26) -> 10243.36271 | W57: ='Outputs - tariff volumes'!W57*(1+'Inputs - drivers'!W$26) -> 11946.96276 | X57: ='Outputs - tariff volumes'!X57*(1+'Inputs - drivers'!X$26) -> 13216.65267 | Y57: ='Outputs - tariff volumes'!Y57*(1+'Inputs - drivers'!Y$26) -> 14080.18648 | Z57: ='Outputs - tariff volumes'!Z57*(1+'Inputs - drivers'!Z$26) -> 14712.51258 | AA57: ='Outputs - tariff volumes'!AA57*(1+'Inputs - drivers'!AA$26) -> 14814.74228
A58: 1 | B58: 1 | C58: 4 | D58: 1 | E58: 2 | G58: Peak 0.2 - 1.4 | K58: ='Outputs - tariff volumes'!K58 -> 403.6039071 | L58: ='Outputs - tariff volumes'!L58 -> 534.392373 | M58: ='Outputs - tariff volumes'!M58 -> 2198.74 | N58: ='Outputs - tariff volumes'!N58 -> 3866.390792 | O58: ='Outputs - tariff volumes'!O58 -> 6303.018 | P58: ='Outputs - tariff volumes'!P58 -> 5988.268 | Q58: ='Outputs - tariff volumes'!Q58 -> 7866.403 | R58: ='Outputs - tariff volumes'!R58 -> 6827.528 | S58: ='Outputs - tariff volumes'!S58 -> 9458.928 | T58: ='Outputs - tariff volumes'!T58 -> 11246.334 | U58: ='Outputs - tariff volumes'!U58 -> 10915.785 | V58: ='Outputs - tariff volumes'!V58*(1+'Inputs - drivers'!V$26) -> 12079.43152 | W58: ='Outputs - tariff volumes'!W58*(1+'Inputs - drivers'!W$26) -> 13879.85839 | X58: ='Outputs - tariff volumes'!X58*(1+'Inputs - drivers'!X$26) -> 15243.15778 | Y58: ='Outputs - tariff volumes'!Y58*(1+'Inputs - drivers'!Y$26) -> 16183.44333 | Z58: ='Outputs - tariff volumes'!Z58*(1+'Inputs - drivers'!Z$26) -> 16891.30235 | AA58: ='Outputs - tariff volumes'!AA58*(1+'Inputs - drivers'!AA$26) -> 17042.00669
A59: 1 | B59: 1 | C59: 5 | D59: 1 | E59: 2 | G59: Peak > 1.4 | K59: ='Outputs - tariff volumes'!K59 -> 3.234942532 | L59: ='Outputs - tariff volumes'!L59 -> 0 | M59: ='Outputs - tariff volumes'!M59 -> 271.349 | N59: ='Outputs - tariff volumes'!N59 -> 366.3243811 | O59: ='Outputs - tariff volumes'!O59 -> 491.178 | P59: ='Outputs - tariff volumes'!P59 -> 491.344 | Q59: ='Outputs - tariff volumes'!Q59 -> 462.878 | R59: ='Outputs - tariff volumes'!R59 -> 370.371 | S59: ='Outputs - tariff volumes'!S59 -> 275.099 | T59: ='Outputs - tariff volumes'!T59 -> 507.286 | U59: ='Outputs - tariff volumes'!U59 -> 554.064 | V59: ='Outputs - tariff volumes'!V59*(1+'Inputs - drivers'!V$26) -> 668.9996983 | W59: ='Outputs - tariff volumes'!W59*(1+'Inputs - drivers'!W$26) -> 820.6968351 | X59: ='Outputs - tariff volumes'!X59*(1+'Inputs - drivers'!X$26) -> 940.7849461 | Y59: ='Outputs - tariff volumes'!Y59*(1+'Inputs - drivers'!Y$26) -> 1031.276328 | Z59: ='Outputs - tariff volumes'!Z59*(1+'Inputs - drivers'!Z$26) -> 1104.229656 | AA59: ='Outputs - tariff volumes'!AA59*(1+'Inputs - drivers'!AA$26) -> 1133.501095
A60: 1 | B60: 1 | C60: 6 | D60: 1 | E60: 2 | G60: Off Peak 0 - 0.1 | K60: ='Outputs - tariff volumes'!K60 -> 935.4153263 | L60: ='Outputs - tariff volumes'!L60 -> 587.1236325 | M60: ='Outputs - tariff volumes'!M60 -> 2686.988 | N60: ='Outputs - tariff volumes'!N60 -> 5887.466206 | O60: ='Outputs - tariff volumes'!O60 -> 7101.238 | P60: ='Outputs - tariff volumes'!P60 -> 9358.573 | Q60: ='Outputs - tariff volumes'!Q60 -> 10720.748 | R60: ='Outputs - tariff volumes'!R60 -> 12418.352 | S60: ='Outputs - tariff volumes'!S60 -> 13522.201 | T60: ='Outputs - tariff volumes'!T60 -> 14927.917 | U60: ='Outputs - tariff volumes'!U60 -> 15155.341 | V60: ='Outputs - tariff volumes'!V60*(1+'Inputs - drivers'!V$26) -> 17095.53764 | W60: ='Outputs - tariff volumes'!W60*(1+'Inputs - drivers'!W$26) -> 19469.71186 | X60: ='Outputs - tariff volumes'!X60*(1+'Inputs - drivers'!X$26) -> 21200.74586 | Y60: ='Outputs - tariff volumes'!Y60*(1+'Inputs - drivers'!Y$26) -> 22320.99138 | Z60: ='Outputs - tariff volumes'!Z60*(1+'Inputs - drivers'!Z$26) -> 23103.27071 | AA60: ='Outputs - tariff volumes'!AA60*(1+'Inputs - drivers'!AA$26) -> 23117.22432
A61: 1 | B61: 1 | C61: 7 | D61: 1 | E61: 2 | G61: Off Peak 0.1 - 0.2 | K61: ='Outputs - tariff volumes'!K61 -> 217.7448347 | L61: ='Outputs - tariff volumes'!L61 -> 94.32440066 | M61: ='Outputs - tariff volumes'!M61 -> 707.352 | N61: ='Outputs - tariff volumes'!N61 -> 1829.957379 | O61: ='Outputs - tariff volumes'!O61 -> 1524.446 | P61: ='Outputs - tariff volumes'!P61 -> 1982.584 | Q61: ='Outputs - tariff volumes'!Q61 -> 2230.518 | R61: ='Outputs - tariff volumes'!R61 -> 2438.413 | S61: ='Outputs - tariff volumes'!S61 -> 2015.692 | T61: ='Outputs - tariff volumes'!T61 -> 2828.561 | U61: ='Outputs - tariff volumes'!U61 -> 2850.952 | V61: ='Outputs - tariff volumes'!V61*(1+'Inputs - drivers'!V$26) -> 3010.462759 | W61: ='Outputs - tariff volumes'!W61*(1+'Inputs - drivers'!W$26) -> 3382.000651 | X61: ='Outputs - tariff volumes'!X61*(1+'Inputs - drivers'!X$26) -> 3637.73985 | Y61: ='Outputs - tariff volumes'!Y61*(1+'Inputs - drivers'!Y$26) -> 3783.534701 | Z61: ='Outputs - tariff volumes'!Z61*(1+'Inputs - drivers'!Z$26) -> 3870.167432 | AA61: ='Outputs - tariff volumes'!AA61*(1+'Inputs - drivers'!AA$26) -> 3828.020054
A62: 1 | B62: 1 | C62: 8 | D62: 1 | E62: 2 | G62: Off Peak 0.2 - 1.4 | K62: ='Outputs - tariff volumes'!K62 -> 101.079236 | L62: ='Outputs - tariff volumes'!L62 -> 107.5477001 | M62: ='Outputs - tariff volumes'!M62 -> 798.555 | N62: ='Outputs - tariff volumes'!N62 -> 2058.091208 | O62: ='Outputs - tariff volumes'!O62 -> 1451.91 | P62: ='Outputs - tariff volumes'!P62 -> 1758.561 | Q62: ='Outputs - tariff volumes'!Q62 -> 1667.468 | R62: ='Outputs - tariff volumes'!R62 -> 1612.686 | S62: ='Outputs - tariff volumes'!S62 -> 1330.43 | T62: ='Outputs - tariff volumes'!T62 -> 2117.762 | U62: ='Outputs - tariff volumes'!U62 -> 1596.33 | V62: ='Outputs - tariff volumes'!V62*(1+'Inputs - drivers'!V$26) -> 1633.702323 | W62: ='Outputs - tariff volumes'!W62*(1+'Inputs - drivers'!W$26) -> 1832.773419 | X62: ='Outputs - tariff volumes'!X62*(1+'Inputs - drivers'!X$26) -> 1970.522989 | Y62: ='Outputs - tariff volumes'!Y62*(1+'Inputs - drivers'!Y$26) -> 2049.391658 | Z62: ='Outputs - tariff volumes'!Z62*(1+'Inputs - drivers'!Z$26) -> 2097.077265 | AA62: ='Outputs - tariff volumes'!AA62*(1+'Inputs - drivers'!AA$26) -> 2075.859865
A63: 1 | B63: 1 | C63: 9 | D63: 1 | E63: 2 | G63: Off Peak > 1.4 | K63: ='Outputs - tariff volumes'!K63 -> 3.798958984 | L63: ='Outputs - tariff volumes'!L63 -> 0 | M63: ='Outputs - tariff volumes'!M63 -> 283.719 | N63: ='Outputs - tariff volumes'!N63 -> 367.6256189 | O63: ='Outputs - tariff volumes'!O63 -> 389.191 | P63: ='Outputs - tariff volumes'!P63 -> 480.373 | Q63: ='Outputs - tariff volumes'!Q63 -> 572.688 | R63: ='Outputs - tariff volumes'!R63 -> 476.537 | S63: ='Outputs - tariff volumes'!S63 -> 490.31 | T63: ='Outputs - tariff volumes'!T63 -> 404.586 | U63: ='Outputs - tariff volumes'!U63 -> 356.108 | V63: ='Outputs - tariff volumes'!V63*(1+'Inputs - drivers'!V$26) -> 429.5188509 | W63: ='Outputs - tariff volumes'!W63*(1+'Inputs - drivers'!W$26) -> 532.0974405 | X63: ='Outputs - tariff volumes'!X63*(1+'Inputs - drivers'!X$26) -> 611.4019444 | Y63: ='Outputs - tariff volumes'!Y63*(1+'Inputs - drivers'!Y$26) -> 669.3966805 | Z63: ='Outputs - tariff volumes'!Z63*(1+'Inputs - drivers'!Z$26) -> 714.6550906 | AA63: ='Outputs - tariff volumes'!AA63*(1+'Inputs - drivers'!AA$26) -> 729.7846438
F64: Tariff V - SP AusNet Central - New Town Commercial
A65: 2 | B65: 1 | C65: 1 | D65: 1 | E65: 2 | G65: Fixed Charge | K65: ='Outputs - tariff volumes'!K65 -> 3.619041302 | L65: ='Outputs - tariff volumes'!L65 -> 1.963685912 | M65: ='Outputs - tariff volumes'!M65 -> 2.796189327 | N65: ='Outputs - tariff volumes'!N65 -> 5.237795883 | O65: ='Outputs - tariff volumes'!O65 -> 8.045570693 | P65: ='Outputs - tariff volumes'!P65 -> 9.235984861 | Q65: ='Outputs - tariff volumes'!Q65 -> 10.56397996 | R65: ='Outputs - tariff volumes'!R65 -> 10.52736883 | S65: ='Outputs - tariff volumes'!S65 -> 12.69601454 | T65: ='Outputs - tariff volumes'!T65 -> 12.47364168 | U65: ='Outputs - tariff volumes'!U65 -> 13.35614014 | V65: ='Outputs - tariff volumes'!V65 -> 15.35614014 | W65: ='Outputs - tariff volumes'!W65 -> 19.82461519 | X65: ='Outputs - tariff volumes'!X65 -> 23.22282236 | Y65: ='Outputs - tariff volumes'!Y65 -> 25.81914334 | Z65: ='Outputs - tariff volumes'!Z65 -> 27.81487862 | AA65: ='Outputs - tariff volumes'!AA65 -> 29.3558289
A66: 2 | B66: 1 | C66: 2 | D66: 1 | E66: 2 | G66: Peak 0 - 0.1 | K66: ='Outputs - tariff volumes'!K66 -> 18.54364374 | L66: ='Outputs - tariff volumes'!L66 -> 286.8534843 | M66: ='Outputs - tariff volumes'!M66 -> 41.891 | N66: ='Outputs - tariff volumes'!N66 -> 59.84117039 | O66: ='Outputs - tariff volumes'!O66 -> 96.594 | P66: ='Outputs - tariff volumes'!P66 -> 106.538 | Q66: ='Outputs - tariff volumes'!Q66 -> 111.13 | R66: ='Outputs - tariff volumes'!R66 -> 103.315 | S66: ='Outputs - tariff volumes'!S66 -> 116.612 | T66: ='Outputs - tariff volumes'!T66 -> 126.703 | U66: ='Outputs - tariff volumes'!U66 -> 148.838 | V66: ='Outputs - tariff volumes'!V66*(1+'Inputs - drivers'!V$26) -> 193.9450607 | W66: ='Outputs - tariff volumes'!W66*(1+'Inputs - drivers'!W$26) -> 234.4420982 | X66: ='Outputs - tariff volumes'!X66*(1+'Inputs - drivers'!X$26) -> 266.3998821 | Y66: ='Outputs - tariff volumes'!Y66*(1+'Inputs - drivers'!Y$26) -> 284.3269093 | Z66: ='Outputs - tariff volumes'!Z66*(1+'Inputs - drivers'!Z$26) -> 300.2705198 | AA66: ='Outputs - tariff volumes'!AA66*(1+'Inputs - drivers'!AA$26) -> 304.671502
A67: 2 | B67: 1 | C67: 3 | D67: 1 | E67: 2 | G67: Peak 0.1 - 0.2 | K67: ='Outputs - tariff volumes'!K67 -> 30.42832944 | L67: ='Outputs - tariff volumes'!L67 -> 827.2294283 | M67: ='Outputs - tariff volumes'!M67 -> 26.328 | N67: ='Outputs - tariff volumes'!N67 -> 44.85226071 | O67: ='Outputs - tariff volumes'!O67 -> 79.981 | P67: ='Outputs - tariff volumes'!P67 -> 93.738 | Q67: ='Outputs - tariff volumes'!Q67 -> 82.853 | R67: ='Outputs - tariff volumes'!R67 -> 83.344 | S67: ='Outputs - tariff volumes'!S67 -> 91.151 | T67: ='Outputs - tariff volumes'!T67 -> 105.486 | U67: ='Outputs - tariff volumes'!U67 -> 117.64 | V67: ='Outputs - tariff volumes'!V67*(1+'Inputs - drivers'!V$26) -> 154.7631963 | W67: ='Outputs - tariff volumes'!W67*(1+'Inputs - drivers'!W$26) -> 188.6778616 | X67: ='Outputs - tariff volumes'!X67*(1+'Inputs - drivers'!X$26) -> 215.9708234 | Y67: ='Outputs - tariff volumes'!Y67*(1+'Inputs - drivers'!Y$26) -> 232.1776835 | Z67: ='Outputs - tariff volumes'!Z67*(1+'Inputs - drivers'!Z$26) -> 246.8345966 | AA67: ='Outputs - tariff volumes'!AA67*(1+'Inputs - drivers'!AA$26) -> 252.0462399
A68: 2 | B68: 1 | C68: 4 | D68: 1 | E68: 2 | G68: Peak 0.2 - 1.4 | K68: ='Outputs - tariff volumes'!K68 -> 165.8601232 | L68: ='Outputs - tariff volumes'!L68 -> 543.149238 | M68: ='Outputs - tariff volumes'!M68 -> 85.449 | N68: ='Outputs - tariff volumes'!N68 -> 191.6809789 | O68: ='Outputs - tariff volumes'!O68 -> 325.021 | P68: ='Outputs - tariff volumes'!P68 -> 566.609 | Q68: ='Outputs - tariff volumes'!Q68 -> 453.025 | R68: ='Outputs - tariff volumes'!R68 -> 484.695 | S68: ='Outputs - tariff volumes'!S68 -> 563.713 | T68: ='Outputs - tariff volumes'!T68 -> 546.282 | U68: ='Outputs - tariff volumes'!U68 -> 650.522 | V68: ='Outputs - tariff volumes'!V68*(1+'Inputs - drivers'!V$26) -> 865.3726353 | W68: ='Outputs - tariff volumes'!W68*(1+'Inputs - drivers'!W$26) -> 1062.399232 | X68: ='Outputs - tariff volumes'!X68*(1+'Inputs - drivers'!X$26) -> 1219.38696 | Y68: ='Outputs - tariff volumes'!Y68*(1+'Inputs - drivers'!Y$26) -> 1311.561014 | Z68: ='Outputs - tariff volumes'!Z68*(1+'Inputs - drivers'!Z$26) -> 1393.862997 | AA68: ='Outputs - tariff volumes'!AA68*(1+'Inputs - drivers'!AA$26) -> 1421.065788
A69: 2 | B69: 1 | C69: 5 | D69: 1 | E69: 2 | G69: Peak > 1.4 | K69: ='Outputs - tariff volumes'!K69 -> 1089.267638 | L69: ='Outputs - tariff volumes'!L69 -> 0 | M69: ='Outputs - tariff volumes'!M69 -> 16.515 | N69: ='Outputs - tariff volumes'!N69 -> 451.0277 | O69: ='Outputs - tariff volumes'!O69 -> 447.956 | P69: ='Outputs - tariff volumes'!P69 -> 861.022 | Q69: ='Outputs - tariff volumes'!Q69 -> 412.908 | R69: ='Outputs - tariff volumes'!R69 -> 514.507 | S69: ='Outputs - tariff volumes'!S69 -> 472.929 | T69: ='Outputs - tariff volumes'!T69 -> 584.215 | U69: ='Outputs - tariff volumes'!U69 -> 499.307 | V69: ='Outputs - tariff volumes'!V69*(1+'Inputs - drivers'!V$26) -> 600.0033813 | W69: ='Outputs - tariff volumes'!W69*(1+'Inputs - drivers'!W$26) -> 696.3040966 | X69: ='Outputs - tariff volumes'!X69*(1+'Inputs - drivers'!X$26) -> 775.4436952 | Y69: ='Outputs - tariff volumes'!Y69*(1+'Inputs - drivers'!Y$26) -> 819.4765498 | Z69: ='Outputs - tariff volumes'!Z69*(1+'Inputs - drivers'!Z$26) -> 861.5022953 | AA69: ='Outputs - tariff volumes'!AA69*(1+'Inputs - drivers'!AA$26) -> 875.9877114
A70: 2 | B70: 1 | C70: 6 | D70: 1 | E70: 2 | G70: Off Peak 0 - 0.1 | K70: ='Outputs - tariff volumes'!K70 -> 132.1266723 | L70: ='Outputs - tariff volumes'!L70 -> 497.1217292 | M70: ='Outputs - tariff volumes'!M70 -> 37.455 | N70: ='Outputs - tariff volumes'!N70 -> 79.49582961 | O70: ='Outputs - tariff volumes'!O70 -> 126.968 | P70: ='Outputs - tariff volumes'!P70 -> 168.172 | Q70: ='Outputs - tariff volumes'!Q70 -> 174.337 | R70: ='Outputs - tariff volumes'!R70 -> 159.15 | S70: ='Outputs - tariff volumes'!S70 -> 166.394 | T70: ='Outputs - tariff volumes'!T70 -> 194.195 | U70: ='Outputs - tariff volumes'!U70 -> 217.803 | V70: ='Outputs - tariff volumes'!V70*(1+'Inputs - drivers'!V$26) -> 286.9016038 | W70: ='Outputs - tariff volumes'!W70*(1+'Inputs - drivers'!W$26) -> 348.8860757 | X70: ='Outputs - tariff volumes'!X70*(1+'Inputs - drivers'!X$26) -> 397.4747452 | Y70: ='Outputs - tariff volumes'!Y70*(1+'Inputs - drivers'!Y$26) -> 424.608344 | Z70: ='Outputs - tariff volumes'!Z70*(1+'Inputs - drivers'!Z$26) -> 448.4877748 | AA70: ='Outputs - tariff volumes'!AA70*(1+'Inputs - drivers'!AA$26) -> 454.6867675
A71: 2 | B71: 1 | C71: 7 | D71: 1 | E71: 2 | G71: Off Peak 0.1 - 0.2 | K71: ='Outputs - tariff volumes'!K71 -> 72.68773573 | L71: ='Outputs - tariff volumes'!L71 -> 99.72869315 | M71: ='Outputs - tariff volumes'!M71 -> 23.692 | N71: ='Outputs - tariff volumes'!N71 -> 68.97873929 | O71: ='Outputs - tariff volumes'!O71 -> 110.136 | P71: ='Outputs - tariff volumes'!P71 -> 146.273 | Q71: ='Outputs - tariff volumes'!Q71 -> 141.655 | R71: ='Outputs - tariff volumes'!R71 -> 104.12 | S71: ='Outputs - tariff volumes'!S71 -> 125.374 | T71: ='Outputs - tariff volumes'!T71 -> 151.151 | U71: ='Outputs - tariff volumes'!U71 -> 162.907 | V71: ='Outputs - tariff volumes'!V71*(1+'Inputs - drivers'!V$26) -> 218.6929146 | W71: ='Outputs - tariff volumes'!W71*(1+'Inputs - drivers'!W$26) -> 270.2544312 | X71: ='Outputs - tariff volumes'!X71*(1+'Inputs - drivers'!X$26) -> 311.7024976 | Y71: ='Outputs - tariff volumes'!Y71*(1+'Inputs - drivers'!Y$26) -> 336.719797 | Z71: ='Outputs - tariff volumes'!Z71*(1+'Inputs - drivers'!Z$26) -> 359.2029824 | AA71: ='Outputs - tariff volumes'!AA71*(1+'Inputs - drivers'!AA$26) -> 367.4304902
A72: 2 | B72: 1 | C72: 8 | D72: 1 | E72: 2 | G72: Off Peak 0.2 - 1.4 | K72: ='Outputs - tariff volumes'!K72 -> 693.6598558 | L72: ='Outputs - tariff volumes'!L72 -> 54.3149238 | M72: ='Outputs - tariff volumes'!M72 -> 29.685 | N72: ='Outputs - tariff volumes'!N72 -> 399.7000211 | O72: ='Outputs - tariff volumes'!O72 -> 592.174 | P72: ='Outputs - tariff volumes'!P72 -> 874.947 | Q72: ='Outputs - tariff volumes'!Q72 -> 863.808 | R72: ='Outputs - tariff volumes'!R72 -> 956.981 | S72: ='Outputs - tariff volumes'!S72 -> 1021.647 | T72: ='Outputs - tariff volumes'!T72 -> 906.593 | U72: ='Outputs - tariff volumes'!U72 -> 1133.091 | V72: ='Outputs - tariff volumes'!V72*(1+'Inputs - drivers'!V$26) -> 1480.986139 | W72: ='Outputs - tariff volumes'!W72*(1+'Inputs - drivers'!W$26) -> 1801.040089 | X72: ='Outputs - tariff volumes'!X72*(1+'Inputs - drivers'!X$26) -> 2058.24165 | Y72: ='Outputs - tariff volumes'!Y72*(1+'Inputs - drivers'!Y$26) -> 2209.751131 | Z72: ='Outputs - tariff volumes'!Z72*(1+'Inputs - drivers'!Z$26) -> 2346.797271 | AA72: ='Outputs - tariff volumes'!AA72*(1+'Inputs - drivers'!AA$26) -> 2394.419495
A73: 2 | B73: 1 | C73: 9 | D73: 1 | E73: 2 | G73: Off Peak > 1.4 | K73: ='Outputs - tariff volumes'!K73 -> 999.6158231 | L73: ='Outputs - tariff volumes'!L73 -> 0 | M73: ='Outputs - tariff volumes'!M73 -> 1e-05 | N73: ='Outputs - tariff volumes'!N73 -> 882.1203 | O73: ='Outputs - tariff volumes'!O73 -> 699.753 | P73: ='Outputs - tariff volumes'!P73 -> 702.726 | Q73: ='Outputs - tariff volumes'!Q73 -> 716.204 | R73: ='Outputs - tariff volumes'!R73 -> 854.07 | S73: ='Outputs - tariff volumes'!S73 -> 866.184 | T73: ='Outputs - tariff volumes'!T73 -> 854.535 | U73: ='Outputs - tariff volumes'!U73 -> 919.836 | V73: ='Outputs - tariff volumes'!V73*(1+'Inputs - drivers'!V$26) -> 1105.590472 | W73: ='Outputs - tariff volumes'!W73*(1+'Inputs - drivers'!W$26) -> 1284.938338 | X73: ='Outputs - tariff volumes'!X73*(1+'Inputs - drivers'!X$26) -> 1435.445869 | Y73: ='Outputs - tariff volumes'!Y73*(1+'Inputs - drivers'!Y$26) -> 1523.664723 | Z73: ='Outputs - tariff volumes'!Z73*(1+'Inputs - drivers'!Z$26) -> 1609.110195 | AA73: ='Outputs - tariff volumes'!AA73*(1+'Inputs - drivers'!AA$26) -> 1644.621753
F74: Tariff V - SP AusNet West - New Town Domestic
A75: 1 | B75: 1 | C75: 1 | D75: 2 | E75: 2 | G75: Fixed Charge | K75: ='Outputs - tariff volumes'!K75 -> 2436.717133 | L75: ='Outputs - tariff volumes'!L75 -> 1300.075579 | M75: ='Outputs - tariff volumes'!M75 -> 3195.716254 | N75: ='Outputs - tariff volumes'!N75 -> 4886.449397 | O75: ='Outputs - tariff volumes'!O75 -> 5952.506729 | P75: ='Outputs - tariff volumes'!P75 -> 6810.493483 | Q75: ='Outputs - tariff volumes'!Q75 -> 7504.03955 | R75: ='Outputs - tariff volumes'!R75 -> 8149.165738 | S75: ='Outputs - tariff volumes'!S75 -> 8753.749505 | T75: ='Outputs - tariff volumes'!T75 -> 9226.352451 | U75: ='Outputs - tariff volumes'!U75 -> 9648.745681 | V75: ='Outputs - tariff volumes'!V75 -> 10159.74568 | W75: ='Outputs - tariff volumes'!W75 -> 10706.13246 | X75: ='Outputs - tariff volumes'!X75 -> 11179.50947 | Y75: ='Outputs - tariff volumes'!Y75 -> 11599.13377 | Z75: ='Outputs - tariff volumes'!Z75 -> 11979.46836 | AA75: ='Outputs - tariff volumes'!AA75 -> 12171.27453
A76: 1 | B76: 1 | C76: 2 | D76: 2 | E76: 2 | G76: Peak 0 - 0.1 | K76: ='Outputs - tariff volumes'!K76 -> 16017.66386 | L76: ='Outputs - tariff volumes'!L76 -> 14445.17691 | M76: ='Outputs - tariff volumes'!M76 -> 35707.31 | N76: ='Outputs - tariff volumes'!N76 -> 51020.89936 | O76: ='Outputs - tariff volumes'!O76 -> 61345.892 | P76: ='Outputs - tariff volumes'!P76 -> 69749.704 | Q76: ='Outputs - tariff volumes'!Q76 -> 77856.79 | R76: ='Outputs - tariff volumes'!R76 -> 83331.652 | S76: ='Outputs - tariff volumes'!S76 -> 82775.481 | T76: ='Outputs - tariff volumes'!T76 -> 94585.883 | U76: ='Outputs - tariff volumes'!U76 -> 100144.721 | V76: ='Outputs - tariff volumes'!V76*(1+'Inputs - drivers'!V$26) -> 106270.851 | W76: ='Outputs - tariff volumes'!W76*(1+'Inputs - drivers'!W$26) -> 109781.3498 | X76: ='Outputs - tariff volumes'!X76*(1+'Inputs - drivers'!X$26) -> 112727.5757 | Y76: ='Outputs - tariff volumes'!Y76*(1+'Inputs - drivers'!Y$26) -> 114555.6517 | Z76: ='Outputs - tariff volumes'!Z76*(1+'Inputs - drivers'!Z$26) -> 115452.5324 | AA76: ='Outputs - tariff volumes'!AA76*(1+'Inputs - drivers'!AA$26) -> 114377.6889
A77: 1 | B77: 1 | C77: 3 | D77: 2 | E77: 2 | G77: Peak 0.1 - 0.2 | K77: ='Outputs - tariff volumes'!K77 -> 12403.6866 | L77: ='Outputs - tariff volumes'!L77 -> 13352.14223 | M77: ='Outputs - tariff volumes'!M77 -> 26980.501 | N77: ='Outputs - tariff volumes'!N77 -> 37450.01476 | O77: ='Outputs - tariff volumes'!O77 -> 48630.12 | P77: ='Outputs - tariff volumes'!P77 -> 51161.069 | Q77: ='Outputs - tariff volumes'!Q77 -> 60681.174 | R77: ='Outputs - tariff volumes'!R77 -> 61676.008 | S77: ='Outputs - tariff volumes'!S77 -> 66269.026 | T77: ='Outputs - tariff volumes'!T77 -> 74089.236 | U77: ='Outputs - tariff volumes'!U77 -> 79906.959 | V77: ='Outputs - tariff volumes'!V77*(1+'Inputs - drivers'!V$26) -> 83886.83305 | W77: ='Outputs - tariff volumes'!W77*(1+'Inputs - drivers'!W$26) -> 86524.51495 | X77: ='Outputs - tariff volumes'!X77*(1+'Inputs - drivers'!X$26) -> 88700.50925 | Y77: ='Outputs - tariff volumes'!Y77*(1+'Inputs - drivers'!Y$26) -> 89975.11371 | Z77: ='Outputs - tariff volumes'!Z77*(1+'Inputs - drivers'!Z$26) -> 90505.95498 | AA77: ='Outputs - tariff volumes'!AA77*(1+'Inputs - drivers'!AA$26) -> 89473.70407
A78: 1 | B78: 1 | C78: 4 | D78: 2 | E78: 2 | G78: Peak 0.2 - 1.4 | K78: ='Outputs - tariff volumes'!K78 -> 22579.58777 | L78: ='Outputs - tariff volumes'!L78 -> 13507.88386 | M78: ='Outputs - tariff volumes'!M78 -> 50875.939 | N78: ='Outputs - tariff volumes'!N78 -> 63526.75417 | O78: ='Outputs - tariff volumes'!O78 -> 102069.051 | P78: ='Outputs - tariff volumes'!P78 -> 88668.931 | Q78: ='Outputs - tariff volumes'!Q78 -> 119886.213 | R78: ='Outputs - tariff volumes'!R78 -> 101604.206 | S78: ='Outputs - tariff volumes'!S78 -> 130037.246 | T78: ='Outputs - tariff volumes'!T78 -> 152606.028 | U78: ='Outputs - tariff volumes'!U78 -> 152189.469 | V78: ='Outputs - tariff volumes'!V78*(1+'Inputs - drivers'!V$26) -> 155740.8383 | W78: ='Outputs - tariff volumes'!W78*(1+'Inputs - drivers'!W$26) -> 160442.3338 | X78: ='Outputs - tariff volumes'!X78*(1+'Inputs - drivers'!X$26) -> 164449.1035 | Y78: ='Outputs - tariff volumes'!Y78*(1+'Inputs - drivers'!Y$26) -> 166898.3453 | Z78: ='Outputs - tariff volumes'!Z78*(1+'Inputs - drivers'!Z$26) -> 168167.8585 | AA78: ='Outputs - tariff volumes'!AA78*(1+'Inputs - drivers'!AA$26) -> 166799.784
A79: 1 | B79: 1 | C79: 5 | D79: 2 | E79: 2 | G79: Peak > 1.4 | K79: ='Outputs - tariff volumes'!K79 -> 65.89617511 | L79: ='Outputs - tariff volumes'!L79 -> 1507.647426 | M79: ='Outputs - tariff volumes'!M79 -> 450.062 | N79: ='Outputs - tariff volumes'!N79 -> 395.6378513 | O79: ='Outputs - tariff volumes'!O79 -> 625.073 | P79: ='Outputs - tariff volumes'!P79 -> 840.2 | Q79: ='Outputs - tariff volumes'!Q79 -> 2146.685 | R79: ='Outputs - tariff volumes'!R79 -> 1735.77 | S79: ='Outputs - tariff volumes'!S79 -> 758.458 | T79: ='Outputs - tariff volumes'!T79 -> 981.57 | U79: ='Outputs - tariff volumes'!U79 -> 1343.169 | V79: ='Outputs - tariff volumes'!V79*(1+'Inputs - drivers'!V$26) -> 1445.558016 | W79: ='Outputs - tariff volumes'!W79*(1+'Inputs - drivers'!W$26) -> 1529.701964 | X79: ='Outputs - tariff volumes'!X79*(1+'Inputs - drivers'!X$26) -> 1605.596963 | Y79: ='Outputs - tariff volumes'!Y79*(1+'Inputs - drivers'!Y$26) -> 1665.615309 | Z79: ='Outputs - tariff volumes'!Z79*(1+'Inputs - drivers'!Z$26) -> 1709.54035 | AA79: ='Outputs - tariff volumes'!AA79*(1+'Inputs - drivers'!AA$26) -> 1719.254495
A80: 1 | B80: 1 | C80: 6 | D80: 2 | E80: 2 | G80: Off Peak 0 - 0.1 | K80: ='Outputs - tariff volumes'!K80 -> 25499.19142 | L80: ='Outputs - tariff volumes'!L80 -> 16826.06988 | M80: ='Outputs - tariff volumes'!M80 -> 41630.234 | N80: ='Outputs - tariff volumes'!N80 -> 62663.48764 | O80: ='Outputs - tariff volumes'!O80 -> 72043.165 | P80: ='Outputs - tariff volumes'!P80 -> 89860.993 | Q80: ='Outputs - tariff volumes'!Q80 -> 99725.275 | R80: ='Outputs - tariff volumes'!R80 -> 103616.52 | S80: ='Outputs - tariff volumes'!S80 -> 110300.617 | T80: ='Outputs - tariff volumes'!T80 -> 119149.482 | U80: ='Outputs - tariff volumes'!U80 -> 122625.893 | V80: ='Outputs - tariff volumes'!V80*(1+'Inputs - drivers'!V$26) -> 127864.6637 | W80: ='Outputs - tariff volumes'!W80*(1+'Inputs - drivers'!W$26) -> 130593.638 | X80: ='Outputs - tariff volumes'!X80*(1+'Inputs - drivers'!X$26) -> 132709.4969 | Y80: ='Outputs - tariff volumes'!Y80*(1+'Inputs - drivers'!Y$26) -> 133533.9877 | Z80: ='Outputs - tariff volumes'!Z80*(1+'Inputs - drivers'!Z$26) -> 133410.4067 | AA80: ='Outputs - tariff volumes'!AA80*(1+'Inputs - drivers'!AA$26) -> 131232.6693
A81: 1 | B81: 1 | C81: 7 | D81: 2 | E81: 2 | G81: Off Peak 0.1 - 0.2 | K81: ='Outputs - tariff volumes'!K81 -> 10321.6892 | L81: ='Outputs - tariff volumes'!L81 -> 3311.413078 | M81: ='Outputs - tariff volumes'!M81 -> 14061.694 | N81: ='Outputs - tariff volumes'!N81 -> 24787.09924 | O81: ='Outputs - tariff volumes'!O81 -> 24729.062 | P81: ='Outputs - tariff volumes'!P81 -> 32900.902 | Q81: ='Outputs - tariff volumes'!Q81 -> 34448.936 | R81: ='Outputs - tariff volumes'!R81 -> 35777.656 | S81: ='Outputs - tariff volumes'!S81 -> 31915.409 | T81: ='Outputs - tariff volumes'!T81 -> 38462.937 | U81: ='Outputs - tariff volumes'!U81 -> 40446.843 | V81: ='Outputs - tariff volumes'!V81*(1+'Inputs - drivers'!V$26) -> 39612.58931 | W81: ='Outputs - tariff volumes'!W81*(1+'Inputs - drivers'!W$26) -> 40043.87609 | X81: ='Outputs - tariff volumes'!X81*(1+'Inputs - drivers'!X$26) -> 40273.79193 | Y81: ='Outputs - tariff volumes'!Y81*(1+'Inputs - drivers'!Y$26) -> 40080.63887 | Z81: ='Outputs - tariff volumes'!Z81*(1+'Inputs - drivers'!Z$26) -> 39607.10511 | AA81: ='Outputs - tariff volumes'!AA81*(1+'Inputs - drivers'!AA$26) -> 38527.43445
A82: 1 | B82: 1 | C82: 8 | D82: 2 | E82: 2 | G82: Off Peak 0.2 - 1.4 | K82: ='Outputs - tariff volumes'!K82 -> 7413.143377 | L82: ='Outputs - tariff volumes'!L82 -> 2546.285338 | M82: ='Outputs - tariff volumes'!M82 -> 9688.453 | N82: ='Outputs - tariff volumes'!N82 -> 22717.90783 | O82: ='Outputs - tariff volumes'!O82 -> 16478.442 | P82: ='Outputs - tariff volumes'!P82 -> 25433.649 | Q82: ='Outputs - tariff volumes'!Q82 -> 22353.317 | R82: ='Outputs - tariff volumes'!R82 -> 26110.683 | S82: ='Outputs - tariff volumes'!S82 -> 14797.219 | T82: ='Outputs - tariff volumes'!T82 -> 25441.953 | U82: ='Outputs - tariff volumes'!U82 -> 29769.176 | V82: ='Outputs - tariff volumes'!V82*(1+'Inputs - drivers'!V$26) -> 28299.02742 | W82: ='Outputs - tariff volumes'!W82*(1+'Inputs - drivers'!W$26) -> 28614.72676 | X82: ='Outputs - tariff volumes'!X82*(1+'Inputs - drivers'!X$26) -> 28792.92346 | Y82: ='Outputs - tariff volumes'!Y82*(1+'Inputs - drivers'!Y$26) -> 28668.5216 | Z82: ='Outputs - tariff volumes'!Z82*(1+'Inputs - drivers'!Z$26) -> 28350.89737 | AA82: ='Outputs - tariff volumes'!AA82*(1+'Inputs - drivers'!AA$26) -> 27604.53293
A83: 1 | B83: 1 | C83: 9 | D83: 2 | E83: 2 | G83: Off Peak > 1.4 | K83: ='Outputs - tariff volumes'!K83 -> 242.4927157 | L83: ='Outputs - tariff volumes'!L83 -> 602.6342745 | M83: ='Outputs - tariff volumes'!M83 -> 718.763 | N83: ='Outputs - tariff volumes'!N83 -> 161.5501487 | O83: ='Outputs - tariff volumes'!O83 -> 101.833 | P83: ='Outputs - tariff volumes'!P83 -> 698.948 | Q83: ='Outputs - tariff volumes'!Q83 -> 1408.739 | R83: ='Outputs - tariff volumes'!R83 -> 1250.085 | S83: ='Outputs - tariff volumes'!S83 -> 1035.589 | T83: ='Outputs - tariff volumes'!T83 -> 540.579 | U83: ='Outputs - tariff volumes'!U83 -> 888.275 | V83: ='Outputs - tariff volumes'!V83*(1+'Inputs - drivers'!V$26) -> 945.1107871 | W83: ='Outputs - tariff volumes'!W83*(1+'Inputs - drivers'!W$26) -> 999.2562947 | X83: ='Outputs - tariff volumes'!X83*(1+'Inputs - drivers'!X$26) -> 1046.673601 | Y83: ='Outputs - tariff volumes'!Y83*(1+'Inputs - drivers'!Y$26) -> 1082.492826 | Z83: ='Outputs - tariff volumes'!Z83*(1+'Inputs - drivers'!Z$26) -> 1106.38923 | AA83: ='Outputs - tariff volumes'!AA83*(1+'Inputs - drivers'!AA$26) -> 1106.097869
F84: Tariff V - SP AusNet West - New Town Commercial
A85: 2 | B85: 1 | C85: 1 | D85: 2 | E85: 2 | G85: Fixed Charge | K85: ='Outputs - tariff volumes'!K85 -> 126.7496129 | L85: ='Outputs - tariff volumes'!L85 -> 37.33697111 | M85: ='Outputs - tariff volumes'!M85 -> 79.29724425 | N85: ='Outputs - tariff volumes'!N85 -> 106.5221208 | O85: ='Outputs - tariff volumes'!O85 -> 134.435255 | P85: ='Outputs - tariff volumes'!P85 -> 167.3750053 | Q85: ='Outputs - tariff volumes'!Q85 -> 187.8400933 | R85: ='Outputs - tariff volumes'!R85 -> 195.3202202 | S85: ='Outputs - tariff volumes'!S85 -> 213.8266349 | T85: ='Outputs - tariff volumes'!T85 -> 230.9914877 | U85: ='Outputs - tariff volumes'!U85 -> 255.8315586 | V85: ='Outputs - tariff volumes'!V85 -> 267.8315586 | W85: ='Outputs - tariff volumes'!W85 -> 272.5901409 | X85: ='Outputs - tariff volumes'!X85 -> 277.4892548 | Y85: ='Outputs - tariff volumes'!Y85 -> 281.7533493 | Z85: ='Outputs - tariff volumes'!Z85 -> 285.5509755 | AA85: ='Outputs - tariff volumes'!AA85 -> 287.5074535
A86: 2 | B86: 1 | C86: 2 | D86: 2 | E86: 2 | G86: Peak 0 - 0.1 | K86: ='Outputs - tariff volumes'!K86 -> 507.1253574 | L86: ='Outputs - tariff volumes'!L86 -> 804.6965999 | M86: ='Outputs - tariff volumes'!M86 -> 836.204 | N86: ='Outputs - tariff volumes'!N86 -> 1134.182137 | O86: ='Outputs - tariff volumes'!O86 -> 1421.996 | P86: ='Outputs - tariff volumes'!P86 -> 1770.732 | Q86: ='Outputs - tariff volumes'!Q86 -> 1926.789 | R86: ='Outputs - tariff volumes'!R86 -> 2031.296 | S86: ='Outputs - tariff volumes'!S86 -> 2131.666 | T86: ='Outputs - tariff volumes'!T86 -> 2377.799 | U86: ='Outputs - tariff volumes'!U86 -> 2687.227 | V86: ='Outputs - tariff volumes'!V86*(1+'Inputs - drivers'!V$26) -> 2791.021037 | W86: ='Outputs - tariff volumes'!W86*(1+'Inputs - drivers'!W$26) -> 2795.429007 | X86: ='Outputs - tariff volumes'!X86*(1+'Inputs - drivers'!X$26) -> 2829.118161 | Y86: ='Outputs - tariff volumes'!Y86*(1+'Inputs - drivers'!Y$26) -> 2797.747677 | Z86: ='Outputs - tariff volumes'!Z86*(1+'Inputs - drivers'!Z$26) -> 2798.012241 | AA86: ='Outputs - tariff volumes'!AA86*(1+'Inputs - drivers'!AA$26) -> 2773.125465
A87: 2 | B87: 1 | C87: 3 | D87: 2 | E87: 2 | G87: Peak 0.1 - 0.2 | K87: ='Outputs - tariff volumes'!K87 -> 620.042475 | L87: ='Outputs - tariff volumes'!L87 -> 503.3654306 | M87: ='Outputs - tariff volumes'!M87 -> 805.47 | N87: ='Outputs - tariff volumes'!N87 -> 940.7485428 | O87: ='Outputs - tariff volumes'!O87 -> 1191.677 | P87: ='Outputs - tariff volumes'!P87 -> 1473.551 | Q87: ='Outputs - tariff volumes'!Q87 -> 1638.221 | R87: ='Outputs - tariff volumes'!R87 -> 1707.728 | S87: ='Outputs - tariff volumes'!S87 -> 1851.653 | T87: ='Outputs - tariff volumes'!T87 -> 1992.272 | U87: ='Outputs - tariff volumes'!U87 -> 2314.644 | V87: ='Outputs - tariff volumes'!V87*(1+'Inputs - drivers'!V$26) -> 2419.108979 | W87: ='Outputs - tariff volumes'!W87*(1+'Inputs - drivers'!W$26) -> 2438.469806 | X87: ='Outputs - tariff volumes'!X87*(1+'Inputs - drivers'!X$26) -> 2483.391801 | Y87: ='Outputs - tariff volumes'!Y87*(1+'Inputs - drivers'!Y$26) -> 2472.274991 | Z87: ='Outputs - tariff volumes'!Z87*(1+'Inputs - drivers'!Z$26) -> 2488.109454 | AA87: ='Outputs - tariff volumes'!AA87*(1+'Inputs - drivers'!AA$26) -> 2481.286309
A88: 2 | B88: 1 | C88: 4 | D88: 2 | E88: 2 | G88: Peak 0.2 - 1.4 | K88: ='Outputs - tariff volumes'!K88 -> 3377.781247 | L88: ='Outputs - tariff volumes'!L88 -> 1659.581249 | M88: ='Outputs - tariff volumes'!M88 -> 5071.219 | N88: ='Outputs - tariff volumes'!N88 -> 5757.917108 | O88: ='Outputs - tariff volumes'!O88 -> 6642.912 | P88: ='Outputs - tariff volumes'!P88 -> 8581.34 | Q88: ='Outputs - tariff volumes'!Q88 -> 10333.214 | R88: ='Outputs - tariff volumes'!R88 -> 10160.271 | S88: ='Outputs - tariff volumes'!S88 -> 11143.052 | T88: ='Outputs - tariff volumes'!T88 -> 11844.577 | U88: ='Outputs - tariff volumes'!U88 -> 13204.185 | V88: ='Outputs - tariff volumes'!V88*(1+'Inputs - drivers'!V$26) -> 13773.21151 | W88: ='Outputs - tariff volumes'!W88*(1+'Inputs - drivers'!W$26) -> 13866.05347 | X88: ='Outputs - tariff volumes'!X88*(1+'Inputs - drivers'!X$26) -> 14103.70532 | Y88: ='Outputs - tariff volumes'!Y88*(1+'Inputs - drivers'!Y$26) -> 14017.42573 | Z88: ='Outputs - tariff volumes'!Z88*(1+'Inputs - drivers'!Z$26) -> 14082.72173 | AA88: ='Outputs - tariff volumes'!AA88*(1+'Inputs - drivers'!AA$26) -> 14013.89233
A89: 2 | B89: 1 | C89: 5 | D89: 2 | E89: 2 | G89: Peak > 1.4 | K89: ='Outputs - tariff volumes'!K89 -> 22154.27662 | L89: ='Outputs - tariff volumes'!L89 -> 9487.736118 | M89: ='Outputs - tariff volumes'!M89 -> 16550.233 | N89: ='Outputs - tariff volumes'!N89 -> 16853.49435 | O89: ='Outputs - tariff volumes'!O89 -> 16669.851 | P89: ='Outputs - tariff volumes'!P89 -> 22619.941 | Q89: ='Outputs - tariff volumes'!Q89 -> 24104.848 | R89: ='Outputs - tariff volumes'!R89 -> 23176.143 | S89: ='Outputs - tariff volumes'!S89 -> 22046.406 | T89: ='Outputs - tariff volumes'!T89 -> 26506.984 | U89: ='Outputs - tariff volumes'!U89 -> 28736.973 | V89: ='Outputs - tariff volumes'!V89*(1+'Inputs - drivers'!V$26) -> 29259.09499 | W89: ='Outputs - tariff volumes'!W89*(1+'Inputs - drivers'!W$26) -> 29339.26022 | X89: ='Outputs - tariff volumes'!X89*(1+'Inputs - drivers'!X$26) -> 29740.11743 | Y89: ='Outputs - tariff volumes'!Y89*(1+'Inputs - drivers'!Y$26) -> 29486.33623 | Z89: ='Outputs - tariff volumes'!Z89*(1+'Inputs - drivers'!Z$26) -> 29597.35438 | AA89: ='Outputs - tariff volumes'!AA89*(1+'Inputs - drivers'!AA$26) -> 29498.87806
A90: 2 | B90: 1 | C90: 6 | D90: 2 | E90: 2 | G90: Off Peak 0 - 0.1 | K90: ='Outputs - tariff volumes'!K90 -> 3241.941507 | L90: ='Outputs - tariff volumes'!L90 -> 843.7311464 | M90: ='Outputs - tariff volumes'!M90 -> -2003.882 | N90: ='Outputs - tariff volumes'!N90 -> 1887.045863 | O90: ='Outputs - tariff volumes'!O90 -> 2133.538 | P90: ='Outputs - tariff volumes'!P90 -> 2755.405 | Q90: ='Outputs - tariff volumes'!Q90 -> 3105.432 | R90: ='Outputs - tariff volumes'!R90 -> 3259.627 | S90: ='Outputs - tariff volumes'!S90 -> 3548.379 | T90: ='Outputs - tariff volumes'!T90 -> 3794.932 | U90: ='Outputs - tariff volumes'!U90 -> 4191.743 | V90: ='Outputs - tariff volumes'!V90*(1+'Inputs - drivers'!V$26) -> 4356.473634 | W90: ='Outputs - tariff volumes'!W90*(1+'Inputs - drivers'!W$26) -> 4361.14426 | X90: ='Outputs - tariff volumes'!X90*(1+'Inputs - drivers'!X$26) -> 4411.237527 | Y90: ='Outputs - tariff volumes'!Y90*(1+'Inputs - drivers'!Y$26) -> 4358.770599 | Z90: ='Outputs - tariff volumes'!Z90*(1+'Inputs - drivers'!Z$26) -> 4355.034269 | AA90: ='Outputs - tariff volumes'!AA90*(1+'Inputs - drivers'!AA$26) -> 4310.720529
A91: 2 | B91: 1 | C91: 7 | D91: 2 | E91: 2 | G91: Off Peak 0.1 - 0.2 | K91: ='Outputs - tariff volumes'!K91 -> 1917.287142 | L91: ='Outputs - tariff volumes'!L91 -> 461.6651707 | M91: ='Outputs - tariff volumes'!M91 -> 1156.448 | N91: ='Outputs - tariff volumes'!N91 -> 1460.154457 | O91: ='Outputs - tariff volumes'!O91 -> 1580.266 | P91: ='Outputs - tariff volumes'!P91 -> 2086.926 | Q91: ='Outputs - tariff volumes'!Q91 -> 2340.64 | R91: ='Outputs - tariff volumes'!R91 -> 2428.218 | S91: ='Outputs - tariff volumes'!S91 -> 2563.858 | T91: ='Outputs - tariff volumes'!T91 -> 2794.839 | U91: ='Outputs - tariff volumes'!U91 -> 3005.421 | V91: ='Outputs - tariff volumes'!V91*(1+'Inputs - drivers'!V$26) -> 3147.990959 | W91: ='Outputs - tariff volumes'!W91*(1+'Inputs - drivers'!W$26) -> 3180.358541 | X91: ='Outputs - tariff volumes'!X91*(1+'Inputs - drivers'!X$26) -> 3245.922254 | Y91: ='Outputs - tariff volumes'!Y91*(1+'Inputs - drivers'!Y$26) -> 3237.543237 | Z91: ='Outputs - tariff volumes'!Z91*(1+'Inputs - drivers'!Z$26) -> 3263.307014 | AA91: ='Outputs - tariff volumes'!AA91*(1+'Inputs - drivers'!AA$26) -> 3257.463078
A92: 2 | B92: 1 | C92: 8 | D92: 2 | E92: 2 | G92: Off Peak 0.2 - 1.4 | K92: ='Outputs - tariff volumes'!K92 -> 13841.8686 | L92: ='Outputs - tariff volumes'!L92 -> 3269.51325 | M92: ='Outputs - tariff volumes'!M92 -> 7697.644 | N92: ='Outputs - tariff volumes'!N92 -> 9735.451892 | O92: ='Outputs - tariff volumes'!O92 -> 10361.796 | P92: ='Outputs - tariff volumes'!P92 -> 13272.639 | Q92: ='Outputs - tariff volumes'!Q92 -> 14043.984 | R92: ='Outputs - tariff volumes'!R92 -> 14359.815 | S92: ='Outputs - tariff volumes'!S92 -> 15662.76 | T92: ='Outputs - tariff volumes'!T92 -> 16626.371 | U92: ='Outputs - tariff volumes'!U92 -> 17144.861 | V92: ='Outputs - tariff volumes'!V92*(1+'Inputs - drivers'!V$26) -> 17846.34877 | W92: ='Outputs - tariff volumes'!W92*(1+'Inputs - drivers'!W$26) -> 17972.80893 | X92: ='Outputs - tariff volumes'!X92*(1+'Inputs - drivers'!X$26) -> 18288.50259 | Y92: ='Outputs - tariff volumes'!Y92*(1+'Inputs - drivers'!Y$26) -> 18190.11414 | Z92: ='Outputs - tariff volumes'!Z92*(1+'Inputs - drivers'!Z$26) -> 18292.50726 | AA92: ='Outputs - tariff volumes'!AA92*(1+'Inputs - drivers'!AA$26) -> 18229.77827
A93: 2 | B93: 1 | C93: 9 | D93: 2 | E93: 2 | G93: Off Peak > 1.4 | K93: ='Outputs - tariff volumes'!K93 -> 20234.31614 | L93: ='Outputs - tariff volumes'!L93 -> 5661.135035 | M93: ='Outputs - tariff volumes'!M93 -> 15735.225 | N93: ='Outputs - tariff volumes'!N93 -> 19702.77865 | O93: ='Outputs - tariff volumes'!O93 -> 19054.088 | P93: ='Outputs - tariff volumes'!P93 -> 25280.294 | Q93: ='Outputs - tariff volumes'!Q93 -> 25295.556 | R93: ='Outputs - tariff volumes'!R93 -> 24535.646 | S93: ='Outputs - tariff volumes'!S93 -> 26134.762 | T93: ='Outputs - tariff volumes'!T93 -> 26432.652 | U93: ='Outputs - tariff volumes'!U93 -> 27339.127 | V93: ='Outputs - tariff volumes'!V93*(1+'Inputs - drivers'!V$26) -> 27992.31213 | W93: ='Outputs - tariff volumes'!W93*(1+'Inputs - drivers'!W$26) -> 28222.08917 | X93: ='Outputs - tariff volumes'!X93*(1+'Inputs - drivers'!X$26) -> 28759.25642 | Y93: ='Outputs - tariff volumes'!Y93*(1+'Inputs - drivers'!Y$26) -> 28677.13099 | Z93: ='Outputs - tariff volumes'!Z93*(1+'Inputs - drivers'!Z$26) -> 28941.63735 | AA93: ='Outputs - tariff volumes'!AA93*(1+'Inputs - drivers'!AA$26) -> 29005.13102
F94: Tariff D - SP AusNet New Town West & Central
A95: 0 | B95: 2 | C95: 1 | D95: 0 | E95: 2 | G95: 0 - 10 | K95: ='Outputs - tariff volumes'!K95 -> 9.697373666 | L95: ='Outputs - tariff volumes'!L95 -> 1e-10 | M95: ='Outputs - tariff volumes'!M95 -> 1e-05 | N95: ='Outputs - tariff volumes'!N95 -> 1e-05 | O95: ='Outputs - tariff volumes'!O95 -> 10 | P95: ='Outputs - tariff volumes'!P95 -> 9.101974329 | Q95: ='Outputs - tariff volumes'!Q95 -> 19.19479355 | R95: ='Outputs - tariff volumes'!R95 -> 15.42745277 | S95: ='Outputs - tariff volumes'!S95 -> 0 | T95: ='Outputs - tariff volumes'!T95 -> 18.67064631 | U95: ='Outputs - tariff volumes'!U95 -> 18.15408952 | V95: ='Outputs - tariff volumes'!V95 -> 17.44954424 | W95: ='Outputs - tariff volumes'!W95 -> 17.2156842 | X95: ='Outputs - tariff volumes'!X95 -> 16.78143739 | Y95: ='Outputs - tariff volumes'!Y95 -> 16.44867653 | Z95: ='Outputs - tariff volumes'!Z95 -> 16.4901139 | AA95: ='Outputs - tariff volumes'!AA95 -> 16.34700183
A96: 0 | B96: 2 | C96: 2 | D96: 0 | E96: 2 | G96: 10 - 50 | K96: ='Outputs - tariff volumes'!K96 -> 16.08045969 | L96: ='Outputs - tariff volumes'!L96 -> 1e-10 | M96: ='Outputs - tariff volumes'!M96 -> 1e-05 | N96: ='Outputs - tariff volumes'!N96 -> 1e-05 | O96: ='Outputs - tariff volumes'!O96 -> 3.57 | P96: ='Outputs - tariff volumes'!P96 -> 3.249404835 | Q96: ='Outputs - tariff volumes'!Q96 -> 21.78609068 | R96: ='Outputs - tariff volumes'!R96 -> 17.22475102 | S96: ='Outputs - tariff volumes'!S96 -> 85.51 | T96: ='Outputs - tariff volumes'!T96 -> 34.06459419 | U96: ='Outputs - tariff volumes'!U96 -> 24.43540449 | V96: ='Outputs - tariff volumes'!V96 -> 31.83669347 | W96: ='Outputs - tariff volumes'!W96 -> 31.41001583 | X96: ='Outputs - tariff volumes'!X96 -> 30.61773251 | Y96: ='Outputs - tariff volumes'!Y96 -> 30.01061032 | Z96: ='Outputs - tariff volumes'!Z96 -> 30.0862128 | AA96: ='Outputs - tariff volumes'!AA96 -> 29.82510485
A97: 0 | B97: 2 | C97: 3 | D97: 0 | E97: 2 | G97: > 50 | K97: ='Outputs - tariff volumes'!K97 -> 0.0001 | L97: ='Outputs - tariff volumes'!L97 -> 1e-10 | M97: ='Outputs - tariff volumes'!M97 -> 1e-05 | N97: ='Outputs - tariff volumes'!N97 -> 1e-05 | O97: ='Outputs - tariff volumes'!O97 -> 1e-05 | P97: ='Outputs - tariff volumes'!P97 -> 9.101974329e-06 | Q97: ='Outputs - tariff volumes'!Q97 -> 0 | R97: ='Outputs - tariff volumes'!R97 -> 0 | S97: ='Outputs - tariff volumes'!S97 -> 0 | T97: ='Outputs - tariff volumes'!T97 -> 0 | U97: ='Outputs - tariff volumes'!U97 -> 0 | V97: ='Outputs - tariff volumes'!V97 -> 0 | W97: ='Outputs - tariff volumes'!W97 -> 0 | X97: ='Outputs - tariff volumes'!X97 -> 0 | Y97: ='Outputs - tariff volumes'!Y97 -> 0 | Z97: ='Outputs - tariff volumes'!Z97 -> 0 | AA97: ='Outputs - tariff volumes'!AA97 -> 0
F98: Tariff M - SP AusNet New Town Central
A99: 0 | B99: 3 | C99: 1 | D99: 1 | E99: 2 | G99: 0 - 10 | K99: ='Outputs - tariff volumes'!K99 -> 0.0001 | L99: ='Outputs - tariff volumes'!L99 -> 1e-10 | M99: ='Outputs - tariff volumes'!M99 -> 1e-05 | N99: ='Outputs - tariff volumes'!N99 -> 1e-05 | O99: ='Outputs - tariff volumes'!O99 -> 1e-05 | P99: ='Outputs - tariff volumes'!P99 -> 9.101974329e-06 | Q99: ='Outputs - tariff volumes'!Q99 -> 0 | R99: ='Outputs - tariff volumes'!R99 -> 0 | S99: ='Outputs - tariff volumes'!S99 -> 0 | T99: ='Outputs - tariff volumes'!T99 -> 0 | U99: ='Outputs - tariff volumes'!U99 -> 0 | V99: ='Outputs - tariff volumes'!V99 -> 0 | W99: ='Outputs - tariff volumes'!W99 -> 0 | X99: ='Outputs - tariff volumes'!X99 -> 0 | Y99: ='Outputs - tariff volumes'!Y99 -> 0 | Z99: ='Outputs - tariff volumes'!Z99 -> 0 | AA99: ='Outputs - tariff volumes'!AA99 -> 0
A100: 0 | B100: 3 | C100: 2 | D100: 1 | E100: 2 | G100: 10 - 50 | K100: ='Outputs - tariff volumes'!K100 -> 0.0001 | L100: ='Outputs - tariff volumes'!L100 -> 1e-10 | M100: ='Outputs - tariff volumes'!M100 -> 1e-05 | N100: ='Outputs - tariff volumes'!N100 -> 1e-05 | O100: ='Outputs - tariff volumes'!O100 -> 1e-05 | P100: ='Outputs - tariff volumes'!P100 -> 9.101974329e-06 | Q100: ='Outputs - tariff volumes'!Q100 -> 0 | R100: ='Outputs - tariff volumes'!R100 -> 0 | S100: ='Outputs - tariff volumes'!S100 -> 0 | T100: ='Outputs - tariff volumes'!T100 -> 0 | U100: ='Outputs - tariff volumes'!U100 -> 0 | V100: ='Outputs - tariff volumes'!V100 -> 0 | W100: ='Outputs - tariff volumes'!W100 -> 0 | X100: ='Outputs - tariff volumes'!X100 -> 0 | Y100: ='Outputs - tariff volumes'!Y100 -> 0 | Z100: ='Outputs - tariff volumes'!Z100 -> 0 | AA100: ='Outputs - tariff volumes'!AA100 -> 0
A101: 0 | B101: 3 | C101: 3 | D101: 1 | E101: 2 | G101: > 50 | K101: ='Outputs - tariff volumes'!K101 -> 0.0001 | L101: ='Outputs - tariff volumes'!L101 -> 1e-10 | M101: ='Outputs - tariff volumes'!M101 -> 1e-05 | N101: ='Outputs - tariff volumes'!N101 -> 1e-05 | O101: ='Outputs - tariff volumes'!O101 -> 1e-05 | P101: ='Outputs - tariff volumes'!P101 -> 9.101974329e-06 | Q101: ='Outputs - tariff volumes'!Q101 -> 0 | R101: ='Outputs - tariff volumes'!R101 -> 0 | S101: ='Outputs - tariff volumes'!S101 -> 0 | T101: ='Outputs - tariff volumes'!T101 -> 0 | U101: ='Outputs - tariff volumes'!U101 -> 0 | V101: ='Outputs - tariff volumes'!V101 -> 0 | W101: ='Outputs - tariff volumes'!W101 -> 0 | X101: ='Outputs - tariff volumes'!X101 -> 0 | Y101: ='Outputs - tariff volumes'!Y101 -> 0 | Z101: ='Outputs - tariff volumes'!Z101 -> 0 | AA101: ='Outputs - tariff volumes'!AA101 -> 0
F102: Tariff M - SP AusNet New Town West
A103: 0 | B103: 3 | C103: 1 | D103: 2 | E103: 2 | G103: 0 - 10 | K103: ='Outputs - tariff volumes'!K103 -> 0.0001 | L103: ='Outputs - tariff volumes'!L103 -> 1e-10 | M103: ='Outputs - tariff volumes'!M103 -> 1e-05 | N103: ='Outputs - tariff volumes'!N103 -> 1e-05 | O103: ='Outputs - tariff volumes'!O103 -> 1e-05 | P103: ='Outputs - tariff volumes'!P103 -> 9.101974329e-06 | Q103: ='Outputs - tariff volumes'!Q103 -> 0 | R103: ='Outputs - tariff volumes'!R103 -> 0 | S103: ='Outputs - tariff volumes'!S103 -> 0 | T103: ='Outputs - tariff volumes'!T103 -> 0 | U103: ='Outputs - tariff volumes'!U103 -> 0 | V103: ='Outputs - tariff volumes'!V103 -> 0 | W103: ='Outputs - tariff volumes'!W103 -> 0 | X103: ='Outputs - tariff volumes'!X103 -> 0 | Y103: ='Outputs - tariff volumes'!Y103 -> 0 | Z103: ='Outputs - tariff volumes'!Z103 -> 0 | AA103: ='Outputs - tariff volumes'!AA103 -> 0
A104: 0 | B104: 3 | C104: 2 | D104: 2 | E104: 2 | G104: 10 - 50 | K104: ='Outputs - tariff volumes'!K104 -> 0.0001 | L104: ='Outputs - tariff volumes'!L104 -> 1e-10 | M104: ='Outputs - tariff volumes'!M104 -> 1e-05 | N104: ='Outputs - tariff volumes'!N104 -> 1e-05 | O104: ='Outputs - tariff volumes'!O104 -> 1e-05 | P104: ='Outputs - tariff volumes'!P104 -> 9.101974329e-06 | Q104: ='Outputs - tariff volumes'!Q104 -> 0 | R104: ='Outputs - tariff volumes'!R104 -> 0 | S104: ='Outputs - tariff volumes'!S104 -> 0 | T104: ='Outputs - tariff volumes'!T104 -> 0 | U104: ='Outputs - tariff volumes'!U104 -> 0 | V104: ='Outputs - tariff volumes'!V104 -> 0 | W104: ='Outputs - tariff volumes'!W104 -> 0 | X104: ='Outputs - tariff volumes'!X104 -> 0 | Y104: ='Outputs - tariff volumes'!Y104 -> 0 | Z104: ='Outputs - tariff volumes'!Z104 -> 0 | AA104: ='Outputs - tariff volumes'!AA104 -> 0
A105: 0 | B105: 3 | C105: 3 | D105: 2 | E105: 2 | G105: > 50 | K105: ='Outputs - tariff volumes'!K105 -> 0.0001 | L105: ='Outputs - tariff volumes'!L105 -> 1e-10 | M105: ='Outputs - tariff volumes'!M105 -> 1e-05 | N105: ='Outputs - tariff volumes'!N105 -> 1e-05 | O105: ='Outputs - tariff volumes'!O105 -> 1e-05 | P105: ='Outputs - tariff volumes'!P105 -> 9.101974329e-06 | Q105: ='Outputs - tariff volumes'!Q105 -> 0 | R105: ='Outputs - tariff volumes'!R105 -> 0 | S105: ='Outputs - tariff volumes'!S105 -> 0 | T105: ='Outputs - tariff volumes'!T105 -> 0 | U105: ='Outputs - tariff volumes'!U105 -> 0 | V105: ='Outputs - tariff volumes'!V105 -> 0 | W105: ='Outputs - tariff volumes'!W105 -> 0 | X105: ='Outputs - tariff volumes'!X105 -> 0 | Y105: ='Outputs - tariff volumes'!Y105 -> 0 | Z105: ='Outputs - tariff volumes'!Z105 -> 0 | AA105: ='Outputs - tariff volumes'!AA105 -> 0
F107: Total demand
F108: Residential | H108: =SUM(H4:H11,H24:H31,H56:H63,H76:H83) -> 26021684.5 | I108: 26383539.41 | J108: 24349945.05 | K108: 27966246.17 | L108: =SUM(L4:L11,L24:L31,L56:L63,L76:L83) -> 25443774.85 | M108: 28750378.03 | N108: 28624383.9 | O108: 30109071.93 | P108: 28859169.61 | Q108: 30737582.86 | R108: 28894865.37 | S108: 28345467.88 | T108: 32404210.33 | U108: 31691505.87 | V108: 31600159.72 | W108: 31742810.84 | X108: 31920246.06 | Y108: 31923717.35 | Z108: 31955134.12 | AA108: 31608721.69
F109: Commercial | H109: =SUM(H14:H21,H34:H41,H66:H73,H86:H93) -> 5143658.019 | I109: 5081209.208 | J109: 4848633.346 | K109: 5517225.306 | L109: 5414062.474 | M109: 5813630.389 | N109: 5454818.578 | O109: 5851444.608 | P109: 5853026.014 | Q109: 5956040.54 | R109: 5799752.318 | S109: 5746182.563 | T109: 6216116.249 | U109: 6130908.792 | V109: 6050747.669 | W109: 6056393.102 | X109: 6133380.884 | Y109: 6086363.003 | Z109: 6131163.76 | AA109: 6131135.379
F110: Tariff D | H110: =SUM(H103:H105,H99:H101,H95:H97,H51:H53,H47:H49,H43:H45) -> 11035.86291 | I110: 10853.81417 | J110: 10190.832 | K110: 10031.08893 | L110: 10073.98 | M110: 10197.23013 | N110: 10371.78012 | O110: 10098.18008 | P110: 9191.337586 | Q110: 9774.74 | R110: 8341 | S110: 7842.24 | T110: 8131.598581 | U110: 8004.997 | V110: 7599.773828 | W110: 7497.921117 | X110: 7308.794253 | Y110: 7163.867414 | Z110: 7181.91457 | AA110: 7119.585188
F112: Total customer numbers
F113: Total residential customer numbers | H113: =SUM(H3,H23,H55,H75) -> 457652.8475 | I113: =SUM(I3,I23,I55,I75) -> 472975.788 | J113: 482507.8261 | K113: 501600.2153 | L113: 512217.118 | M113: 527220.933 | N113: 543801.6014 | O113: 561167.5303 | P113: 578826.537 | Q113: 590919.0767 | R113: 605002.8782 | S113: 621103.8329 | T113: 633936.8998 | U113: 649518.2954 | V113: 664606.6488 | W113: 680251.7257 | X113: 696150.549 | Y113: 712359.2765 | Z113: 728924.0227 | AA113: 744541.2082
F114: Total commercial customer numbers | H114: =SUM(H13,H33,H65,H85) -> 14446.89642 | I114: =SUM(I13,I33,I65,I85) -> 14810.71858 | J114: 14834.81821 | K114: 15230.17914 | L114: 15115.28433 | M114: 15239.18516 | N114: 15404.59531 | O114: 15525.71759 | P114: 15669.90219 | Q114: 15952.33816 | R114: 15718.60611 | S114: 16157.70566 | T114: 16302.97121 | U114: 16460.46673 | V114: 16445.72673 | W114: 16624.43741 | X114: 16807.03616 | Y114: 16993.17573 | Z114: 17183.39166 | AA114: 17362.60796
F116: Per cent change
F117: Residential usage | I117: =I108/H108*100-100 -> 1.390589867 | J117: -7.707814801 | K117: 14.8513728 | L117: -9.019699324 | M117: 12.99572566 | N117: -0.4382347107 | O117: 5.186794739 | P117: -4.151248241 | Q117: 6.508895669 | R117: -5.994998041 | S117: -1.90136717 | T117: 14.31884091 | U117: -2.199419331 | V117: -0.2882354163 | W117: 0.4514253103 | X117: 0.5589776481 | Y117: 0.01087490409 | Z117: 0.09841199469 | AA117: -1.084058766
F118: Residential customer numbers | I118: =I113/H113*100-100 -> 3.34815802 | J118: 2.015333184 | K118: 3.956907674 | L118: 2.116606489 | M118: 2.929190469 | N118: 3.144918455 | O118: 3.193430998 | P118: 3.146833295 | Q118: 2.089147425 | R118: 2.383372294 | S118: 2.661302161 | T118: 2.066170936 | U118: =U113/T113*100-100 -> 2.457878002 | V118: 2.323006685 | W118: 2.354035572 | X118: 2.337197053 | Y118: 2.328336519 | Z118: 2.32533594 | AA118: 2.142498394
F119: Commercial usage | I119: =I109/H109*100-100 -> -1.214093385 | J119: -4.577175473 | K119: 13.78928684 | L119: -1.869831767 | M119: 7.380186623 | N119: -6.171906141 | O119: 7.271113133 | P119: 0.02702590738 | Q119: 1.760021667 | R119: -2.624028849 | S119: -0.9236559091 | T119: 8.178189273 | U119: -1.3707507 | V119: -1.307491687 | W119: 0.0933014006 | X119: 1.271182065 | Y119: -0.7665899454 | Z119: 0.7360842064 | AA119: -0.0004629049839
F120: Commercial customer numbers | I120: =I114/H114*100-100 -> 2.518341305 | J120: 0.1627175111 | K120: 2.665087815 | L120: -0.7543890836 | M120: 0.8197055538 | N120: 1.085426458 | O120: 0.7862737185 | P120: 0.9286823503 | Q120: 1.802410525 | R120: -1.465189871 | S120: 2.793501838 | T120: 0.8990480982 | U120: =U114/T114*100-100 -> 0.966054066 | V120: -0.08954787488 | W120: 1.086669384 | X120: 1.098375558 | Y120: 1.107509746 | Z120: 1.119366588 | AA120: 1.042962307
F121: Tariff D | I121: =I110/H110*100-100 -> -1.649610379 | J121: =J110/I110*100-100 -> -6.108287432 | K121: -1.567517418 | L121: 0.4275813616 | M121: 1.223450215 | N121: 1.711739245 | O121: -2.6379275 | P121: -8.980256712 | Q121: 6.347307005 | R121: -14.66780702 | S121: -5.979618751 | T121: 3.689744016 | U121: =U110/T110*100-100 -> -1.556908889 | V121: -5.062127713 | W121: -1.340207135 | X121: -2.522390689 | Y121: -1.982910368 | Z121: 0.2519191797 | AA121: -0.8678658218

Sheet Outputs - tariff volumes
A1: Res | B1: Cla | C1: Blo | D1: Reg | E1: New | F1: Outputs | H1: 2003 | I1: 2004 | J1: 2005 | K1: 2006 | L1: 2007 | M1: 2008 | N1: 2009 | O1: 2010 | P1: 2011 | Q1: 2012 | R1: 2013 | S1: 2014 | T1: 2015 | U1: 2016 | V1: 2017 | W1: 2018 | X1: 2019 | Y1: 2020 | Z1: 2021 | AA1: 2022
F2: Tariff V - SP AusNet Central - Domestic
A3: 1 | B3: 1 | C3: 1 | D3: 1 | E3: 1 | G3: Fixed Charge | H3: 353373.5437 | I3: 365636.0314 | J3: 373611.675 | K3: 386985.6497 | L3: 396521.319 | M3: 406821.3391 | N3: 418854.5304 | O3: 432109.9274 | P3: 445574.4831 | Q3: 454589.639 | R3: 464774.296 | S3: 476981.0067 | T3: 486958.2294 | U3: 499484.9671 | V3: ='Outputs - customer numbers'!S2 -> 511863.096 | W3: ='Outputs - customer numbers'!T2 -> 524669.584 | X3: ='Outputs - customer numbers'!U2 -> 537860.6802 | Y3: ='Outputs - customer numbers'!V2 -> 551449.5799 | Z3: ='Outputs - customer numbers'!W2 -> 565449.9676 | AA3: ='Outputs - customer numbers'!X2 -> 578906.4286
A4: 1 | B4: 1 | C4: 2 | D4: 1 | E4: 1 | G4: Peak 0 - 0.1 | H4: 4462340.277 | I4: 3854588.089 | J4: 4053715.373 | K4: 4126124.511 | L4: 4215842.562 | M4: 4402250.471 | N4: 4477347.324 | O4: 4661161.351 | P4: 4709657.202 | Q4: 4844779.056 | R4: 4860631.995 | S4: 4730745.03 | T4: 5102535.273 | U4: 5175140.239 | V4: ='Calc - usage existing'!W4+'Calc - usage new'!W4 -> 5292940.174 | W4: ='Calc - usage existing'!X4+'Calc - usage new'!X4 -> 5363061.853 | X4: ='Calc - usage existing'!Y4+'Calc - usage new'!Y4 -> 5448749.197 | Y4: ='Calc - usage existing'!Z4+'Calc - usage new'!Z4 -> 5515216.709 | Z4: ='Calc - usage existing'!AA4+'Calc - usage new'!AA4 -> 5597901.796 | AA4: ='Calc - usage existing'!AB4+'Calc - usage new'!AB4 -> 5616058.561
A5: 1 | B5: 1 | C5: 3 | D5: 1 | E5: 1 | G5: Peak 0.1 - 0.2 | H5: 2874672.511 | I5: 2920055.241 | J5: 2984479.526 | K5: 3266036.908 | L5: 3426888.594 | M5: 3461840.289 | N5: 3248582.248 | O5: 3716457.97 | P5: 3423257.37 | Q5: 3719596.662 | R5: 3410488.724 | S5: 3491961.272 | T5: 3833486.066 | U5: 3878355.813 | V5: ='Calc - usage existing'!W5+'Calc - usage new'!W5 -> 3921702.77 | W5: ='Calc - usage existing'!X5+'Calc - usage new'!X5 -> 3966200.226 | X5: ='Calc - usage existing'!Y5+'Calc - usage new'!Y5 -> 4021985.318 | Y5: ='Calc - usage existing'!Z5+'Calc - usage new'!Z5 -> 4062955.153 | Z5: ='Calc - usage existing'!AA5+'Calc - usage new'!AA5 -> 4115708.44 | AA5: ='Calc - usage existing'!AB5+'Calc - usage new'!AB5 -> 4120346.74
A6: 1 | B6: 1 | C6: 4 | D6: 1 | E6: 1 | G6: Peak 0.2 - 1.4 | H6: 2793338.635 | I6: 4532439.758 | J6: 3549862.8 | K6: 4540824.979 | L6: 4806237.696 | M6: 5429111.796 | N6: 4376963.599 | O6: 6298252.626 | P6: 4647118.338 | Q6: 5727415.344 | R6: 4484036.719 | S6: 5034413.009 | T6: 6451257.055 | U6: 5744575.603 | V6: ='Calc - usage existing'!W6+'Calc - usage new'!W6 -> 5684726.275 | W6: ='Calc - usage existing'!X6+'Calc - usage new'!X6 -> 5753445.626 | X6: ='Calc - usage existing'!Y6+'Calc - usage new'!Y6 -> 5839455.689 | Y6: ='Calc - usage existing'!Z6+'Calc - usage new'!Z6 -> 5904516.41 | Z6: ='Calc - usage existing'!AA6+'Calc - usage new'!AA6 -> 5988210.558 | AA6: ='Calc - usage existing'!AB6+'Calc - usage new'!AB6 -> 6011245.178
A7: 1 | B7: 1 | C7: 5 | D7: 1 | E7: 1 | G7: Peak > 1.4 | H7: 1166910.169 | I7: 104641.6756 | J7: 81257.64736 | K7: 200605.9009 | L7: 54634.1874 | M7: 88387.485 | N7: 75171.60253 | O7: 75468.17 | P7: 59060.624 | Q7: 63687.439 | R7: 65162.246 | S7: 73846.68 | T7: 87376.163 | U7: 82963.073 | V7: ='Calc - usage existing'!W7+'Calc - usage new'!W7 -> 85274.83886 | W7: ='Calc - usage existing'!X7+'Calc - usage new'!X7 -> 88119.59893 | X7: ='Calc - usage existing'!Y7+'Calc - usage new'!Y7 -> 91293.65885 | Y7: ='Calc - usage existing'!Z7+'Calc - usage new'!Z7 -> 94230.8329 | Z7: ='Calc - usage existing'!AA7+'Calc - usage new'!AA7 -> 97493.4173 | AA7: ='Calc - usage existing'!AB7+'Calc - usage new'!AB7 -> 99403.47824
A8: 1 | B8: 1 | C8: 6 | D8: 1 | E8: 1 | G8: Off Peak 0 - 0.1 | H8: 6362094.487 | I8: 6337309.522 | J8: 6251075.702 | K8: 6565929.588 | L8: 5511712.342 | M8: 6280636.42 | N8: 6465953.215 | O8: 6320041.143 | P8: 6600657.587 | Q8: 6739194.422 | R8: 6699930.623 | S8: 6576150.34 | T8: 6916612.37 | U8: 6895066.489 | V8: ='Calc - usage existing'!W8+'Calc - usage new'!W8 -> 6964019.156 | W8: ='Calc - usage existing'!X8+'Calc - usage new'!X8 -> 6994301.099 | X8: ='Calc - usage existing'!Y8+'Calc - usage new'!Y8 -> 7043252.43 | Y8: ='Calc - usage existing'!Z8+'Calc - usage new'!Z8 -> 7064914.781 | Z8: ='Calc - usage existing'!AA8+'Calc - usage new'!AA8 -> 7106760.894 | AA8: ='Calc - usage existing'!AB8+'Calc - usage new'!AB8 -> 7075747.177
A9: 1 | B9: 1 | C9: 7 | D9: 1 | E9: 1 | G9: Off Peak 0.1 - 0.2 | H9: 1567518.802 | I9: 1707624.123 | J9: 1303680.529 | K9: 1879008.77 | L9: 1196285.022 | M9: 1652359.123 | N9: 1918605.588 | O9: 1541953.417 | P9: 1720560.558 | Q9: 1682480.197 | R9: 1689086.965 | S9: 1238864.364 | T9: 1619561.732 | U9: 1554095.251 | V9: ='Calc - usage existing'!W9+'Calc - usage new'!W9 -> 1474448.138 | W9: ='Calc - usage existing'!X9+'Calc - usage new'!X9 -> 1465699.335 | X9: ='Calc - usage existing'!Y9+'Calc - usage new'!Y9 -> 1460602.456 | Y9: ='Calc - usage existing'!Z9+'Calc - usage new'!Z9 -> 1448796.317 | Z9: ='Calc - usage existing'!AA9+'Calc - usage new'!AA9 -> 1441065.704 | AA9: ='Calc - usage existing'!AB9+'Calc - usage new'!AB9 -> 1418562.818
A10: 1 | B10: 1 | C10: 8 | D10: 1 | E10: 1 | G10: Off Peak 0.2 - 1.4 | H10: 696591.7455 | I10: 973980.2112 | J10: 606106.952 | K10: 1112884.986 | L10: 529355.3451 | M10: 872470.493 | N10: 1361786.188 | O10: 515641.429 | P10: 941142.716 | Q10: 760489.322 | R10: 849195.188 | S10: 405634.108 | T10: 775505.552 | U10: 687249.238 | V10: ='Calc - usage existing'!W10+'Calc - usage new'!W10 -> 633124.4107 | W10: ='Calc - usage existing'!X10+'Calc - usage new'!X10 -> 629653.7092 | X10: ='Calc - usage existing'!Y10+'Calc - usage new'!Y10 -> 627826.614 | Y10: ='Calc - usage existing'!Z10+'Calc - usage new'!Z10 -> 623067.9087 | Z10: ='Calc - usage existing'!AA10+'Calc - usage new'!AA10 -> 620159.7032 | AA10: ='Calc - usage existing'!AB10+'Calc - usage new'!AB10 -> 611017.7048
A11: 1 | B11: 1 | C11: 9 | D11: 1 | E11: 1 | G11: Off Peak > 1.4 | H11: 334096.7046 | I11: 116943.6345 | J11: 86706.47029 | K11: 183915.6105 | L11: 40971.35077 | M11: 108098.686 | N11: 103835.4805 | O11: 77079.19 | P11: 63483.865 | Q11: 60349.004 | R11: 65437.359 | S11: 74309.514 | T11: 74527.061 | U11: 71679.269 | V11: ='Calc - usage existing'!W11+'Calc - usage new'!W11 -> 72400.18735 | W11: ='Calc - usage existing'!X11+'Calc - usage new'!X11 -> 74530.54654 | X11: ='Calc - usage existing'!Y11+'Calc - usage new'!Y11 -> 76921.38136 | Y11: ='Calc - usage existing'!Z11+'Calc - usage new'!Z11 -> 79077.13257 | Z11: ='Calc - usage existing'!AA11+'Calc - usage new'!AA11 -> 81484.30465 | AA11: ='Calc - usage existing'!AB11+'Calc - usage new'!AB11 -> 82626.72405
F12: Tariff V - SP AusNet Central - Commercial
A13: 2 | B13: 1 | C13: 1 | D13: 1 | E13: 1 | G13: Fixed Charge | H13: 8486.503291 | I13: 8809.799972 | J13: 8872.763337 | K13: 9020.412191 | L13: 9033.555016 | M13: 9111.223171 | N13: 9230.468411 | O13: 9325.082394 | P13: 9431.094328 | Q13: 9619.854686 | R13: 9496.908636 | S13: 9811.062024 | T13: 9957.603619 | U13: 10053.97483 | V13: ='Outputs - customer numbers'!S3 -> 10050.00999 | W13: ='Outputs - customer numbers'!T3 -> 10197.40431 | X13: ='Outputs - customer numbers'!U3 -> 10349.22637 | Y13: ='Outputs - customer numbers'!V3 -> 10505.62822 | Z13: ='Outputs - customer numbers'!W3 -> 10666.76756 | AA13: ='Outputs - customer numbers'!X3 -> 10821.56759
A14: 2 | B14: 1 | C14: 2 | D14: 1 | E14: 1 | G14: Peak 0 - 0.1 | H14: 79374.35533 | I14: 77093.25813 | J14: 79163.97441 | K14: 66909.9057 | L14: 94524.34856 | M14: 64006.447 | N14: 83457.5522 | O14: 85272.129 | P14: 85237.315 | Q14: 86063.082 | R14: 85701.192 | S14: 84722.796 | T14: 89741.757 | U14: 92689.096 | V14: ='Calc - usage existing'!W14+'Calc - usage new'!W14 -> 91830.40858 | W14: ='Calc - usage existing'!X14+'Calc - usage new'!X14 -> 91923.51508 | X14: ='Calc - usage existing'!Y14+'Calc - usage new'!Y14 -> 93249.83269 | Y14: ='Calc - usage existing'!Z14+'Calc - usage new'!Z14 -> 92800.07356 | Z14: ='Calc - usage existing'!AA14+'Calc - usage new'!AA14 -> 93945.38794 | AA14: ='Calc - usage existing'!AB14+'Calc - usage new'!AB14 -> 94343.50939
A15: 2 | B15: 1 | C15: 3 | D15: 1 | E15: 1 | G15: Peak 0.1 - 0.2 | H15: 50301.4326 | I15: 65796.20901 | J15: 64849.36299 | K15: 72043.76438 | L15: 77884.49694 | M15: 70403.858 | N15: 67035.58881 | O15: 70596.51 | P15: 68891.241 | Q15: 70824.317 | R15: 68992.662 | S15: 69457.199 | T15: 74440.955 | U15: 76805.767 | V15: ='Calc - usage existing'!W15+'Calc - usage new'!W15 -> 76507.86425 | W15: ='Calc - usage existing'!X15+'Calc - usage new'!X15 -> 77073.76325 | X15: ='Calc - usage existing'!Y15+'Calc - usage new'!Y15 -> 78676.98662 | Y15: ='Calc - usage existing'!Z15+'Calc - usage new'!Z15 -> 78823.1387 | Z15: ='Calc - usage existing'!AA15+'Calc - usage new'!AA15 -> 80306.48501 | AA15: ='Calc - usage existing'!AB15+'Calc - usage new'!AB15 -> 81152.68868
A16: 2 | B16: 1 | C16: 4 | D16: 1 | E16: 1 | G16: Peak 0.2 - 1.4 | H16: 366156.3404 | I16: 364572.2395 | J16: 371156.818 | K16: 428718.5014 | L16: 388936.3453 | M16: 415815.191 | N16: 387827.1823 | O16: 422896.237 | P16: 406087.8 | Q16: 421067.194 | R16: 406054.743 | S16: 419630.752 | T16: 452164.844 | U16: 459675.893 | V16: ='Calc - usage existing'!W16+'Calc - usage new'!W16 -> 455497.1162 | W16: ='Calc - usage existing'!X16+'Calc - usage new'!X16 -> 458225.3501 | X16: ='Calc - usage existing'!Y16+'Calc - usage new'!Y16 -> 467146.0725 | Y16: ='Calc - usage existing'!Z16+'Calc - usage new'!Z16 -> 467294.3193 | Z16: ='Calc - usage existing'!AA16+'Calc - usage new'!AA16 -> 475429.393 | AA16: ='Calc - usage existing'!AB16+'Calc - usage new'!AB16 -> 479530.1398
A17: 2 | B17: 1 | C17: 5 | D17: 1 | E17: 1 | G17: Peak > 1.4 | H17: 1131210.208 | I17: 1042012.423 | J17: 1004645.481 | K17: 1155318.091 | L17: 1249108.538 | M17: 1378068.437 | N17: 1070518.918 | O17: 1315124.928 | P17: 1340433.113 | Q17: 1312871.735 | R17: 1294377.627 | S17: 1242927.84 | T17: 1340104.411 | U17: 1246511.864 | V17: ='Calc - usage existing'!W17+'Calc - usage new'!W17 -> 1228509.524 | W17: ='Calc - usage existing'!X17+'Calc - usage new'!X17 -> 1232095.349 | X17: ='Calc - usage existing'!Y17+'Calc - usage new'!Y17 -> 1252244.991 | Y17: ='Calc - usage existing'!Z17+'Calc - usage new'!Z17 -> 1248910.635 | Z17: ='Calc - usage existing'!AA17+'Calc - usage new'!AA17 -> 1267025.64 | AA17: ='Calc - usage existing'!AB17+'Calc - usage new'!AB17 -> 1278063.169
A18: 2 | B18: 1 | C18: 6 | D18: 1 | E18: 1 | G18: Off Peak 0 - 0.1 | H18: 128838.6047 | I18: 142514.0052 | J18: 140544.2638 | K18: 122622.4348 | L18: 121006.9712 | M18: 101518.522 | N18: 139555.4538 | O18: 137485.694 | P18: 140334.095 | Q18: 141397.367 | R18: 143952.419 | S18: 144745.829 | T18: 151574.295 | U18: 154283.479 | V18: ='Calc - usage existing'!W18+'Calc - usage new'!W18 -> 152563.5676 | W18: ='Calc - usage existing'!X18+'Calc - usage new'!X18 -> 152623.5142 | X18: ='Calc - usage existing'!Y18+'Calc - usage new'!Y18 -> 154733.3096 | Y18: ='Calc - usage existing'!Z18+'Calc - usage new'!Z18 -> 153874.5669 | Z18: ='Calc - usage existing'!AA18+'Calc - usage new'!AA18 -> 155667.7543 | AA18: ='Calc - usage existing'!AB18+'Calc - usage new'!AB18 -> 156156.8335
A19: 2 | B19: 1 | C19: 7 | D19: 1 | E19: 1 | G19: Off Peak 0.1 - 0.2 | H19: 110074.3373 | I19: 95953.03759 | J19: 95175.65334 | K19: 76439.2186 | L19: 96307.04125 | M19: 95892.239 | N19: 96102.23819 | O19: 92693.515 | P19: 96184.376 | Q19: 97408.188 | R19: 99815.508 | S19: 100036.473 | T19: 106556.453 | U19: 107264.592 | V19: ='Calc - usage existing'!W19+'Calc - usage new'!W19 -> 106597.4804 | W19: ='Calc - usage existing'!X19+'Calc - usage new'!X19 -> 107607.4227 | X19: ='Calc - usage existing'!Y19+'Calc - usage new'!Y19 -> 110075.5 | Y19: ='Calc - usage existing'!Z19+'Calc - usage new'!Z19 -> 110507.0735 | Z19: ='Calc - usage existing'!AA19+'Calc - usage new'!AA19 -> 112815.4367 | AA19: ='Calc - usage existing'!AB19+'Calc - usage new'!AB19 -> 114153.9591
A20: 2 | B20: 1 | C20: 8 | D20: 1 | E20: 1 | G20: Off Peak 0.2 - 1.4 | H20: 515605.3519 | I20: 499715.9902 | J20: 503979.5608 | K20: 603007.4143 | L20: 476827.4629 | M20: 554211.651 | N20: 563462.6397 | O20: 543000.288 | P20: 566337.888 | Q20: 579781.364 | R20: 590331.899 | S20: 591038.049 | T20: 626136.963 | U20: 631139.819 | V20: ='Calc - usage existing'!W20+'Calc - usage new'!W20 -> 626540.6675 | W20: ='Calc - usage existing'!X20+'Calc - usage new'!X20 -> 630618.1461 | X20: ='Calc - usage existing'!Y20+'Calc - usage new'!Y20 -> 643200.0245 | Y20: ='Calc - usage existing'!Z20+'Calc - usage new'!Z20 -> 643797.188 | Z20: ='Calc - usage existing'!AA20+'Calc - usage new'!AA20 -> 655364.0653 | AA20: ='Calc - usage existing'!AB20+'Calc - usage new'!AB20 -> 661781.4568
A21: 2 | B21: 1 | C21: 9 | D21: 1 | E21: 1 | G21: Off Peak > 1.4 | H21: 1119044.197 | I21: 1143649.267 | J21: 1081284.424 | K21: 1318468.406 | L21: 1354879.342 | M21: 1450033.214 | N21: 1384193.505 | O21: 1460453.893 | P21: 1686598.746 | Q21: 1521974.463 | R21: 1485787.137 | S21: 1493335.52 | T21: 1660066.591 | U21: 1615595.806 | V21: ='Calc - usage existing'!W21+'Calc - usage new'!W21 -> 1603195.841 | W21: ='Calc - usage existing'!X21+'Calc - usage new'!X21 -> 1616757.101 | X21: ='Calc - usage existing'!Y21+'Calc - usage new'!Y21 -> 1651957.907 | Y21: ='Calc - usage existing'!Z21+'Calc - usage new'!Z21 -> 1656946.111 | Z21: ='Calc - usage existing'!AA21+'Calc - usage new'!AA21 -> 1689907.12 | AA21: ='Calc - usage existing'!AB21+'Calc - usage new'!AB21 -> 1713903.72
F22: Tariff V - SP AusNet West - Domestic
A23: 1 | B23: 1 | C23: 1 | D23: 2 | E23: 1 | G23: Fixed Charge | H23: 104279.3038 | I23: 107339.7567 | J23: 108896.1511 | K23: 112080.4028 | L23: 114296.9744 | M23: 116927.6868 | N23: 119402.2724 | O23: 122288.7946 | P23: 125432.5286 | Q23: 127686.7412 | R23: 130822.7289 | S23: 133999.7934 | T23: 136294.8334 | U23: 138832.5177 | V23: ='Outputs - customer numbers'!S4 -> 140934.7422 | W23: ='Outputs - customer numbers'!T4 -> 142816.5962 | X23: ='Outputs - customer numbers'!U4 -> 144731.9209 | Y23: ='Outputs - customer numbers'!V4 -> 146681.3962 | Z23: ='Outputs - customer numbers'!W4 -> 148665.7166 | AA23: ='Outputs - customer numbers'!X4 -> 150474.5511
A24: 1 | B24: 1 | C24: 2 | D24: 2 | E24: 1 | G24: Peak 0 - 0.1 | H24: 1293158.413 | I24: 1135908.079 | J24: 1193513.362 | K24: 1157815.2 | L24: 1248192.064 | M24: 1266002.687 | N24: 1282652.822 | O24: 1328921.749 | P24: 1331262.285 | Q24: 1369070.942 | R24: 1377303.96 | S24: 1342174.081 | T24: 1437746.857 | U24: 1453142.596 | V24: ='Calc - usage existing'!W24+'Calc - usage new'!W24 -> 1466269.85 | W24: ='Calc - usage existing'!X24+'Calc - usage new'!X24 -> 1470498.256 | X24: ='Calc - usage existing'!Y24+'Calc - usage new'!Y24 -> 1478574.239 | Y24: ='Calc - usage existing'!Z24+'Calc - usage new'!Z24 -> 1481027.94 | Z24: ='Calc - usage existing'!AA24+'Calc - usage new'!AA24 -> 1487623.753 | AA24: ='Calc - usage existing'!AB24+'Calc - usage new'!AB24 -> 1484793.722
A25: 1 | B25: 1 | C25: 3 | D25: 2 | E25: 1 | G25: Peak 0.1 - 0.2 | H25: 858557.0034 | I25: 824451.8222 | J25: 844721.4059 | K25: 878460.4284 | L25: 891965.6591 | M25: 976404.478 | N25: 939854.6858 | O25: 1058897.672 | P25: 963222.928 | Q25: 1051249.823 | R25: 974644.065 | S25: 1023237.93 | T25: 1099527.354 | U25: 1123117.129 | V25: ='Calc - usage existing'!W25+'Calc - usage new'!W25 -> 1120387.353 | W25: ='Calc - usage existing'!X25+'Calc - usage new'!X25 -> 1121469.94 | X25: ='Calc - usage existing'!Y25+'Calc - usage new'!Y25 -> 1125469.198 | Y25: ='Calc - usage existing'!Z25+'Calc - usage new'!Z25 -> 1125060.45 | Z25: ='Calc - usage existing'!AA25+'Calc - usage new'!AA25 -> 1127799.564 | AA25: ='Calc - usage existing'!AB25+'Calc - usage new'!AB25 -> 1123261.62
A26: 1 | B26: 1 | C26: 4 | D26: 2 | E26: 1 | G26: Peak 0.2 - 1.4 | H26: 786990.2223 | I26: 1224825.45 | J26: 958903.2916 | K26: 1246835.83 | L26: 1325172.24 | M26: 1432730.546 | N26: 1285222.583 | O26: 1704251.708 | P26: 1274933.983 | Q26: 1561449.649 | R26: 1264270.016 | S26: 1529409.027 | T26: 1822140.826 | U26: 1710943.293 | V26: ='Calc - usage existing'!W26+'Calc - usage new'!W26 -> 1673989.203 | W26: ='Calc - usage existing'!X26+'Calc - usage new'!X26 -> 1679454.096 | X26: ='Calc - usage existing'!Y26+'Calc - usage new'!Y26 -> 1689494.606 | Y26: ='Calc - usage existing'!Z26+'Calc - usage new'!Z26 -> 1693012.883 | Z26: ='Calc - usage existing'!AA26+'Calc - usage new'!AA26 -> 1701587.511 | AA26: ='Calc - usage existing'!AB26+'Calc - usage new'!AB26 -> 1700526.126
A27: 1 | B27: 1 | C27: 5 | D27: 2 | E27: 1 | G27: Peak > 1.4 | H27: 298127.0398 | I27: 43961.51598 | J27: 27849.0719 | K27: 50256.11179 | L27: 65209.50974 | M27: 25081.969 | N27: 23748.68735 | O27: 15114.505 | P27: 13554.014 | Q27: 13223.936 | R27: 13245.787 | S27: 22991.377 | T27: 18894.167 | U27: 26549.636 | V27: ='Calc - usage existing'!W27+'Calc - usage new'!W27 -> 26806.71967 | W27: ='Calc - usage existing'!X27+'Calc - usage new'!X27 -> 27333.6181 | X27: ='Calc - usage existing'!Y27+'Calc - usage new'!Y27 -> 27942.93608 | Y27: ='Calc - usage existing'!Z27+'Calc - usage new'!Z27 -> 28460.01289 | Z27: ='Calc - usage existing'!AA27+'Calc - usage new'!AA27 -> 29060.17342 | AA27: ='Calc - usage existing'!AB27+'Calc - usage new'!AB27 -> 29439.13775
A28: 1 | B28: 1 | C28: 6 | D28: 2 | E28: 1 | G28: Off Peak 0 - 0.1 | H28: 1833879.836 | I28: 1794322.802 | J28: 1778936.605 | K28: 1779110.13 | L28: 1580011.279 | M28: 1742034.187 | N28: 1769988.217 | O28: 1742183.452 | P28: 1831802.037 | Q28: 1854874.649 | R28: 1817766.607 | S28: 1765758.865 | T28: 1854183.404 | U28: 1850320.099 | V28: ='Calc - usage existing'!W28+'Calc - usage new'!W28 -> 1847303.99 | W28: ='Calc - usage existing'!X28+'Calc - usage new'!X28 -> 1838949.636 | X28: ='Calc - usage existing'!Y28+'Calc - usage new'!Y28 -> 1835239.684 | Y28: ='Calc - usage existing'!Z28+'Calc - usage new'!Z28 -> 1824178.355 | Z28: ='Calc - usage existing'!AA28+'Calc - usage new'!AA28 -> 1818305.318 | AA28: ='Calc - usage existing'!AB28+'Calc - usage new'!AB28 -> 1802219.953
A29: 1 | B29: 1 | C29: 7 | D29: 2 | E29: 1 | G29: Off Peak 0.1 - 0.2 | H29: 446158.2415 | I29: 504137.8775 | J29: 408108.0454 | K29: 552240.2379 | L29: 269881.4477 | M29: 500088.769 | N29: 568172.3472 | O29: 472723.944 | P29: 541692.044 | Q29: 528078.375 | R29: 532254.691 | S29: 389396.068 | T29: 488500.272 | U29: 515154.068 | V29: ='Calc - usage existing'!W29+'Calc - usage new'!W29 -> 483439.2799 | W29: ='Calc - usage existing'!X29+'Calc - usage new'!X29 -> 476538.5833 | X29: ='Calc - usage existing'!Y29+'Calc - usage new'!Y29 -> 470837.1374 | Y29: ='Calc - usage existing'!Z29+'Calc - usage new'!Z29 -> 462994.8026 | Z29: ='Calc - usage existing'!AA29+'Calc - usage new'!AA29 -> 456530.2086 | AA29: ='Calc - usage existing'!AB29+'Calc - usage new'!AB29 -> 447468.0057
A30: 1 | B30: 1 | C30: 8 | D30: 2 | E30: 1 | G30: Off Peak 0.2 - 1.4 | H30: 169449.2292 | I30: 263890.7655 | J30: 193719.1069 | K30: 304962.6111 | L30: 181594.3382 | M30: 293878.807 | N30: 411594.0826 | O30: 201019.658 | P30: 333075.683 | Q30: 290571.181 | R30: 322258.369 | S30: 151243.673 | T30: 249515.131 | U30: 324240.648 | V30: ='Calc - usage existing'!W30+'Calc - usage new'!W30 -> 295534.9282 | W30: ='Calc - usage existing'!X30+'Calc - usage new'!X30 -> 291503.1477 | X30: ='Calc - usage existing'!Y30+'Calc - usage new'!Y30 -> 288235.0035 | Y30: ='Calc - usage existing'!Z30+'Calc - usage new'!Z30 -> 283629.564 | Z30: ='Calc - usage existing'!AA30+'Calc - usage new'!AA30 -> 279906.6626 | AA30: ='Calc - usage existing'!AB30+'Calc - usage new'!AB30 -> 274617.4437
A31: 1 | B31: 1 | C31: 9 | D31: 2 | E31: 1 | G31: Off Peak > 1.4 | H31: 77801.18543 | I31: 44458.84278 | J31: 27309.16627 | K31: 23965.68951 | L31: 30871.73055 | M31: 27609.38 | N31: 29467.26465 | O31: 25113.512 | P31: 12222.116 | Q31: 13207.113 | R31: 13389.912 | S31: 13339.949 | T31: 14518.501 | U31: 17672.631 | V31: ='Calc - usage existing'!W31+'Calc - usage new'!W31 -> 17504.43549 | W31: ='Calc - usage existing'!X31+'Calc - usage new'!X31 -> 17758.42358 | X31: ='Calc - usage existing'!Y31+'Calc - usage new'!Y31 -> 18063.96969 | Y31: ='Calc - usage existing'!Z31+'Calc - usage new'!Z31 -> 18303.9544 | Z31: ='Calc - usage existing'!AA31+'Calc - usage new'!AA31 -> 18594.87728 | AA31: ='Calc - usage existing'!AB31+'Calc - usage new'!AB31 -> 18725.1079
F32: Tariff V - SP AusNet West - Commercial
A33: 2 | B33: 1 | C33: 1 | D33: 2 | E33: 1 | G33: Fixed Charge | H33: 5960.393127 | I33: 6000.918606 | J33: 5962.054874 | K33: 6079.398298 | L33: 6042.428661 | M33: 6045.868555 | N33: 6062.366979 | O33: 6058.154372 | P33: 6062.196873 | Q33: 6134.079397 | R33: 6015.849889 | S33: 6120.120991 | T33: 6101.902462 | U33: 6137.304201 | V33: ='Outputs - customer numbers'!S5 -> 6112.529035 | W33: ='Outputs - customer numbers'!T5 -> 6134.618338 | X33: ='Outputs - customer numbers'!U5 -> 6157.097715 | Y33: ='Outputs - customer numbers'!V5 -> 6179.975013 | Z33: ='Outputs - customer numbers'!W5 -> 6203.258247 | AA33: ='Outputs - customer numbers'!X5 -> 6224.177081
A34: 2 | B34: 1 | C34: 2 | D34: 2 | E34: 1 | G34: Peak 0 - 0.1 | H34: 62212.26268 | I34: 64733.71006 | J34: 57398.71212 | K34: 55989.37537 | L34: 57214.88858 | M34: 54466.977 | N34: 54880.51624 | O34: 55361.607 | P34: 53687.641 | Q34: 54517.836 | R34: 53055.012 | S34: 50982.605 | T34: 53287.824 | U34: 53302.161 | V34: ='Calc - usage existing'!W34+'Calc - usage new'!W34 -> 52311.60329 | W34: ='Calc - usage existing'!X34+'Calc - usage new'!X34 -> 51771.4545 | X34: ='Calc - usage existing'!Y34+'Calc - usage new'!Y34 -> 51914.79706 | Y34: ='Calc - usage existing'!Z34+'Calc - usage new'!Z34 -> 51061.96027 | Z34: ='Calc - usage existing'!AA34+'Calc - usage new'!AA34 -> 51096.46382 | AA34: ='Calc - usage existing'!AB34+'Calc - usage new'!AB34 -> 51023.33778
A35: 2 | B35: 1 | C35: 3 | D35: 2 | E35: 1 | G35: Peak 0.1 - 0.2 | H35: 42251.82814 | I35: 50841.35499 | J35: 41911.12434 | K35: 41736.34848 | L35: 44103.40985 | M35: 44083.852 | N35: 41473.06659 | O35: 43707.108 | P35: 39990.095 | Q35: 42301.686 | R35: 39745.679 | S35: 39473.369 | T35: 41687.528 | U35: 41616.933 | V35: ='Calc - usage existing'!W35+'Calc - usage new'!W35 -> 41058.86365 | W35: ='Calc - usage existing'!X35+'Calc - usage new'!X35 -> 40886.1166 | X35: ='Calc - usage existing'!Y35+'Calc - usage new'!Y35 -> 41248.95952 | Y35: ='Calc - usage existing'!Z35+'Calc - usage new'!Z35 -> 40835.90031 | Z35: ='Calc - usage existing'!AA35+'Calc - usage new'!AA35 -> 41117.32496 | AA35: ='Calc - usage existing'!AB35+'Calc - usage new'!AB35 -> 41312.34809
A36: 2 | B36: 1 | C36: 4 | D36: 2 | E36: 1 | G36: Peak 0.2 - 1.4 | H36: 197333.257 | I36: 208812.5698 | J36: 199582.8106 | K36: 217747.3365 | L36: 217880.0759 | M36: 224618.436 | N36: 209579.5221 | O36: 227727.966 | P36: 205219.231 | Q36: 221613.632 | R36: 205027.2 | S36: 207586.881 | T36: 223327.869 | U36: 221165.076 | V36: ='Calc - usage existing'!W36+'Calc - usage new'!W36 -> 216916.0736 | W36: ='Calc - usage existing'!X36+'Calc - usage new'!X36 -> 215535.401 | X36: ='Calc - usage existing'!Y36+'Calc - usage new'!Y36 -> 216997.7783 | Y36: ='Calc - usage existing'!Z36+'Calc - usage new'!Z36 -> 214331.3102 | Z36: ='Calc - usage existing'!AA36+'Calc - usage new'!AA36 -> 215351.0488 | AA36: ='Calc - usage existing'!AB36+'Calc - usage new'!AB36 -> 215886.579
A37: 2 | B37: 1 | C37: 5 | D37: 2 | E37: 1 | G37: Peak > 1.4 | H37: 528076.6528 | I37: 483002.3348 | J37: 433178.2762 | K37: 450829.6051 | L37: 464132.5891 | M37: 465456.005 | N37: 436522.0209 | O37: 505431.852 | P37: 231790.009 | Q37: 485329.517 | R37: 416273.999 | S37: 430759.24 | T37: 474904.227 | U37: 483229.985 | V37: ='Calc - usage existing'!W37+'Calc - usage new'!W37 -> 473125.9073 | W37: ='Calc - usage existing'!X37+'Calc - usage new'!X37 -> 470736.558 | X37: ='Calc - usage existing'!Y37+'Calc - usage new'!Y37 -> 474555.786 | Y37: ='Calc - usage existing'!Z37+'Calc - usage new'!Z37 -> 469376.7935 | Z37: ='Calc - usage existing'!AA37+'Calc - usage new'!AA37 -> 472270.7857 | AA37: ='Calc - usage existing'!AB37+'Calc - usage new'!AB37 -> 474460.9398
A38: 2 | B38: 1 | C38: 6 | D38: 2 | E38: 1 | G38: Off Peak 0 - 0.1 | H38: 85704.76116 | I38: 110326.3887 | J38: 87003.96825 | K38: 81549.84508 | L38: 72951.63323 | M38: 76702.11 | N38: 80422.61376 | O38: 77242.537 | P38: 78319.168 | Q38: 78566.612 | R38: 78263.741 | S38: 75432.141 | T38: 77062.802 | U38: 77556.953 | V38: ='Calc - usage existing'!W38+'Calc - usage new'!W38 -> 75932.61674 | W38: ='Calc - usage existing'!X38+'Calc - usage new'!X38 -> 75057.11151 | X38: ='Calc - usage existing'!Y38+'Calc - usage new'!Y38 -> 75175.38032 | Y38: ='Calc - usage existing'!Z38+'Calc - usage new'!Z38 -> 73842.8295 | Z38: ='Calc - usage existing'!AA38+'Calc - usage new'!AA38 -> 73800.27493 | AA38: ='Calc - usage existing'!AB38+'Calc - usage new'!AB38 -> 73593.96154
A39: 2 | B39: 1 | C39: 7 | D39: 2 | E39: 1 | G39: Off Peak 0.1 - 0.2 | H39: 66314.94214 | I39: 71346.30686 | J39: 52501.072 | K39: 47796.89928 | L39: 43592.81243 | M39: 49354.646 | N39: 49282.04841 | O39: 46159.349 | P39: 47465.671 | Q39: 48334.928 | R39: 48518.233 | S39: 45615.084 | T39: 47549.938 | U39: 47950.543 | V39: ='Calc - usage existing'!W39+'Calc - usage new'!W39 -> 47153.78647 | W39: ='Calc - usage existing'!X39+'Calc - usage new'!X39 -> 47002.05151 | X39: ='Calc - usage existing'!Y39+'Calc - usage new'!Y39 -> 47468.00141 | Y39: ='Calc - usage existing'!Z39+'Calc - usage new'!Z39 -> 47039.92352 | Z39: ='Calc - usage existing'!AA39+'Calc - usage new'!AA39 -> 47412.06692 | AA39: ='Calc - usage existing'!AB39+'Calc - usage new'!AB39 -> 47676.18257
A40: 2 | B40: 1 | C40: 8 | D40: 2 | E40: 1 | G40: Off Peak 0.2 - 1.4 | H40: 231685.87 | I40: 226489.3282 | J40: 229943.2831 | K40: 252063.301 | L40: 227684.9166 | M40: 252098.491 | N40: 254161.6929 | O40: 240879.639 | P40: 249784.126 | Q40: 252277.447 | R40: 254007.034 | S40: 238940.624 | T40: 249948.928 | U40: 250659.613 | V40: ='Calc - usage existing'!W40+'Calc - usage new'!W40 -> 246482.1399 | W40: ='Calc - usage existing'!X40+'Calc - usage new'!X40 -> 245263.9025 | X40: ='Calc - usage existing'!Y40+'Calc - usage new'!Y40 -> 247269.9994 | Y40: ='Calc - usage existing'!Z40+'Calc - usage new'!Z40 -> 244601.6992 | Z40: ='Calc - usage existing'!AA40+'Calc - usage new'!AA40 -> 246115.4241 | AA40: ='Calc - usage existing'!AB40+'Calc - usage new'!AB40 -> 247116.8889
A41: 2 | B41: 1 | C41: 9 | D41: 2 | E41: 1 | G41: Off Peak > 1.4 | H41: 429473.6186 | I41: 434350.7851 | J41: 406314.5616 | K41: 456888.0302 | L41: 402027.7813 | M41: 470790.737 | N41: 476694.5491 | O41: 465876.649 | P41: 475304.646 | Q41: 455966.568 | R41: 444929.307 | S41: 422991.621 | T41: 451721.278 | U41: 468987.087 | V41: ='Calc - usage existing'!W41+'Calc - usage new'!W41 -> 462444.5779 | W41: ='Calc - usage existing'!X41+'Calc - usage new'!X41 -> 462783.7514 | X41: ='Calc - usage existing'!Y41+'Calc - usage new'!Y41 -> 469161.534 | Y41: ='Calc - usage existing'!Z41+'Calc - usage new'!Z41 -> 466821.3507 | Z41: ='Calc - usage existing'!AA41+'Calc - usage new'!AA41 -> 472329.2118 | AA41: ='Calc - usage existing'!AB41+'Calc - usage new'!AB41 -> 477167.8806
F42: Tariff D - SP AusNet
A43: 0 | B43: 2 | C43: 1 | D43: 0 | E43: 1 | G43: 0 - 10 | H43: 2451.644167 | I43: 2459.331667 | J43: 2439.71 | K43: 2345.95 | L43: 2389.17 | M43: 2349.59 | N43: 2213.95 | O43: 2150.24 | P43: 1957.142928 | Q43: 2003.92685 | R43: 1686.768262 | S43: 496.43 | T43: 1841.597869 | U43: 1743.255523 | V43: ='Calc - usage existing'!W43+'Calc - usage new'!W43 -> 1721.153246 | W43: ='Calc - usage existing'!X43+'Calc - usage new'!X43 -> 1698.086227 | X43: ='Calc - usage existing'!Y43+'Calc - usage new'!Y43 -> 1655.253858 | Y43: ='Calc - usage existing'!Z43+'Calc - usage new'!Z43 -> 1622.431658 | Z43: ='Calc - usage existing'!AA43+'Calc - usage new'!AA43 -> 1626.518874 | AA43: ='Calc - usage existing'!AB43+'Calc - usage new'!AB43 -> 1612.402873
A44: 0 | B44: 2 | C44: 2 | D44: 0 | E44: 1 | G44: 10 - 50 | H44: 3299.9075 | I44: 3282.395 | J44: 3074.76 | K44: 2941.23 | L44: 2936.51 | M44: 2959.39 | N44: 2884.55 | O44: 2819.49 | P44: 2566.29256 | Q44: 2419.446143 | R44: 2125.224184 | S44: 1809.64 | T44: 2224.075394 | U44: 2114.88789 | V44: ='Calc - usage existing'!W44+'Calc - usage new'!W44 -> 2078.615884 | W44: ='Calc - usage existing'!X44+'Calc - usage new'!X44 -> 2050.758126 | X44: ='Calc - usage existing'!Y44+'Calc - usage new'!Y44 -> 1999.029994 | Y44: ='Calc - usage existing'!Z44+'Calc - usage new'!Z44 -> 1959.391021 | Z44: ='Calc - usage existing'!AA44+'Calc - usage new'!AA44 -> 1964.327103 | AA44: ='Calc - usage existing'!AB44+'Calc - usage new'!AB44 -> 1947.279379
A45: 0 | B45: 2 | C45: 3 | D45: 0 | E45: 1 | G45: > 50 | H45: 5099.033333 | I45: 5089.7875 | J45: 4666.477 | K45: 4707.86 | L45: 4732.91 | M45: 4873.65 | N45: 4972.46 | O45: 4933.21 | P45: 4490.195078 | Q45: 5085.766123 | R45: 4272.35535 | S45: 5292.13 | T45: 3825.904824 | U45: 3914.657093 | V45: ='Calc - usage existing'!W45+'Calc - usage new'!W45 -> 3575.682083 | W45: ='Calc - usage existing'!X45+'Calc - usage new'!X45 -> 3527.760536 | X45: ='Calc - usage existing'!Y45+'Calc - usage new'!Y45 -> 3438.776633 | Y45: ='Calc - usage existing'!Z45+'Calc - usage new'!Z45 -> 3370.588775 | Z45: ='Calc - usage existing'!AA45+'Calc - usage new'!AA45 -> 3379.079934 | AA45: ='Calc - usage existing'!AB45+'Calc - usage new'!AB45 -> 3349.754054
F46: Tariff M - SP AusNet Central
A47: 0 | B47: 3 | C47: 1 | D47: 1 | E47: 1 | G47: 0 - 10 | H47: 125.5781992 | I47: 10 | J47: 0.001 | K47: 0.0001 | L47: 1e-10 | M47: 1e-05 | N47: 1e-05 | O47: 48.2 | P47: 43.87151626 | Q47: 66.54575957 | R47: 52.59431441 | S47: 70.77 | T47: 96.87264838 | U47: 109.470535 | V47: ='Calc - usage existing'!W47+'Calc - usage new'!W47 -> 90.53696029 | W47: ='Calc - usage existing'!X47+'Calc - usage new'!X47 -> 89.32357749 | X47: ='Calc - usage existing'!Y47+'Calc - usage new'!Y47 -> 87.07048788 | Y47: ='Calc - usage existing'!Z47+'Calc - usage new'!Z47 -> 85.34395815 | Z47: ='Calc - usage existing'!AA47+'Calc - usage new'!AA47 -> 85.55895595 | AA47: ='Calc - usage existing'!AB47+'Calc - usage new'!AB47 -> 84.81641902
A48: 0 | B48: 3 | C48: 2 | D48: 1 | E48: 1 | G48: 10 - 50 | H48: 2.007978571 | I48: 1 | J48: 0.001 | K48: 0.0001 | L48: 1e-10 | M48: 1e-05 | N48: 1e-05 | O48: 47.19 | P48: 42.95221686 | Q48: 54.47665715 | R48: 64.69540581 | S48: 34.84 | T48: 46.5645919 | U48: 41.34279466 | V48: ='Calc - usage existing'!W48+'Calc - usage new'!W48 -> 43.51916333 | W48: ='Calc - usage existing'!X48+'Calc - usage new'!X48 -> 42.9359164 | X48: ='Calc - usage existing'!Y48+'Calc - usage new'!Y48 -> 41.85290484 | Y48: ='Calc - usage existing'!Z48+'Calc - usage new'!Z48 -> 41.02299926 | Z48: ='Calc - usage existing'!AA48+'Calc - usage new'!AA48 -> 41.12634406 | AA48: ='Calc - usage existing'!AB48+'Calc - usage new'!AB48 -> 40.76942257
A49: 0 | B49: 3 | C49: 3 | D49: 1 | E49: 1 | G49: > 50 | H49: 1 | I49: 1 | J49: 0.001 | K49: 0.0001 | L49: 1e-10 | M49: 1e-05 | N49: 1e-05 | O49: 47.44 | P49: 43.17976622 | Q49: 54.39113649 | R49: 74.29406651 | S49: 0 | T49: 0 | U49: 0 | V49: ='Calc - usage existing'!W49+'Calc - usage new'!W49 -> 0 | W49: ='Calc - usage existing'!X49+'Calc - usage new'!X49 -> 0 | X49: ='Calc - usage existing'!Y49+'Calc - usage new'!Y49 -> 0 | Y49: ='Calc - usage existing'!Z49+'Calc - usage new'!Z49 -> 0 | Z49: ='Calc - usage existing'!AA49+'Calc - usage new'!AA49 -> 0 | AA49: ='Calc - usage existing'!AB49+'Calc - usage new'!AB49 -> 0
F50: Tariff M - SP AusNet West
A51: 0 | B51: 3 | C51: 1 | D51: 2 | E51: 1 | G51: 0 - 10 | H51: 55.4226088 | I51: 8.3 | J51: 9.88 | K51: 10 | L51: 10 | M51: 10 | N51: 77.51 | O51: 20 | P51: 18.20394866 | Q51: 21.38016372 | R51: 14.42323171 | S51: 7.67 | T51: 18.67064631 | U51: 17.4001661 | V51: ='Calc - usage existing'!W51+'Calc - usage new'!W51 -> 17.44954424 | W51: ='Calc - usage existing'!X51+'Calc - usage new'!X51 -> 17.2156842 | X51: ='Calc - usage existing'!Y51+'Calc - usage new'!Y51 -> 16.78143739 | Y51: ='Calc - usage existing'!Z51+'Calc - usage new'!Z51 -> 16.44867653 | Z51: ='Calc - usage existing'!AA51+'Calc - usage new'!AA51 -> 16.4901139 | AA51: ='Calc - usage existing'!AB51+'Calc - usage new'!AB51 -> 16.34700183
A52: 0 | B52: 3 | C52: 2 | D52: 2 | E52: 1 | G52: 10 - 50 | H52: 0.26912 | I52: 1 | J52: 0.001 | K52: 0.27 | L52: 5.39 | M52: 4.6 | N52: 99.14 | O52: 18.84 | P52: 17.14811964 | Q52: 27.82628308 | R52: 17.99298155 | S52: 45.25 | T52: 25.17736655 | U52: 21.39350422 | V52: ='Calc - usage existing'!W52+'Calc - usage new'!W52 -> 23.53071041 | W52: ='Calc - usage existing'!X52+'Calc - usage new'!X52 -> 23.21535015 | X52: ='Calc - usage existing'!Y52+'Calc - usage new'!Y52 -> 22.62976832 | Y52: ='Calc - usage existing'!Z52+'Calc - usage new'!Z52 -> 22.18104029 | Z52: ='Calc - usage existing'!AA52+'Calc - usage new'!AA52 -> 22.23691859 | AA52: ='Calc - usage existing'!AB52+'Calc - usage new'!AB52 -> 22.04393197
A53: 0 | B53: 3 | C53: 3 | D53: 2 | E53: 1 | G53: > 50 | H53: 1 | I53: 1 | J53: 0.001 | K53: 0.0001 | L53: 1e-10 | M53: 1e-05 | N53: 124.17 | O53: 1e-05 | P53: 9.101974329e-06 | Q53: 0 | R53: 0 | S53: 0 | T53: 0 | U53: 0 | V53: ='Calc - usage existing'!W53+'Calc - usage new'!W53 -> 0 | W53: ='Calc - usage existing'!X53+'Calc - usage new'!X53 -> 0 | X53: ='Calc - usage existing'!Y53+'Calc - usage new'!Y53 -> 0 | Y53: ='Calc - usage existing'!Z53+'Calc - usage new'!Z53 -> 0 | Z53: ='Calc - usage existing'!AA53+'Calc - usage new'!AA53 -> 0 | AA53: ='Calc - usage existing'!AB53+'Calc - usage new'!AB53 -> 0
F54: Tariff V - SP AusNet Central - New Town Domestic
A55: 1 | B55: 1 | C55: 1 | D55: 1 | E55: 2 | G55: Fixed Charge | K55: 97.44565301 | L55: 98.74900082 | M55: 276.1907918 | N55: 658.3492411 | O55: 816.3015164 | P55: 1009.03183 | Q55: 1138.656905 | R55: 1256.687582 | S55: 1369.283354 | T55: 1457.484569 | U55: 1552.064919 | V55: ='Outputs - customer numbers'!S6 -> 1649.064919 | W55: ='Outputs - customer numbers'!T6 -> 2059.413075 | X55: ='Outputs - customer numbers'!U6 -> 2378.438456 | Y55: ='Outputs - customer numbers'!V6 -> 2629.16662 | Z55: ='Outputs - customer numbers'!W6 -> 2828.870116 | AA55: ='Outputs - customer numbers'!X6 -> 2988.954057
A56: 1 | B56: 1 | C56: 2 | D56: 1 | E56: 2 | G56: Peak 0 - 0.1 | K56: 638.2725834 | L56: 952.5062574 | M56: 2921.021 | N56: 5307.430794 | O56: 7109.2 | P56: 8190.148 | Q56: 9762.5 | R56: 10453.88 | S56: 10406.509 | T56: 12478.412 | U56: 13587.329 | V56: ='Calc - usage existing'!W56+'Calc - usage new'!W56 -> 15815.38265 | W56: ='Calc - usage existing'!X56+'Calc - usage new'!X56 -> 18509.55286 | X56: ='Calc - usage existing'!Y56+'Calc - usage new'!Y56 -> 20587.35197 | Y56: ='Calc - usage existing'!Z56+'Calc - usage new'!Z56 -> 22090.91907 | Z56: ='Calc - usage existing'!AA56+'Calc - usage new'!AA56 -> 23294.92818 | AA56: ='Calc - usage existing'!AB56+'Calc - usage new'!AB56 -> 23724.38834
A57: 1 | B57: 1 | C57: 3 | D57: 1 | E57: 2 | G57: Peak 0.1 - 0.2 | K57: 422.1784369 | L57: 574.3390899 | M57: 1411.765 | N57: 3031.322621 | O57: 4397.618 | P57: 4902.017 | Q57: 6075.409 | R57: 6061.792 | S57: 6604.38 | T57: 7954.022 | U57: 8910.377 | V57: ='Calc - usage existing'!W57+'Calc - usage new'!W57 -> 10264.75185 | W57: ='Calc - usage existing'!X57+'Calc - usage new'!X57 -> 12002.45634 | X57: ='Calc - usage existing'!Y57+'Calc - usage new'!Y57 -> 13331.28335 | Y57: ='Calc - usage existing'!Z57+'Calc - usage new'!Z57 -> 14280.17823 | Z57: ='Calc - usage existing'!AA57+'Calc - usage new'!AA57 -> 15030.66371 | AA57: ='Calc - usage existing'!AB57+'Calc - usage new'!AB57 -> 15276.11097
A58: 1 | B58: 1 | C58: 4 | D58: 1 | E58: 2 | G58: Peak 0.2 - 1.4 | K58: 403.6039071 | L58: 534.392373 | M58: 2198.74 | N58: 3866.390792 | O58: 6303.018 | P58: 5988.268 | Q58: 7866.403 | R58: 6827.528 | S58: 9458.928 | T58: 11246.334 | U58: 10915.785 | V58: ='Calc - usage existing'!W58+'Calc - usage new'!W58 -> 12104.65455 | W58: ='Calc - usage existing'!X58+'Calc - usage new'!X58 -> 13944.33025 | X58: ='Calc - usage existing'!Y58+'Calc - usage new'!Y58 -> 15375.36474 | Y58: ='Calc - usage existing'!Z58+'Calc - usage new'!Z58 -> 16413.30925 | Z58: ='Calc - usage existing'!AA58+'Calc - usage new'!AA58 -> 17256.56878 | AA58: ='Calc - usage existing'!AB58+'Calc - usage new'!AB58 -> 17572.73806
A59: 1 | B59: 1 | C59: 5 | D59: 1 | E59: 2 | G59: Peak > 1.4 | K59: 3.234942532 | L59: 0 | M59: 271.349 | N59: 366.3243811 | O59: 491.178 | P59: 491.344 | Q59: 462.878 | R59: 370.371 | S59: 275.099 | T59: 507.286 | U59: 554.064 | V59: ='Calc - usage existing'!W59+'Calc - usage new'!W59 -> 670.396635 | W59: ='Calc - usage existing'!X59+'Calc - usage new'!X59 -> 824.5089673 | X59: ='Calc - usage existing'!Y59+'Calc - usage new'!Y59 -> 948.9445623 | Y59: ='Calc - usage existing'!Z59+'Calc - usage new'!Z59 -> 1045.924341 | Z59: ='Calc - usage existing'!AA59+'Calc - usage new'!AA59 -> 1128.1081 | AA59: ='Calc - usage existing'!AB59+'Calc - usage new'!AB59 -> 1168.801197
A60: 1 | B60: 1 | C60: 6 | D60: 1 | E60: 2 | G60: Off Peak 0 - 0.1 | K60: 935.4153263 | L60: 587.1236325 | M60: 2686.988 | N60: 5887.466206 | O60: 7101.238 | P60: 9358.573 | Q60: 10720.748 | R60: 12418.352 | S60: 13522.201 | T60: 14927.917 | U60: 15155.341 | V60: ='Calc - usage existing'!W60+'Calc - usage new'!W60 -> 17131.23479 | W60: ='Calc - usage existing'!X60+'Calc - usage new'!X60 -> 19560.14856 | X60: ='Calc - usage existing'!Y60+'Calc - usage new'!Y60 -> 21384.62417 | Y60: ='Calc - usage existing'!Z60+'Calc - usage new'!Z60 -> 22638.03363 | Z60: ='Calc - usage existing'!AA60+'Calc - usage new'!AA60 -> 23602.86802 | AA60: ='Calc - usage existing'!AB60+'Calc - usage new'!AB60 -> 23837.15339
A61: 1 | B61: 1 | C61: 7 | D61: 1 | E61: 2 | G61: Off Peak 0.1 - 0.2 | K61: 217.7448347 | L61: 94.32440066 | M61: 707.352 | N61: 1829.957379 | O61: 1524.446 | P61: 1982.584 | Q61: 2230.518 | R61: 2438.413 | S61: 2015.692 | T61: 2828.561 | U61: 2850.952 | V61: ='Calc - usage existing'!W61+'Calc - usage new'!W61 -> 3016.748899 | W61: ='Calc - usage existing'!X61+'Calc - usage new'!X61 -> 3397.710026 | X61: ='Calc - usage existing'!Y61+'Calc - usage new'!Y61 -> 3669.290696 | Y61: ='Calc - usage existing'!Z61+'Calc - usage new'!Z61 -> 3837.275162 | Z61: ='Calc - usage existing'!AA61+'Calc - usage new'!AA61 -> 3953.857973 | AA61: ='Calc - usage existing'!AB61+'Calc - usage new'!AB61 -> 3947.23432
A62: 1 | B62: 1 | C62: 8 | D62: 1 | E62: 2 | G62: Off Peak 0.2 - 1.4 | K62: 101.079236 | L62: 107.5477001 | M62: 798.555 | N62: 2058.091208 | O62: 1451.91 | P62: 1758.561 | Q62: 1667.468 | R62: 1612.686 | S62: 1330.43 | T62: 2117.762 | U62: 1596.33 | V62: ='Calc - usage existing'!W62+'Calc - usage new'!W62 -> 1637.113652 | W62: ='Calc - usage existing'!X62+'Calc - usage new'!X62 -> 1841.286641 | X62: ='Calc - usage existing'!Y62+'Calc - usage new'!Y62 -> 1987.613729 | Y62: ='Calc - usage existing'!Z62+'Calc - usage new'!Z62 -> 2078.500748 | Z62: ='Calc - usage existing'!AA62+'Calc - usage new'!AA62 -> 2142.425569 | AA62: ='Calc - usage existing'!AB62+'Calc - usage new'!AB62 -> 2140.507413
A63: 1 | B63: 1 | C63: 9 | D63: 1 | E63: 2 | G63: Off Peak > 1.4 | K63: 3.798958984 | L63: 0 | M63: 283.719 | N63: 367.6256189 | O63: 389.191 | P63: 480.373 | Q63: 572.688 | R63: 476.537 | S63: 490.31 | T63: 404.586 | U63: 356.108 | V63: ='Calc - usage existing'!W63+'Calc - usage new'!W63 -> 430.4157282 | W63: ='Calc - usage existing'!X63+'Calc - usage new'!X63 -> 534.5690301 | X63: ='Calc - usage existing'!Y63+'Calc - usage new'!Y63 -> 616.7047559 | Y63: ='Calc - usage existing'!Z63+'Calc - usage new'!Z63 -> 678.9046377 | Z63: ='Calc - usage existing'!AA63+'Calc - usage new'!AA63 -> 730.1091692 | AA63: ='Calc - usage existing'!AB63+'Calc - usage new'!AB63 -> 752.5119909
F64: Tariff V - SP AusNet Central - New Town Commercial
A65: 2 | B65: 1 | C65: 1 | D65: 1 | E65: 2 | G65: Fixed Charge | K65: 3.619041302 | L65: 1.963685912 | M65: 2.796189327 | N65: 5.237795883 | O65: 8.045570693 | P65: 9.235984861 | Q65: 10.56397996 | R65: 10.52736883 | S65: 12.69601454 | T65: 12.47364168 | U65: 13.35614014 | V65: ='Outputs - customer numbers'!S7 -> 15.35614014 | W65: ='Outputs - customer numbers'!T7 -> 19.82461519 | X65: ='Outputs - customer numbers'!U7 -> 23.22282236 | Y65: ='Outputs - customer numbers'!V7 -> 25.81914334 | Z65: ='Outputs - customer numbers'!W7 -> 27.81487862 | AA65: ='Outputs - customer numbers'!X7 -> 29.3558289
A66: 2 | B66: 1 | C66: 2 | D66: 1 | E66: 2 | G66: Peak 0 - 0.1 | K66: 18.54364374 | L66: 286.8534843 | M66: 41.891 | N66: 59.84117039 | O66: 96.594 | P66: 106.538 | Q66: 111.13 | R66: 103.315 | S66: 116.612 | T66: 126.703 | U66: 148.838 | V66: ='Calc - usage existing'!W66+'Calc - usage new'!W66 -> 194.3500369 | W66: ='Calc - usage existing'!X66+'Calc - usage new'!X66 -> 235.5310804 | X66: ='Calc - usage existing'!Y66+'Calc - usage new'!Y66 -> 268.7104216 | Y66: ='Calc - usage existing'!Z66+'Calc - usage new'!Z66 -> 288.3654236 | Z66: ='Calc - usage existing'!AA66+'Calc - usage new'!AA66 -> 306.7637279 | AA66: ='Calc - usage existing'!AB66+'Calc - usage new'!AB66 -> 314.1597463
A67: 2 | B67: 1 | C67: 3 | D67: 1 | E67: 2 | G67: Peak 0.1 - 0.2 | K67: 30.42832944 | L67: 827.2294283 | M67: 26.328 | N67: 44.85226071 | O67: 79.981 | P67: 93.738 | Q67: 82.853 | R67: 83.344 | S67: 91.151 | T67: 105.486 | U67: 117.64 | V67: ='Calc - usage existing'!W67+'Calc - usage new'!W67 -> 155.086357 | W67: ='Calc - usage existing'!X67+'Calc - usage new'!X67 -> 189.5542692 | X67: ='Calc - usage existing'!Y67+'Calc - usage new'!Y67 -> 217.8439816 | Y67: ='Calc - usage existing'!Z67+'Calc - usage new'!Z67 -> 235.4754821 | Z67: ='Calc - usage existing'!AA67+'Calc - usage new'!AA67 -> 252.1722781 | AA67: ='Calc - usage existing'!AB67+'Calc - usage new'!AB67 -> 259.8955999
A68: 2 | B68: 1 | C68: 4 | D68: 1 | E68: 2 | G68: Peak 0.2 - 1.4 | K68: 165.8601232 | L68: 543.149238 | M68: 85.449 | N68: 191.6809789 | O68: 325.021 | P68: 566.609 | Q68: 453.025 | R68: 484.695 | S68: 563.713 | T68: 546.282 | U68: 650.522 | V68: ='Calc - usage existing'!W68+'Calc - usage new'!W68 -> 867.1796179 | W68: ='Calc - usage existing'!X68+'Calc - usage new'!X68 -> 1067.334071 | X68: ='Calc - usage existing'!Y68+'Calc - usage new'!Y68 -> 1229.962947 | Y68: ='Calc - usage existing'!Z68+'Calc - usage new'!Z68 -> 1330.190126 | Z68: ='Calc - usage existing'!AA68+'Calc - usage new'!AA68 -> 1424.004626 | AA68: ='Calc - usage existing'!AB68+'Calc - usage new'!AB68 -> 1465.321385
A69: 2 | B69: 1 | C69: 5 | D69: 1 | E69: 2 | G69: Peak > 1.4 | K69: 1089.267638 | L69: 0 | M69: 16.515 | N69: 451.0277 | O69: 447.956 | P69: 861.022 | Q69: 412.908 | R69: 514.507 | S69: 472.929 | T69: 584.215 | U69: 499.307 | V69: ='Calc - usage existing'!W69+'Calc - usage new'!W69 -> 601.2562469 | W69: ='Calc - usage existing'!X69+'Calc - usage new'!X69 -> 699.5384252 | X69: ='Calc - usage existing'!Y69+'Calc - usage new'!Y69 -> 782.1692736 | Y69: ='Calc - usage existing'!Z69+'Calc - usage new'!Z69 -> 831.1162072 | Z69: ='Calc - usage existing'!AA69+'Calc - usage new'!AA69 -> 880.1318752 | AA69: ='Calc - usage existing'!AB69+'Calc - usage new'!AB69 -> 903.2681933
A70: 2 | B70: 1 | C70: 6 | D70: 1 | E70: 2 | G70: Off Peak 0 - 0.1 | K70: 132.1266723 | L70: 497.1217292 | M70: 37.455 | N70: 79.49582961 | O70: 126.968 | P70: 168.172 | Q70: 174.337 | R70: 159.15 | S70: 166.394 | T70: 194.195 | U70: 217.803 | V70: ='Calc - usage existing'!W70+'Calc - usage new'!W70 -> 287.5006824 | W70: ='Calc - usage existing'!X70+'Calc - usage new'!X70 -> 350.5066495 | X70: ='Calc - usage existing'!Y70+'Calc - usage new'!Y70 -> 400.9221232 | Y70: ='Calc - usage existing'!Z70+'Calc - usage new'!Z70 -> 430.6393837 | Z70: ='Calc - usage existing'!AA70+'Calc - usage new'!AA70 -> 458.1861109 | AA70: ='Calc - usage existing'!AB70+'Calc - usage new'!AB70 -> 468.8468681
A71: 2 | B71: 1 | C71: 7 | D71: 1 | E71: 2 | G71: Off Peak 0.1 - 0.2 | K71: 72.68773573 | L71: 99.72869315 | M71: 23.692 | N71: 68.97873929 | O71: 110.136 | P71: 146.273 | Q71: 141.655 | R71: 104.12 | S71: 125.374 | T71: 151.151 | U71: 162.907 | V71: ='Calc - usage existing'!W71+'Calc - usage new'!W71 -> 219.1495667 | W71: ='Calc - usage existing'!X71+'Calc - usage new'!X71 -> 271.5097616 | X71: ='Calc - usage existing'!Y71+'Calc - usage new'!Y71 -> 314.4059558 | Y71: ='Calc - usage existing'!Z71+'Calc - usage new'!Z71 -> 341.5024879 | Z71: ='Calc - usage existing'!AA71+'Calc - usage new'!AA71 -> 366.9705771 | AA71: ='Calc - usage existing'!AB71+'Calc - usage new'!AB71 -> 378.8732087
A72: 2 | B72: 1 | C72: 8 | D72: 1 | E72: 2 | G72: Off Peak 0.2 - 1.4 | K72: 693.6598558 | L72: 54.3149238 | M72: 29.685 | N72: 399.7000211 | O72: 592.174 | P72: 874.947 | Q72: 863.808 | R72: 956.981 | S72: 1021.647 | T72: 906.593 | U72: 1133.091 | V72: ='Calc - usage existing'!W72+'Calc - usage new'!W72 -> 1484.078583 | W72: ='Calc - usage existing'!X72+'Calc - usage new'!X72 -> 1809.40591 | X72: ='Calc - usage existing'!Y72+'Calc - usage new'!Y72 -> 2076.093192 | Y72: ='Calc - usage existing'!Z72+'Calc - usage new'!Z72 -> 2241.137931 | Z72: ='Calc - usage existing'!AA72+'Calc - usage new'!AA72 -> 2397.545652 | AA72: ='Calc - usage existing'!AB72+'Calc - usage new'!AB72 -> 2468.987799
A73: 2 | B73: 1 | C73: 9 | D73: 1 | E73: 2 | G73: Off Peak > 1.4 | K73: 999.6158231 | L73: 0 | M73: 1e-05 | N73: 882.1203 | O73: 699.753 | P73: 702.726 | Q73: 716.204 | R73: 854.07 | S73: 866.184 | T73: 854.535 | U73: 919.836 | V73: ='Calc - usage existing'!W73+'Calc - usage new'!W73 -> 1107.899053 | W73: ='Calc - usage existing'!X73+'Calc - usage new'!X73 -> 1290.906869 | X73: ='Calc - usage existing'!Y73+'Calc - usage new'!Y73 -> 1447.895779 | Y73: ='Calc - usage existing'!Z73+'Calc - usage new'!Z73 -> 1545.306508 | Z73: ='Calc - usage existing'!AA73+'Calc - usage new'!AA73 -> 1643.906442 | AA73: ='Calc - usage existing'!AB73+'Calc - usage new'!AB73 -> 1695.83945
F74: Tariff V - SP AusNet West - New Town Domestic
A75: 1 | B75: 1 | C75: 1 | D75: 2 | E75: 2 | G75: Fixed Charge | K75: 2436.717133 | L75: 1300.075579 | M75: 3195.716254 | N75: 4886.449397 | O75: 5952.506729 | P75: 6810.493483 | Q75: 7504.03955 | R75: 8149.165738 | S75: 8753.749505 | T75: 9226.352451 | U75: 9648.745681 | V75: ='Outputs - customer numbers'!S8 -> 10159.74568 | W75: ='Outputs - customer numbers'!T8 -> 10706.13246 | X75: ='Outputs - customer numbers'!U8 -> 11179.50947 | Y75: ='Outputs - customer numbers'!V8 -> 11599.13377 | Z75: ='Outputs - customer numbers'!W8 -> 11979.46836 | AA75: ='Outputs - customer numbers'!X8 -> 12171.27453
A76: 1 | B76: 1 | C76: 2 | D76: 2 | E76: 2 | G76: Peak 0 - 0.1 | K76: 16017.66386 | L76: 14445.17691 | M76: 35707.31 | N76: 51020.89936 | O76: 61345.892 | P76: 69749.704 | Q76: 77856.79 | R76: 83331.652 | S76: 82775.481 | T76: 94585.883 | U76: 100144.721 | V76: ='Calc - usage existing'!W76+'Calc - usage new'!W76 -> 106492.7549 | W76: ='Calc - usage existing'!X76+'Calc - usage new'!X76 -> 110291.2836 | X76: ='Calc - usage existing'!Y76+'Calc - usage new'!Y76 -> 113705.2845 | Y76: ='Calc - usage existing'!Z76+'Calc - usage new'!Z76 -> 116182.774 | Z76: ='Calc - usage existing'!AA76+'Calc - usage new'!AA76 -> 117949.1389 | AA76: ='Calc - usage existing'!AB76+'Calc - usage new'!AB76 -> 117939.7006
A77: 1 | B77: 1 | C77: 3 | D77: 2 | E77: 2 | G77: Peak 0.1 - 0.2 | K77: 12403.6866 | L77: 13352.14223 | M77: 26980.501 | N77: 37450.01476 | O77: 48630.12 | P77: 51161.069 | Q77: 60681.174 | R77: 61676.008 | S77: 66269.026 | T77: 74089.236 | U77: 79906.959 | V77: ='Calc - usage existing'!W77+'Calc - usage new'!W77 -> 84061.99694 | W77: ='Calc - usage existing'!X77+'Calc - usage new'!X77 -> 86926.42084 | X77: ='Calc - usage existing'!Y77+'Calc - usage new'!Y77 -> 89469.82652 | Y77: ='Calc - usage existing'!Z77+'Calc - usage new'!Z77 -> 91253.09963 | Z77: ='Calc - usage existing'!AA77+'Calc - usage new'!AA77 -> 92463.10348 | AA77: ='Calc - usage existing'!AB77+'Calc - usage new'!AB77 -> 92260.14243
A78: 1 | B78: 1 | C78: 4 | D78: 2 | E78: 2 | G78: Peak 0.2 - 1.4 | K78: 22579.58777 | L78: 13507.88386 | M78: 50875.939 | N78: 63526.75417 | O78: 102069.051 | P78: 88668.931 | Q78: 119886.213 | R78: 101604.206 | S78: 130037.246 | T78: 152606.028 | U78: 152189.469 | V78: ='Calc - usage existing'!W78+'Calc - usage new'!W78 -> 156066.0403 | W78: ='Calc - usage existing'!X78+'Calc - usage new'!X78 -> 161187.5875 | X78: ='Calc - usage existing'!Y78+'Calc - usage new'!Y78 -> 165875.4035 | Y78: ='Calc - usage existing'!Z78+'Calc - usage new'!Z78 -> 169268.9312 | Z78: ='Calc - usage existing'!AA78+'Calc - usage new'!AA78 -> 171804.409 | AA78: ='Calc - usage existing'!AB78+'Calc - usage new'!AB78 -> 171994.3529
A79: 1 | B79: 1 | C79: 5 | D79: 2 | E79: 2 | G79: Peak > 1.4 | K79: 65.89617511 | L79: 1507.647426 | M79: 450.062 | N79: 395.6378513 | O79: 625.073 | P79: 840.2 | Q79: 2146.685 | R79: 1735.77 | S79: 758.458 | T79: 981.57 | U79: 1343.169 | V79: ='Calc - usage existing'!W79+'Calc - usage new'!W79 -> 1448.576482 | W79: ='Calc - usage existing'!X79+'Calc - usage new'!X79 -> 1536.807421 | X79: ='Calc - usage existing'!Y79+'Calc - usage new'!Y79 -> 1619.522627 | Y79: ='Calc - usage existing'!Z79+'Calc - usage new'!Z79 -> 1689.273328 | Z79: ='Calc - usage existing'!AA79+'Calc - usage new'!AA79 -> 1746.508352 | AA79: ='Calc - usage existing'!AB79+'Calc - usage new'!AB79 -> 1772.796446
A80: 1 | B80: 1 | C80: 6 | D80: 2 | E80: 2 | G80: Off Peak 0 - 0.1 | K80: 25499.19142 | L80: 16826.06988 | M80: 41630.234 | N80: 62663.48764 | O80: 72043.165 | P80: 89860.993 | Q80: 99725.275 | R80: 103616.52 | S80: 110300.617 | T80: 119149.482 | U80: 122625.893 | V80: ='Calc - usage existing'!W80+'Calc - usage new'!W80 -> 128131.6577 | W80: ='Calc - usage existing'!X80+'Calc - usage new'!X80 -> 131200.2447 | X80: ='Calc - usage existing'!Y80+'Calc - usage new'!Y80 -> 133860.5129 | Y80: ='Calc - usage existing'!Z80+'Calc - usage new'!Z80 -> 135430.6739 | Z80: ='Calc - usage existing'!AA80+'Calc - usage new'!AA80 -> 136295.3437 | AA80: ='Calc - usage existing'!AB80+'Calc - usage new'!AB80 -> 135319.5879
A81: 1 | B81: 1 | C81: 7 | D81: 2 | E81: 2 | G81: Off Peak 0.1 - 0.2 | K81: 10321.6892 | L81: 3311.413078 | M81: 14061.694 | N81: 24787.09924 | O81: 24729.062 | P81: 32900.902 | Q81: 34448.936 | R81: 35777.656 | S81: 31915.409 | T81: 38462.937 | U81: 40446.843 | V81: ='Calc - usage existing'!W81+'Calc - usage new'!W81 -> 39695.30426 | W81: ='Calc - usage existing'!X81+'Calc - usage new'!X81 -> 40229.87967 | X81: ='Calc - usage existing'!Y81+'Calc - usage new'!Y81 -> 40623.09459 | Y81: ='Calc - usage existing'!Z81+'Calc - usage new'!Z81 -> 40649.93509 | Z81: ='Calc - usage existing'!AA81+'Calc - usage new'!AA81 -> 40463.59004 | AA81: ='Calc - usage existing'!AB81+'Calc - usage new'!AB81 -> 39727.2766
A82: 1 | B82: 1 | C82: 8 | D82: 2 | E82: 2 | G82: Off Peak 0.2 - 1.4 | K82: 7413.143377 | L82: 2546.285338 | M82: 9688.453 | N82: 22717.90783 | O82: 16478.442 | P82: 25433.649 | Q82: 22353.317 | R82: 26110.683 | S82: 14797.219 | T82: 25441.953 | U82: 29769.176 | V82: ='Calc - usage existing'!W82+'Calc - usage new'!W82 -> 28358.11856 | W82: ='Calc - usage existing'!X82+'Calc - usage new'!X82 -> 28747.642 | X82: ='Calc - usage existing'!Y82+'Calc - usage new'!Y82 -> 29042.65025 | Y82: ='Calc - usage existing'!Z82+'Calc - usage new'!Z82 -> 29075.72272 | Z82: ='Calc - usage existing'!AA82+'Calc - usage new'!AA82 -> 28963.97212 | AA82: ='Calc - usage existing'!AB82+'Calc - usage new'!AB82 -> 28464.20819
A83: 1 | B83: 1 | C83: 9 | D83: 2 | E83: 2 | G83: Off Peak > 1.4 | K83: 242.4927157 | L83: 602.6342745 | M83: 718.763 | N83: 161.5501487 | O83: 101.833 | P83: 698.948 | Q83: 1408.739 | R83: 1250.085 | S83: 1035.589 | T83: 540.579 | U83: 888.275 | V83: ='Calc - usage existing'!W83+'Calc - usage new'!W83 -> 947.0842707 | W83: ='Calc - usage existing'!X83+'Calc - usage new'!X83 -> 1003.897835 | X83: ='Calc - usage existing'!Y83+'Calc - usage new'!Y83 -> 1055.751611 | Y83: ='Calc - usage existing'!Z83+'Calc - usage new'!Z83 -> 1097.868306 | Z83: ='Calc - usage existing'!AA83+'Calc - usage new'!AA83 -> 1130.314374 | AA83: ='Calc - usage existing'!AB83+'Calc - usage new'!AB83 -> 1140.544565
F84: Tariff V - SP AusNet West - New Town Commercial
A85: 2 | B85: 1 | C85: 1 | D85: 2 | E85: 2 | G85: Fixed Charge | K85: 126.7496129 | L85: 37.33697111 | M85: 79.29724425 | N85: 106.5221208 | O85: 134.435255 | P85: 167.3750053 | Q85: 187.8400933 | R85: 195.3202202 | S85: 213.8266349 | T85: 230.9914877 | U85: 255.8315586 | V85: ='Outputs - customer numbers'!S9 -> 267.8315586 | W85: ='Outputs - customer numbers'!T9 -> 272.5901409 | X85: ='Outputs - customer numbers'!U9 -> 277.4892548 | Y85: ='Outputs - customer numbers'!V9 -> 281.7533493 | Z85: ='Outputs - customer numbers'!W9 -> 285.5509755 | AA85: ='Outputs - customer numbers'!X9 -> 287.5074535
A86: 2 | B86: 1 | C86: 2 | D86: 2 | E86: 2 | G86: Peak 0 - 0.1 | K86: 507.1253574 | L86: 804.6965999 | M86: 836.204 | N86: 1134.182137 | O86: 1421.996 | P86: 1770.732 | Q86: 1926.789 | R86: 2031.296 | S86: 2131.666 | T86: 2377.799 | U86: 2687.227 | V86: ='Calc - usage existing'!W86+'Calc - usage new'!W86 -> 2796.848961 | W86: ='Calc - usage existing'!X86+'Calc - usage new'!X86 -> 2808.41376 | X86: ='Calc - usage existing'!Y86+'Calc - usage new'!Y86 -> 2853.655669 | Y86: ='Calc - usage existing'!Z86+'Calc - usage new'!Z86 -> 2837.486244 | Z86: ='Calc - usage existing'!AA86+'Calc - usage new'!AA86 -> 2858.517933 | AA86: ='Calc - usage existing'!AB86+'Calc - usage new'!AB86 -> 2859.487634
A87: 2 | B87: 1 | C87: 3 | D87: 2 | E87: 2 | G87: Peak 0.1 - 0.2 | K87: 620.042475 | L87: 503.3654306 | M87: 805.47 | N87: 940.7485428 | O87: 1191.677 | P87: 1473.551 | Q87: 1638.221 | R87: 1707.728 | S87: 1851.653 | T87: 1992.272 | U87: 2314.644 | V87: ='Calc - usage existing'!W87+'Calc - usage new'!W87 -> 2424.160315 | W87: ='Calc - usage existing'!X87+'Calc - usage new'!X87 -> 2449.796485 | X87: ='Calc - usage existing'!Y87+'Calc - usage new'!Y87 -> 2504.930755 | Y87: ='Calc - usage existing'!Z87+'Calc - usage new'!Z87 -> 2507.390619 | Z87: ='Calc - usage existing'!AA87+'Calc - usage new'!AA87 -> 2541.913645 | AA87: ='Calc - usage existing'!AB87+'Calc - usage new'!AB87 -> 2558.559866
A88: 2 | B88: 1 | C88: 4 | D88: 2 | E88: 2 | G88: Peak 0.2 - 1.4 | K88: 3377.781247 | L88: 1659.581249 | M88: 5071.219 | N88: 5757.917108 | O88: 6642.912 | P88: 8581.34 | Q88: 10333.214 | R88: 10160.271 | S88: 11143.052 | T88: 11844.577 | U88: 13204.185 | V88: ='Calc - usage existing'!W88+'Calc - usage new'!W88 -> 13801.97132 | W88: ='Calc - usage existing'!X88+'Calc - usage new'!X88 -> 13930.46121 | X88: ='Calc - usage existing'!Y88+'Calc - usage new'!Y88 -> 14226.02958 | Y88: ='Calc - usage existing'!Z88+'Calc - usage new'!Z88 -> 14216.52604 | Z88: ='Calc - usage existing'!AA88+'Calc - usage new'!AA88 -> 14387.25393 | AA88: ='Calc - usage existing'!AB88+'Calc - usage new'!AB88 -> 14450.32053
A89: 2 | B89: 1 | C89: 5 | D89: 2 | E89: 2 | G89: Peak > 1.4 | K89: 22154.27662 | L89: 9487.736118 | M89: 16550.233 | N89: 16853.49435 | O89: 16669.851 | P89: 22619.941 | Q89: 24104.848 | R89: 23176.143 | S89: 22046.406 | T89: 26506.984 | U89: 28736.973 | V89: ='Calc - usage existing'!W89+'Calc - usage new'!W89 -> 29320.19084 | W89: ='Calc - usage existing'!X89+'Calc - usage new'!X89 -> 29475.54092 | X89: ='Calc - usage existing'!Y89+'Calc - usage new'!Y89 -> 29998.05942 | Y89: ='Calc - usage existing'!Z89+'Calc - usage new'!Z89 -> 29905.1534 | Z89: ='Calc - usage existing'!AA89+'Calc - usage new'!AA89 -> 30237.38318 | AA89: ='Calc - usage existing'!AB89+'Calc - usage new'!AB89 -> 30417.54803
A90: 2 | B90: 1 | C90: 6 | D90: 2 | E90: 2 | G90: Off Peak 0 - 0.1 | K90: 3241.941507 | L90: 843.7311464 | M90: -2003.882 | N90: 1887.045863 | O90: 2133.538 | P90: 2755.405 | Q90: 3105.432 | R90: 3259.627 | S90: 3548.379 | T90: 3794.932 | U90: 4191.743 | V90: ='Calc - usage existing'!W90+'Calc - usage new'!W90 -> 4365.570376 | W90: ='Calc - usage existing'!X90+'Calc - usage new'!X90 -> 4381.401751 | X90: ='Calc - usage existing'!Y90+'Calc - usage new'!Y90 -> 4449.497073 | Y90: ='Calc - usage existing'!Z90+'Calc - usage new'!Z90 -> 4420.681579 | Z90: ='Calc - usage existing'!AA90+'Calc - usage new'!AA90 -> 4449.209827 | AA90: ='Calc - usage existing'!AB90+'Calc - usage new'!AB90 -> 4444.967314
A91: 2 | B91: 1 | C91: 7 | D91: 2 | E91: 2 | G91: Off Peak 0.1 - 0.2 | K91: 1917.287142 | L91: 461.6651707 | M91: 1156.448 | N91: 1460.154457 | O91: 1580.266 | P91: 2086.926 | Q91: 2340.64 | R91: 2428.218 | S91: 2563.858 | T91: 2794.839 | U91: 3005.421 | V91: ='Calc - usage existing'!W91+'Calc - usage new'!W91 -> 3154.564271 | W91: ='Calc - usage existing'!X91+'Calc - usage new'!X91 -> 3195.131288 | X91: ='Calc - usage existing'!Y91+'Calc - usage new'!Y91 -> 3274.074787 | Y91: ='Calc - usage existing'!Z91+'Calc - usage new'!Z91 -> 3283.52856 | Z91: ='Calc - usage existing'!AA91+'Calc - usage new'!AA91 -> 3333.874486 | AA91: ='Calc - usage existing'!AB91+'Calc - usage new'!AB91 -> 3358.90875
A92: 2 | B92: 1 | C92: 8 | D92: 2 | E92: 2 | G92: Off Peak 0.2 - 1.4 | K92: 13841.8686 | L92: 3269.51325 | M92: 7697.644 | N92: 9735.451892 | O92: 10361.796 | P92: 13272.639 | Q92: 14043.984 | R92: 14359.815 | S92: 15662.76 | T92: 16626.371 | U92: 17144.861 | V92: ='Calc - usage existing'!W92+'Calc - usage new'!W92 -> 17883.61369 | W92: ='Calc - usage existing'!X92+'Calc - usage new'!X92 -> 18056.29252 | X92: ='Calc - usage existing'!Y92+'Calc - usage new'!Y92 -> 18447.12243 | Y92: ='Calc - usage existing'!Z92+'Calc - usage new'!Z92 -> 18448.48236 | Z92: ='Calc - usage existing'!AA92+'Calc - usage new'!AA92 -> 18688.07408 | AA92: ='Calc - usage existing'!AB92+'Calc - usage new'!AB92 -> 18797.49986
A93: 2 | B93: 1 | C93: 9 | D93: 2 | E93: 2 | G93: Off Peak > 1.4 | K93: 20234.31614 | L93: 5661.135035 | M93: 15735.225 | N93: 19702.77865 | O93: 19054.088 | P93: 25280.294 | Q93: 25295.556 | R93: 24535.646 | S93: 26134.762 | T93: 26432.652 | U93: 27339.127 | V93: ='Calc - usage existing'!W93+'Calc - usage new'!W93 -> 28050.76281 | W93: ='Calc - usage existing'!X93+'Calc - usage new'!X93 -> 28353.18061 | X93: ='Calc - usage existing'!Y93+'Calc - usage new'!Y93 -> 29008.69121 | Y93: ='Calc - usage existing'!Z93+'Calc - usage new'!Z93 -> 29084.45439 | Z93: ='Calc - usage existing'!AA93+'Calc - usage new'!AA93 -> 29567.48658 | AA93: ='Calc - usage existing'!AB93+'Calc - usage new'!AB93 -> 29908.42446
F94: Tariff D - SP AusNet New Town West & Central
A95: 0 | B95: 2 | C95: 1 | D95: 0 | E95: 2 | G95: 0 - 10 | K95: 9.697373666 | L95: 1e-10 | M95: 1e-05 | N95: 1e-05 | O95: 10 | P95: 9.101974329 | Q95: 19.19479355 | R95: 15.42745277 | S95: 0 | T95: 18.67064631 | U95: 18.15408952 | V95: ='Calc - usage existing'!W95+'Calc - usage new'!W95 -> 17.44954424 | W95: ='Calc - usage existing'!X95+'Calc - usage new'!X95 -> 17.2156842 | X95: ='Calc - usage existing'!Y95+'Calc - usage new'!Y95 -> 16.78143739 | Y95: ='Calc - usage existing'!Z95+'Calc - usage new'!Z95 -> 16.44867653 | Z95: ='Calc - usage existing'!AA95+'Calc - usage new'!AA95 -> 16.4901139 | AA95: ='Calc - usage existing'!AB95+'Calc - usage new'!AB95 -> 16.34700183
A96: 0 | B96: 2 | C96: 2 | D96: 0 | E96: 2 | G96: 10 - 50 | K96: 16.08045969 | L96: 1e-10 | M96: 1e-05 | N96: 1e-05 | O96: 3.57 | P96: 3.249404835 | Q96: 21.78609068 | R96: 17.22475102 | S96: 85.51 | T96: 34.06459419 | U96: 24.43540449 | V96: ='Calc - usage existing'!W96+'Calc - usage new'!W96 -> 31.83669347 | W96: ='Calc - usage existing'!X96+'Calc - usage new'!X96 -> 31.41001583 | X96: ='Calc - usage existing'!Y96+'Calc - usage new'!Y96 -> 30.61773251 | Y96: ='Calc - usage existing'!Z96+'Calc - usage new'!Z96 -> 30.01061032 | Z96: ='Calc - usage existing'!AA96+'Calc - usage new'!AA96 -> 30.0862128 | AA96: ='Calc - usage existing'!AB96+'Calc - usage new'!AB96 -> 29.82510485
A97: 0 | B97: 2 | C97: 3 | D97: 0 | E97: 2 | G97: > 50 | K97: 0.0001 | L97: 1e-10 | M97: 1e-05 | N97: 1e-05 | O97: 1e-05 | P97: 9.101974329e-06 | Q97: 0 | R97: 0 | S97: 0 | T97: 0 | U97: 0 | V97: ='Calc - usage existing'!W97+'Calc - usage new'!W97 -> 0 | W97: ='Calc - usage existing'!X97+'Calc - usage new'!X97 -> 0 | X97: ='Calc - usage existing'!Y97+'Calc - usage new'!Y97 -> 0 | Y97: ='Calc - usage existing'!Z97+'Calc - usage new'!Z97 -> 0 | Z97: ='Calc - usage existing'!AA97+'Calc - usage new'!AA97 -> 0 | AA97: ='Calc - usage existing'!AB97+'Calc - usage new'!AB97 -> 0
F98: Tariff M - SP AusNet New Town Central
A99: 0 | B99: 3 | C99: 1 | D99: 1 | E99: 2 | G99: 0 - 10 | K99: 0.0001 | L99: 1e-10 | M99: 1e-05 | N99: 1e-05 | O99: 1e-05 | P99: 9.101974329e-06 | Q99: 0 | R99: 0 | S99: 0 | T99: 0 | U99: 0 | V99: ='Calc - usage existing'!W99+'Calc - usage new'!W99 -> 0 | W99: ='Calc - usage existing'!X99+'Calc - usage new'!X99 -> 0 | X99: ='Calc - usage existing'!Y99+'Calc - usage new'!Y99 -> 0 | Y99: ='Calc - usage existing'!Z99+'Calc - usage new'!Z99 -> 0 | Z99: ='Calc - usage existing'!AA99+'Calc - usage new'!AA99 -> 0 | AA99: ='Calc - usage existing'!AB99+'Calc - usage new'!AB99 -> 0
A100: 0 | B100: 3 | C100: 2 | D100: 1 | E100: 2 | G100: 10 - 50 | K100: 0.0001 | L100: 1e-10 | M100: 1e-05 | N100: 1e-05 | O100: 1e-05 | P100: 9.101974329e-06 | Q100: 0 | R100: 0 | S100: 0 | T100: 0 | U100: 0 | V100: ='Calc - usage existing'!W100+'Calc - usage new'!W100 -> 0 | W100: ='Calc - usage existing'!X100+'Calc - usage new'!X100 -> 0 | X100: ='Calc - usage existing'!Y100+'Calc - usage new'!Y100 -> 0 | Y100: ='Calc - usage existing'!Z100+'Calc - usage new'!Z100 -> 0 | Z100: ='Calc - usage existing'!AA100+'Calc - usage new'!AA100 -> 0 | AA100: ='Calc - usage existing'!AB100+'Calc - usage new'!AB100 -> 0
A101: 0 | B101: 3 | C101: 3 | D101: 1 | E101: 2 | G101: > 50 | K101: 0.0001 | L101: 1e-10 | M101: 1e-05 | N101: 1e-05 | O101: 1e-05 | P101: 9.101974329e-06 | Q101: 0 | R101: 0 | S101: 0 | T101: 0 | U101: 0 | V101: ='Calc - usage existing'!W101+'Calc - usage new'!W101 -> 0 | W101: ='Calc - usage existing'!X101+'Calc - usage new'!X101 -> 0 | X101: ='Calc - usage existing'!Y101+'Calc - usage new'!Y101 -> 0 | Y101: ='Calc - usage existing'!Z101+'Calc - usage new'!Z101 -> 0 | Z101: ='Calc - usage existing'!AA101+'Calc - usage new'!AA101 -> 0 | AA101: ='Calc - usage existing'!AB101+'Calc - usage new'!AB101 -> 0
F102: Tariff M - SP AusNet New Town West
A103: 0 | B103: 3 | C103: 1 | D103: 2 | E103: 2 | G103: 0 - 10 | K103: 0.0001 | L103: 1e-10 | M103: 1e-05 | N103: 1e-05 | O103: 1e-05 | P103: 9.101974329e-06 | Q103: 0 | R103: 0 | S103: 0 | T103: 0 | U103: 0 | V103: ='Calc - usage existing'!W103+'Calc - usage new'!W103 -> 0 | W103: ='Calc - usage existing'!X103+'Calc - usage new'!X103 -> 0 | X103: ='Calc - usage existing'!Y103+'Calc - usage new'!Y103 -> 0 | Y103: ='Calc - usage existing'!Z103+'Calc - usage new'!Z103 -> 0 | Z103: ='Calc - usage existing'!AA103+'Calc - usage new'!AA103 -> 0 | AA103: ='Calc - usage existing'!AB103+'Calc - usage new'!AB103 -> 0
A104: 0 | B104: 3 | C104: 2 | D104: 2 | E104: 2 | G104: 10 - 50 | K104: 0.0001 | L104: 1e-10 | M104: 1e-05 | N104: 1e-05 | O104: 1e-05 | P104: 9.101974329e-06 | Q104: 0 | R104: 0 | S104: 0 | T104: 0 | U104: 0 | V104: ='Calc - usage existing'!W104+'Calc - usage new'!W104 -> 0 | W104: ='Calc - usage existing'!X104+'Calc - usage new'!X104 -> 0 | X104: ='Calc - usage existing'!Y104+'Calc - usage new'!Y104 -> 0 | Y104: ='Calc - usage existing'!Z104+'Calc - usage new'!Z104 -> 0 | Z104: ='Calc - usage existing'!AA104+'Calc - usage new'!AA104 -> 0 | AA104: ='Calc - usage existing'!AB104+'Calc - usage new'!AB104 -> 0
A105: 0 | B105: 3 | C105: 3 | D105: 2 | E105: 2 | G105: > 50 | K105: 0.0001 | L105: 1e-10 | M105: 1e-05 | N105: 1e-05 | O105: 1e-05 | P105: 9.101974329e-06 | Q105: 0 | R105: 0 | S105: 0 | T105: 0 | U105: 0 | V105: ='Calc - usage existing'!W105+'Calc - usage new'!W105 -> 0 | W105: ='Calc - usage existing'!X105+'Calc - usage new'!X105 -> 0 | X105: ='Calc - usage existing'!Y105+'Calc - usage new'!Y105 -> 0 | Y105: ='Calc - usage existing'!Z105+'Calc - usage new'!Z105 -> 0 | Z105: ='Calc - usage existing'!AA105+'Calc - usage new'!AA105 -> 0 | AA105: ='Calc - usage existing'!AB105+'Calc - usage new'!AB105 -> 0
F107: Total demand
F108: Residential | H108: =SUM(H4:H11,H24:H31,H56:H63,H76:H83) -> 26021684.5 | I108: 26383539.41 | J108: 24349945.05 | K108: 27966246.17 | L108: =SUM(L4:L11,L24:L31,L56:L63,L76:L83) -> 25443774.85 | M108: 28750378.03 | N108: 28624383.9 | O108: 30109071.93 | P108: 28859169.61 | Q108: 30737582.86 | R108: 28894865.37 | S108: 28345467.88 | T108: 32404210.33 | U108: =SUM(U4:U11,U24:U31,U56:U63,U76:U83) -> 31691505.87 | V108: 31666143.94 | W108: 31890256.02 | X108: 32197096.74 | Y108: 32377154.53 | Z108: 32646148.79 | AA108: 32593097.55
F109: Commercial | H109: =SUM(H14:H21,H34:H41,H66:H73,H86:H93) -> 5143658.019 | I109: 5081209.208 | J109: 4848633.346 | K109: 5517225.306 | L109: 5414062.474 | M109: 5813630.389 | N109: 5454818.578 | O109: 5851444.608 | P109: 5853026.014 | Q109: 5956040.54 | R109: 5799752.318 | S109: 5746182.563 | T109: 6216116.249 | U109: =SUM(U14:U21,U34:U41,U66:U73,U86:U93) -> 6130908.792 | V109: 6063382.221 | W109: 6084525.014 | X109: 6186576.925 | Y109: 6172812.31 | Z109: 6263747.278 | AA109: 6322074.504
F110: Tariff D | H110: =SUM(H103:H105,H99:H101,H95:H97,H51:H53,H47:H49,H43:H45) -> 11035.86291 | I110: 10853.81417 | J110: 10190.832 | K110: 10031.08893 | L110: 10073.98 | M110: 10197.23013 | N110: 10371.78012 | O110: 10098.18008 | P110: 9191.337586 | Q110: 9774.74 | R110: 8341 | S110: 7842.24 | T110: 8131.598581 | U110: 8004.997 | V110: 7599.773828 | W110: 7497.921117 | X110: 7308.794253 | Y110: 7163.867414 | Z110: 7181.91457 | AA110: 7119.585188
F112: Total customer numbers
F113: Total residential customer numbers | H113: =SUM(H3,H23,H55,H75) -> 457652.8475 | I113: =SUM(I3,I23,I55,I75) -> 472975.788 | J113: 482507.8261 | K113: 501600.2153 | L113: 512217.118 | M113: 527220.933 | N113: 543801.6014 | O113: 561167.5303 | P113: 578826.537 | Q113: 590919.0767 | R113: 605002.8782 | S113: 621103.8329 | T113: 633936.8998 | U113: 649518.2954 | V113: 664606.6488 | W113: 680251.7257 | X113: 696150.549 | Y113: 712359.2765 | Z113: 728924.0227 | AA113: 744541.2082
F114: Total commercial customer numbers | H114: =SUM(H13,H33,H65,H85) -> 14446.89642 | I114: =SUM(I13,I33,I65,I85) -> 14810.71858 | J114: 14834.81821 | K114: 15230.17914 | L114: 15115.28433 | M114: 15239.18516 | N114: 15404.59531 | O114: 15525.71759 | P114: 15669.90219 | Q114: 15952.33816 | R114: 15718.60611 | S114: 16157.70566 | T114: 16302.97121 | U114: 16460.46673 | V114: 16445.72673 | W114: 16624.43741 | X114: 16807.03616 | Y114: 16993.17573 | Z114: 17183.39166 | AA114: 17362.60796
F116: Per cent change
F117: Residential usage | I117: =I108/H108*100-100 -> 1.390589867 | J117: -7.707814801 | K117: 14.8513728 | L117: -9.019699324 | M117: 12.99572566 | N117: -0.4382347107 | O117: 5.186794739 | P117: -4.151248241 | Q117: 6.508895669 | R117: -5.994998041 | S117: -1.90136717 | T117: 14.31884091 | U117: =U108/T108*100-100 -> -2.199419331 | V117: -0.08002751528 | W117: 0.7077340392 | X117: 0.962177044 | Y117: 0.5592360935 | Z117: 0.8308150207 | AA117: -0.1625038276
F118: Residential customer numbers | I118: =I113/H113*100-100 -> 3.34815802 | J118: 2.015333184 | K118: 3.956907674 | L118: 2.116606489 | M118: 2.929190469 | N118: 3.144918455 | O118: 3.193430998 | P118: 3.146833295 | Q118: 2.089147425 | R118: 2.383372294 | S118: 2.661302161 | T118: 2.066170936 | U118: =U113/T113*100-100 -> 2.457878002 | V118: 2.323006685 | W118: 2.354035572 | X118: 2.337197053 | Y118: 2.328336519 | Z118: 2.32533594 | AA118: 2.142498394
F119: Commercial usage | I119: =I109/H109*100-100 -> -1.214093385 | J119: -4.577175473 | K119: 13.78928684 | L119: -1.869831767 | M119: 7.380186623 | N119: -6.171906141 | O119: 7.271113133 | P119: 0.02702590738 | Q119: 1.760021667 | R119: -2.624028849 | S119: -0.9236559091 | T119: 8.178189273 | U119: =U109/T109*100-100 -> -1.3707507 | V119: -1.101412092 | W119: 0.3486963517 | X119: 1.677237102 | Y119: -0.222491608 | Z119: 1.473152971 | AA119: 0.9311874042
F120: Commercial customer numbers | I120: =I114/H114*100-100 -> 2.518341305 | J120: 0.1627175111 | K120: 2.665087815 | L120: -0.7543890836 | M120: 0.8197055538 | N120: 1.085426458 | O120: 0.7862737185 | P120: 0.9286823503 | Q120: 1.802410525 | R120: -1.465189871 | S120: 2.793501838 | T120: 0.8990480982 | U120: =U114/T114*100-100 -> 0.966054066 | V120: -0.08954787488 | W120: 1.086669384 | X120: 1.098375558 | Y120: 1.107509746 | Z120: 1.119366588 | AA120: 1.042962307
F121: Tariff D | I121: =I110/H110*100-100 -> -1.649610379 | J121: =J110/I110*100-100 -> -6.108287432 | K121: -1.567517418 | L121: 0.4275813616 | M121: 1.223450215 | N121: 1.711739245 | O121: -2.6379275 | P121: -8.980256712 | Q121: 6.347307005 | R121: -14.66780702 | S121: -5.979618751 | T121: 3.689744016 | U121: =U110/T110*100-100 -> -1.556908889 | V121: -5.062127713 | W121: -1.340207135 | X121: -2.522390689 | Y121: -1.982910368 | Z121: 0.2519191797 | AA121: -0.8678658218

Sheet Outputs - customer numbers
A1: Region forecasts using AusNet starting point | D1: 2002 | E1: =+'Calc - usage existing'!I1 -> 2003 | F1: =+'Calc - usage existing'!J1 -> 2004 | G1: =+'Calc - usage existing'!K1 -> 2005 | H1: =+'Calc - usage existing'!L1 -> 2006 | I1: =+'Calc - usage existing'!M1 -> 2007 | J1: =+'Calc - usage existing'!N1 -> 2008 | K1: =+'Calc - usage existing'!O1 -> 2009 | L1: =+'Calc - usage existing'!P1 -> 2010 | M1: =+'Calc - usage existing'!Q1 -> 2011 | N1: =+'Calc - usage existing'!R1 -> 2012 | O1: =+'Calc - usage existing'!S1 -> 2013 | P1: =+'Calc - usage existing'!T1 -> 2014 | Q1: =+'Calc - usage existing'!U1 -> 2015 | R1: =+'Calc - usage existing'!V1 -> 2016 | S1: =+'Calc - usage existing'!W1 -> 2017 | T1: =+'Calc - usage existing'!X1 -> 2018 | U1: =+'Calc - usage existing'!Y1 -> 2019 | V1: =+'Calc - usage existing'!Z1 -> 2020 | W1: =+'Calc - usage existing'!AA1 -> 2021 | X1: =+'Calc - usage existing'!AB1 -> 2022
A2: Non-new towns | B2: residential | C2: central | E2: ='Outputs - tariff volumes'!H3 -> 353373.5437 | F2: ='Outputs - tariff volumes'!I3 -> 365636.0314 | G2: ='Outputs - tariff volumes'!J3 -> 373611.675 | H2: ='Outputs - tariff volumes'!K3 -> 386985.6497 | I2: ='Outputs - tariff volumes'!L3 -> 396521.319 | J2: ='Outputs - tariff volumes'!M3 -> 406821.3391 | K2: ='Outputs - tariff volumes'!N3 -> 418854.5304 | L2: ='Outputs - tariff volumes'!O3 -> 432109.9274 | M2: ='Outputs - tariff volumes'!P3 -> 445574.4831 | N2: ='Outputs - tariff volumes'!Q3 -> 454589.639 | O2: ='Outputs - tariff volumes'!R3 -> 464774.296 | P2: ='Outputs - tariff volumes'!S3 -> 476981.0067 | Q2: ='Outputs - tariff volumes'!T3 -> 486958.2294 | R2: ='Outputs - tariff volumes'!U3 -> 499484.9671 | S2: ='Outputs - CNs by postcode'!Q282/'Outputs - CNs by postcode'!P282*R2 -> 511863.096 | T2: ='Outputs - CNs by postcode'!R282/'Outputs - CNs by postcode'!Q282*S2 -> 524669.584 | U2: ='Outputs - CNs by postcode'!S282/'Outputs - CNs by postcode'!R282*T2 -> 537860.6802 | V2: ='Outputs - CNs by postcode'!T282/'Outputs - CNs by postcode'!S282*U2 -> 551449.5799 | W2: ='Outputs - CNs by postcode'!U282/'Outputs - CNs by postcode'!T282*V2 -> 565449.9676 | X2: ='Outputs - CNs by postcode'!V282/'Outputs - CNs by postcode'!U282*W2 -> 578906.4286
B3: commercial | C3: central | E3: ='Outputs - tariff volumes'!H13 -> 8486.503291 | F3: ='Outputs - tariff volumes'!I13 -> 8809.799972 | G3: ='Outputs - tariff volumes'!J13 -> 8872.763337 | H3: ='Outputs - tariff volumes'!K13 -> 9020.412191 | I3: ='Outputs - tariff volumes'!L13 -> 9033.555016 | J3: ='Outputs - tariff volumes'!M13 -> 9111.223171 | K3: ='Outputs - tariff volumes'!N13 -> 9230.468411 | L3: ='Outputs - tariff volumes'!O13 -> 9325.082394 | M3: ='Outputs - tariff volumes'!P13 -> 9431.094328 | N3: ='Outputs - tariff volumes'!Q13 -> 9619.854686 | O3: ='Outputs - tariff volumes'!R13 -> 9496.908636 | P3: ='Outputs - tariff volumes'!S13 -> 9811.062024 | Q3: ='Outputs - tariff volumes'!T13 -> 9957.603619 | R3: ='Outputs - tariff volumes'!U13 -> 10053.97483 | S3: ='Outputs - CNs by postcode'!Q286/'Outputs - CNs by postcode'!P286*R3 -> 10050.00999 | T3: ='Outputs - CNs by postcode'!R286/'Outputs - CNs by postcode'!Q286*S3 -> 10197.40431 | U3: ='Outputs - CNs by postcode'!S286/'Outputs - CNs by postcode'!R286*T3 -> 10349.22637 | V3: ='Outputs - CNs by postcode'!T286/'Outputs - CNs by postcode'!S286*U3 -> 10505.62822 | W3: ='Outputs - CNs by postcode'!U286/'Outputs - CNs by postcode'!T286*V3 -> 10666.76756 | X3: ='Outputs - CNs by postcode'!V286/'Outputs - CNs by postcode'!U286*W3 -> 10821.56759
B4: residential | C4: west | E4: ='Outputs - tariff volumes'!H23 -> 104279.3038 | F4: ='Outputs - tariff volumes'!I23 -> 107339.7567 | G4: ='Outputs - tariff volumes'!J23 -> 108896.1511 | H4: ='Outputs - tariff volumes'!K23 -> 112080.4028 | I4: ='Outputs - tariff volumes'!L23 -> 114296.9744 | J4: ='Outputs - tariff volumes'!M23 -> 116927.6868 | K4: ='Outputs - tariff volumes'!N23 -> 119402.2724 | L4: ='Outputs - tariff volumes'!O23 -> 122288.7946 | M4: ='Outputs - tariff volumes'!P23 -> 125432.5286 | N4: ='Outputs - tariff volumes'!Q23 -> 127686.7412 | O4: ='Outputs - tariff volumes'!R23 -> 130822.7289 | P4: ='Outputs - tariff volumes'!S23 -> 133999.7934 | Q4: ='Outputs - tariff volumes'!T23 -> 136294.8334 | R4: ='Outputs - tariff volumes'!U23 -> 138832.5177 | S4: ='Outputs - CNs by postcode'!Q283/'Outputs - CNs by postcode'!P283*R4 -> 140934.7422 | T4: ='Outputs - CNs by postcode'!R283/'Outputs - CNs by postcode'!Q283*S4 -> 142816.5962 | U4: ='Outputs - CNs by postcode'!S283/'Outputs - CNs by postcode'!R283*T4 -> 144731.9209 | V4: ='Outputs - CNs by postcode'!T283/'Outputs - CNs by postcode'!S283*U4 -> 146681.3962 | W4: ='Outputs - CNs by postcode'!U283/'Outputs - CNs by postcode'!T283*V4 -> 148665.7166 | X4: ='Outputs - CNs by postcode'!V283/'Outputs - CNs by postcode'!U283*W4 -> 150474.5511
B5: commercial | C5: west | E5: ='Outputs - tariff volumes'!H33 -> 5960.393127 | F5: ='Outputs - tariff volumes'!I33 -> 6000.918606 | G5: ='Outputs - tariff volumes'!J33 -> 5962.054874 | H5: ='Outputs - tariff volumes'!K33 -> 6079.398298 | I5: ='Outputs - tariff volumes'!L33 -> 6042.428661 | J5: ='Outputs - tariff volumes'!M33 -> 6045.868555 | K5: ='Outputs - tariff volumes'!N33 -> 6062.366979 | L5: ='Outputs - tariff volumes'!O33 -> 6058.154372 | M5: ='Outputs - tariff volumes'!P33 -> 6062.196873 | N5: ='Outputs - tariff volumes'!Q33 -> 6134.079397 | O5: ='Outputs - tariff volumes'!R33 -> 6015.849889 | P5: ='Outputs - tariff volumes'!S33 -> 6120.120991 | Q5: ='Outputs - tariff volumes'!T33 -> 6101.902462 | R5: ='Outputs - tariff volumes'!U33 -> 6137.304201 | S5: ='Outputs - CNs by postcode'!Q287/'Outputs - CNs by postcode'!P287*R5 -> 6112.529035 | T5: ='Outputs - CNs by postcode'!R287/'Outputs - CNs by postcode'!Q287*S5 -> 6134.618338 | U5: ='Outputs - CNs by postcode'!S287/'Outputs - CNs by postcode'!R287*T5 -> 6157.097715 | V5: ='Outputs - CNs by postcode'!T287/'Outputs - CNs by postcode'!S287*U5 -> 6179.975013 | W5: ='Outputs - CNs by postcode'!U287/'Outputs - CNs by postcode'!T287*V5 -> 6203.258247 | X5: ='Outputs - CNs by postcode'!V287/'Outputs - CNs by postcode'!U287*W5 -> 6224.177081
A6: New towns | B6: residential | C6: central | H6: ='Outputs - tariff volumes'!K55 -> 97.44565301 | I6: ='Outputs - tariff volumes'!L55 -> 98.74900082 | J6: ='Outputs - tariff volumes'!M55 -> 276.1907918 | K6: ='Outputs - tariff volumes'!N55 -> 658.3492411 | L6: ='Outputs - tariff volumes'!O55 -> 816.3015164 | M6: ='Outputs - tariff volumes'!P55 -> 1009.03183 | N6: ='Outputs - tariff volumes'!Q55 -> 1138.656905 | O6: ='Outputs - tariff volumes'!R55 -> 1256.687582 | P6: ='Outputs - tariff volumes'!S55 -> 1369.283354 | Q6: ='Outputs - tariff volumes'!T55 -> 1457.484569 | R6: ='Outputs - tariff volumes'!U55 -> 1552.064919 | S6: ='Outputs - CNs by postcode'!Q284-'Outputs - CNs by postcode'!P284+R6 -> 1649.064919 | T6: ='Outputs - CNs by postcode'!R284-'Outputs - CNs by postcode'!Q284+S6 -> 2059.413075 | U6: ='Outputs - CNs by postcode'!S284-'Outputs - CNs by postcode'!R284+T6 -> 2378.438456 | V6: ='Outputs - CNs by postcode'!T284-'Outputs - CNs by postcode'!S284+U6 -> 2629.16662 | W6: ='Outputs - CNs by postcode'!U284-'Outputs - CNs by postcode'!T284+V6 -> 2828.870116 | X6: ='Outputs - CNs by postcode'!V284-'Outputs - CNs by postcode'!U284+W6 -> 2988.954057
B7: commercial | C7: central | H7: ='Outputs - tariff volumes'!K65 -> 3.619041302 | I7: ='Outputs - tariff volumes'!L65 -> 1.963685912 | J7: ='Outputs - tariff volumes'!M65 -> 2.796189327 | K7: ='Outputs - tariff volumes'!N65 -> 5.237795883 | L7: ='Outputs - tariff volumes'!O65 -> 8.045570693 | M7: ='Outputs - tariff volumes'!P65 -> 9.235984861 | N7: ='Outputs - tariff volumes'!Q65 -> 10.56397996 | O7: ='Outputs - tariff volumes'!R65 -> 10.52736883 | P7: ='Outputs - tariff volumes'!S65 -> 12.69601454 | Q7: ='Outputs - tariff volumes'!T65 -> 12.47364168 | R7: ='Outputs - tariff volumes'!U65 -> 13.35614014 | S7: ='Outputs - CNs by postcode'!Q288-'Outputs - CNs by postcode'!P288+R7 -> 15.35614014 | T7: ='Outputs - CNs by postcode'!R288-'Outputs - CNs by postcode'!Q288+S7 -> 19.82461519 | U7: ='Outputs - CNs by postcode'!S288-'Outputs - CNs by postcode'!R288+T7 -> 23.22282236 | V7: ='Outputs - CNs by postcode'!T288-'Outputs - CNs by postcode'!S288+U7 -> 25.81914334 | W7: ='Outputs - CNs by postcode'!U288-'Outputs - CNs by postcode'!T288+V7 -> 27.81487862 | X7: ='Outputs - CNs by postcode'!V288-'Outputs - CNs by postcode'!U288+W7 -> 29.3558289
B8: residential | C8: west | H8: ='Outputs - tariff volumes'!K75 -> 2436.717133 | I8: ='Outputs - tariff volumes'!L75 -> 1300.075579 | J8: ='Outputs - tariff volumes'!M75 -> 3195.716254 | K8: ='Outputs - tariff volumes'!N75 -> 4886.449397 | L8: ='Outputs - tariff volumes'!O75 -> 5952.506729 | M8: ='Outputs - tariff volumes'!P75 -> 6810.493483 | N8: ='Outputs - tariff volumes'!Q75 -> 7504.03955 | O8: ='Outputs - tariff volumes'!R75 -> 8149.165738 | P8: ='Outputs - tariff volumes'!S75 -> 8753.749505 | Q8: ='Outputs - tariff volumes'!T75 -> 9226.352451 | R8: ='Outputs - tariff volumes'!U75 -> 9648.745681 | S8: ='Outputs - CNs by postcode'!Q285-'Outputs - CNs by postcode'!P285+R8 -> 10159.74568 | T8: ='Outputs - CNs by postcode'!R285-'Outputs - CNs by postcode'!Q285+S8 -> 10706.13246 | U8: ='Outputs - CNs by postcode'!S285-'Outputs - CNs by postcode'!R285+T8 -> 11179.50947 | V8: ='Outputs - CNs by postcode'!T285-'Outputs - CNs by postcode'!S285+U8 -> 11599.13377 | W8: ='Outputs - CNs by postcode'!U285-'Outputs - CNs by postcode'!T285+V8 -> 11979.46836 | X8: ='Outputs - CNs by postcode'!V285-'Outputs - CNs by postcode'!U285+W8 -> 12171.27453
B9: commercial | C9: west | H9: ='Outputs - tariff volumes'!K85 -> 126.7496129 | I9: ='Outputs - tariff volumes'!L85 -> 37.33697111 | J9: ='Outputs - tariff volumes'!M85 -> 79.29724425 | K9: ='Outputs - tariff volumes'!N85 -> 106.5221208 | L9: ='Outputs - tariff volumes'!O85 -> 134.435255 | M9: ='Outputs - tariff volumes'!P85 -> 167.3750053 | N9: ='Outputs - tariff volumes'!Q85 -> 187.8400933 | O9: ='Outputs - tariff volumes'!R85 -> 195.3202202 | P9: ='Outputs - tariff volumes'!S85 -> 213.8266349 | Q9: ='Outputs - tariff volumes'!T85 -> 230.9914877 | R9: ='Outputs - tariff volumes'!U85 -> 255.8315586 | S9: ='Outputs - CNs by postcode'!Q289-'Outputs - CNs by postcode'!P289+R9 -> 267.8315586 | T9: ='Outputs - CNs by postcode'!R289-'Outputs - CNs by postcode'!Q289+S9 -> 272.5901409 | U9: ='Outputs - CNs by postcode'!S289-'Outputs - CNs by postcode'!R289+T9 -> 277.4892548 | V9: ='Outputs - CNs by postcode'!T289-'Outputs - CNs by postcode'!S289+U9 -> 281.7533493 | W9: ='Outputs - CNs by postcode'!U289-'Outputs - CNs by postcode'!T289+V9 -> 285.5509755 | X9: ='Outputs - CNs by postcode'!V289-'Outputs - CNs by postcode'!U289+W9 -> 287.5074535
A11: Residential | E11: =E2+E4+E6+E8 -> 457652.8475 | F11: =F2+F4+F6+F8 -> 472975.788 | G11: 482507.8261 | H11: 501600.2153 | I11: 512217.118 | J11: 527220.933 | K11: 543801.6014 | L11: 561167.5303 | M11: 578826.537 | N11: 590919.0767 | O11: 605002.8782 | P11: 621103.8329 | Q11: 633936.8998 | R11: =R2+R4+R6+R8 -> 649518.2954 | S11: 664606.6488 | T11: 680251.7257 | U11: 696150.549 | V11: 712359.2765 | W11: 728924.0227 | X11: 744541.2082
A12: Commercial | E12: =E3+E5+E7+E9 -> 14446.89642 | F12: =F3+F5+F7+F9 -> 14810.71858 | G12: 14834.81821 | H12: 15230.17914 | I12: 15115.28433 | J12: 15239.18516 | K12: 15404.59531 | L12: 15525.71759 | M12: 15669.90219 | N12: 15952.33816 | O12: 15718.60611 | P12: 16157.70566 | Q12: 16302.97121 | R12: =R3+R5+R7+R9 -> 16460.46673 | S12: 16445.72673 | T12: 16624.43741 | U12: 16807.03616 | V12: 16993.17573 | W12: 17183.39166 | X12: 17362.60796
A14: Total | E14: =E11+E12 -> 472099.7439 | F14: =F11+F12 -> 487786.5066 | G14: 497342.6443 | H14: 516830.3944 | I14: 527332.4023 | J14: 542460.1181 | K14: 559206.1967 | L14: 576693.2479 | M14: 594496.4392 | N14: 606871.4148 | O14: 620721.4843 | P14: 637261.5386 | Q14: 650239.871 | R14: 665978.7621 | S14: 681052.3755 | T14: 696876.1631 | U14: 712957.5852 | V14: 729352.4522 | W14: 746107.4144 | X14: 761903.8162

Sheet Outputs - CNs by postcode
B1: 2002 | C1: =B1+1 -> 2003 | D1: =C1+1 -> 2004 | E1: 2005 | F1: 2006 | G1: 2007 | H1: 2008 | I1: 2009 | J1: 2010 | K1: 2011 | L1: 2012 | M1: 2013 | N1: 2014 | O1: 2015 | P1: 2016 | Q1: 2017 | R1: 2018 | S1: 2019 | T1: 2020 | U1: 2021 | V1: 2022
B2: =CONCATENATE(B1,"q1") -> 2002q1 | C2: =CONCATENATE(C1,"q1") -> 2003q1 | D2: 2004q1 | E2: 2005q1 | F2: 2006q1 | G2: 2007q1 | H2: 2008q1 | I2: 2009q1 | J2: 2010q1 | K2: 2011q1 | L2: 2012q1 | M2: 2013q1 | N2: 2014q1 | O2: 2015q1 | P2: 2016q1 | Q2: 2017q1 | R2: 2018q1 | S2: 2019q1 | T2: 2020q1 | U2: 2021q1 | V2: 2022q1
A3: Customers
A4: Total | B4: =SUM(B5:B6) -> 220.9999002 | C4: 469946.8864 | D4: 484157.8858 | E4: 496549.8849 | F4: 509852.8839 | G4: 524477.8818 | H4: 538324.8804 | I4: 555293.8785 | J4: 572717.877 | K4: 590801.8757 | L4: 608637.8723 | M4: 621951.8697 | N4: 634917.868 | O4: 649445.8663 | P4: 661309.8644 | Q4: 675735.8623 | R4: 691435.6442 | S4: 707389.6256 | T4: 723653.5056 | U4: 740273.8192 | V4: 755941.3364
A5: Residential custoemrs | B5: ='Calc - residential CNs'!B48 -> 216.9999002 | C5: ='Calc - residential CNs'!C48 -> 469815.8865 | D5: ='Calc - residential CNs'!D48 -> 469362.8874 | E5: ='Calc - residential CNs'!E48 -> 481478.8865 | F5: ='Calc - residential CNs'!F48 -> 494795.8854 | G5: ='Calc - residential CNs'!G48 -> 509306.8833 | H5: ='Calc - residential CNs'!H48 -> 523019.8818 | I5: ='Calc - residential CNs'!I48 -> 539879.88 | J5: ='Calc - residential CNs'!J48 -> 557147.8785 | K5: ='Calc - residential CNs'!K48 -> 575052.8773 | L5: ='Calc - residential CNs'!L48 -> 592757.8739 | M5: ='Calc - residential CNs'!M48 -> 605882.8712 | N5: ='Calc - residential CNs'!N48 -> 618690.8696 | O5: ='Calc - residential CNs'!O48 -> 633042.8679 | P5: ='Calc - residential CNs'!P48 -> 644726.866 | Q5: ='Calc - residential CNs'!Q48 -> 659173.8639 | R5: ='Calc - residential CNs'!R48 -> 674693.6861 | S5: ='Calc - residential CNs'!S48 -> 690463.7895 | T5: ='Calc - residential CNs'!T48 -> 706540.2198 | U5: ='Calc - residential CNs'!U48 -> 722968.9756 | V5: ='Calc - residential CNs'!V48 -> 738455.9165
A6: Commercial customers | B6: ='Calc - commercial CNs'!B48 -> 4 | C6: ='Calc - commercial CNs'!C48 -> 130.999962 | D6: ='Calc - commercial CNs'!D48 -> 14794.99835 | E6: ='Calc - commercial CNs'!E48 -> 15070.99838 | F6: ='Calc - commercial CNs'!F48 -> 15056.99849 | G6: ='Calc - commercial CNs'!G48 -> 15170.99853 | H6: ='Calc - commercial CNs'!H48 -> 15304.99858 | I6: ='Calc - commercial CNs'!I48 -> 15413.99854 | J6: ='Calc - commercial CNs'!J48 -> 15569.99849 | K6: ='Calc - commercial CNs'!K48 -> 15748.99848 | L6: ='Calc - commercial CNs'!L48 -> 15879.99839 | M6: ='Calc - commercial CNs'!M48 -> 16068.99843 | N6: ='Calc - commercial CNs'!N48 -> 16226.99843 | O6: ='Calc - commercial CNs'!O48 -> 16402.99841 | P6: ='Calc - commercial CNs'!P48 -> 16582.99836 | Q6: ='Calc - commercial CNs'!Q48 -> 16561.99843 | R6: ='Calc - commercial CNs'!R48 -> 16741.95814 | S6: ='Calc - commercial CNs'!S48 -> 16925.8361 | T6: ='Calc - commercial CNs'!T48 -> 17113.28581 | U6: ='Calc - commercial CNs'!U48 -> 17304.84361 | V6: ='Calc - commercial CNs'!V48 -> 17485.41993
A9: Postcode components
A10: Residential customers | W10: Region (inc. adjoining) | X10: Region
A11: 3008 | B11: =INDEX('Calc - LGA to PC_Res'!E$4:E$115,MATCH('Outputs - CNs by postcode'!$A11,'Calc - LGA to PC_Res'!$A$4:$A$115,0)) -> 0 | C11: =INDEX('Calc - LGA to PC_Res'!F$4:F$115,MATCH('Outputs - CNs by postcode'!$A11,'Calc - LGA to PC_Res'!$A$4:$A$115,0)) -> 11 | D11: =INDEX('Calc - LGA to PC_Res'!G$4:G$115,MATCH('Outputs - CNs by postcode'!$A11,'Calc - LGA to PC_Res'!$A$4:$A$115,0)) -> 6 | E11: =INDEX('Calc - LGA to PC_Res'!H$4:H$115,MATCH('Outputs - CNs by postcode'!$A11,'Calc - LGA to PC_Res'!$A$4:$A$115,0)) -> 9 | F11: =INDEX('Calc - LGA to PC_Res'!I$4:I$115,MATCH('Outputs - CNs by postcode'!$A11,'Calc - LGA to PC_Res'!$A$4:$A$115,0)) -> 10 | G11: =INDEX('Calc - LGA to PC_Res'!J$4:J$115,MATCH('Outputs - CNs by postcode'!$A11,'Calc - LGA to PC_Res'!$A$4:$A$115,0)) -> 11 | H11: =INDEX('Calc - LGA to PC_Res'!K$4:K$115,MATCH('Outputs - CNs by postcode'!$A11,'Calc - LGA to PC_Res'!$A$4:$A$115,0)) -> 11 | I11: =INDEX('Calc - LGA to PC_Res'!L$4:L$115,MATCH('Outputs - CNs by postcode'!$A11,'Calc - LGA to PC_Res'!$A$4:$A$115,0)) -> 11 | J11: =INDEX('Calc - LGA to PC_Res'!M$4:M$115,MATCH('Outputs - CNs by postcode'!$A11,'Calc - LGA to PC_Res'!$A$4:$A$115,0)) -> 11 | K11: =INDEX('Calc - LGA to PC_Res'!N$4:N$115,MATCH('Outputs - CNs by postcode'!$A11,'Calc - LGA to PC_Res'!$A$4:$A$115,0)) -> 12 | L11: =INDEX('Calc - LGA to PC_Res'!O$4:O$115,MATCH('Outputs - CNs by postcode'!$A11,'Calc - LGA to PC_Res'!$A$4:$A$115,0)) -> 13 | M11: =INDEX('Calc - LGA to PC_Res'!P$4:P$115,MATCH('Outputs - CNs by postcode'!$A11,'Calc - LGA to PC_Res'!$A$4:$A$115,0)) -> 13 | N11: =INDEX('Calc - LGA to PC_Res'!Q$4:Q$115,MATCH('Outputs - CNs by postcode'!$A11,'Calc - LGA to PC_Res'!$A$4:$A$115,0)) -> 14 | O11: =INDEX('Calc - LGA to PC_Res'!R$4:R$115,MATCH('Outputs - CNs by postcode'!$A11,'Calc - LGA to PC_Res'!$A$4:$A$115,0)) -> 14 | P11: =INDEX('Calc - LGA to PC_Res'!S$4:S$115,MATCH('Outputs - CNs by postcode'!$A11,'Calc - LGA to PC_Res'!$A$4:$A$115,0)) -> 12 | Q11: =INDEX('Calc - LGA to PC_Res'!T$4:T$115,MATCH('Outputs - CNs by postcode'!$A11,'Calc - LGA to PC_Res'!$A$4:$A$115,0)) -> 12 | R11: =INDEX('Calc - LGA to PC_Res'!U$4:U$115,MATCH('Outputs - CNs by postcode'!$A11,'Calc - LGA to PC_Res'!$A$4:$A$115,0)) -> 12.00206217 | S11: =INDEX('Calc - LGA to PC_Res'!V$4:V$115,MATCH('Outputs - CNs by postcode'!$A11,'Calc - LGA to PC_Res'!$A$4:$A$115,0)) -> 12.00423632 | T11: =INDEX('Calc - LGA to PC_Res'!W$4:W$115,MATCH('Outputs - CNs by postcode'!$A11,'Calc - LGA to PC_Res'!$A$4:$A$115,0)) -> 12.00652855 | U11: =INDEX('Calc - LGA to PC_Res'!X$4:X$115,MATCH('Outputs - CNs by postcode'!$A11,'Calc - LGA to PC_Res'!$A$4:$A$115,0)) -> 12.00894526 | V11: =INDEX('Calc - LGA to PC_Res'!Y$4:Y$115,MATCH('Outputs - CNs by postcode'!$A11,'Calc - LGA to PC_Res'!$A$4:$A$115,0)) -> 12.01045606 | W11: =INDEX('Data - usage raw'!$O$3:$O$120, MATCH('Outputs - CNs by postcode'!A11,'Data - usage raw'!$N$3:$N$120,0),1) -> central | X11: =IF(Y11="new", Y11&" "&IF(W11="adjoining central", "central", IF(W11="adjoining west", "west", W11)), IF(W11="adjoining central", "central", IF(W11="adjoining west", "west", W11))) -> central
A12: 3011 | B12: =INDEX('Calc - LGA to PC_Res'!E$4:E$115,MATCH('Outputs - CNs by postcode'!$A12,'Calc - LGA to PC_Res'!$A$4:$A$115,0)) -> 13 | C12: =INDEX('Calc - LGA to PC_Res'!F$4:F$115,MATCH('Outputs - CNs by postcode'!$A12,'Calc - LGA to PC_Res'!$A$4:$A$115,0)) -> 6525 | D12: =INDEX('Calc - LGA to PC_Res'!G$4:G$115,MATCH('Outputs - CNs by postcode'!$A12,'Calc - LGA to PC_Res'!$A$4:$A$115,0)) -> 6175 | E12: =INDEX('Calc - LGA to PC_Res'!H$4:H$115,MATCH('Outputs - CNs by postcode'!$A12,'Calc - LGA to PC_Res'!$A$4:$A$115,0)) -> 6219 | F12: =INDEX('Calc - LGA to PC_Res'!I$4:I$115,MATCH('Outputs - CNs by postcode'!$A12,'Calc - LGA to PC_Res'!$A$4:$A$115,0)) -> 6187 | G12: =INDEX('Calc - LGA to PC_Res'!J$4:J$115,MATCH('Outputs - CNs by postcode'!$A12,'Calc - LGA to PC_Res'!$A$4:$A$115,0)) -> 6239 | H12: =INDEX('Calc - LGA to PC_Res'!K$4:K$115,MATCH('Outputs - CNs by postcode'!$A12,'Calc - LGA to PC_Res'!$A$4:$A$115,0)) -> 6276 | I12: =INDEX('Calc - LGA to PC_Res'!L$4:L$115,MATCH('Outputs - CNs by postcode'!$A12,'Calc - LGA to PC_Res'!$A$4:$A$115,0)) -> 6296 | J12: =INDEX('Calc - LGA to PC_Res'!M$4:M$115,MATCH('Outputs - CNs by postcode'!$A12,'Calc - LGA to PC_Res'!$A$4:$A$115,0)) -> 6335 | K12: =INDEX('Calc - LGA to PC_Res'!N$4:N$115,MATCH('Outputs - CNs by postcode'!$A12,'Calc - LGA to PC_Res'!$A$4:$A$115,0)) -> 6421 | L12: =INDEX('Calc - LGA to PC_Res'!O$4:O$115,MATCH('Outputs - CNs by postcode'!$A12,'Calc - LGA to PC_Res'!$A$4:$A$115,0)) -> 6497 | M12: =INDEX('Calc - LGA to PC_Res'!P$4:P$115,MATCH('Outputs - CNs by postcode'!$A12,'Calc - LGA to PC_Res'!$A$4:$A$115,0)) -> 6665 | N12: =INDEX('Calc - LGA to PC_Res'!Q$4:Q$115,MATCH('Outputs - CNs by postcode'!$A12,'Calc - LGA to PC_Res'!$A$4:$A$115,0)) -> 6640 | O12: =INDEX('Calc - LGA to PC_Res'!R$4:R$115,MATCH('Outputs - CNs by postcode'!$A12,'Calc - LGA to PC_Res'!$A$4:$A$115,0)) -> 6697 | P12: =INDEX('Calc - LGA to PC_Res'!S$4:S$115,MATCH('Outputs - CNs by postcode'!$A12,'Calc - LGA to PC_Res'!$A$4:$A$115,0)) -> 6724 | Q12: =INDEX('Calc - LGA to PC_Res'!T$4:T$115,MATCH('Outputs - CNs by postcode'!$A12,'Calc - LGA to PC_Res'!$A$4:$A$115,0)) -> 6749 | R12: =INDEX('Calc - LGA to PC_Res'!U$4:U$115,MATCH('Outputs - CNs by postcode'!$A12,'Calc - LGA to PC_Res'!$A$4:$A$115,0)) -> 6842.485761 | S12: =INDEX('Calc - LGA to PC_Res'!V$4:V$115,MATCH('Outputs - CNs by postcode'!$A12,'Calc - LGA to PC_Res'!$A$4:$A$115,0)) -> 6939.086875 | T12: =INDEX('Calc - LGA to PC_Res'!W$4:W$115,MATCH('Outputs - CNs by postcode'!$A12,'Calc - LGA to PC_Res'!$A$4:$A$115,0)) -> 7038.907159 | U12: =INDEX('Calc - LGA to PC_Res'!X$4:X$115,MATCH('Outputs - CNs by postcode'!$A12,'Calc - LGA to PC_Res'!$A$4:$A$115,0)) -> 7142.053889 | V12: =INDEX('Calc - LGA to PC_Res'!Y$4:Y$115,MATCH('Outputs - CNs by postcode'!$A12,'Calc - LGA to PC_Res'!$A$4:$A$115,0)) -> 7247.310723 | W12: =INDEX('Data - usage raw'!$O$3:$O$120, MATCH('Outputs - CNs by postcode'!A12,'Data - usage raw'!$N$3:$N$120,0),1) -> central | X12: =IF(Y12="new", Y12&" "&IF(W12="adjoining central", "central", IF(W12="adjoining west", "west", W12)), IF(W12="adjoining central", "central", IF(W12="adjoining west", "west", W12))) -> central
A13: 3012 | B13: =INDEX('Calc - LGA to PC_Res'!E$4:E$115,MATCH('Outputs - CNs by postcode'!$A13,'Calc - LGA to PC_Res'!$A$4:$A$115,0)) -> 10 | C13: =INDEX('Calc - LGA to PC_Res'!F$4:F$115,MATCH('Outputs - CNs by postcode'!$A13,'Calc - LGA to PC_Res'!$A$4:$A$115,0)) -> 7804 | D13: =INDEX('Calc - LGA to PC_Res'!G$4:G$115,MATCH('Outputs - CNs by postcode'!$A13,'Calc - LGA to PC_Res'!$A$4:$A$115,0)) -> 7677 | E13: =INDEX('Calc - LGA to PC_Res'!H$4:H$115,MATCH('Outputs - CNs by postcode'!$A13,'Calc - LGA to PC_Res'!$A$4:$A$115,0)) -> 7746 | F13: =INDEX('Calc - LGA to PC_Res'!I$4:I$115,MATCH('Outputs - CNs by postcode'!$A13,'Calc - LGA to PC_Res'!$A$4:$A$115,0)) -> 7857 | G13: =INDEX('Calc - LGA to PC_Res'!J$4:J$115,MATCH('Outputs - CNs by postcode'!$A13,'Calc - LGA to PC_Res'!$A$4:$A$115,0)) -> 8042 | H13: =INDEX('Calc - LGA to PC_Res'!K$4:K$115,MATCH('Outputs - CNs by postcode'!$A13,'Calc - LGA to PC_Res'!$A$4:$A$115,0)) -> 8184 | I13: =INDEX('Calc - LGA to PC_Res'!L$4:L$115,MATCH('Outputs - CNs by postcode'!$A13,'Calc - LGA to PC_Res'!$A$4:$A$115,0)) -> 8379 | J13: =INDEX('Calc - LGA to PC_Res'!M$4:M$115,MATCH('Outputs - CNs by postcode'!$A13,'Calc - LGA to PC_Res'!$A$4:$A$115,0)) -> 8495 | K13: =INDEX('Calc - LGA to PC_Res'!N$4:N$115,MATCH('Outputs - CNs by postcode'!$A13,'Calc - LGA to PC_Res'!$A$4:$A$115,0)) -> 8623 | L13: =INDEX('Calc - LGA to PC_Res'!O$4:O$115,MATCH('Outputs - CNs by postcode'!$A13,'Calc - LGA to PC_Res'!$A$4:$A$115,0)) -> 8778 | M13: =INDEX('Calc - LGA to PC_Res'!P$4:P$115,MATCH('Outputs - CNs by postcode'!$A13,'Calc - LGA to PC_Res'!$A$4:$A$115,0)) -> 8877 | N13: =INDEX('Calc - LGA to PC_Res'!Q$4:Q$115,MATCH('Outputs - CNs by postcode'!$A13,'Calc - LGA to PC_Res'!$A$4:$A$115,0)) -> 9043 | O13: =INDEX('Calc - LGA to PC_Res'!R$4:R$115,MATCH('Outputs - CNs by postcode'!$A13,'Calc - LGA to PC_Res'!$A$4:$A$115,0)) -> 9279 | P13: =INDEX('Calc - LGA to PC_Res'!S$4:S$115,MATCH('Outputs - CNs by postcode'!$A13,'Calc - LGA to PC_Res'!$A$4:$A$115,0)) -> 9390 | Q13: =INDEX('Calc - LGA to PC_Res'!T$4:T$115,MATCH('Outputs - CNs by postcode'!$A13,'Calc - LGA to PC_Res'!$A$4:$A$115,0)) -> 9514 | R13: =INDEX('Calc - LGA to PC_Res'!U$4:U$115,MATCH('Outputs - CNs by postcode'!$A13,'Calc - LGA to PC_Res'!$A$4:$A$115,0)) -> 9641.422276 | S13: =INDEX('Calc - LGA to PC_Res'!V$4:V$115,MATCH('Outputs - CNs by postcode'!$A13,'Calc - LGA to PC_Res'!$A$4:$A$115,0)) -> 9772.982968 | T13: =INDEX('Calc - LGA to PC_Res'!W$4:W$115,MATCH('Outputs - CNs by postcode'!$A13,'Calc - LGA to PC_Res'!$A$4:$A$115,0)) -> 9908.818733 | U13: =INDEX('Calc - LGA to PC_Res'!X$4:X$115,MATCH('Outputs - CNs by postcode'!$A13,'Calc - LGA to PC_Res'!$A$4:$A$115,0)) -> 10049.07077 | V13: =INDEX('Calc - LGA to PC_Res'!Y$4:Y$115,MATCH('Outputs - CNs by postcode'!$A13,'Calc - LGA to PC_Res'!$A$4:$A$115,0)) -> 10192.63871 | W13: =INDEX('Data - usage raw'!$O$3:$O$120, MATCH('Outputs - CNs by postcode'!A13,'Data - usage raw'!$N$3:$N$120,0),1) -> central | X13: central
A14: 3013 | B14: =INDEX('Calc - LGA to PC_Res'!E$4:E$115,MATCH('Outputs - CNs by postcode'!$A14,'Calc - LGA to PC_Res'!$A$4:$A$115,0)) -> 8 | C14: =INDEX('Calc - LGA to PC_Res'!F$4:F$115,MATCH('Outputs - CNs by postcode'!$A14,'Calc - LGA to PC_Res'!$A$4:$A$115,0)) -> 5356 | D14: =INDEX('Calc - LGA to PC_Res'!G$4:G$115,MATCH('Outputs - CNs by postcode'!$A14,'Calc - LGA to PC_Res'!$A$4:$A$115,0)) -> 5282 | E14: =INDEX('Calc - LGA to PC_Res'!H$4:H$115,MATCH('Outputs - CNs by postcode'!$A14,'Calc - LGA to PC_Res'!$A$4:$A$115,0)) -> 5316 | F14: =INDEX('Calc - LGA to PC_Res'!I$4:I$115,MATCH('Outputs - CNs by postcode'!$A14,'Calc - LGA to PC_Res'!$A$4:$A$115,0)) -> 5349 | G14: =INDEX('Calc - LGA to PC_Res'!J$4:J$115,MATCH('Outputs - CNs by postcode'!$A14,'Calc - LGA to PC_Res'!$A$4:$A$115,0)) -> 5426 | H14: =INDEX('Calc - LGA to PC_Res'!K$4:K$115,MATCH('Outputs - CNs by postcode'!$A14,'Calc - LGA to PC_Res'!$A$4:$A$115,0)) -> 5505 | I14: =INDEX('Calc - LGA to PC_Res'!L$4:L$115,MATCH('Outputs - CNs by postcode'!$A14,'Calc - LGA to PC_Res'!$A$4:$A$115,0)) -> 5592 | J14: =INDEX('Calc - LGA to PC_Res'!M$4:M$115,MATCH('Outputs - CNs by postcode'!$A14,'Calc - LGA to PC_Res'!$A$4:$A$115,0)) -> 5621 | K14: =INDEX('Calc - LGA to PC_Res'!N$4:N$115,MATCH('Outputs - CNs by postcode'!$A14,'Calc - LGA to PC_Res'!$A$4:$A$115,0)) -> 5646 | L14: =INDEX('Calc - LGA to PC_Res'!O$4:O$115,MATCH('Outputs - CNs by postcode'!$A14,'Calc - LGA to PC_Res'!$A$4:$A$115,0)) -> 5659 | M14: =INDEX('Calc - LGA to PC_Res'!P$4:P$115,MATCH('Outputs - CNs by postcode'!$A14,'Calc - LGA to PC_Res'!$A$4:$A$115,0)) -> 5668 | N14: =INDEX('Calc - LGA to PC_Res'!Q$4:Q$115,MATCH('Outputs - CNs by postcode'!$A14,'Calc - LGA to PC_Res'!$A$4:$A$115,0)) -> 5717 | O14: =INDEX('Calc - LGA to PC_Res'!R$4:R$115,MATCH('Outputs - CNs by postcode'!$A14,'Calc - LGA to PC_Res'!$A$4:$A$115,0)) -> 5763 | P14: =INDEX('Calc - LGA to PC_Res'!S$4:S$115,MATCH('Outputs - CNs by postcode'!$A14,'Calc - LGA to PC_Res'!$A$4:$A$115,0)) -> 5806 | Q14: =INDEX('Calc - LGA to PC_Res'!T$4:T$115,MATCH('Outputs - CNs by postcode'!$A14,'Calc - LGA to PC_Res'!$A$4:$A$115,0)) -> 5882 | R14: =INDEX('Calc - LGA to PC_Res'!U$4:U$115,MATCH('Outputs - CNs by postcode'!$A14,'Calc - LGA to PC_Res'!$A$4:$A$115,0)) -> 5963.476255 | S14: =INDEX('Calc - LGA to PC_Res'!V$4:V$115,MATCH('Outputs - CNs by postcode'!$A14,'Calc - LGA to PC_Res'!$A$4:$A$115,0)) -> 6047.667654 | T14: =INDEX('Calc - LGA to PC_Res'!W$4:W$115,MATCH('Outputs - CNs by postcode'!$A14,'Calc - LGA to PC_Res'!$A$4:$A$115,0)) -> 6134.664677 | U14: =INDEX('Calc - LGA to PC_Res'!X$4:X$115,MATCH('Outputs - CNs by postcode'!$A14,'Calc - LGA to PC_Res'!$A$4:$A$115,0)) -> 6224.56082 | V14: =INDEX('Calc - LGA to PC_Res'!Y$4:Y$115,MATCH('Outputs - CNs by postcode'!$A14,'Calc - LGA to PC_Res'!$A$4:$A$115,0)) -> 6316.295995 | W14: =INDEX('Data - usage raw'!$O$3:$O$120, MATCH('Outputs - CNs by postcode'!A14,'Data - usage raw'!$N$3:$N$120,0),1) -> central | X14: central
A15: 3015 | B15: =INDEX('Calc - LGA to PC_Res'!E$4:E$115,MATCH('Outputs - CNs by postcode'!$A15,'Calc - LGA to PC_Res'!$A$4:$A$115,0)) -> 4 | C15: =INDEX('Calc - LGA to PC_Res'!F$4:F$115,MATCH('Outputs - CNs by postcode'!$A15,'Calc - LGA to PC_Res'!$A$4:$A$115,0)) -> 5958 | D15: =INDEX('Calc - LGA to PC_Res'!G$4:G$115,MATCH('Outputs - CNs by postcode'!$A15,'Calc - LGA to PC_Res'!$A$4:$A$115,0)) -> 5946 | E15: =INDEX('Calc - LGA to PC_Res'!H$4:H$115,MATCH('Outputs - CNs by postcode'!$A15,'Calc - LGA to PC_Res'!$A$4:$A$115,0)) -> 6005 | F15: =INDEX('Calc - LGA to PC_Res'!I$4:I$115,MATCH('Outputs - CNs by postcode'!$A15,'Calc - LGA to PC_Res'!$A$4:$A$115,0)) -> 6112 | G15: =INDEX('Calc - LGA to PC_Res'!J$4:J$115,MATCH('Outputs - CNs by postcode'!$A15,'Calc - LGA to PC_Res'!$A$4:$A$115,0)) -> 6274 | H15: =INDEX('Calc - LGA to PC_Res'!K$4:K$115,MATCH('Outputs - CNs by postcode'!$A15,'Calc - LGA to PC_Res'!$A$4:$A$115,0)) -> 6314 | I15: =INDEX('Calc - LGA to PC_Res'!L$4:L$115,MATCH('Outputs - CNs by postcode'!$A15,'Calc - LGA to PC_Res'!$A$4:$A$115,0)) -> 6378 | J15: =INDEX('Calc - LGA to PC_Res'!M$4:M$115,MATCH('Outputs - CNs by postcode'!$A15,'Calc - LGA to PC_Res'!$A$4:$A$115,0)) -> 6469 | K15: =INDEX('Calc - LGA to PC_Res'!N$4:N$115,MATCH('Outputs - CNs by postcode'!$A15,'Calc - LGA to PC_Res'!$A$4:$A$115,0)) -> 6526 | L15: =INDEX('Calc - LGA to PC_Res'!O$4:O$115,MATCH('Outputs - CNs by postcode'!$A15,'Calc - LGA to PC_Res'!$A$4:$A$115,0)) -> 6597 | M15: =INDEX('Calc - LGA to PC_Res'!P$4:P$115,MATCH('Outputs - CNs by postcode'!$A15,'Calc - LGA to PC_Res'!$A$4:$A$115,0)) -> 6666 | N15: =INDEX('Calc - LGA to PC_Res'!Q$4:Q$115,MATCH('Outputs - CNs by postcode'!$A15,'Calc - LGA to PC_Res'!$A$4:$A$115,0)) -> 6752 | O15: =INDEX('Calc - LGA to PC_Res'!R$4:R$115,MATCH('Outputs - CNs by postcode'!$A15,'Calc - LGA to PC_Res'!$A$4:$A$115,0)) -> 6838 | P15: =INDEX('Calc - LGA to PC_Res'!S$4:S$115,MATCH('Outputs - CNs by postcode'!$A15,'Calc - LGA to PC_Res'!$A$4:$A$115,0)) -> 6819 | Q15: =INDEX('Calc - LGA to PC_Res'!T$4:T$115,MATCH('Outputs - CNs by postcode'!$A15,'Calc - LGA to PC_Res'!$A$4:$A$115,0)) -> 6856 | R15: =INDEX('Calc - LGA to PC_Res'!U$4:U$115,MATCH('Outputs - CNs by postcode'!$A15,'Calc - LGA to PC_Res'!$A$4:$A$115,0)) -> 6906.514544 | S15: =INDEX('Calc - LGA to PC_Res'!V$4:V$115,MATCH('Outputs - CNs by postcode'!$A15,'Calc - LGA to PC_Res'!$A$4:$A$115,0)) -> 6957.616192 | T15: =INDEX('Calc - LGA to PC_Res'!W$4:W$115,MATCH('Outputs - CNs by postcode'!$A15,'Calc - LGA to PC_Res'!$A$4:$A$115,0)) -> 7009.311766 | U15: =INDEX('Calc - LGA to PC_Res'!X$4:X$115,MATCH('Outputs - CNs by postcode'!$A15,'Calc - LGA to PC_Res'!$A$4:$A$115,0)) -> 7061.608172 | V15: =INDEX('Calc - LGA to PC_Res'!Y$4:Y$115,MATCH('Outputs - CNs by postcode'!$A15,'Calc - LGA to PC_Res'!$A$4:$A$115,0)) -> 7119.581181 | W15: =INDEX('Data - usage raw'!$O$3:$O$120, MATCH('Outputs - CNs by postcode'!A15,'Data - usage raw'!$N$3:$N$120,0),1) -> central | X15: central
A16: 3016 | B16: =INDEX('Calc - LGA to PC_Res'!E$4:E$115,MATCH('Outputs - CNs by postcode'!$A16,'Calc - LGA to PC_Res'!$A$4:$A$115,0)) -> 5 | C16: =INDEX('Calc - LGA to PC_Res'!F$4:F$115,MATCH('Outputs - CNs by postcode'!$A16,'Calc - LGA to PC_Res'!$A$4:$A$115,0)) -> 5483 | D16: =INDEX('Calc - LGA to PC_Res'!G$4:G$115,MATCH('Outputs - CNs by postcode'!$A16,'Calc - LGA to PC_Res'!$A$4:$A$115,0)) -> 5386 | E16: =INDEX('Calc - LGA to PC_Res'!H$4:H$115,MATCH('Outputs - CNs by postcode'!$A16,'Calc - LGA to PC_Res'!$A$4:$A$115,0)) -> 5452 | F16: =INDEX('Calc - LGA to PC_Res'!I$4:I$115,MATCH('Outputs - CNs by postcode'!$A16,'Calc - LGA to PC_Res'!$A$4:$A$115,0)) -> 5491 | G16: =INDEX('Calc - LGA to PC_Res'!J$4:J$115,MATCH('Outputs - CNs by postcode'!$A16,'Calc - LGA to PC_Res'!$A$4:$A$115,0)) -> 5524 | H16: =INDEX('Calc - LGA to PC_Res'!K$4:K$115,MATCH('Outputs - CNs by postcode'!$A16,'Calc - LGA to PC_Res'!$A$4:$A$115,0)) -> 5542 | I16: =INDEX('Calc - LGA to PC_Res'!L$4:L$115,MATCH('Outputs - CNs by postcode'!$A16,'Calc - LGA to PC_Res'!$A$4:$A$115,0)) -> 5579 | J16: =INDEX('Calc - LGA to PC_Res'!M$4:M$115,MATCH('Outputs - CNs by postcode'!$A16,'Calc - LGA to PC_Res'!$A$4:$A$115,0)) -> 5607 | K16: =INDEX('Calc - LGA to PC_Res'!N$4:N$115,MATCH('Outputs - CNs by postcode'!$A16,'Calc - LGA to PC_Res'!$A$4:$A$115,0)) -> 5621 | L16: =INDEX('Calc - LGA to PC_Res'!O$4:O$115,MATCH('Outputs - CNs by postcode'!$A16,'Calc - LGA to PC_Res'!$A$4:$A$115,0)) -> 5671 | M16: =INDEX('Calc - LGA to PC_Res'!P$4:P$115,MATCH('Outputs - CNs by postcode'!$A16,'Calc - LGA to PC_Res'!$A$4:$A$115,0)) -> 5694 | N16: =INDEX('Calc - LGA to PC_Res'!Q$4:Q$115,MATCH('Outputs - CNs by postcode'!$A16,'Calc - LGA to PC_Res'!$A$4:$A$115,0)) -> 5716 | O16: =INDEX('Calc - LGA to PC_Res'!R$4:R$115,MATCH('Outputs - CNs by postcode'!$A16,'Calc - LGA to PC_Res'!$A$4:$A$115,0)) -> 5733 | P16: =INDEX('Calc - LGA to PC_Res'!S$4:S$115,MATCH('Outputs - CNs by postcode'!$A16,'Calc - LGA to PC_Res'!$A$4:$A$115,0)) -> 5733 | Q16: =INDEX('Calc - LGA to PC_Res'!T$4:T$115,MATCH('Outputs - CNs by postcode'!$A16,'Calc - LGA to PC_Res'!$A$4:$A$115,0)) -> 5759 | R16: =INDEX('Calc - LGA to PC_Res'!U$4:U$115,MATCH('Outputs - CNs by postcode'!$A16,'Calc - LGA to PC_Res'!$A$4:$A$115,0)) -> 5801.431922 | S16: =INDEX('Calc - LGA to PC_Res'!V$4:V$115,MATCH('Outputs - CNs by postcode'!$A16,'Calc - LGA to PC_Res'!$A$4:$A$115,0)) -> 5844.357008 | T16: =INDEX('Calc - LGA to PC_Res'!W$4:W$115,MATCH('Outputs - CNs by postcode'!$A16,'Calc - LGA to PC_Res'!$A$4:$A$115,0)) -> 5887.780989 | U16: =INDEX('Calc - LGA to PC_Res'!X$4:X$115,MATCH('Outputs - CNs by postcode'!$A16,'Calc - LGA to PC_Res'!$A$4:$A$115,0)) -> 5931.709665 | V16: =INDEX('Calc - LGA to PC_Res'!Y$4:Y$115,MATCH('Outputs - CNs by postcode'!$A16,'Calc - LGA to PC_Res'!$A$4:$A$115,0)) -> 5980.406655 | W16: =INDEX('Data - usage raw'!$O$3:$O$120, MATCH('Outputs - CNs by postcode'!A16,'Data - usage raw'!$N$3:$N$120,0),1) -> central | X16: central
A17: 3018 | B17: =INDEX('Calc - LGA to PC_Res'!E$4:E$115,MATCH('Outputs - CNs by postcode'!$A17,'Calc - LGA to PC_Res'!$A$4:$A$115,0)) -> 2 | C17: =INDEX('Calc - LGA to PC_Res'!F$4:F$115,MATCH('Outputs - CNs by postcode'!$A17,'Calc - LGA to PC_Res'!$A$4:$A$115,0)) -> 4792 | D17: =INDEX('Calc - LGA to PC_Res'!G$4:G$115,MATCH('Outputs - CNs by postcode'!$A17,'Calc - LGA to PC_Res'!$A$4:$A$115,0)) -> 4695 | E17: =INDEX('Calc - LGA to PC_Res'!H$4:H$115,MATCH('Outputs - CNs by postcode'!$A17,'Calc - LGA to PC_Res'!$A$4:$A$115,0)) -> 4739 | F17: =INDEX('Calc - LGA to PC_Res'!I$4:I$115,MATCH('Outputs - CNs by postcode'!$A17,'Calc - LGA to PC_Res'!$A$4:$A$115,0)) -> 4786 | G17: =INDEX('Calc - LGA to PC_Res'!J$4:J$115,MATCH('Outputs - CNs by postcode'!$A17,'Calc - LGA to PC_Res'!$A$4:$A$115,0)) -> 4819 | H17: =INDEX('Calc - LGA to PC_Res'!K$4:K$115,MATCH('Outputs - CNs by postcode'!$A17,'Calc - LGA to PC_Res'!$A$4:$A$115,0)) -> 4872 | I17: =INDEX('Calc - LGA to PC_Res'!L$4:L$115,MATCH('Outputs - CNs by postcode'!$A17,'Calc - LGA to PC_Res'!$A$4:$A$115,0)) -> 4906 | J17: =INDEX('Calc - LGA to PC_Res'!M$4:M$115,MATCH('Outputs - CNs by postcode'!$A17,'Calc - LGA to PC_Res'!$A$4:$A$115,0)) -> 4934 | K17: =INDEX('Calc - LGA to PC_Res'!N$4:N$115,MATCH('Outputs - CNs by postcode'!$A17,'Calc - LGA to PC_Res'!$A$4:$A$115,0)) -> 4951 | L17: =INDEX('Calc - LGA to PC_Res'!O$4:O$115,MATCH('Outputs - CNs by postcode'!$A17,'Calc - LGA to PC_Res'!$A$4:$A$115,0)) -> 4988 | M17: =INDEX('Calc - LGA to PC_Res'!P$4:P$115,MATCH('Outputs - CNs by postcode'!$A17,'Calc - LGA to PC_Res'!$A$4:$A$115,0)) -> 5032 | N17: =INDEX('Calc - LGA to PC_Res'!Q$4:Q$115,MATCH('Outputs - CNs by postcode'!$A17,'Calc - LGA to PC_Res'!$A$4:$A$115,0)) -> 5115 | O17: =INDEX('Calc - LGA to PC_Res'!R$4:R$115,MATCH('Outputs - CNs by postcode'!$A17,'Calc - LGA to PC_Res'!$A$4:$A$115,0)) -> 5128 | P17: =INDEX('Calc - LGA to PC_Res'!S$4:S$115,MATCH('Outputs - CNs by postcode'!$A17,'Calc - LGA to PC_Res'!$A$4:$A$115,0)) -> 5161 | Q17: =INDEX('Calc - LGA to PC_Res'!T$4:T$115,MATCH('Outputs - CNs by postcode'!$A17,'Calc - LGA to PC_Res'!$A$4:$A$115,0)) -> 5208 | R17: =INDEX('Calc - LGA to PC_Res'!U$4:U$115,MATCH('Outputs - CNs by postcode'!$A17,'Calc - LGA to PC_Res'!$A$4:$A$115,0)) -> 5246.372192 | S17: =INDEX('Calc - LGA to PC_Res'!V$4:V$115,MATCH('Outputs - CNs by postcode'!$A17,'Calc - LGA to PC_Res'!$A$4:$A$115,0)) -> 5285.190363 | T17: =INDEX('Calc - LGA to PC_Res'!W$4:W$115,MATCH('Outputs - CNs by postcode'!$A17,'Calc - LGA to PC_Res'!$A$4:$A$115,0)) -> 5324.459697 | U17: =INDEX('Calc - LGA to PC_Res'!X$4:X$115,MATCH('Outputs - CNs by postcode'!$A17,'Calc - LGA to PC_Res'!$A$4:$A$115,0)) -> 5364.185437 | V17: =INDEX('Calc - LGA to PC_Res'!Y$4:Y$115,MATCH('Outputs - CNs by postcode'!$A17,'Calc - LGA to PC_Res'!$A$4:$A$115,0)) -> 5408.223278 | W17: =INDEX('Data - usage raw'!$O$3:$O$120, MATCH('Outputs - CNs by postcode'!A17,'Data - usage raw'!$N$3:$N$120,0),1) -> central | X17: central
A18: 3019 | B18: =INDEX('Calc - LGA to PC_Res'!E$4:E$115,MATCH('Outputs - CNs by postcode'!$A18,'Calc - LGA to PC_Res'!$A$4:$A$115,0)) -> 3 | C18: =INDEX('Calc - LGA to PC_Res'!F$4:F$115,MATCH('Outputs - CNs by postcode'!$A18,'Calc - LGA to PC_Res'!$A$4:$A$115,0)) -> 2494 | D18: =INDEX('Calc - LGA to PC_Res'!G$4:G$115,MATCH('Outputs - CNs by postcode'!$A18,'Calc - LGA to PC_Res'!$A$4:$A$115,0)) -> 2469 | E18: =INDEX('Calc - LGA to PC_Res'!H$4:H$115,MATCH('Outputs - CNs by postcode'!$A18,'Calc - LGA to PC_Res'!$A$4:$A$115,0)) -> 2527 | F18: =INDEX('Calc - LGA to PC_Res'!I$4:I$115,MATCH('Outputs - CNs by postcode'!$A18,'Calc - LGA to PC_Res'!$A$4:$A$115,0)) -> 2609 | G18: =INDEX('Calc - LGA to PC_Res'!J$4:J$115,MATCH('Outputs - CNs by postcode'!$A18,'Calc - LGA to PC_Res'!$A$4:$A$115,0)) -> 2690 | H18: =INDEX('Calc - LGA to PC_Res'!K$4:K$115,MATCH('Outputs - CNs by postcode'!$A18,'Calc - LGA to PC_Res'!$A$4:$A$115,0)) -> 2731 | I18: =INDEX('Calc - LGA to PC_Res'!L$4:L$115,MATCH('Outputs - CNs by postcode'!$A18,'Calc - LGA to PC_Res'!$A$4:$A$115,0)) -> 2808 | J18: =INDEX('Calc - LGA to PC_Res'!M$4:M$115,MATCH('Outputs - CNs by postcode'!$A18,'Calc - LGA to PC_Res'!$A$4:$A$115,0)) -> 2857 | K18: =INDEX('Calc - LGA to PC_Res'!N$4:N$115,MATCH('Outputs - CNs by postcode'!$A18,'Calc - LGA to PC_Res'!$A$4:$A$115,0)) -> 2878 | L18: =INDEX('Calc - LGA to PC_Res'!O$4:O$115,MATCH('Outputs - CNs by postcode'!$A18,'Calc - LGA to PC_Res'!$A$4:$A$115,0)) -> 2936 | M18: =INDEX('Calc - LGA to PC_Res'!P$4:P$115,MATCH('Outputs - CNs by postcode'!$A18,'Calc - LGA to PC_Res'!$A$4:$A$115,0)) -> 2982 | N18: =INDEX('Calc - LGA to PC_Res'!Q$4:Q$115,MATCH('Outputs - CNs by postcode'!$A18,'Calc - LGA to PC_Res'!$A$4:$A$115,0)) -> 3003 | O18: =INDEX('Calc - LGA to PC_Res'!R$4:R$115,MATCH('Outputs - CNs by postcode'!$A18,'Calc - LGA to PC_Res'!$A$4:$A$115,0)) -> 3066 | P18: =INDEX('Calc - LGA to PC_Res'!S$4:S$115,MATCH('Outputs - CNs by postcode'!$A18,'Calc - LGA to PC_Res'!$A$4:$A$115,0)) -> 3129 | Q18: =INDEX('Calc - LGA to PC_Res'!T$4:T$115,MATCH('Outputs - CNs by postcode'!$A18,'Calc - LGA to PC_Res'!$A$4:$A$115,0)) -> 3252 | R18: =INDEX('Calc - LGA to PC_Res'!U$4:U$115,MATCH('Outputs - CNs by postcode'!$A18,'Calc - LGA to PC_Res'!$A$4:$A$115,0)) -> 3297.046036 | S18: =INDEX('Calc - LGA to PC_Res'!V$4:V$115,MATCH('Outputs - CNs by postcode'!$A18,'Calc - LGA to PC_Res'!$A$4:$A$115,0)) -> 3343.593202 | T18: =INDEX('Calc - LGA to PC_Res'!W$4:W$115,MATCH('Outputs - CNs by postcode'!$A18,'Calc - LGA to PC_Res'!$A$4:$A$115,0)) -> 3391.691522 | U18: =INDEX('Calc - LGA to PC_Res'!X$4:X$115,MATCH('Outputs - CNs by postcode'!$A18,'Calc - LGA to PC_Res'!$A$4:$A$115,0)) -> 3441.392687 | V18: =INDEX('Calc - LGA to PC_Res'!Y$4:Y$115,MATCH('Outputs - CNs by postcode'!$A18,'Calc - LGA to PC_Res'!$A$4:$A$115,0)) -> 3492.110605 | W18: =INDEX('Data - usage raw'!$O$3:$O$120, MATCH('Outputs - CNs by postcode'!A18,'Data - usage raw'!$N$3:$N$120,0),1) -> central | X18: central
A19: 3020 | B19: =INDEX('Calc - LGA to PC_Res'!E$4:E$115,MATCH('Outputs - CNs by postcode'!$A19,'Calc - LGA to PC_Res'!$A$4:$A$115,0)) -> 9 | C19: =INDEX('Calc - LGA to PC_Res'!F$4:F$115,MATCH('Outputs - CNs by postcode'!$A19,'Calc - LGA to PC_Res'!$A$4:$A$115,0)) -> 11471 | D19: =INDEX('Calc - LGA to PC_Res'!G$4:G$115,MATCH('Outputs - CNs by postcode'!$A19,'Calc - LGA to PC_Res'!$A$4:$A$115,0)) -> 11257 | E19: =INDEX('Calc - LGA to PC_Res'!H$4:H$115,MATCH('Outputs - CNs by postcode'!$A19,'Calc - LGA to PC_Res'!$A$4:$A$115,0)) -> 11361 | F19: =INDEX('Calc - LGA to PC_Res'!I$4:I$115,MATCH('Outputs - CNs by postcode'!$A19,'Calc - LGA to PC_Res'!$A$4:$A$115,0)) -> 11465 | G19: =INDEX('Calc - LGA to PC_Res'!J$4:J$115,MATCH('Outputs - CNs by postcode'!$A19,'Calc - LGA to PC_Res'!$A$4:$A$115,0)) -> 11965 | H19: =INDEX('Calc - LGA to PC_Res'!K$4:K$115,MATCH('Outputs - CNs by postcode'!$A19,'Calc - LGA to PC_Res'!$A$4:$A$115,0)) -> 12046 | I19: =INDEX('Calc - LGA to PC_Res'!L$4:L$115,MATCH('Outputs - CNs by postcode'!$A19,'Calc - LGA to PC_Res'!$A$4:$A$115,0)) -> 12292 | J19: =INDEX('Calc - LGA to PC_Res'!M$4:M$115,MATCH('Outputs - CNs by postcode'!$A19,'Calc - LGA to PC_Res'!$A$4:$A$115,0)) -> 12649 | K19: =INDEX('Calc - LGA to PC_Res'!N$4:N$115,MATCH('Outputs - CNs by postcode'!$A19,'Calc - LGA to PC_Res'!$A$4:$A$115,0)) -> 12926 | L19: =INDEX('Calc - LGA to PC_Res'!O$4:O$115,MATCH('Outputs - CNs by postcode'!$A19,'Calc - LGA to PC_Res'!$A$4:$A$115,0)) -> 14422 | M19: =INDEX('Calc - LGA to PC_Res'!P$4:P$115,MATCH('Outputs - CNs by postcode'!$A19,'Calc - LGA to PC_Res'!$A$4:$A$115,0)) -> 14805 | N19: =INDEX('Calc - LGA to PC_Res'!Q$4:Q$115,MATCH('Outputs - CNs by postcode'!$A19,'Calc - LGA to PC_Res'!$A$4:$A$115,0)) -> 15132 | O19: =INDEX('Calc - LGA to PC_Res'!R$4:R$115,MATCH('Outputs - CNs by postcode'!$A19,'Calc - LGA to PC_Res'!$A$4:$A$115,0)) -> 15338 | P19: =INDEX('Calc - LGA to PC_Res'!S$4:S$115,MATCH('Outputs - CNs by postcode'!$A19,'Calc - LGA to PC_Res'!$A$4:$A$115,0)) -> 15544 | Q19: =INDEX('Calc - LGA to PC_Res'!T$4:T$115,MATCH('Outputs - CNs by postcode'!$A19,'Calc - LGA to PC_Res'!$A$4:$A$115,0)) -> 15712 | R19: =INDEX('Calc - LGA to PC_Res'!U$4:U$115,MATCH('Outputs - CNs by postcode'!$A19,'Calc - LGA to PC_Res'!$A$4:$A$115,0)) -> 15869.22168 | S19: =INDEX('Calc - LGA to PC_Res'!V$4:V$115,MATCH('Outputs - CNs by postcode'!$A19,'Calc - LGA to PC_Res'!$A$4:$A$115,0)) -> 16028.39356 | T19: =INDEX('Calc - LGA to PC_Res'!W$4:W$115,MATCH('Outputs - CNs by postcode'!$A19,'Calc - LGA to PC_Res'!$A$4:$A$115,0)) -> 16189.53981 | U19: =INDEX('Calc - LGA to PC_Res'!X$4:X$115,MATCH('Outputs - CNs by postcode'!$A19,'Calc - LGA to PC_Res'!$A$4:$A$115,0)) -> 16352.68493 | V19: =INDEX('Calc - LGA to PC_Res'!Y$4:Y$115,MATCH('Outputs - CNs by postcode'!$A19,'Calc - LGA to PC_Res'!$A$4:$A$115,0)) -> 16483.60595 | W19: =INDEX('Data - usage raw'!$O$3:$O$120, MATCH('Outputs - CNs by postcode'!A19,'Data - usage raw'!$N$3:$N$120,0),1) -> central | X19: central
A20: 3021 | B20: =INDEX('Calc - LGA to PC_Res'!E$4:E$115,MATCH('Outputs - CNs by postcode'!$A20,'Calc - LGA to PC_Res'!$A$4:$A$115,0)) -> 7 | C20: =INDEX('Calc - LGA to PC_Res'!F$4:F$115,MATCH('Outputs - CNs by postcode'!$A20,'Calc - LGA to PC_Res'!$A$4:$A$115,0)) -> 17666 | D20: =INDEX('Calc - LGA to PC_Res'!G$4:G$115,MATCH('Outputs - CNs by postcode'!$A20,'Calc - LGA to PC_Res'!$A$4:$A$115,0)) -> 17603 | E20: =INDEX('Calc - LGA to PC_Res'!H$4:H$115,MATCH('Outputs - CNs by postcode'!$A20,'Calc - LGA to PC_Res'!$A$4:$A$115,0)) -> 17711 | F20: =INDEX('Calc - LGA to PC_Res'!I$4:I$115,MATCH('Outputs - CNs by postcode'!$A20,'Calc - LGA to PC_Res'!$A$4:$A$115,0)) -> 17864 | G20: =INDEX('Calc - LGA to PC_Res'!J$4:J$115,MATCH('Outputs - CNs by postcode'!$A20,'Calc - LGA to PC_Res'!$A$4:$A$115,0)) -> 17915 | H20: =INDEX('Calc - LGA to PC_Res'!K$4:K$115,MATCH('Outputs - CNs by postcode'!$A20,'Calc - LGA to PC_Res'!$A$4:$A$115,0)) -> 18038 | I20: =INDEX('Calc - LGA to PC_Res'!L$4:L$115,MATCH('Outputs - CNs by postcode'!$A20,'Calc - LGA to PC_Res'!$A$4:$A$115,0)) -> 18219 | J20: =INDEX('Calc - LGA to PC_Res'!M$4:M$115,MATCH('Outputs - CNs by postcode'!$A20,'Calc - LGA to PC_Res'!$A$4:$A$115,0)) -> 18300 | K20: =INDEX('Calc - LGA to PC_Res'!N$4:N$115,MATCH('Outputs - CNs by postcode'!$A20,'Calc - LGA to PC_Res'!$A$4:$A$115,0)) -> 18482 | L20: =INDEX('Calc - LGA to PC_Res'!O$4:O$115,MATCH('Outputs - CNs by postcode'!$A20,'Calc - LGA to PC_Res'!$A$4:$A$115,0)) -> 18632 | M20: =INDEX('Calc - LGA to PC_Res'!P$4:P$115,MATCH('Outputs - CNs by postcode'!$A20,'Calc - LGA to PC_Res'!$A$4:$A$115,0)) -> 18744 | N20: =INDEX('Calc - LGA to PC_Res'!Q$4:Q$115,MATCH('Outputs - CNs by postcode'!$A20,'Calc - LGA to PC_Res'!$A$4:$A$115,0)) -> 18801 | O20: =INDEX('Calc - LGA to PC_Res'!R$4:R$115,MATCH('Outputs - CNs by postcode'!$A20,'Calc - LGA to PC_Res'!$A$4:$A$115,0)) -> 18875 | P20: =INDEX('Calc - LGA to PC_Res'!S$4:S$115,MATCH('Outputs - CNs by postcode'!$A20,'Calc - LGA to PC_Res'!$A$4:$A$115,0)) -> 18924 | Q20: =INDEX('Calc - LGA to PC_Res'!T$4:T$115,MATCH('Outputs - CNs by postcode'!$A20,'Calc - LGA to PC_Res'!$A$4:$A$115,0)) -> 19077 | R20: =INDEX('Calc - LGA to PC_Res'!U$4:U$115,MATCH('Outputs - CNs by postcode'!$A20,'Calc - LGA to PC_Res'!$A$4:$A$115,0)) -> 19267.89346 | S20: =INDEX('Calc - LGA to PC_Res'!V$4:V$115,MATCH('Outputs - CNs by postcode'!$A20,'Calc - LGA to PC_Res'!$A$4:$A$115,0)) -> 19461.15478 | T20: =INDEX('Calc - LGA to PC_Res'!W$4:W$115,MATCH('Outputs - CNs by postcode'!$A20,'Calc - LGA to PC_Res'!$A$4:$A$115,0)) -> 19656.81332 | U20: =INDEX('Calc - LGA to PC_Res'!X$4:X$115,MATCH('Outputs - CNs by postcode'!$A20,'Calc - LGA to PC_Res'!$A$4:$A$115,0)) -> 19854.89883 | V20: =INDEX('Calc - LGA to PC_Res'!Y$4:Y$115,MATCH('Outputs - CNs by postcode'!$A20,'Calc - LGA to PC_Res'!$A$4:$A$115,0)) -> 20013.85888 | W20: =INDEX('Data - usage raw'!$O$3:$O$120, MATCH('Outputs - CNs by postcode'!A20,'Data - usage raw'!$N$3:$N$120,0),1) -> central | X20: central
A21: 3022 | B21: =INDEX('Calc - LGA to PC_Res'!E$4:E$115,MATCH('Outputs - CNs by postcode'!$A21,'Calc - LGA to PC_Res'!$A$4:$A$115,0)) -> 3 | C21: =INDEX('Calc - LGA to PC_Res'!F$4:F$115,MATCH('Outputs - CNs by postcode'!$A21,'Calc - LGA to PC_Res'!$A$4:$A$115,0)) -> 3318 | D21: =INDEX('Calc - LGA to PC_Res'!G$4:G$115,MATCH('Outputs - CNs by postcode'!$A21,'Calc - LGA to PC_Res'!$A$4:$A$115,0)) -> 3295 | E21: =INDEX('Calc - LGA to PC_Res'!H$4:H$115,MATCH('Outputs - CNs by postcode'!$A21,'Calc - LGA to PC_Res'!$A$4:$A$115,0)) -> 3326 | F21: =INDEX('Calc - LGA to PC_Res'!I$4:I$115,MATCH('Outputs - CNs by postcode'!$A21,'Calc - LGA to PC_Res'!$A$4:$A$115,0)) -> 3361 | G21: =INDEX('Calc - LGA to PC_Res'!J$4:J$115,MATCH('Outputs - CNs by postcode'!$A21,'Calc - LGA to PC_Res'!$A$4:$A$115,0)) -> 3094 | H21: =INDEX('Calc - LGA to PC_Res'!K$4:K$115,MATCH('Outputs - CNs by postcode'!$A21,'Calc - LGA to PC_Res'!$A$4:$A$115,0)) -> 2964 | I21: =INDEX('Calc - LGA to PC_Res'!L$4:L$115,MATCH('Outputs - CNs by postcode'!$A21,'Calc - LGA to PC_Res'!$A$4:$A$115,0)) -> 2879 | J21: =INDEX('Calc - LGA to PC_Res'!M$4:M$115,MATCH('Outputs - CNs by postcode'!$A21,'Calc - LGA to PC_Res'!$A$4:$A$115,0)) -> 2743 | K21: =INDEX('Calc - LGA to PC_Res'!N$4:N$115,MATCH('Outputs - CNs by postcode'!$A21,'Calc - LGA to PC_Res'!$A$4:$A$115,0)) -> 2704 | L21: =INDEX('Calc - LGA to PC_Res'!O$4:O$115,MATCH('Outputs - CNs by postcode'!$A21,'Calc - LGA to PC_Res'!$A$4:$A$115,0)) -> 2540 | M21: =INDEX('Calc - LGA to PC_Res'!P$4:P$115,MATCH('Outputs - CNs by postcode'!$A21,'Calc - LGA to PC_Res'!$A$4:$A$115,0)) -> 1378 | N21: =INDEX('Calc - LGA to PC_Res'!Q$4:Q$115,MATCH('Outputs - CNs by postcode'!$A21,'Calc - LGA to PC_Res'!$A$4:$A$115,0)) -> 1230 | O21: =INDEX('Calc - LGA to PC_Res'!R$4:R$115,MATCH('Outputs - CNs by postcode'!$A21,'Calc - LGA to PC_Res'!$A$4:$A$115,0)) -> 1257 | P21: =INDEX('Calc - LGA to PC_Res'!S$4:S$115,MATCH('Outputs - CNs by postcode'!$A21,'Calc - LGA to PC_Res'!$A$4:$A$115,0)) -> 1166 | Q21: =INDEX('Calc - LGA to PC_Res'!T$4:T$115,MATCH('Outputs - CNs by postcode'!$A21,'Calc - LGA to PC_Res'!$A$4:$A$115,0)) -> 1173 | R21: =INDEX('Calc - LGA to PC_Res'!U$4:U$115,MATCH('Outputs - CNs by postcode'!$A21,'Calc - LGA to PC_Res'!$A$4:$A$115,0)) -> 1184.737591 | S21: =INDEX('Calc - LGA to PC_Res'!V$4:V$115,MATCH('Outputs - CNs by postcode'!$A21,'Calc - LGA to PC_Res'!$A$4:$A$115,0)) -> 1196.620777 | T21: =INDEX('Calc - LGA to PC_Res'!W$4:W$115,MATCH('Outputs - CNs by postcode'!$A21,'Calc - LGA to PC_Res'!$A$4:$A$115,0)) -> 1208.651362 | U21: =INDEX('Calc - LGA to PC_Res'!X$4:X$115,MATCH('Outputs - CNs by postcode'!$A21,'Calc - LGA to PC_Res'!$A$4:$A$115,0)) -> 1220.831175 | V21: =INDEX('Calc - LGA to PC_Res'!Y$4:Y$115,MATCH('Outputs - CNs by postcode'!$A21,'Calc - LGA to PC_Res'!$A$4:$A$115,0)) -> 1230.605256 | W21: =INDEX('Data - usage raw'!$O$3:$O$120, MATCH('Outputs - CNs by postcode'!A21,'Data - usage raw'!$N$3:$N$120,0),1) -> central | X21: central
A22: 3023 | B22: =INDEX('Calc - LGA to PC_Res'!E$4:E$115,MATCH('Outputs - CNs by postcode'!$A22,'Calc - LGA to PC_Res'!$A$4:$A$115,0)) -> 2 | C22: =INDEX('Calc - LGA to PC_Res'!F$4:F$115,MATCH('Outputs - CNs by postcode'!$A22,'Calc - LGA to PC_Res'!$A$4:$A$115,0)) -> 8723 | D22: =INDEX('Calc - LGA to PC_Res'!G$4:G$115,MATCH('Outputs - CNs by postcode'!$A22,'Calc - LGA to PC_Res'!$A$4:$A$115,0)) -> 9696 | E22: =INDEX('Calc - LGA to PC_Res'!H$4:H$115,MATCH('Outputs - CNs by postcode'!$A22,'Calc - LGA to PC_Res'!$A$4:$A$115,0)) -> 10569 | F22: =INDEX('Calc - LGA to PC_Res'!I$4:I$115,MATCH('Outputs - CNs by postcode'!$A22,'Calc - LGA to PC_Res'!$A$4:$A$115,0)) -> 11687 | G22: =INDEX('Calc - LGA to PC_Res'!J$4:J$115,MATCH('Outputs - CNs by postcode'!$A22,'Calc - LGA to PC_Res'!$A$4:$A$115,0)) -> 12970 | H22: =INDEX('Calc - LGA to PC_Res'!K$4:K$115,MATCH('Outputs - CNs by postcode'!$A22,'Calc - LGA to PC_Res'!$A$4:$A$115,0)) -> 14022 | I22: =INDEX('Calc - LGA to PC_Res'!L$4:L$115,MATCH('Outputs - CNs by postcode'!$A22,'Calc - LGA to PC_Res'!$A$4:$A$115,0)) -> 15669 | J22: =INDEX('Calc - LGA to PC_Res'!M$4:M$115,MATCH('Outputs - CNs by postcode'!$A22,'Calc - LGA to PC_Res'!$A$4:$A$115,0)) -> 17370 | K22: =INDEX('Calc - LGA to PC_Res'!N$4:N$115,MATCH('Outputs - CNs by postcode'!$A22,'Calc - LGA to PC_Res'!$A$4:$A$115,0)) -> 18303 | L22: =INDEX('Calc - LGA to PC_Res'!O$4:O$115,MATCH('Outputs - CNs by postcode'!$A22,'Calc - LGA to PC_Res'!$A$4:$A$115,0)) -> 18878 | M22: =INDEX('Calc - LGA to PC_Res'!P$4:P$115,MATCH('Outputs - CNs by postcode'!$A22,'Calc - LGA to PC_Res'!$A$4:$A$115,0)) -> 19252 | N22: =INDEX('Calc - LGA to PC_Res'!Q$4:Q$115,MATCH('Outputs - CNs by postcode'!$A22,'Calc - LGA to PC_Res'!$A$4:$A$115,0)) -> 19456 | O22: =INDEX('Calc - LGA to PC_Res'!R$4:R$115,MATCH('Outputs - CNs by postcode'!$A22,'Calc - LGA to PC_Res'!$A$4:$A$115,0)) -> 19652 | P22: =INDEX('Calc - LGA to PC_Res'!S$4:S$115,MATCH('Outputs - CNs by postcode'!$A22,'Calc - LGA to PC_Res'!$A$4:$A$115,0)) -> 19844 | Q22: =INDEX('Calc - LGA to PC_Res'!T$4:T$115,MATCH('Outputs - CNs by postcode'!$A22,'Calc - LGA to PC_Res'!$A$4:$A$115,0)) -> 20040 | R22: =INDEX('Calc - LGA to PC_Res'!U$4:U$115,MATCH('Outputs - CNs by postcode'!$A22,'Calc - LGA to PC_Res'!$A$4:$A$115,0)) -> 20567.90972 | S22: =INDEX('Calc - LGA to PC_Res'!V$4:V$115,MATCH('Outputs - CNs by postcode'!$A22,'Calc - LGA to PC_Res'!$A$4:$A$115,0)) -> 21116.25594 | T22: =INDEX('Calc - LGA to PC_Res'!W$4:W$115,MATCH('Outputs - CNs by postcode'!$A22,'Calc - LGA to PC_Res'!$A$4:$A$115,0)) -> 21685.90549 | U22: =INDEX('Calc - LGA to PC_Res'!X$4:X$115,MATCH('Outputs - CNs by postcode'!$A22,'Calc - LGA to PC_Res'!$A$4:$A$115,0)) -> 22277.76306 | V22: =INDEX('Calc - LGA to PC_Res'!Y$4:Y$115,MATCH('Outputs - CNs by postcode'!$A22,'Calc - LGA to PC_Res'!$A$4:$A$115,0)) -> 22912.79851 | W22: =INDEX('Data - usage raw'!$O$3:$O$120, MATCH('Outputs - CNs by postcode'!A22,'Data - usage raw'!$N$3:$N$120,0),1) -> central | X22: central
A23: 3024 | B23: =INDEX('Calc - LGA to PC_Res'!E$4:E$115,MATCH('Outputs - CNs by postcode'!$A23,'Calc - LGA to PC_Res'!$A$4:$A$115,0)) -> 0 | C23: =INDEX('Calc - LGA to PC_Res'!F$4:F$115,MATCH('Outputs - CNs by postcode'!$A23,'Calc - LGA to PC_Res'!$A$4:$A$115,0)) -> 2754 | D23: =INDEX('Calc - LGA to PC_Res'!G$4:G$115,MATCH('Outputs - CNs by postcode'!$A23,'Calc - LGA to PC_Res'!$A$4:$A$115,0)) -> 2909 | E23: =INDEX('Calc - LGA to PC_Res'!H$4:H$115,MATCH('Outputs - CNs by postcode'!$A23,'Calc - LGA to PC_Res'!$A$4:$A$115,0)) -> 3217 | F23: =INDEX('Calc - LGA to PC_Res'!I$4:I$115,MATCH('Outputs - CNs by postcode'!$A23,'Calc - LGA to PC_Res'!$A$4:$A$115,0)) -> 3609 | G23: =INDEX('Calc - LGA to PC_Res'!J$4:J$115,MATCH('Outputs - CNs by postcode'!$A23,'Calc - LGA to PC_Res'!$A$4:$A$115,0)) -> 4007 | H23: =INDEX('Calc - LGA to PC_Res'!K$4:K$115,MATCH('Outputs - CNs by postcode'!$A23,'Calc - LGA to PC_Res'!$A$4:$A$115,0)) -> 4322 | I23: =INDEX('Calc - LGA to PC_Res'!L$4:L$115,MATCH('Outputs - CNs by postcode'!$A23,'Calc - LGA to PC_Res'!$A$4:$A$115,0)) -> 4809 | J23: =INDEX('Calc - LGA to PC_Res'!M$4:M$115,MATCH('Outputs - CNs by postcode'!$A23,'Calc - LGA to PC_Res'!$A$4:$A$115,0)) -> 5455 | K23: =INDEX('Calc - LGA to PC_Res'!N$4:N$115,MATCH('Outputs - CNs by postcode'!$A23,'Calc - LGA to PC_Res'!$A$4:$A$115,0)) -> 6107 | L23: =INDEX('Calc - LGA to PC_Res'!O$4:O$115,MATCH('Outputs - CNs by postcode'!$A23,'Calc - LGA to PC_Res'!$A$4:$A$115,0)) -> 6836 | M23: =INDEX('Calc - LGA to PC_Res'!P$4:P$115,MATCH('Outputs - CNs by postcode'!$A23,'Calc - LGA to PC_Res'!$A$4:$A$115,0)) -> 7193 | N23: =INDEX('Calc - LGA to PC_Res'!Q$4:Q$115,MATCH('Outputs - CNs by postcode'!$A23,'Calc - LGA to PC_Res'!$A$4:$A$115,0)) -> 7349 | O23: =INDEX('Calc - LGA to PC_Res'!R$4:R$115,MATCH('Outputs - CNs by postcode'!$A23,'Calc - LGA to PC_Res'!$A$4:$A$115,0)) -> 7591 | P23: =INDEX('Calc - LGA to PC_Res'!S$4:S$115,MATCH('Outputs - CNs by postcode'!$A23,'Calc - LGA to PC_Res'!$A$4:$A$115,0)) -> 7802 | Q23: =INDEX('Calc - LGA to PC_Res'!T$4:T$115,MATCH('Outputs - CNs by postcode'!$A23,'Calc - LGA to PC_Res'!$A$4:$A$115,0)) -> 8140 | R23: =INDEX('Calc - LGA to PC_Res'!U$4:U$115,MATCH('Outputs - CNs by postcode'!$A23,'Calc - LGA to PC_Res'!$A$4:$A$115,0)) -> 8559.293073 | S23: =INDEX('Calc - LGA to PC_Res'!V$4:V$115,MATCH('Outputs - CNs by postcode'!$A23,'Calc - LGA to PC_Res'!$A$4:$A$115,0)) -> 8995.158114 | T23: =INDEX('Calc - LGA to PC_Res'!W$4:W$115,MATCH('Outputs - CNs by postcode'!$A23,'Calc - LGA to PC_Res'!$A$4:$A$115,0)) -> 9448.250247 | U23: =INDEX('Calc - LGA to PC_Res'!X$4:X$115,MATCH('Outputs - CNs by postcode'!$A23,'Calc - LGA to PC_Res'!$A$4:$A$115,0)) -> 9919.250501 | V23: =INDEX('Calc - LGA to PC_Res'!Y$4:Y$115,MATCH('Outputs - CNs by postcode'!$A23,'Calc - LGA to PC_Res'!$A$4:$A$115,0)) -> 10333.92272 | W23: =INDEX('Data - usage raw'!$O$3:$O$120, MATCH('Outputs - CNs by postcode'!A23,'Data - usage raw'!$N$3:$N$120,0),1) -> central | X23: central
A24: 3025 | B24: =INDEX('Calc - LGA to PC_Res'!E$4:E$115,MATCH('Outputs - CNs by postcode'!$A24,'Calc - LGA to PC_Res'!$A$4:$A$115,0)) -> 3 | C24: =INDEX('Calc - LGA to PC_Res'!F$4:F$115,MATCH('Outputs - CNs by postcode'!$A24,'Calc - LGA to PC_Res'!$A$4:$A$115,0)) -> 4596 | D24: =INDEX('Calc - LGA to PC_Res'!G$4:G$115,MATCH('Outputs - CNs by postcode'!$A24,'Calc - LGA to PC_Res'!$A$4:$A$115,0)) -> 4478 | E24: =INDEX('Calc - LGA to PC_Res'!H$4:H$115,MATCH('Outputs - CNs by postcode'!$A24,'Calc - LGA to PC_Res'!$A$4:$A$115,0)) -> 4504 | F24: =INDEX('Calc - LGA to PC_Res'!I$4:I$115,MATCH('Outputs - CNs by postcode'!$A24,'Calc - LGA to PC_Res'!$A$4:$A$115,0)) -> 4545 | G24: =INDEX('Calc - LGA to PC_Res'!J$4:J$115,MATCH('Outputs - CNs by postcode'!$A24,'Calc - LGA to PC_Res'!$A$4:$A$115,0)) -> 4539 | H24: =INDEX('Calc - LGA to PC_Res'!K$4:K$115,MATCH('Outputs - CNs by postcode'!$A24,'Calc - LGA to PC_Res'!$A$4:$A$115,0)) -> 4576 | I24: =INDEX('Calc - LGA to PC_Res'!L$4:L$115,MATCH('Outputs - CNs by postcode'!$A24,'Calc - LGA to PC_Res'!$A$4:$A$115,0)) -> 4610 | J24: =INDEX('Calc - LGA to PC_Res'!M$4:M$115,MATCH('Outputs - CNs by postcode'!$A24,'Calc - LGA to PC_Res'!$A$4:$A$115,0)) -> 4647 | K24: =INDEX('Calc - LGA to PC_Res'!N$4:N$115,MATCH('Outputs - CNs by postcode'!$A24,'Calc - LGA to PC_Res'!$A$4:$A$115,0)) -> 4675 | L24: =INDEX('Calc - LGA to PC_Res'!O$4:O$115,MATCH('Outputs - CNs by postcode'!$A24,'Calc - LGA to PC_Res'!$A$4:$A$115,0)) -> 4752 | M24: =INDEX('Calc - LGA to PC_Res'!P$4:P$115,MATCH('Outputs - CNs by postcode'!$A24,'Calc - LGA to PC_Res'!$A$4:$A$115,0)) -> 4789 | N24: =INDEX('Calc - LGA to PC_Res'!Q$4:Q$115,MATCH('Outputs - CNs by postcode'!$A24,'Calc - LGA to PC_Res'!$A$4:$A$115,0)) -> 4697 | O24: =INDEX('Calc - LGA to PC_Res'!R$4:R$115,MATCH('Outputs - CNs by postcode'!$A24,'Calc - LGA to PC_Res'!$A$4:$A$115,0)) -> 4733 | P24: =INDEX('Calc - LGA to PC_Res'!S$4:S$115,MATCH('Outputs - CNs by postcode'!$A24,'Calc - LGA to PC_Res'!$A$4:$A$115,0)) -> 4783 | Q24: =INDEX('Calc - LGA to PC_Res'!T$4:T$115,MATCH('Outputs - CNs by postcode'!$A24,'Calc - LGA to PC_Res'!$A$4:$A$115,0)) -> 4851 | R24: =INDEX('Calc - LGA to PC_Res'!U$4:U$115,MATCH('Outputs - CNs by postcode'!$A24,'Calc - LGA to PC_Res'!$A$4:$A$115,0)) -> 4886.74184 | S24: =INDEX('Calc - LGA to PC_Res'!V$4:V$115,MATCH('Outputs - CNs by postcode'!$A24,'Calc - LGA to PC_Res'!$A$4:$A$115,0)) -> 4922.899088 | T24: =INDEX('Calc - LGA to PC_Res'!W$4:W$115,MATCH('Outputs - CNs by postcode'!$A24,'Calc - LGA to PC_Res'!$A$4:$A$115,0)) -> 4959.476572 | U24: =INDEX('Calc - LGA to PC_Res'!X$4:X$115,MATCH('Outputs - CNs by postcode'!$A24,'Calc - LGA to PC_Res'!$A$4:$A$115,0)) -> 4996.479177 | V24: =INDEX('Calc - LGA to PC_Res'!Y$4:Y$115,MATCH('Outputs - CNs by postcode'!$A24,'Calc - LGA to PC_Res'!$A$4:$A$115,0)) -> 5037.498295 | W24: =INDEX('Data - usage raw'!$O$3:$O$120, MATCH('Outputs - CNs by postcode'!A24,'Data - usage raw'!$N$3:$N$120,0),1) -> central | X24: central
A25: 3026 | B25: =INDEX('Calc - LGA to PC_Res'!E$4:E$115,MATCH('Outputs - CNs by postcode'!$A25,'Calc - LGA to PC_Res'!$A$4:$A$115,0)) -> 0 | C25: =INDEX('Calc - LGA to PC_Res'!F$4:F$115,MATCH('Outputs - CNs by postcode'!$A25,'Calc - LGA to PC_Res'!$A$4:$A$115,0)) -> 88 | D25: =INDEX('Calc - LGA to PC_Res'!G$4:G$115,MATCH('Outputs - CNs by postcode'!$A25,'Calc - LGA to PC_Res'!$A$4:$A$115,0)) -> 18 | E25: =INDEX('Calc - LGA to PC_Res'!H$4:H$115,MATCH('Outputs - CNs by postcode'!$A25,'Calc - LGA to PC_Res'!$A$4:$A$115,0)) -> 17 | F25: =INDEX('Calc - LGA to PC_Res'!I$4:I$115,MATCH('Outputs - CNs by postcode'!$A25,'Calc - LGA to PC_Res'!$A$4:$A$115,0)) -> 18 | G25: =INDEX('Calc - LGA to PC_Res'!J$4:J$115,MATCH('Outputs - CNs by postcode'!$A25,'Calc - LGA to PC_Res'!$A$4:$A$115,0)) -> 17 | H25: =INDEX('Calc - LGA to PC_Res'!K$4:K$115,MATCH('Outputs - CNs by postcode'!$A25,'Calc - LGA to PC_Res'!$A$4:$A$115,0)) -> 17 | I25: =INDEX('Calc - LGA to PC_Res'!L$4:L$115,MATCH('Outputs - CNs by postcode'!$A25,'Calc - LGA to PC_Res'!$A$4:$A$115,0)) -> 18 | J25: =INDEX('Calc - LGA to PC_Res'!M$4:M$115,MATCH('Outputs - CNs by postcode'!$A25,'Calc - LGA to PC_Res'!$A$4:$A$115,0)) -> 20 | K25: =INDEX('Calc - LGA to PC_Res'!N$4:N$115,MATCH('Outputs - CNs by postcode'!$A25,'Calc - LGA to PC_Res'!$A$4:$A$115,0)) -> 19 | L25: =INDEX('Calc - LGA to PC_Res'!O$4:O$115,MATCH('Outputs - CNs by postcode'!$A25,'Calc - LGA to PC_Res'!$A$4:$A$115,0)) -> 19 | M25: =INDEX('Calc - LGA to PC_Res'!P$4:P$115,MATCH('Outputs - CNs by postcode'!$A25,'Calc - LGA to PC_Res'!$A$4:$A$115,0)) -> 19 | N25: =INDEX('Calc - LGA to PC_Res'!Q$4:Q$115,MATCH('Outputs - CNs by postcode'!$A25,'Calc - LGA to PC_Res'!$A$4:$A$115,0)) -> 18 | O25: =INDEX('Calc - LGA to PC_Res'!R$4:R$115,MATCH('Outputs - CNs by postcode'!$A25,'Calc - LGA to PC_Res'!$A$4:$A$115,0)) -> 18 | P25: =INDEX('Calc - LGA to PC_Res'!S$4:S$115,MATCH('Outputs - CNs by postcode'!$A25,'Calc - LGA to PC_Res'!$A$4:$A$115,0)) -> 18 | Q25: =INDEX('Calc - LGA to PC_Res'!T$4:T$115,MATCH('Outputs - CNs by postcode'!$A25,'Calc - LGA to PC_Res'!$A$4:$A$115,0)) -> 18 | R25: =INDEX('Calc - LGA to PC_Res'!U$4:U$115,MATCH('Outputs - CNs by postcode'!$A25,'Calc - LGA to PC_Res'!$A$4:$A$115,0)) -> 18.84133399 | S25: =INDEX('Calc - LGA to PC_Res'!V$4:V$115,MATCH('Outputs - CNs by postcode'!$A25,'Calc - LGA to PC_Res'!$A$4:$A$115,0)) -> 19.71544389 | T25: =INDEX('Calc - LGA to PC_Res'!W$4:W$115,MATCH('Outputs - CNs by postcode'!$A25,'Calc - LGA to PC_Res'!$A$4:$A$115,0)) -> 20.62361794 | U25: =INDEX('Calc - LGA to PC_Res'!X$4:X$115,MATCH('Outputs - CNs by postcode'!$A25,'Calc - LGA to PC_Res'!$A$4:$A$115,0)) -> 21.56719514 | V25: =INDEX('Calc - LGA to PC_Res'!Y$4:Y$115,MATCH('Outputs - CNs by postcode'!$A25,'Calc - LGA to PC_Res'!$A$4:$A$115,0)) -> 22.3979143 | W25: =INDEX('Data - usage raw'!$O$3:$O$120, MATCH('Outputs - CNs by postcode'!A25,'Data - usage raw'!$N$3:$N$120,0),1) -> central | X25: central
A26: 3027 | B26: =INDEX('Calc - LGA to PC_Res'!E$4:E$115,MATCH('Outputs - CNs by postcode'!$A26,'Calc - LGA to PC_Res'!$A$4:$A$115,0)) -> 0 | C26: =INDEX('Calc - LGA to PC_Res'!F$4:F$115,MATCH('Outputs - CNs by postcode'!$A26,'Calc - LGA to PC_Res'!$A$4:$A$115,0)) -> 0 | D26: =INDEX('Calc - LGA to PC_Res'!G$4:G$115,MATCH('Outputs - CNs by postcode'!$A26,'Calc - LGA to PC_Res'!$A$4:$A$115,0)) -> 0 | E26: =INDEX('Calc - LGA to PC_Res'!H$4:H$115,MATCH('Outputs - CNs by postcode'!$A26,'Calc - LGA to PC_Res'!$A$4:$A$115,0)) -> 0 | F26: =INDEX('Calc - LGA to PC_Res'!I$4:I$115,MATCH('Outputs - CNs by postcode'!$A26,'Calc - LGA to PC_Res'!$A$4:$A$115,0)) -> 0 | G26: =INDEX('Calc - LGA to PC_Res'!J$4:J$115,MATCH('Outputs - CNs by postcode'!$A26,'Calc - LGA to PC_Res'!$A$4:$A$115,0)) -> 0 | H26: =INDEX('Calc - LGA to PC_Res'!K$4:K$115,MATCH('Outputs - CNs by postcode'!$A26,'Calc - LGA to PC_Res'!$A$4:$A$115,0)) -> 159 | I26: =INDEX('Calc - LGA to PC_Res'!L$4:L$115,MATCH('Outputs - CNs by postcode'!$A26,'Calc - LGA to PC_Res'!$A$4:$A$115,0)) -> 362 | J26: =INDEX('Calc - LGA to PC_Res'!M$4:M$115,MATCH('Outputs - CNs by postcode'!$A26,'Calc - LGA to PC_Res'!$A$4:$A$115,0)) -> 596 | K26: =INDEX('Calc - LGA to PC_Res'!N$4:N$115,MATCH('Outputs - CNs by postcode'!$A26,'Calc - LGA to PC_Res'!$A$4:$A$115,0)) -> 939 | L26: =INDEX('Calc - LGA to PC_Res'!O$4:O$115,MATCH('Outputs - CNs by postcode'!$A26,'Calc - LGA to PC_Res'!$A$4:$A$115,0)) -> 1238 | M26: =INDEX('Calc - LGA to PC_Res'!P$4:P$115,MATCH('Outputs - CNs by postcode'!$A26,'Calc - LGA to PC_Res'!$A$4:$A$115,0)) -> 1475 | N26: =INDEX('Calc - LGA to PC_Res'!Q$4:Q$115,MATCH('Outputs - CNs by postcode'!$A26,'Calc - LGA to PC_Res'!$A$4:$A$115,0)) -> 1703 | O26: =INDEX('Calc - LGA to PC_Res'!R$4:R$115,MATCH('Outputs - CNs by postcode'!$A26,'Calc - LGA to PC_Res'!$A$4:$A$115,0)) -> 1955 | P26: =INDEX('Calc - LGA to PC_Res'!S$4:S$115,MATCH('Outputs - CNs by postcode'!$A26,'Calc - LGA to PC_Res'!$A$4:$A$115,0)) -> 2171 | Q26: =INDEX('Calc - LGA to PC_Res'!T$4:T$115,MATCH('Outputs - CNs by postcode'!$A26,'Calc - LGA to PC_Res'!$A$4:$A$115,0)) -> 2453 | R26: =INDEX('Calc - LGA to PC_Res'!U$4:U$115,MATCH('Outputs - CNs by postcode'!$A26,'Calc - LGA to PC_Res'!$A$4:$A$115,0)) -> 2579.932035 | S26: =INDEX('Calc - LGA to PC_Res'!V$4:V$115,MATCH('Outputs - CNs by postcode'!$A26,'Calc - LGA to PC_Res'!$A$4:$A$115,0)) -> 2711.87177 | T26: =INDEX('Calc - LGA to PC_Res'!W$4:W$115,MATCH('Outputs - CNs by postcode'!$A26,'Calc - LGA to PC_Res'!$A$4:$A$115,0)) -> 2849.016769 | U26: =INDEX('Calc - LGA to PC_Res'!X$4:X$115,MATCH('Outputs - CNs by postcode'!$A26,'Calc - LGA to PC_Res'!$A$4:$A$115,0)) -> 2991.572388 | V26: =INDEX('Calc - LGA to PC_Res'!Y$4:Y$115,MATCH('Outputs - CNs by postcode'!$A26,'Calc - LGA to PC_Res'!$A$4:$A$115,0)) -> 3116.534767 | W26: =INDEX('Data - usage raw'!$O$3:$O$120, MATCH('Outputs - CNs by postcode'!A26,'Data - usage raw'!$N$3:$N$120,0),1) -> central | X26: central
A27: 3028 | B27: =INDEX('Calc - LGA to PC_Res'!E$4:E$115,MATCH('Outputs - CNs by postcode'!$A27,'Calc - LGA to PC_Res'!$A$4:$A$115,0)) -> 3 | C27: =INDEX('Calc - LGA to PC_Res'!F$4:F$115,MATCH('Outputs - CNs by postcode'!$A27,'Calc - LGA to PC_Res'!$A$4:$A$115,0)) -> 10240 | D27: =INDEX('Calc - LGA to PC_Res'!G$4:G$115,MATCH('Outputs - CNs by postcode'!$A27,'Calc - LGA to PC_Res'!$A$4:$A$115,0)) -> 10250 | E27: =INDEX('Calc - LGA to PC_Res'!H$4:H$115,MATCH('Outputs - CNs by postcode'!$A27,'Calc - LGA to PC_Res'!$A$4:$A$115,0)) -> 10371 | F27: =INDEX('Calc - LGA to PC_Res'!I$4:I$115,MATCH('Outputs - CNs by postcode'!$A27,'Calc - LGA to PC_Res'!$A$4:$A$115,0)) -> 10502 | G27: =INDEX('Calc - LGA to PC_Res'!J$4:J$115,MATCH('Outputs - CNs by postcode'!$A27,'Calc - LGA to PC_Res'!$A$4:$A$115,0)) -> 10638 | H27: =INDEX('Calc - LGA to PC_Res'!K$4:K$115,MATCH('Outputs - CNs by postcode'!$A27,'Calc - LGA to PC_Res'!$A$4:$A$115,0)) -> 10664 | I27: =INDEX('Calc - LGA to PC_Res'!L$4:L$115,MATCH('Outputs - CNs by postcode'!$A27,'Calc - LGA to PC_Res'!$A$4:$A$115,0)) -> 10721 | J27: =INDEX('Calc - LGA to PC_Res'!M$4:M$115,MATCH('Outputs - CNs by postcode'!$A27,'Calc - LGA to PC_Res'!$A$4:$A$115,0)) -> 10795 | K27: =INDEX('Calc - LGA to PC_Res'!N$4:N$115,MATCH('Outputs - CNs by postcode'!$A27,'Calc - LGA to PC_Res'!$A$4:$A$115,0)) -> 10852 | L27: =INDEX('Calc - LGA to PC_Res'!O$4:O$115,MATCH('Outputs - CNs by postcode'!$A27,'Calc - LGA to PC_Res'!$A$4:$A$115,0)) -> 10935 | M27: =INDEX('Calc - LGA to PC_Res'!P$4:P$115,MATCH('Outputs - CNs by postcode'!$A27,'Calc - LGA to PC_Res'!$A$4:$A$115,0)) -> 11014 | N27: =INDEX('Calc - LGA to PC_Res'!Q$4:Q$115,MATCH('Outputs - CNs by postcode'!$A27,'Calc - LGA to PC_Res'!$A$4:$A$115,0)) -> 11062 | O27: =INDEX('Calc - LGA to PC_Res'!R$4:R$115,MATCH('Outputs - CNs by postcode'!$A27,'Calc - LGA to PC_Res'!$A$4:$A$115,0)) -> 11097 | P27: =INDEX('Calc - LGA to PC_Res'!S$4:S$115,MATCH('Outputs - CNs by postcode'!$A27,'Calc - LGA to PC_Res'!$A$4:$A$115,0)) -> 11161 | Q27: =INDEX('Calc - LGA to PC_Res'!T$4:T$115,MATCH('Outputs - CNs by postcode'!$A27,'Calc - LGA to PC_Res'!$A$4:$A$115,0)) -> 11226 | R27: =INDEX('Calc - LGA to PC_Res'!U$4:U$115,MATCH('Outputs - CNs by postcode'!$A27,'Calc - LGA to PC_Res'!$A$4:$A$115,0)) -> 11310.35278 | S27: =INDEX('Calc - LGA to PC_Res'!V$4:V$115,MATCH('Outputs - CNs by postcode'!$A27,'Calc - LGA to PC_Res'!$A$4:$A$115,0)) -> 11395.73917 | T27: =INDEX('Calc - LGA to PC_Res'!W$4:W$115,MATCH('Outputs - CNs by postcode'!$A27,'Calc - LGA to PC_Res'!$A$4:$A$115,0)) -> 11482.1733 | U27: =INDEX('Calc - LGA to PC_Res'!X$4:X$115,MATCH('Outputs - CNs by postcode'!$A27,'Calc - LGA to PC_Res'!$A$4:$A$115,0)) -> 11569.66952 | V27: =INDEX('Calc - LGA to PC_Res'!Y$4:Y$115,MATCH('Outputs - CNs by postcode'!$A27,'Calc - LGA to PC_Res'!$A$4:$A$115,0)) -> 11666.16488 | W27: =INDEX('Data - usage raw'!$O$3:$O$120, MATCH('Outputs - CNs by postcode'!A27,'Data - usage raw'!$N$3:$N$120,0),1) -> central | X27: central
A28: 3029 | B28: =INDEX('Calc - LGA to PC_Res'!E$4:E$115,MATCH('Outputs - CNs by postcode'!$A28,'Calc - LGA to PC_Res'!$A$4:$A$115,0)) -> 1 | C28: =INDEX('Calc - LGA to PC_Res'!F$4:F$115,MATCH('Outputs - CNs by postcode'!$A28,'Calc - LGA to PC_Res'!$A$4:$A$115,0)) -> 13673 | D28: =INDEX('Calc - LGA to PC_Res'!G$4:G$115,MATCH('Outputs - CNs by postcode'!$A28,'Calc - LGA to PC_Res'!$A$4:$A$115,0)) -> 14492 | E28: =INDEX('Calc - LGA to PC_Res'!H$4:H$115,MATCH('Outputs - CNs by postcode'!$A28,'Calc - LGA to PC_Res'!$A$4:$A$115,0)) -> 15135 | F28: =INDEX('Calc - LGA to PC_Res'!I$4:I$115,MATCH('Outputs - CNs by postcode'!$A28,'Calc - LGA to PC_Res'!$A$4:$A$115,0)) -> 15950 | G28: =INDEX('Calc - LGA to PC_Res'!J$4:J$115,MATCH('Outputs - CNs by postcode'!$A28,'Calc - LGA to PC_Res'!$A$4:$A$115,0)) -> 16953 | H28: =INDEX('Calc - LGA to PC_Res'!K$4:K$115,MATCH('Outputs - CNs by postcode'!$A28,'Calc - LGA to PC_Res'!$A$4:$A$115,0)) -> 17992 | I28: =INDEX('Calc - LGA to PC_Res'!L$4:L$115,MATCH('Outputs - CNs by postcode'!$A28,'Calc - LGA to PC_Res'!$A$4:$A$115,0)) -> 19486 | J28: =INDEX('Calc - LGA to PC_Res'!M$4:M$115,MATCH('Outputs - CNs by postcode'!$A28,'Calc - LGA to PC_Res'!$A$4:$A$115,0)) -> 21353 | K28: =INDEX('Calc - LGA to PC_Res'!N$4:N$115,MATCH('Outputs - CNs by postcode'!$A28,'Calc - LGA to PC_Res'!$A$4:$A$115,0)) -> 23570 | L28: =INDEX('Calc - LGA to PC_Res'!O$4:O$115,MATCH('Outputs - CNs by postcode'!$A28,'Calc - LGA to PC_Res'!$A$4:$A$115,0)) -> 25285 | M28: =INDEX('Calc - LGA to PC_Res'!P$4:P$115,MATCH('Outputs - CNs by postcode'!$A28,'Calc - LGA to PC_Res'!$A$4:$A$115,0)) -> 26289 | N28: =INDEX('Calc - LGA to PC_Res'!Q$4:Q$115,MATCH('Outputs - CNs by postcode'!$A28,'Calc - LGA to PC_Res'!$A$4:$A$115,0)) -> 27151 | O28: =INDEX('Calc - LGA to PC_Res'!R$4:R$115,MATCH('Outputs - CNs by postcode'!$A28,'Calc - LGA to PC_Res'!$A$4:$A$115,0)) -> 28418 | P28: =INDEX('Calc - LGA to PC_Res'!S$4:S$115,MATCH('Outputs - CNs by postcode'!$A28,'Calc - LGA to PC_Res'!$A$4:$A$115,0)) -> 29536 | Q28: =INDEX('Calc - LGA to PC_Res'!T$4:T$115,MATCH('Outputs - CNs by postcode'!$A28,'Calc - LGA to PC_Res'!$A$4:$A$115,0)) -> 31109 | R28: =INDEX('Calc - LGA to PC_Res'!U$4:U$115,MATCH('Outputs - CNs by postcode'!$A28,'Calc - LGA to PC_Res'!$A$4:$A$115,0)) -> 32718.57987 | S28: =INDEX('Calc - LGA to PC_Res'!V$4:V$115,MATCH('Outputs - CNs by postcode'!$A28,'Calc - LGA to PC_Res'!$A$4:$A$115,0)) -> 34391.66335 | T28: =INDEX('Calc - LGA to PC_Res'!W$4:W$115,MATCH('Outputs - CNs by postcode'!$A28,'Calc - LGA to PC_Res'!$A$4:$A$115,0)) -> 36130.7559 | U28: =INDEX('Calc - LGA to PC_Res'!X$4:X$115,MATCH('Outputs - CNs by postcode'!$A28,'Calc - LGA to PC_Res'!$A$4:$A$115,0)) -> 37938.46181 | V28: =INDEX('Calc - LGA to PC_Res'!Y$4:Y$115,MATCH('Outputs - CNs by postcode'!$A28,'Calc - LGA to PC_Res'!$A$4:$A$115,0)) -> 39523.23735 | W28: =INDEX('Data - usage raw'!$O$3:$O$120, MATCH('Outputs - CNs by postcode'!A28,'Data - usage raw'!$N$3:$N$120,0),1) -> central | X28: central
A29: 3030 | B29: =INDEX('Calc - LGA to PC_Res'!E$4:E$115,MATCH('Outputs - CNs by postcode'!$A29,'Calc - LGA to PC_Res'!$A$4:$A$115,0)) -> 4 | C29: =INDEX('Calc - LGA to PC_Res'!F$4:F$115,MATCH('Outputs - CNs by postcode'!$A29,'Calc - LGA to PC_Res'!$A$4:$A$115,0)) -> 14536 | D29: =INDEX('Calc - LGA to PC_Res'!G$4:G$115,MATCH('Outputs - CNs by postcode'!$A29,'Calc - LGA to PC_Res'!$A$4:$A$115,0)) -> 15920 | E29: =INDEX('Calc - LGA to PC_Res'!H$4:H$115,MATCH('Outputs - CNs by postcode'!$A29,'Calc - LGA to PC_Res'!$A$4:$A$115,0)) -> 17419 | F29: =INDEX('Calc - LGA to PC_Res'!I$4:I$115,MATCH('Outputs - CNs by postcode'!$A29,'Calc - LGA to PC_Res'!$A$4:$A$115,0)) -> 18805 | G29: =INDEX('Calc - LGA to PC_Res'!J$4:J$115,MATCH('Outputs - CNs by postcode'!$A29,'Calc - LGA to PC_Res'!$A$4:$A$115,0)) -> 20313 | H29: =INDEX('Calc - LGA to PC_Res'!K$4:K$115,MATCH('Outputs - CNs by postcode'!$A29,'Calc - LGA to PC_Res'!$A$4:$A$115,0)) -> 21689 | I29: =INDEX('Calc - LGA to PC_Res'!L$4:L$115,MATCH('Outputs - CNs by postcode'!$A29,'Calc - LGA to PC_Res'!$A$4:$A$115,0)) -> 23050 | J29: =INDEX('Calc - LGA to PC_Res'!M$4:M$115,MATCH('Outputs - CNs by postcode'!$A29,'Calc - LGA to PC_Res'!$A$4:$A$115,0)) -> 25031 | K29: =INDEX('Calc - LGA to PC_Res'!N$4:N$115,MATCH('Outputs - CNs by postcode'!$A29,'Calc - LGA to PC_Res'!$A$4:$A$115,0)) -> 27458 | L29: =INDEX('Calc - LGA to PC_Res'!O$4:O$115,MATCH('Outputs - CNs by postcode'!$A29,'Calc - LGA to PC_Res'!$A$4:$A$115,0)) -> 29612 | M29: =INDEX('Calc - LGA to PC_Res'!P$4:P$115,MATCH('Outputs - CNs by postcode'!$A29,'Calc - LGA to PC_Res'!$A$4:$A$115,0)) -> 30757 | N29: =INDEX('Calc - LGA to PC_Res'!Q$4:Q$115,MATCH('Outputs - CNs by postcode'!$A29,'Calc - LGA to PC_Res'!$A$4:$A$115,0)) -> 31719 | O29: =INDEX('Calc - LGA to PC_Res'!R$4:R$115,MATCH('Outputs - CNs by postcode'!$A29,'Calc - LGA to PC_Res'!$A$4:$A$115,0)) -> 32800 | P29: =INDEX('Calc - LGA to PC_Res'!S$4:S$115,MATCH('Outputs - CNs by postcode'!$A29,'Calc - LGA to PC_Res'!$A$4:$A$115,0)) -> 33924 | Q29: =INDEX('Calc - LGA to PC_Res'!T$4:T$115,MATCH('Outputs - CNs by postcode'!$A29,'Calc - LGA to PC_Res'!$A$4:$A$115,0)) -> 35569 | R29: =INDEX('Calc - LGA to PC_Res'!U$4:U$115,MATCH('Outputs - CNs by postcode'!$A29,'Calc - LGA to PC_Res'!$A$4:$A$115,0)) -> 37295.09279 | S29: =INDEX('Calc - LGA to PC_Res'!V$4:V$115,MATCH('Outputs - CNs by postcode'!$A29,'Calc - LGA to PC_Res'!$A$4:$A$115,0)) -> 39088.54097 | T29: =INDEX('Calc - LGA to PC_Res'!W$4:W$115,MATCH('Outputs - CNs by postcode'!$A29,'Calc - LGA to PC_Res'!$A$4:$A$115,0)) -> 40951.99263 | U29: =INDEX('Calc - LGA to PC_Res'!X$4:X$115,MATCH('Outputs - CNs by postcode'!$A29,'Calc - LGA to PC_Res'!$A$4:$A$115,0)) -> 42888.2002 | V29: =INDEX('Calc - LGA to PC_Res'!Y$4:Y$115,MATCH('Outputs - CNs by postcode'!$A29,'Calc - LGA to PC_Res'!$A$4:$A$115,0)) -> 44583.34442 | W29: =INDEX('Data - usage raw'!$O$3:$O$120, MATCH('Outputs - CNs by postcode'!A29,'Data - usage raw'!$N$3:$N$120,0),1) -> central | X29: central
A30: 3031 | B30: =INDEX('Calc - LGA to PC_Res'!E$4:E$115,MATCH('Outputs - CNs by postcode'!$A30,'Calc - LGA to PC_Res'!$A$4:$A$115,0)) -> 7 | C30: =INDEX('Calc - LGA to PC_Res'!F$4:F$115,MATCH('Outputs - CNs by postcode'!$A30,'Calc - LGA to PC_Res'!$A$4:$A$115,0)) -> 5950 | D30: =INDEX('Calc - LGA to PC_Res'!G$4:G$115,MATCH('Outputs - CNs by postcode'!$A30,'Calc - LGA to PC_Res'!$A$4:$A$115,0)) -> 5788 | E30: =INDEX('Calc - LGA to PC_Res'!H$4:H$115,MATCH('Outputs - CNs by postcode'!$A30,'Calc - LGA to PC_Res'!$A$4:$A$115,0)) -> 5950 | F30: =INDEX('Calc - LGA to PC_Res'!I$4:I$115,MATCH('Outputs - CNs by postcode'!$A30,'Calc - LGA to PC_Res'!$A$4:$A$115,0)) -> 5873 | G30: =INDEX('Calc - LGA to PC_Res'!J$4:J$115,MATCH('Outputs - CNs by postcode'!$A30,'Calc - LGA to PC_Res'!$A$4:$A$115,0)) -> 5894 | H30: =INDEX('Calc - LGA to PC_Res'!K$4:K$115,MATCH('Outputs - CNs by postcode'!$A30,'Calc - LGA to PC_Res'!$A$4:$A$115,0)) -> 5906 | I30: =INDEX('Calc - LGA to PC_Res'!L$4:L$115,MATCH('Outputs - CNs by postcode'!$A30,'Calc - LGA to PC_Res'!$A$4:$A$115,0)) -> 5972 | J30: =INDEX('Calc - LGA to PC_Res'!M$4:M$115,MATCH('Outputs - CNs by postcode'!$A30,'Calc - LGA to PC_Res'!$A$4:$A$115,0)) -> 6021 | K30: =INDEX('Calc - LGA to PC_Res'!N$4:N$115,MATCH('Outputs - CNs by postcode'!$A30,'Calc - LGA to PC_Res'!$A$4:$A$115,0)) -> 6042 | L30: =INDEX('Calc - LGA to PC_Res'!O$4:O$115,MATCH('Outputs - CNs by postcode'!$A30,'Calc - LGA to PC_Res'!$A$4:$A$115,0)) -> 6095 | M30: =INDEX('Calc - LGA to PC_Res'!P$4:P$115,MATCH('Outputs - CNs by postcode'!$A30,'Calc - LGA to PC_Res'!$A$4:$A$115,0)) -> 6117 | N30: =INDEX('Calc - LGA to PC_Res'!Q$4:Q$115,MATCH('Outputs - CNs by postcode'!$A30,'Calc - LGA to PC_Res'!$A$4:$A$115,0)) -> 6106 | O30: =INDEX('Calc - LGA to PC_Res'!R$4:R$115,MATCH('Outputs - CNs by postcode'!$A30,'Calc - LGA to PC_Res'!$A$4:$A$115,0)) -> 6125 | P30: =INDEX('Calc - LGA to PC_Res'!S$4:S$115,MATCH('Outputs - CNs by postcode'!$A30,'Calc - LGA to PC_Res'!$A$4:$A$115,0)) -> 6113 | Q30: =INDEX('Calc - LGA to PC_Res'!T$4:T$115,MATCH('Outputs - CNs by postcode'!$A30,'Calc - LGA to PC_Res'!$A$4:$A$115,0)) -> 6114 | R30: =INDEX('Calc - LGA to PC_Res'!U$4:U$115,MATCH('Outputs - CNs by postcode'!$A30,'Calc - LGA to PC_Res'!$A$4:$A$115,0)) -> 6131.703261 | S30: =INDEX('Calc - LGA to PC_Res'!V$4:V$115,MATCH('Outputs - CNs by postcode'!$A30,'Calc - LGA to PC_Res'!$A$4:$A$115,0)) -> 6149.665808 | T30: =INDEX('Calc - LGA to PC_Res'!W$4:W$115,MATCH('Outputs - CNs by postcode'!$A30,'Calc - LGA to PC_Res'!$A$4:$A$115,0)) -> 6167.892411 | U30: =INDEX('Calc - LGA to PC_Res'!X$4:X$115,MATCH('Outputs - CNs by postcode'!$A30,'Calc - LGA to PC_Res'!$A$4:$A$115,0)) -> 6186.387971 | V30: =INDEX('Calc - LGA to PC_Res'!Y$4:Y$115,MATCH('Outputs - CNs by postcode'!$A30,'Calc - LGA to PC_Res'!$A$4:$A$115,0)) -> 6203.753062 | W30: =INDEX('Data - usage raw'!$O$3:$O$120, MATCH('Outputs - CNs by postcode'!A30,'Data - usage raw'!$N$3:$N$120,0),1) -> central | X30: central
A31: 3032 | B31: =INDEX('Calc - LGA to PC_Res'!E$4:E$115,MATCH('Outputs - CNs by postcode'!$A31,'Calc - LGA to PC_Res'!$A$4:$A$115,0)) -> 11.9999988 | C31: =INDEX('Calc - LGA to PC_Res'!F$4:F$115,MATCH('Outputs - CNs by postcode'!$A31,'Calc - LGA to PC_Res'!$A$4:$A$115,0)) -> 7502.99925 | D31: =INDEX('Calc - LGA to PC_Res'!G$4:G$115,MATCH('Outputs - CNs by postcode'!$A31,'Calc - LGA to PC_Res'!$A$4:$A$115,0)) -> 7408.999259 | E31: =INDEX('Calc - LGA to PC_Res'!H$4:H$115,MATCH('Outputs - CNs by postcode'!$A31,'Calc - LGA to PC_Res'!$A$4:$A$115,0)) -> 7498.99925 | F31: =INDEX('Calc - LGA to PC_Res'!I$4:I$115,MATCH('Outputs - CNs by postcode'!$A31,'Calc - LGA to PC_Res'!$A$4:$A$115,0)) -> 7795.99922 | G31: =INDEX('Calc - LGA to PC_Res'!J$4:J$115,MATCH('Outputs - CNs by postcode'!$A31,'Calc - LGA to PC_Res'!$A$4:$A$115,0)) -> 7961.999204 | H31: =INDEX('Calc - LGA to PC_Res'!K$4:K$115,MATCH('Outputs - CNs by postcode'!$A31,'Calc - LGA to PC_Res'!$A$4:$A$115,0)) -> 8129.999187 | I31: =INDEX('Calc - LGA to PC_Res'!L$4:L$115,MATCH('Outputs - CNs by postcode'!$A31,'Calc - LGA to PC_Res'!$A$4:$A$115,0)) -> 8263.999174 | J31: =INDEX('Calc - LGA to PC_Res'!M$4:M$115,MATCH('Outputs - CNs by postcode'!$A31,'Calc - LGA to PC_Res'!$A$4:$A$115,0)) -> 8431.999157 | K31: =INDEX('Calc - LGA to PC_Res'!N$4:N$115,MATCH('Outputs - CNs by postcode'!$A31,'Calc - LGA to PC_Res'!$A$4:$A$115,0)) -> 8588.999141 | L31: =INDEX('Calc - LGA to PC_Res'!O$4:O$115,MATCH('Outputs - CNs by postcode'!$A31,'Calc - LGA to PC_Res'!$A$4:$A$115,0)) -> 8694.999131 | M31: =INDEX('Calc - LGA to PC_Res'!P$4:P$115,MATCH('Outputs - CNs by postcode'!$A31,'Calc - LGA to PC_Res'!$A$4:$A$115,0)) -> 8818.999118 | N31: =INDEX('Calc - LGA to PC_Res'!Q$4:Q$115,MATCH('Outputs - CNs by postcode'!$A31,'Calc - LGA to PC_Res'!$A$4:$A$115,0)) -> 9058.999094 | O31: =INDEX('Calc - LGA to PC_Res'!R$4:R$115,MATCH('Outputs - CNs by postcode'!$A31,'Calc - LGA to PC_Res'!$A$4:$A$115,0)) -> 9306.999069 | P31: =INDEX('Calc - LGA to PC_Res'!S$4:S$115,MATCH('Outputs - CNs by postcode'!$A31,'Calc - LGA to PC_Res'!$A$4:$A$115,0)) -> 9399.99906 | Q31: =INDEX('Calc - LGA to PC_Res'!T$4:T$115,MATCH('Outputs - CNs by postcode'!$A31,'Calc - LGA to PC_Res'!$A$4:$A$115,0)) -> 9507.999049 | R31: =INDEX('Calc - LGA to PC_Res'!U$4:U$115,MATCH('Outputs - CNs by postcode'!$A31,'Calc - LGA to PC_Res'!$A$4:$A$115,0)) -> 9597.666484 | S31: =INDEX('Calc - LGA to PC_Res'!V$4:V$115,MATCH('Outputs - CNs by postcode'!$A31,'Calc - LGA to PC_Res'!$A$4:$A$115,0)) -> 9689.582697 | T31: =INDEX('Calc - LGA to PC_Res'!W$4:W$115,MATCH('Outputs - CNs by postcode'!$A31,'Calc - LGA to PC_Res'!$A$4:$A$115,0)) -> 9783.812821 | U31: =INDEX('Calc - LGA to PC_Res'!X$4:X$115,MATCH('Outputs - CNs by postcode'!$A31,'Calc - LGA to PC_Res'!$A$4:$A$115,0)) -> 9880.42403 | V31: =INDEX('Calc - LGA to PC_Res'!Y$4:Y$115,MATCH('Outputs - CNs by postcode'!$A31,'Calc - LGA to PC_Res'!$A$4:$A$115,0)) -> 9976.35627 | W31: =INDEX('Data - usage raw'!$O$3:$O$120, MATCH('Outputs - CNs by postcode'!A31,'Data - usage raw'!$N$3:$N$120,0),1) -> central | X31: central
A32: 3033 | B32: =INDEX('Calc - LGA to PC_Res'!E$4:E$115,MATCH('Outputs - CNs by postcode'!$A32,'Calc - LGA to PC_Res'!$A$4:$A$115,0)) -> 1 | C32: =INDEX('Calc - LGA to PC_Res'!F$4:F$115,MATCH('Outputs - CNs by postcode'!$A32,'Calc - LGA to PC_Res'!$A$4:$A$115,0)) -> 4964 | D32: =INDEX('Calc - LGA to PC_Res'!G$4:G$115,MATCH('Outputs - CNs by postcode'!$A32,'Calc - LGA to PC_Res'!$A$4:$A$115,0)) -> 4907 | E32: =INDEX('Calc - LGA to PC_Res'!H$4:H$115,MATCH('Outputs - CNs by postcode'!$A32,'Calc - LGA to PC_Res'!$A$4:$A$115,0)) -> 4916 | F32: =INDEX('Calc - LGA to PC_Res'!I$4:I$115,MATCH('Outputs - CNs by postcode'!$A32,'Calc - LGA to PC_Res'!$A$4:$A$115,0)) -> 4932 | G32: =INDEX('Calc - LGA to PC_Res'!J$4:J$115,MATCH('Outputs - CNs by postcode'!$A32,'Calc - LGA to PC_Res'!$A$4:$A$115,0)) -> 4963 | H32: =INDEX('Calc - LGA to PC_Res'!K$4:K$115,MATCH('Outputs - CNs by postcode'!$A32,'Calc - LGA to PC_Res'!$A$4:$A$115,0)) -> 4969 | I32: =INDEX('Calc - LGA to PC_Res'!L$4:L$115,MATCH('Outputs - CNs by postcode'!$A32,'Calc - LGA to PC_Res'!$A$4:$A$115,0)) -> 4990 | J32: =INDEX('Calc - LGA to PC_Res'!M$4:M$115,MATCH('Outputs - CNs by postcode'!$A32,'Calc - LGA to PC_Res'!$A$4:$A$115,0)) -> 5030 | K32: =INDEX('Calc - LGA to PC_Res'!N$4:N$115,MATCH('Outputs - CNs by postcode'!$A32,'Calc - LGA to PC_Res'!$A$4:$A$115,0)) -> 5099 | L32: =INDEX('Calc - LGA to PC_Res'!O$4:O$115,MATCH('Outputs - CNs by postcode'!$A32,'Calc - LGA to PC_Res'!$A$4:$A$115,0)) -> 5148 | M32: =INDEX('Calc - LGA to PC_Res'!P$4:P$115,MATCH('Outputs - CNs by postcode'!$A32,'Calc - LGA to PC_Res'!$A$4:$A$115,0)) -> 5237 | N32: =INDEX('Calc - LGA to PC_Res'!Q$4:Q$115,MATCH('Outputs - CNs by postcode'!$A32,'Calc - LGA to PC_Res'!$A$4:$A$115,0)) -> 5337 | O32: =INDEX('Calc - LGA to PC_Res'!R$4:R$115,MATCH('Outputs - CNs by postcode'!$A32,'Calc - LGA to PC_Res'!$A$4:$A$115,0)) -> 5514 | P32: =INDEX('Calc - LGA to PC_Res'!S$4:S$115,MATCH('Outputs - CNs by postcode'!$A32,'Calc - LGA to PC_Res'!$A$4:$A$115,0)) -> 5569 | Q32: =INDEX('Calc - LGA to PC_Res'!T$4:T$115,MATCH('Outputs - CNs by postcode'!$A32,'Calc - LGA to PC_Res'!$A$4:$A$115,0)) -> 5628 | R32: =INDEX('Calc - LGA to PC_Res'!U$4:U$115,MATCH('Outputs - CNs by postcode'!$A32,'Calc - LGA to PC_Res'!$A$4:$A$115,0)) -> 5664.44882 | S32: =INDEX('Calc - LGA to PC_Res'!V$4:V$115,MATCH('Outputs - CNs by postcode'!$A32,'Calc - LGA to PC_Res'!$A$4:$A$115,0)) -> 5701.38101 | T32: =INDEX('Calc - LGA to PC_Res'!W$4:W$115,MATCH('Outputs - CNs by postcode'!$A32,'Calc - LGA to PC_Res'!$A$4:$A$115,0)) -> 5738.802982 | U32: =INDEX('Calc - LGA to PC_Res'!X$4:X$115,MATCH('Outputs - CNs by postcode'!$A32,'Calc - LGA to PC_Res'!$A$4:$A$115,0)) -> 5776.721229 | V32: =INDEX('Calc - LGA to PC_Res'!Y$4:Y$115,MATCH('Outputs - CNs by postcode'!$A32,'Calc - LGA to PC_Res'!$A$4:$A$115,0)) -> 5812.7761 | W32: =INDEX('Data - usage raw'!$O$3:$O$120, MATCH('Outputs - CNs by postcode'!A32,'Data - usage raw'!$N$3:$N$120,0),1) -> central | X32: central
A33: 3034 | B33: =INDEX('Calc - LGA to PC_Res'!E$4:E$115,MATCH('Outputs - CNs by postcode'!$A33,'Calc - LGA to PC_Res'!$A$4:$A$115,0)) -> 1 | C33: =INDEX('Calc - LGA to PC_Res'!F$4:F$115,MATCH('Outputs - CNs by postcode'!$A33,'Calc - LGA to PC_Res'!$A$4:$A$115,0)) -> 4171 | D33: =INDEX('Calc - LGA to PC_Res'!G$4:G$115,MATCH('Outputs - CNs by postcode'!$A33,'Calc - LGA to PC_Res'!$A$4:$A$115,0)) -> 4177 | E33: =INDEX('Calc - LGA to PC_Res'!H$4:H$115,MATCH('Outputs - CNs by postcode'!$A33,'Calc - LGA to PC_Res'!$A$4:$A$115,0)) -> 4207 | F33: =INDEX('Calc - LGA to PC_Res'!I$4:I$115,MATCH('Outputs - CNs by postcode'!$A33,'Calc - LGA to PC_Res'!$A$4:$A$115,0)) -> 4231 | G33: =INDEX('Calc - LGA to PC_Res'!J$4:J$115,MATCH('Outputs - CNs by postcode'!$A33,'Calc - LGA to PC_Res'!$A$4:$A$115,0)) -> 4259 | H33: =INDEX('Calc - LGA to PC_Res'!K$4:K$115,MATCH('Outputs - CNs by postcode'!$A33,'Calc - LGA to PC_Res'!$A$4:$A$115,0)) -> 4284 | I33: =INDEX('Calc - LGA to PC_Res'!L$4:L$115,MATCH('Outputs - CNs by postcode'!$A33,'Calc - LGA to PC_Res'!$A$4:$A$115,0)) -> 4310 | J33: =INDEX('Calc - LGA to PC_Res'!M$4:M$115,MATCH('Outputs - CNs by postcode'!$A33,'Calc - LGA to PC_Res'!$A$4:$A$115,0)) -> 4325 | K33: =INDEX('Calc - LGA to PC_Res'!N$4:N$115,MATCH('Outputs - CNs by postcode'!$A33,'Calc - LGA to PC_Res'!$A$4:$A$115,0)) -> 4364 | L33: =INDEX('Calc - LGA to PC_Res'!O$4:O$115,MATCH('Outputs - CNs by postcode'!$A33,'Calc - LGA to PC_Res'!$A$4:$A$115,0)) -> 4397 | M33: =INDEX('Calc - LGA to PC_Res'!P$4:P$115,MATCH('Outputs - CNs by postcode'!$A33,'Calc - LGA to PC_Res'!$A$4:$A$115,0)) -> 4424 | N33: =INDEX('Calc - LGA to PC_Res'!Q$4:Q$115,MATCH('Outputs - CNs by postcode'!$A33,'Calc - LGA to PC_Res'!$A$4:$A$115,0)) -> 4448 | O33: =INDEX('Calc - LGA to PC_Res'!R$4:R$115,MATCH('Outputs - CNs by postcode'!$A33,'Calc - LGA to PC_Res'!$A$4:$A$115,0)) -> 4487 | P33: =INDEX('Calc - LGA to PC_Res'!S$4:S$115,MATCH('Outputs - CNs by postcode'!$A33,'Calc - LGA to PC_Res'!$A$4:$A$115,0)) -> 4485 | Q33: =INDEX('Calc - LGA to PC_Res'!T$4:T$115,MATCH('Outputs - CNs by postcode'!$A33,'Calc - LGA to PC_Res'!$A$4:$A$115,0)) -> 4477 | R33: =INDEX('Calc - LGA to PC_Res'!U$4:U$115,MATCH('Outputs - CNs by postcode'!$A33,'Calc - LGA to PC_Res'!$A$4:$A$115,0)) -> 4505.970954 | S33: =INDEX('Calc - LGA to PC_Res'!V$4:V$115,MATCH('Outputs - CNs by postcode'!$A33,'Calc - LGA to PC_Res'!$A$4:$A$115,0)) -> 4535.326168 | T33: =INDEX('Calc - LGA to PC_Res'!W$4:W$115,MATCH('Outputs - CNs by postcode'!$A33,'Calc - LGA to PC_Res'!$A$4:$A$115,0)) -> 4565.070737 | U33: =INDEX('Calc - LGA to PC_Res'!X$4:X$115,MATCH('Outputs - CNs by postcode'!$A33,'Calc - LGA to PC_Res'!$A$4:$A$115,0)) -> 4595.209827 | V33: =INDEX('Calc - LGA to PC_Res'!Y$4:Y$115,MATCH('Outputs - CNs by postcode'!$A33,'Calc - LGA to PC_Res'!$A$4:$A$115,0)) -> 4623.878124 | W33: =INDEX('Data - usage raw'!$O$3:$O$120, MATCH('Outputs - CNs by postcode'!A33,'Data - usage raw'!$N$3:$N$120,0),1) -> central | X33: central
A34: 3036 | B34: =INDEX('Calc - LGA to PC_Res'!E$4:E$115,MATCH('Outputs - CNs by postcode'!$A34,'Calc - LGA to PC_Res'!$A$4:$A$115,0)) -> 0 | C34: =INDEX('Calc - LGA to PC_Res'!F$4:F$115,MATCH('Outputs - CNs by postcode'!$A34,'Calc - LGA to PC_Res'!$A$4:$A$115,0)) -> 1977 | D34: =INDEX('Calc - LGA to PC_Res'!G$4:G$115,MATCH('Outputs - CNs by postcode'!$A34,'Calc - LGA to PC_Res'!$A$4:$A$115,0)) -> 1958 | E34: =INDEX('Calc - LGA to PC_Res'!H$4:H$115,MATCH('Outputs - CNs by postcode'!$A34,'Calc - LGA to PC_Res'!$A$4:$A$115,0)) -> 1964 | F34: =INDEX('Calc - LGA to PC_Res'!I$4:I$115,MATCH('Outputs - CNs by postcode'!$A34,'Calc - LGA to PC_Res'!$A$4:$A$115,0)) -> 1984 | G34: =INDEX('Calc - LGA to PC_Res'!J$4:J$115,MATCH('Outputs - CNs by postcode'!$A34,'Calc - LGA to PC_Res'!$A$4:$A$115,0)) -> 1982 | H34: =INDEX('Calc - LGA to PC_Res'!K$4:K$115,MATCH('Outputs - CNs by postcode'!$A34,'Calc - LGA to PC_Res'!$A$4:$A$115,0)) -> 1985 | I34: =INDEX('Calc - LGA to PC_Res'!L$4:L$115,MATCH('Outputs - CNs by postcode'!$A34,'Calc - LGA to PC_Res'!$A$4:$A$115,0)) -> 1995 | J34: =INDEX('Calc - LGA to PC_Res'!M$4:M$115,MATCH('Outputs - CNs by postcode'!$A34,'Calc - LGA to PC_Res'!$A$4:$A$115,0)) -> 1997 | K34: =INDEX('Calc - LGA to PC_Res'!N$4:N$115,MATCH('Outputs - CNs by postcode'!$A34,'Calc - LGA to PC_Res'!$A$4:$A$115,0)) -> 2000 | L34: =INDEX('Calc - LGA to PC_Res'!O$4:O$115,MATCH('Outputs - CNs by postcode'!$A34,'Calc - LGA to PC_Res'!$A$4:$A$115,0)) -> 2007 | M34: =INDEX('Calc - LGA to PC_Res'!P$4:P$115,MATCH('Outputs - CNs by postcode'!$A34,'Calc - LGA to PC_Res'!$A$4:$A$115,0)) -> 2015 | N34: =INDEX('Calc - LGA to PC_Res'!Q$4:Q$115,MATCH('Outputs - CNs by postcode'!$A34,'Calc - LGA to PC_Res'!$A$4:$A$115,0)) -> 2020 | O34: =INDEX('Calc - LGA to PC_Res'!R$4:R$115,MATCH('Outputs - CNs by postcode'!$A34,'Calc - LGA to PC_Res'!$A$4:$A$115,0)) -> 2026 | P34: =INDEX('Calc - LGA to PC_Res'!S$4:S$115,MATCH('Outputs - CNs by postcode'!$A34,'Calc - LGA to PC_Res'!$A$4:$A$115,0)) -> 2031 | Q34: =INDEX('Calc - LGA to PC_Res'!T$4:T$115,MATCH('Outputs - CNs by postcode'!$A34,'Calc - LGA to PC_Res'!$A$4:$A$115,0)) -> 2036 | R34: =INDEX('Calc - LGA to PC_Res'!U$4:U$115,MATCH('Outputs - CNs by postcode'!$A34,'Calc - LGA to PC_Res'!$A$4:$A$115,0)) -> 2057.080415 | S34: =INDEX('Calc - LGA to PC_Res'!V$4:V$115,MATCH('Outputs - CNs by postcode'!$A34,'Calc - LGA to PC_Res'!$A$4:$A$115,0)) -> 2078.441028 | T34: =INDEX('Calc - LGA to PC_Res'!W$4:W$115,MATCH('Outputs - CNs by postcode'!$A34,'Calc - LGA to PC_Res'!$A$4:$A$115,0)) -> 2100.085886 | U34: =INDEX('Calc - LGA to PC_Res'!X$4:X$115,MATCH('Outputs - CNs by postcode'!$A34,'Calc - LGA to PC_Res'!$A$4:$A$115,0)) -> 2122.019102 | V34: =INDEX('Calc - LGA to PC_Res'!Y$4:Y$115,MATCH('Outputs - CNs by postcode'!$A34,'Calc - LGA to PC_Res'!$A$4:$A$115,0)) -> 2139.8145 | W34: =INDEX('Data - usage raw'!$O$3:$O$120, MATCH('Outputs - CNs by postcode'!A34,'Data - usage raw'!$N$3:$N$120,0),1) -> central | X34: central
A35: 3037 | B35: =INDEX('Calc - LGA to PC_Res'!E$4:E$115,MATCH('Outputs - CNs by postcode'!$A35,'Calc - LGA to PC_Res'!$A$4:$A$115,0)) -> 1 | C35: =INDEX('Calc - LGA to PC_Res'!F$4:F$115,MATCH('Outputs - CNs by postcode'!$A35,'Calc - LGA to PC_Res'!$A$4:$A$115,0)) -> 10068 | D35: =INDEX('Calc - LGA to PC_Res'!G$4:G$115,MATCH('Outputs - CNs by postcode'!$A35,'Calc - LGA to PC_Res'!$A$4:$A$115,0)) -> 10949 | E35: =INDEX('Calc - LGA to PC_Res'!H$4:H$115,MATCH('Outputs - CNs by postcode'!$A35,'Calc - LGA to PC_Res'!$A$4:$A$115,0)) -> 11636 | F35: =INDEX('Calc - LGA to PC_Res'!I$4:I$115,MATCH('Outputs - CNs by postcode'!$A35,'Calc - LGA to PC_Res'!$A$4:$A$115,0)) -> 12386 | G35: =INDEX('Calc - LGA to PC_Res'!J$4:J$115,MATCH('Outputs - CNs by postcode'!$A35,'Calc - LGA to PC_Res'!$A$4:$A$115,0)) -> 13066 | H35: =INDEX('Calc - LGA to PC_Res'!K$4:K$115,MATCH('Outputs - CNs by postcode'!$A35,'Calc - LGA to PC_Res'!$A$4:$A$115,0)) -> 13511 | I35: =INDEX('Calc - LGA to PC_Res'!L$4:L$115,MATCH('Outputs - CNs by postcode'!$A35,'Calc - LGA to PC_Res'!$A$4:$A$115,0)) -> 14140 | J35: =INDEX('Calc - LGA to PC_Res'!M$4:M$115,MATCH('Outputs - CNs by postcode'!$A35,'Calc - LGA to PC_Res'!$A$4:$A$115,0)) -> 14577 | K35: =INDEX('Calc - LGA to PC_Res'!N$4:N$115,MATCH('Outputs - CNs by postcode'!$A35,'Calc - LGA to PC_Res'!$A$4:$A$115,0)) -> 14902 | L35: =INDEX('Calc - LGA to PC_Res'!O$4:O$115,MATCH('Outputs - CNs by postcode'!$A35,'Calc - LGA to PC_Res'!$A$4:$A$115,0)) -> 15153 | M35: =INDEX('Calc - LGA to PC_Res'!P$4:P$115,MATCH('Outputs - CNs by postcode'!$A35,'Calc - LGA to PC_Res'!$A$4:$A$115,0)) -> 15452 | N35: =INDEX('Calc - LGA to PC_Res'!Q$4:Q$115,MATCH('Outputs - CNs by postcode'!$A35,'Calc - LGA to PC_Res'!$A$4:$A$115,0)) -> 15682 | O35: =INDEX('Calc - LGA to PC_Res'!R$4:R$115,MATCH('Outputs - CNs by postcode'!$A35,'Calc - LGA to PC_Res'!$A$4:$A$115,0)) -> 15882 | P35: =INDEX('Calc - LGA to PC_Res'!S$4:S$115,MATCH('Outputs - CNs by postcode'!$A35,'Calc - LGA to PC_Res'!$A$4:$A$115,0)) -> 15983 | Q35: =INDEX('Calc - LGA to PC_Res'!T$4:T$115,MATCH('Outputs - CNs by postcode'!$A35,'Calc - LGA to PC_Res'!$A$4:$A$115,0)) -> 16103 | R35: =INDEX('Calc - LGA to PC_Res'!U$4:U$115,MATCH('Outputs - CNs by postcode'!$A35,'Calc - LGA to PC_Res'!$A$4:$A$115,0)) -> 16538.74686 | S35: =INDEX('Calc - LGA to PC_Res'!V$4:V$115,MATCH('Outputs - CNs by postcode'!$A35,'Calc - LGA to PC_Res'!$A$4:$A$115,0)) -> 16991.54851 | T35: =INDEX('Calc - LGA to PC_Res'!W$4:W$115,MATCH('Outputs - CNs by postcode'!$A35,'Calc - LGA to PC_Res'!$A$4:$A$115,0)) -> 17462.13098 | U35: =INDEX('Calc - LGA to PC_Res'!X$4:X$115,MATCH('Outputs - CNs by postcode'!$A35,'Calc - LGA to PC_Res'!$A$4:$A$115,0)) -> 17951.25201 | V35: =INDEX('Calc - LGA to PC_Res'!Y$4:Y$115,MATCH('Outputs - CNs by postcode'!$A35,'Calc - LGA to PC_Res'!$A$4:$A$115,0)) -> 18478.04136 | W35: =INDEX('Data - usage raw'!$O$3:$O$120, MATCH('Outputs - CNs by postcode'!A35,'Data - usage raw'!$N$3:$N$120,0),1) -> central | X35: central
A36: 3038 | B36: =INDEX('Calc - LGA to PC_Res'!E$4:E$115,MATCH('Outputs - CNs by postcode'!$A36,'Calc - LGA to PC_Res'!$A$4:$A$115,0)) -> 0 | C36: =INDEX('Calc - LGA to PC_Res'!F$4:F$115,MATCH('Outputs - CNs by postcode'!$A36,'Calc - LGA to PC_Res'!$A$4:$A$115,0)) -> 8666 | D36: =INDEX('Calc - LGA to PC_Res'!G$4:G$115,MATCH('Outputs - CNs by postcode'!$A36,'Calc - LGA to PC_Res'!$A$4:$A$115,0)) -> 8762 | E36: =INDEX('Calc - LGA to PC_Res'!H$4:H$115,MATCH('Outputs - CNs by postcode'!$A36,'Calc - LGA to PC_Res'!$A$4:$A$115,0)) -> 8852 | F36: =INDEX('Calc - LGA to PC_Res'!I$4:I$115,MATCH('Outputs - CNs by postcode'!$A36,'Calc - LGA to PC_Res'!$A$4:$A$115,0)) -> 8907 | G36: =INDEX('Calc - LGA to PC_Res'!J$4:J$115,MATCH('Outputs - CNs by postcode'!$A36,'Calc - LGA to PC_Res'!$A$4:$A$115,0)) -> 8936 | H36: =INDEX('Calc - LGA to PC_Res'!K$4:K$115,MATCH('Outputs - CNs by postcode'!$A36,'Calc - LGA to PC_Res'!$A$4:$A$115,0)) -> 8967 | I36: =INDEX('Calc - LGA to PC_Res'!L$4:L$115,MATCH('Outputs - CNs by postcode'!$A36,'Calc - LGA to PC_Res'!$A$4:$A$115,0)) -> 9000 | J36: =INDEX('Calc - LGA to PC_Res'!M$4:M$115,MATCH('Outputs - CNs by postcode'!$A36,'Calc - LGA to PC_Res'!$A$4:$A$115,0)) -> 9025 | K36: =INDEX('Calc - LGA to PC_Res'!N$4:N$115,MATCH('Outputs - CNs by postcode'!$A36,'Calc - LGA to PC_Res'!$A$4:$A$115,0)) -> 9053 | L36: =INDEX('Calc - LGA to PC_Res'!O$4:O$115,MATCH('Outputs - CNs by postcode'!$A36,'Calc - LGA to PC_Res'!$A$4:$A$115,0)) -> 9069 | M36: =INDEX('Calc - LGA to PC_Res'!P$4:P$115,MATCH('Outputs - CNs by postcode'!$A36,'Calc - LGA to PC_Res'!$A$4:$A$115,0)) -> 9088 | N36: =INDEX('Calc - LGA to PC_Res'!Q$4:Q$115,MATCH('Outputs - CNs by postcode'!$A36,'Calc - LGA to PC_Res'!$A$4:$A$115,0)) -> 9106 | O36: =INDEX('Calc - LGA to PC_Res'!R$4:R$115,MATCH('Outputs - CNs by postcode'!$A36,'Calc - LGA to PC_Res'!$A$4:$A$115,0)) -> 9143 | P36: =INDEX('Calc - LGA to PC_Res'!S$4:S$115,MATCH('Outputs - CNs by postcode'!$A36,'Calc - LGA to PC_Res'!$A$4:$A$115,0)) -> 9190 | Q36: =INDEX('Calc - LGA to PC_Res'!T$4:T$115,MATCH('Outputs - CNs by postcode'!$A36,'Calc - LGA to PC_Res'!$A$4:$A$115,0)) -> 9240 | R36: =INDEX('Calc - LGA to PC_Res'!U$4:U$115,MATCH('Outputs - CNs by postcode'!$A36,'Calc - LGA to PC_Res'!$A$4:$A$115,0)) -> 9332.459798 | S36: =INDEX('Calc - LGA to PC_Res'!V$4:V$115,MATCH('Outputs - CNs by postcode'!$A36,'Calc - LGA to PC_Res'!$A$4:$A$115,0)) -> 9426.066475 | T36: =INDEX('Calc - LGA to PC_Res'!W$4:W$115,MATCH('Outputs - CNs by postcode'!$A36,'Calc - LGA to PC_Res'!$A$4:$A$115,0)) -> 9520.834255 | U36: =INDEX('Calc - LGA to PC_Res'!X$4:X$115,MATCH('Outputs - CNs by postcode'!$A36,'Calc - LGA to PC_Res'!$A$4:$A$115,0)) -> 9616.777543 | V36: =INDEX('Calc - LGA to PC_Res'!Y$4:Y$115,MATCH('Outputs - CNs by postcode'!$A36,'Calc - LGA to PC_Res'!$A$4:$A$115,0)) -> 9693.770302 | W36: =INDEX('Data - usage raw'!$O$3:$O$120, MATCH('Outputs - CNs by postcode'!A36,'Data - usage raw'!$N$3:$N$120,0),1) -> central | X36: central
A37: 3039 | B37: =INDEX('Calc - LGA to PC_Res'!E$4:E$115,MATCH('Outputs - CNs by postcode'!$A37,'Calc - LGA to PC_Res'!$A$4:$A$115,0)) -> 14 | C37: =INDEX('Calc - LGA to PC_Res'!F$4:F$115,MATCH('Outputs - CNs by postcode'!$A37,'Calc - LGA to PC_Res'!$A$4:$A$115,0)) -> 5153 | D37: =INDEX('Calc - LGA to PC_Res'!G$4:G$115,MATCH('Outputs - CNs by postcode'!$A37,'Calc - LGA to PC_Res'!$A$4:$A$115,0)) -> 4959 | E37: =INDEX('Calc - LGA to PC_Res'!H$4:H$115,MATCH('Outputs - CNs by postcode'!$A37,'Calc - LGA to PC_Res'!$A$4:$A$115,0)) -> 4977 | F37: =INDEX('Calc - LGA to PC_Res'!I$4:I$115,MATCH('Outputs - CNs by postcode'!$A37,'Calc - LGA to PC_Res'!$A$4:$A$115,0)) -> 5097 | G37: =INDEX('Calc - LGA to PC_Res'!J$4:J$115,MATCH('Outputs - CNs by postcode'!$A37,'Calc - LGA to PC_Res'!$A$4:$A$115,0)) -> 5135 | H37: =INDEX('Calc - LGA to PC_Res'!K$4:K$115,MATCH('Outputs - CNs by postcode'!$A37,'Calc - LGA to PC_Res'!$A$4:$A$115,0)) -> 5144 | I37: =INDEX('Calc - LGA to PC_Res'!L$4:L$115,MATCH('Outputs - CNs by postcode'!$A37,'Calc - LGA to PC_Res'!$A$4:$A$115,0)) -> 5160 | J37: =INDEX('Calc - LGA to PC_Res'!M$4:M$115,MATCH('Outputs - CNs by postcode'!$A37,'Calc - LGA to PC_Res'!$A$4:$A$115,0)) -> 5174 | K37: =INDEX('Calc - LGA to PC_Res'!N$4:N$115,MATCH('Outputs - CNs by postcode'!$A37,'Calc - LGA to PC_Res'!$A$4:$A$115,0)) -> 5165 | L37: =INDEX('Calc - LGA to PC_Res'!O$4:O$115,MATCH('Outputs - CNs by postcode'!$A37,'Calc - LGA to PC_Res'!$A$4:$A$115,0)) -> 5176 | M37: =INDEX('Calc - LGA to PC_Res'!P$4:P$115,MATCH('Outputs - CNs by postcode'!$A37,'Calc - LGA to PC_Res'!$A$4:$A$115,0)) -> 5183 | N37: =INDEX('Calc - LGA to PC_Res'!Q$4:Q$115,MATCH('Outputs - CNs by postcode'!$A37,'Calc - LGA to PC_Res'!$A$4:$A$115,0)) -> 5205 | O37: =INDEX('Calc - LGA to PC_Res'!R$4:R$115,MATCH('Outputs - CNs by postcode'!$A37,'Calc - LGA to PC_Res'!$A$4:$A$115,0)) -> 5185 | P37: =INDEX('Calc - LGA to PC_Res'!S$4:S$115,MATCH('Outputs - CNs by postcode'!$A37,'Calc - LGA to PC_Res'!$A$4:$A$115,0)) -> 5199 | Q37: =INDEX('Calc - LGA to PC_Res'!T$4:T$115,MATCH('Outputs - CNs by postcode'!$A37,'Calc - LGA to PC_Res'!$A$4:$A$115,0)) -> 5204 | R37: =INDEX('Calc - LGA to PC_Res'!U$4:U$115,MATCH('Outputs - CNs by postcode'!$A37,'Calc - LGA to PC_Res'!$A$4:$A$115,0)) -> 5237.675418 | S37: =INDEX('Calc - LGA to PC_Res'!V$4:V$115,MATCH('Outputs - CNs by postcode'!$A37,'Calc - LGA to PC_Res'!$A$4:$A$115,0)) -> 5271.797493 | T37: =INDEX('Calc - LGA to PC_Res'!W$4:W$115,MATCH('Outputs - CNs by postcode'!$A37,'Calc - LGA to PC_Res'!$A$4:$A$115,0)) -> 5306.37215 | U37: =INDEX('Calc - LGA to PC_Res'!X$4:X$115,MATCH('Outputs - CNs by postcode'!$A37,'Calc - LGA to PC_Res'!$A$4:$A$115,0)) -> 5341.405391 | V37: =INDEX('Calc - LGA to PC_Res'!Y$4:Y$115,MATCH('Outputs - CNs by postcode'!$A37,'Calc - LGA to PC_Res'!$A$4:$A$115,0)) -> 5374.729005 | W37: =INDEX('Data - usage raw'!$O$3:$O$120, MATCH('Outputs - CNs by postcode'!A37,'Data - usage raw'!$N$3:$N$120,0),1) -> central | X37: central
A38: 3040 | B38: =INDEX('Calc - LGA to PC_Res'!E$4:E$115,MATCH('Outputs - CNs by postcode'!$A38,'Calc - LGA to PC_Res'!$A$4:$A$115,0)) -> 10 | C38: =INDEX('Calc - LGA to PC_Res'!F$4:F$115,MATCH('Outputs - CNs by postcode'!$A38,'Calc - LGA to PC_Res'!$A$4:$A$115,0)) -> 9146 | D38: =INDEX('Calc - LGA to PC_Res'!G$4:G$115,MATCH('Outputs - CNs by postcode'!$A38,'Calc - LGA to PC_Res'!$A$4:$A$115,0)) -> 8942 | E38: =INDEX('Calc - LGA to PC_Res'!H$4:H$115,MATCH('Outputs - CNs by postcode'!$A38,'Calc - LGA to PC_Res'!$A$4:$A$115,0)) -> 8941 | F38: =INDEX('Calc - LGA to PC_Res'!I$4:I$115,MATCH('Outputs - CNs by postcode'!$A38,'Calc - LGA to PC_Res'!$A$4:$A$115,0)) -> 8930 | G38: =INDEX('Calc - LGA to PC_Res'!J$4:J$115,MATCH('Outputs - CNs by postcode'!$A38,'Calc - LGA to PC_Res'!$A$4:$A$115,0)) -> 8989 | H38: =INDEX('Calc - LGA to PC_Res'!K$4:K$115,MATCH('Outputs - CNs by postcode'!$A38,'Calc - LGA to PC_Res'!$A$4:$A$115,0)) -> 9005 | I38: =INDEX('Calc - LGA to PC_Res'!L$4:L$115,MATCH('Outputs - CNs by postcode'!$A38,'Calc - LGA to PC_Res'!$A$4:$A$115,0)) -> 9063 | J38: =INDEX('Calc - LGA to PC_Res'!M$4:M$115,MATCH('Outputs - CNs by postcode'!$A38,'Calc - LGA to PC_Res'!$A$4:$A$115,0)) -> 9128 | K38: =INDEX('Calc - LGA to PC_Res'!N$4:N$115,MATCH('Outputs - CNs by postcode'!$A38,'Calc - LGA to PC_Res'!$A$4:$A$115,0)) -> 9144 | L38: =INDEX('Calc - LGA to PC_Res'!O$4:O$115,MATCH('Outputs - CNs by postcode'!$A38,'Calc - LGA to PC_Res'!$A$4:$A$115,0)) -> 9160 | M38: =INDEX('Calc - LGA to PC_Res'!P$4:P$115,MATCH('Outputs - CNs by postcode'!$A38,'Calc - LGA to PC_Res'!$A$4:$A$115,0)) -> 9245 | N38: =INDEX('Calc - LGA to PC_Res'!Q$4:Q$115,MATCH('Outputs - CNs by postcode'!$A38,'Calc - LGA to PC_Res'!$A$4:$A$115,0)) -> 9327 | O38: =INDEX('Calc - LGA to PC_Res'!R$4:R$115,MATCH('Outputs - CNs by postcode'!$A38,'Calc - LGA to PC_Res'!$A$4:$A$115,0)) -> 9247 | P38: =INDEX('Calc - LGA to PC_Res'!S$4:S$115,MATCH('Outputs - CNs by postcode'!$A38,'Calc - LGA to PC_Res'!$A$4:$A$115,0)) -> 9370 | Q38: =INDEX('Calc - LGA to PC_Res'!T$4:T$115,MATCH('Outputs - CNs by postcode'!$A38,'Calc - LGA to PC_Res'!$A$4:$A$115,0)) -> 9439 | R38: =INDEX('Calc - LGA to PC_Res'!U$4:U$115,MATCH('Outputs - CNs by postcode'!$A38,'Calc - LGA to PC_Res'!$A$4:$A$115,0)) -> 9500.080375 | S38: =INDEX('Calc - LGA to PC_Res'!V$4:V$115,MATCH('Outputs - CNs by postcode'!$A38,'Calc - LGA to PC_Res'!$A$4:$A$115,0)) -> 9561.970895 | T38: =INDEX('Calc - LGA to PC_Res'!W$4:W$115,MATCH('Outputs - CNs by postcode'!$A38,'Calc - LGA to PC_Res'!$A$4:$A$115,0)) -> 9624.682307 | U38: =INDEX('Calc - LGA to PC_Res'!X$4:X$115,MATCH('Outputs - CNs by postcode'!$A38,'Calc - LGA to PC_Res'!$A$4:$A$115,0)) -> 9688.225498 | V38: =INDEX('Calc - LGA to PC_Res'!Y$4:Y$115,MATCH('Outputs - CNs by postcode'!$A38,'Calc - LGA to PC_Res'!$A$4:$A$115,0)) -> 9748.667771 | W38: =INDEX('Data - usage raw'!$O$3:$O$120, MATCH('Outputs - CNs by postcode'!A38,'Data - usage raw'!$N$3:$N$120,0),1) -> central | X38: central
A39: 3041 | B39: =INDEX('Calc - LGA to PC_Res'!E$4:E$115,MATCH('Outputs - CNs by postcode'!$A39,'Calc - LGA to PC_Res'!$A$4:$A$115,0)) -> 3 | C39: =INDEX('Calc - LGA to PC_Res'!F$4:F$115,MATCH('Outputs - CNs by postcode'!$A39,'Calc - LGA to PC_Res'!$A$4:$A$115,0)) -> 4068 | D39: =INDEX('Calc - LGA to PC_Res'!G$4:G$115,MATCH('Outputs - CNs by postcode'!$A39,'Calc - LGA to PC_Res'!$A$4:$A$115,0)) -> 3979 | E39: =INDEX('Calc - LGA to PC_Res'!H$4:H$115,MATCH('Outputs - CNs by postcode'!$A39,'Calc - LGA to PC_Res'!$A$4:$A$115,0)) -> 3983 | F39: =INDEX('Calc - LGA to PC_Res'!I$4:I$115,MATCH('Outputs - CNs by postcode'!$A39,'Calc - LGA to PC_Res'!$A$4:$A$115,0)) -> 4028 | G39: =INDEX('Calc - LGA to PC_Res'!J$4:J$115,MATCH('Outputs - CNs by postcode'!$A39,'Calc - LGA to PC_Res'!$A$4:$A$115,0)) -> 4040 | H39: =INDEX('Calc - LGA to PC_Res'!K$4:K$115,MATCH('Outputs - CNs by postcode'!$A39,'Calc - LGA to PC_Res'!$A$4:$A$115,0)) -> 4044 | I39: =INDEX('Calc - LGA to PC_Res'!L$4:L$115,MATCH('Outputs - CNs by postcode'!$A39,'Calc - LGA to PC_Res'!$A$4:$A$115,0)) -> 4082 | J39: =INDEX('Calc - LGA to PC_Res'!M$4:M$115,MATCH('Outputs - CNs by postcode'!$A39,'Calc - LGA to PC_Res'!$A$4:$A$115,0)) -> 4102 | K39: =INDEX('Calc - LGA to PC_Res'!N$4:N$115,MATCH('Outputs - CNs by postcode'!$A39,'Calc - LGA to PC_Res'!$A$4:$A$115,0)) -> 4118 | L39: =INDEX('Calc - LGA to PC_Res'!O$4:O$115,MATCH('Outputs - CNs by postcode'!$A39,'Calc - LGA to PC_Res'!$A$4:$A$115,0)) -> 4139 | M39: =INDEX('Calc - LGA to PC_Res'!P$4:P$115,MATCH('Outputs - CNs by postcode'!$A39,'Calc - LGA to PC_Res'!$A$4:$A$115,0)) -> 4205 | N39: =INDEX('Calc - LGA to PC_Res'!Q$4:Q$115,MATCH('Outputs - CNs by postcode'!$A39,'Calc - LGA to PC_Res'!$A$4:$A$115,0)) -> 4274 | O39: =INDEX('Calc - LGA to PC_Res'!R$4:R$115,MATCH('Outputs - CNs by postcode'!$A39,'Calc - LGA to PC_Res'!$A$4:$A$115,0)) -> 4378 | P39: =INDEX('Calc - LGA to PC_Res'!S$4:S$115,MATCH('Outputs - CNs by postcode'!$A39,'Calc - LGA to PC_Res'!$A$4:$A$115,0)) -> 4443 | Q39: =INDEX('Calc - LGA to PC_Res'!T$4:T$115,MATCH('Outputs - CNs by postcode'!$A39,'Calc - LGA to PC_Res'!$A$4:$A$115,0)) -> 4466 | R39: =INDEX('Calc - LGA to PC_Res'!U$4:U$115,MATCH('Outputs - CNs by postcode'!$A39,'Calc - LGA to PC_Res'!$A$4:$A$115,0)) -> 4494.899773 | S39: =INDEX('Calc - LGA to PC_Res'!V$4:V$115,MATCH('Outputs - CNs by postcode'!$A39,'Calc - LGA to PC_Res'!$A$4:$A$115,0)) -> 4524.18286 | T39: =INDEX('Calc - LGA to PC_Res'!W$4:W$115,MATCH('Outputs - CNs by postcode'!$A39,'Calc - LGA to PC_Res'!$A$4:$A$115,0)) -> 4553.854347 | U39: =INDEX('Calc - LGA to PC_Res'!X$4:X$115,MATCH('Outputs - CNs by postcode'!$A39,'Calc - LGA to PC_Res'!$A$4:$A$115,0)) -> 4583.919385 | V39: =INDEX('Calc - LGA to PC_Res'!Y$4:Y$115,MATCH('Outputs - CNs by postcode'!$A39,'Calc - LGA to PC_Res'!$A$4:$A$115,0)) -> 4612.517244 | W39: =INDEX('Data - usage raw'!$O$3:$O$120, MATCH('Outputs - CNs by postcode'!A39,'Data - usage raw'!$N$3:$N$120,0),1) -> central | X39: central
A40: 3042 | B40: =INDEX('Calc - LGA to PC_Res'!E$4:E$115,MATCH('Outputs - CNs by postcode'!$A40,'Calc - LGA to PC_Res'!$A$4:$A$115,0)) -> 1 | C40: =INDEX('Calc - LGA to PC_Res'!F$4:F$115,MATCH('Outputs - CNs by postcode'!$A40,'Calc - LGA to PC_Res'!$A$4:$A$115,0)) -> 5772 | D40: =INDEX('Calc - LGA to PC_Res'!G$4:G$115,MATCH('Outputs - CNs by postcode'!$A40,'Calc - LGA to PC_Res'!$A$4:$A$115,0)) -> 5671 | E40: =INDEX('Calc - LGA to PC_Res'!H$4:H$115,MATCH('Outputs - CNs by postcode'!$A40,'Calc - LGA to PC_Res'!$A$4:$A$115,0)) -> 5712 | F40: =INDEX('Calc - LGA to PC_Res'!I$4:I$115,MATCH('Outputs - CNs by postcode'!$A40,'Calc - LGA to PC_Res'!$A$4:$A$115,0)) -> 5787 | G40: =INDEX('Calc - LGA to PC_Res'!J$4:J$115,MATCH('Outputs - CNs by postcode'!$A40,'Calc - LGA to PC_Res'!$A$4:$A$115,0)) -> 5871 | H40: =INDEX('Calc - LGA to PC_Res'!K$4:K$115,MATCH('Outputs - CNs by postcode'!$A40,'Calc - LGA to PC_Res'!$A$4:$A$115,0)) -> 5937 | I40: =INDEX('Calc - LGA to PC_Res'!L$4:L$115,MATCH('Outputs - CNs by postcode'!$A40,'Calc - LGA to PC_Res'!$A$4:$A$115,0)) -> 5966 | J40: =INDEX('Calc - LGA to PC_Res'!M$4:M$115,MATCH('Outputs - CNs by postcode'!$A40,'Calc - LGA to PC_Res'!$A$4:$A$115,0)) -> 6033 | K40: =INDEX('Calc - LGA to PC_Res'!N$4:N$115,MATCH('Outputs - CNs by postcode'!$A40,'Calc - LGA to PC_Res'!$A$4:$A$115,0)) -> 6122 | L40: =INDEX('Calc - LGA to PC_Res'!O$4:O$115,MATCH('Outputs - CNs by postcode'!$A40,'Calc - LGA to PC_Res'!$A$4:$A$115,0)) -> 6200 | M40: =INDEX('Calc - LGA to PC_Res'!P$4:P$115,MATCH('Outputs - CNs by postcode'!$A40,'Calc - LGA to PC_Res'!$A$4:$A$115,0)) -> 6318 | N40: =INDEX('Calc - LGA to PC_Res'!Q$4:Q$115,MATCH('Outputs - CNs by postcode'!$A40,'Calc - LGA to PC_Res'!$A$4:$A$115,0)) -> 6416 | O40: =INDEX('Calc - LGA to PC_Res'!R$4:R$115,MATCH('Outputs - CNs by postcode'!$A40,'Calc - LGA to PC_Res'!$A$4:$A$115,0)) -> 6529 | P40: =INDEX('Calc - LGA to PC_Res'!S$4:S$115,MATCH('Outputs - CNs by postcode'!$A40,'Calc - LGA to PC_Res'!$A$4:$A$115,0)) -> 6582 | Q40: =INDEX('Calc - LGA to PC_Res'!T$4:T$115,MATCH('Outputs - CNs by postcode'!$A40,'Calc - LGA to PC_Res'!$A$4:$A$115,0)) -> 6657 | R40: =INDEX('Calc - LGA to PC_Res'!U$4:U$115,MATCH('Outputs - CNs by postcode'!$A40,'Calc - LGA to PC_Res'!$A$4:$A$115,0)) -> 6704.24346 | S40: =INDEX('Calc - LGA to PC_Res'!V$4:V$115,MATCH('Outputs - CNs by postcode'!$A40,'Calc - LGA to PC_Res'!$A$4:$A$115,0)) -> 6752.103405 | T40: =INDEX('Calc - LGA to PC_Res'!W$4:W$115,MATCH('Outputs - CNs by postcode'!$A40,'Calc - LGA to PC_Res'!$A$4:$A$115,0)) -> 6800.587885 | U40: =INDEX('Calc - LGA to PC_Res'!X$4:X$115,MATCH('Outputs - CNs by postcode'!$A40,'Calc - LGA to PC_Res'!$A$4:$A$115,0)) -> 6849.705057 | V40: =INDEX('Calc - LGA to PC_Res'!Y$4:Y$115,MATCH('Outputs - CNs by postcode'!$A40,'Calc - LGA to PC_Res'!$A$4:$A$115,0)) -> 6894.605844 | W40: =INDEX('Data - usage raw'!$O$3:$O$120, MATCH('Outputs - CNs by postcode'!A40,'Data - usage raw'!$N$3:$N$120,0),1) -> central | X40: central
A41: 3043 | B41: =INDEX('Calc - LGA to PC_Res'!E$4:E$115,MATCH('Outputs - CNs by postcode'!$A41,'Calc - LGA to PC_Res'!$A$4:$A$115,0)) -> 1 | C41: =INDEX('Calc - LGA to PC_Res'!F$4:F$115,MATCH('Outputs - CNs by postcode'!$A41,'Calc - LGA to PC_Res'!$A$4:$A$115,0)) -> 6254 | D41: =INDEX('Calc - LGA to PC_Res'!G$4:G$115,MATCH('Outputs - CNs by postcode'!$A41,'Calc - LGA to PC_Res'!$A$4:$A$115,0)) -> 6276 | E41: =INDEX('Calc - LGA to PC_Res'!H$4:H$115,MATCH('Outputs - CNs by postcode'!$A41,'Calc - LGA to PC_Res'!$A$4:$A$115,0)) -> 6371 | F41: =INDEX('Calc - LGA to PC_Res'!I$4:I$115,MATCH('Outputs - CNs by postcode'!$A41,'Calc - LGA to PC_Res'!$A$4:$A$115,0)) -> 6465 | G41: =INDEX('Calc - LGA to PC_Res'!J$4:J$115,MATCH('Outputs - CNs by postcode'!$A41,'Calc - LGA to PC_Res'!$A$4:$A$115,0)) -> 6586 | H41: =INDEX('Calc - LGA to PC_Res'!K$4:K$115,MATCH('Outputs - CNs by postcode'!$A41,'Calc - LGA to PC_Res'!$A$4:$A$115,0)) -> 6638 | I41: =INDEX('Calc - LGA to PC_Res'!L$4:L$115,MATCH('Outputs - CNs by postcode'!$A41,'Calc - LGA to PC_Res'!$A$4:$A$115,0)) -> 6779 | J41: =INDEX('Calc - LGA to PC_Res'!M$4:M$115,MATCH('Outputs - CNs by postcode'!$A41,'Calc - LGA to PC_Res'!$A$4:$A$115,0)) -> 6895 | K41: =INDEX('Calc - LGA to PC_Res'!N$4:N$115,MATCH('Outputs - CNs by postcode'!$A41,'Calc - LGA to PC_Res'!$A$4:$A$115,0)) -> 6940 | L41: =INDEX('Calc - LGA to PC_Res'!O$4:O$115,MATCH('Outputs - CNs by postcode'!$A41,'Calc - LGA to PC_Res'!$A$4:$A$115,0)) -> 6996 | M41: =INDEX('Calc - LGA to PC_Res'!P$4:P$115,MATCH('Outputs - CNs by postcode'!$A41,'Calc - LGA to PC_Res'!$A$4:$A$115,0)) -> 7036 | N41: =INDEX('Calc - LGA to PC_Res'!Q$4:Q$115,MATCH('Outputs - CNs by postcode'!$A41,'Calc - LGA to PC_Res'!$A$4:$A$115,0)) -> 7063 | O41: =INDEX('Calc - LGA to PC_Res'!R$4:R$115,MATCH('Outputs - CNs by postcode'!$A41,'Calc - LGA to PC_Res'!$A$4:$A$115,0)) -> 7095 | P41: =INDEX('Calc - LGA to PC_Res'!S$4:S$115,MATCH('Outputs - CNs by postcode'!$A41,'Calc - LGA to PC_Res'!$A$4:$A$115,0)) -> 7109 | Q41: =INDEX('Calc - LGA to PC_Res'!T$4:T$115,MATCH('Outputs - CNs by postcode'!$A41,'Calc - LGA to PC_Res'!$A$4:$A$115,0)) -> 7142 | R41: =INDEX('Calc - LGA to PC_Res'!U$4:U$115,MATCH('Outputs - CNs by postcode'!$A41,'Calc - LGA to PC_Res'!$A$4:$A$115,0)) -> 7349.717898 | S41: =INDEX('Calc - LGA to PC_Res'!V$4:V$115,MATCH('Outputs - CNs by postcode'!$A41,'Calc - LGA to PC_Res'!$A$4:$A$115,0)) -> 7563.559006 | T41: =INDEX('Calc - LGA to PC_Res'!W$4:W$115,MATCH('Outputs - CNs by postcode'!$A41,'Calc - LGA to PC_Res'!$A$4:$A$115,0)) -> 7783.70616 | U41: =INDEX('Calc - LGA to PC_Res'!X$4:X$115,MATCH('Outputs - CNs by postcode'!$A41,'Calc - LGA to PC_Res'!$A$4:$A$115,0)) -> 8010.347699 | V41: =INDEX('Calc - LGA to PC_Res'!Y$4:Y$115,MATCH('Outputs - CNs by postcode'!$A41,'Calc - LGA to PC_Res'!$A$4:$A$115,0)) -> 8227.733087 | W41: =INDEX('Data - usage raw'!$O$3:$O$120, MATCH('Outputs - CNs by postcode'!A41,'Data - usage raw'!$N$3:$N$120,0),1) -> central | X41: central
A42: 3044 | B42: =INDEX('Calc - LGA to PC_Res'!E$4:E$115,MATCH('Outputs - CNs by postcode'!$A42,'Calc - LGA to PC_Res'!$A$4:$A$115,0)) -> 7.9999016 | C42: =INDEX('Calc - LGA to PC_Res'!F$4:F$115,MATCH('Outputs - CNs by postcode'!$A42,'Calc - LGA to PC_Res'!$A$4:$A$115,0)) -> 9122.887787 | D42: =INDEX('Calc - LGA to PC_Res'!G$4:G$115,MATCH('Outputs - CNs by postcode'!$A42,'Calc - LGA to PC_Res'!$A$4:$A$115,0)) -> 9050.888673 | E42: =INDEX('Calc - LGA to PC_Res'!H$4:H$115,MATCH('Outputs - CNs by postcode'!$A42,'Calc - LGA to PC_Res'!$A$4:$A$115,0)) -> 9123.887775 | F42: =INDEX('Calc - LGA to PC_Res'!I$4:I$115,MATCH('Outputs - CNs by postcode'!$A42,'Calc - LGA to PC_Res'!$A$4:$A$115,0)) -> 9211.886692 | G42: =INDEX('Calc - LGA to PC_Res'!J$4:J$115,MATCH('Outputs - CNs by postcode'!$A42,'Calc - LGA to PC_Res'!$A$4:$A$115,0)) -> 9375.884675 | H42: =INDEX('Calc - LGA to PC_Res'!K$4:K$115,MATCH('Outputs - CNs by postcode'!$A42,'Calc - LGA to PC_Res'!$A$4:$A$115,0)) -> 9498.883162 | I42: =INDEX('Calc - LGA to PC_Res'!L$4:L$115,MATCH('Outputs - CNs by postcode'!$A42,'Calc - LGA to PC_Res'!$A$4:$A$115,0)) -> 9642.881391 | J42: =INDEX('Calc - LGA to PC_Res'!M$4:M$115,MATCH('Outputs - CNs by postcode'!$A42,'Calc - LGA to PC_Res'!$A$4:$A$115,0)) -> 9764.879891 | K42: =INDEX('Calc - LGA to PC_Res'!N$4:N$115,MATCH('Outputs - CNs by postcode'!$A42,'Calc - LGA to PC_Res'!$A$4:$A$115,0)) -> 9860.87871 | L42: =INDEX('Calc - LGA to PC_Res'!O$4:O$115,MATCH('Outputs - CNs by postcode'!$A42,'Calc - LGA to PC_Res'!$A$4:$A$115,0)) -> 10128.87541 | M42: =INDEX('Calc - LGA to PC_Res'!P$4:P$115,MATCH('Outputs - CNs by postcode'!$A42,'Calc - LGA to PC_Res'!$A$4:$A$115,0)) -> 10346.87273 | N42: =INDEX('Calc - LGA to PC_Res'!Q$4:Q$115,MATCH('Outputs - CNs by postcode'!$A42,'Calc - LGA to PC_Res'!$A$4:$A$115,0)) -> 10480.87108 | O42: =INDEX('Calc - LGA to PC_Res'!R$4:R$115,MATCH('Outputs - CNs by postcode'!$A42,'Calc - LGA to PC_Res'!$A$4:$A$115,0)) -> 10615.86942 | P42: =INDEX('Calc - LGA to PC_Res'!S$4:S$115,MATCH('Outputs - CNs by postcode'!$A42,'Calc - LGA to PC_Res'!$A$4:$A$115,0)) -> 10763.8676 | Q42: =INDEX('Calc - LGA to PC_Res'!T$4:T$115,MATCH('Outputs - CNs by postcode'!$A42,'Calc - LGA to PC_Res'!$A$4:$A$115,0)) -> 10932.86552 | R42: =INDEX('Calc - LGA to PC_Res'!U$4:U$115,MATCH('Outputs - CNs by postcode'!$A42,'Calc - LGA to PC_Res'!$A$4:$A$115,0)) -> 11102.73112 | S42: =INDEX('Calc - LGA to PC_Res'!V$4:V$115,MATCH('Outputs - CNs by postcode'!$A42,'Calc - LGA to PC_Res'!$A$4:$A$115,0)) -> 11275.73564 | T42: =INDEX('Calc - LGA to PC_Res'!W$4:W$115,MATCH('Outputs - CNs by postcode'!$A42,'Calc - LGA to PC_Res'!$A$4:$A$115,0)) -> 11451.93708 | U42: =INDEX('Calc - LGA to PC_Res'!X$4:X$115,MATCH('Outputs - CNs by postcode'!$A42,'Calc - LGA to PC_Res'!$A$4:$A$115,0)) -> 11631.39453 | V42: =INDEX('Calc - LGA to PC_Res'!Y$4:Y$115,MATCH('Outputs - CNs by postcode'!$A42,'Calc - LGA to PC_Res'!$A$4:$A$115,0)) -> 11773.28479 | W42: =INDEX('Data - usage raw'!$O$3:$O$120, MATCH('Outputs - CNs by postcode'!A42,'Data - usage raw'!$N$3:$N$120,0),1) -> central | X42: central
A43: 3045 | B43: =INDEX('Calc - LGA to PC_Res'!E$4:E$115,MATCH('Outputs - CNs by postcode'!$A43,'Calc - LGA to PC_Res'!$A$4:$A$115,0)) -> 0 | C43: =INDEX('Calc - LGA to PC_Res'!F$4:F$115,MATCH('Outputs - CNs by postcode'!$A43,'Calc - LGA to PC_Res'!$A$4:$A$115,0)) -> 21 | D43: =INDEX('Calc - LGA to PC_Res'!G$4:G$115,MATCH('Outputs - CNs by postcode'!$A43,'Calc - LGA to PC_Res'!$A$4:$A$115,0)) -> 1 | E43: =INDEX('Calc - LGA to PC_Res'!H$4:H$115,MATCH('Outputs - CNs by postcode'!$A43,'Calc - LGA to PC_Res'!$A$4:$A$115,0)) -> 0 | F43: =INDEX('Calc - LGA to PC_Res'!I$4:I$115,MATCH('Outputs - CNs by postcode'!$A43,'Calc - LGA to PC_Res'!$A$4:$A$115,0)) -> 0 | G43: =INDEX('Calc - LGA to PC_Res'!J$4:J$115,MATCH('Outputs - CNs by postcode'!$A43,'Calc - LGA to PC_Res'!$A$4:$A$115,0)) -> 0 | H43: =INDEX('Calc - LGA to PC_Res'!K$4:K$115,MATCH('Outputs - CNs by postcode'!$A43,'Calc - LGA to PC_Res'!$A$4:$A$115,0)) -> 1 | I43: =INDEX('Calc - LGA to PC_Res'!L$4:L$115,MATCH('Outputs - CNs by postcode'!$A43,'Calc - LGA to PC_Res'!$A$4:$A$115,0)) -> 1 | J43: =INDEX('Calc - LGA to PC_Res'!M$4:M$115,MATCH('Outputs - CNs by postcode'!$A43,'Calc - LGA to PC_Res'!$A$4:$A$115,0)) -> 1 | K43: =INDEX('Calc - LGA to PC_Res'!N$4:N$115,MATCH('Outputs - CNs by postcode'!$A43,'Calc - LGA to PC_Res'!$A$4:$A$115,0)) -> 0 | L43: =INDEX('Calc - LGA to PC_Res'!O$4:O$115,MATCH('Outputs - CNs by postcode'!$A43,'Calc - LGA to PC_Res'!$A$4:$A$115,0)) -> 0 | M43: =INDEX('Calc - LGA to PC_Res'!P$4:P$115,MATCH('Outputs - CNs by postcode'!$A43,'Calc - LGA to PC_Res'!$A$4:$A$115,0)) -> 0 | N43: =INDEX('Calc - LGA to PC_Res'!Q$4:Q$115,MATCH('Outputs - CNs by postcode'!$A43,'Calc - LGA to PC_Res'!$A$4:$A$115,0)) -> 0 | O43: =INDEX('Calc - LGA to PC_Res'!R$4:R$115,MATCH('Outputs - CNs by postcode'!$A43,'Calc - LGA to PC_Res'!$A$4:$A$115,0)) -> 0 | P43: =INDEX('Calc - LGA to PC_Res'!S$4:S$115,MATCH('Outputs - CNs by postcode'!$A43,'Calc - LGA to PC_Res'!$A$4:$A$115,0)) -> 0 | Q43: =INDEX('Calc - LGA to PC_Res'!T$4:T$115,MATCH('Outputs - CNs by postcode'!$A43,'Calc - LGA to PC_Res'!$A$4:$A$115,0)) -> 0 | R43: =INDEX('Calc - LGA to PC_Res'!U$4:U$115,MATCH('Outputs - CNs by postcode'!$A43,'Calc - LGA to PC_Res'!$A$4:$A$115,0)) -> 0 | S43: =INDEX('Calc - LGA to PC_Res'!V$4:V$115,MATCH('Outputs - CNs by postcode'!$A43,'Calc - LGA to PC_Res'!$A$4:$A$115,0)) -> 0 | T43: =INDEX('Calc - LGA to PC_Res'!W$4:W$115,MATCH('Outputs - CNs by postcode'!$A43,'Calc - LGA to PC_Res'!$A$4:$A$115,0)) -> 0 | U43: =INDEX('Calc - LGA to PC_Res'!X$4:X$115,MATCH('Outputs - CNs by postcode'!$A43,'Calc - LGA to PC_Res'!$A$4:$A$115,0)) -> 0 | V43: =INDEX('Calc - LGA to PC_Res'!Y$4:Y$115,MATCH('Outputs - CNs by postcode'!$A43,'Calc - LGA to PC_Res'!$A$4:$A$115,0)) -> 0 | W43: =INDEX('Data - usage raw'!$O$3:$O$120, MATCH('Outputs - CNs by postcode'!A43,'Data - usage raw'!$N$3:$N$120,0),1) -> central | X43: central
A44: 3046 | B44: =INDEX('Calc - LGA to PC_Res'!E$4:E$115,MATCH('Outputs - CNs by postcode'!$A44,'Calc - LGA to PC_Res'!$A$4:$A$115,0)) -> 5 | C44: =INDEX('Calc - LGA to PC_Res'!F$4:F$115,MATCH('Outputs - CNs by postcode'!$A44,'Calc - LGA to PC_Res'!$A$4:$A$115,0)) -> 11251 | D44: =INDEX('Calc - LGA to PC_Res'!G$4:G$115,MATCH('Outputs - CNs by postcode'!$A44,'Calc - LGA to PC_Res'!$A$4:$A$115,0)) -> 11160 | E44: =INDEX('Calc - LGA to PC_Res'!H$4:H$115,MATCH('Outputs - CNs by postcode'!$A44,'Calc - LGA to PC_Res'!$A$4:$A$115,0)) -> 11263 | F44: =INDEX('Calc - LGA to PC_Res'!I$4:I$115,MATCH('Outputs - CNs by postcode'!$A44,'Calc - LGA to PC_Res'!$A$4:$A$115,0)) -> 11387 | G44: =INDEX('Calc - LGA to PC_Res'!J$4:J$115,MATCH('Outputs - CNs by postcode'!$A44,'Calc - LGA to PC_Res'!$A$4:$A$115,0)) -> 11508 | H44: =INDEX('Calc - LGA to PC_Res'!K$4:K$115,MATCH('Outputs - CNs by postcode'!$A44,'Calc - LGA to PC_Res'!$A$4:$A$115,0)) -> 11614 | I44: =INDEX('Calc - LGA to PC_Res'!L$4:L$115,MATCH('Outputs - CNs by postcode'!$A44,'Calc - LGA to PC_Res'!$A$4:$A$115,0)) -> 11803 | J44: =INDEX('Calc - LGA to PC_Res'!M$4:M$115,MATCH('Outputs - CNs by postcode'!$A44,'Calc - LGA to PC_Res'!$A$4:$A$115,0)) -> 11996 | K44: =INDEX('Calc - LGA to PC_Res'!N$4:N$115,MATCH('Outputs - CNs by postcode'!$A44,'Calc - LGA to PC_Res'!$A$4:$A$115,0)) -> 12170 | L44: =INDEX('Calc - LGA to PC_Res'!O$4:O$115,MATCH('Outputs - CNs by postcode'!$A44,'Calc - LGA to PC_Res'!$A$4:$A$115,0)) -> 12356 | M44: =INDEX('Calc - LGA to PC_Res'!P$4:P$115,MATCH('Outputs - CNs by postcode'!$A44,'Calc - LGA to PC_Res'!$A$4:$A$115,0)) -> 12590 | N44: =INDEX('Calc - LGA to PC_Res'!Q$4:Q$115,MATCH('Outputs - CNs by postcode'!$A44,'Calc - LGA to PC_Res'!$A$4:$A$115,0)) -> 12864 | O44: =INDEX('Calc - LGA to PC_Res'!R$4:R$115,MATCH('Outputs - CNs by postcode'!$A44,'Calc - LGA to PC_Res'!$A$4:$A$115,0)) -> 13093 | P44: =INDEX('Calc - LGA to PC_Res'!S$4:S$115,MATCH('Outputs - CNs by postcode'!$A44,'Calc - LGA to PC_Res'!$A$4:$A$115,0)) -> 13366 | Q44: =INDEX('Calc - LGA to PC_Res'!T$4:T$115,MATCH('Outputs - CNs by postcode'!$A44,'Calc - LGA to PC_Res'!$A$4:$A$115,0)) -> 13636 | R44: =INDEX('Calc - LGA to PC_Res'!U$4:U$115,MATCH('Outputs - CNs by postcode'!$A44,'Calc - LGA to PC_Res'!$A$4:$A$115,0)) -> 13847.86461 | S44: =INDEX('Calc - LGA to PC_Res'!V$4:V$115,MATCH('Outputs - CNs by postcode'!$A44,'Calc - LGA to PC_Res'!$A$4:$A$115,0)) -> 14063.64423 | T44: =INDEX('Calc - LGA to PC_Res'!W$4:W$115,MATCH('Outputs - CNs by postcode'!$A44,'Calc - LGA to PC_Res'!$A$4:$A$115,0)) -> 14283.41122 | U44: =INDEX('Calc - LGA to PC_Res'!X$4:X$115,MATCH('Outputs - CNs by postcode'!$A44,'Calc - LGA to PC_Res'!$A$4:$A$115,0)) -> 14507.23925 | V44: =INDEX('Calc - LGA to PC_Res'!Y$4:Y$115,MATCH('Outputs - CNs by postcode'!$A44,'Calc - LGA to PC_Res'!$A$4:$A$115,0)) -> 14684.21166 | W44: =INDEX('Data - usage raw'!$O$3:$O$120, MATCH('Outputs - CNs by postcode'!A44,'Data - usage raw'!$N$3:$N$120,0),1) -> central | X44: central
